{"text_format":"1","workbook":"xlsx","n_sheets":7,"sheets":["Maelekezo-Miliki","Orodha ua uhakiki wa Miliki","Ripoti ya Miliki","Maelekezo-Kilimo cha mkataba","OUKIM","Ripoti ya kilimo cha mkataba","DropDowns"],"not_rendered":{"charts":0,"images":7,"macros":0,"external_links":0,"defined_names":6,"comments":0,"pivot_tables":0},"unopened":[],"bounds":{"document_bytes":16777216,"sheet_cells":100000,"rows_first":2000,"rows_last":500,"rows_between":2000,"halvings":0,"cell_chars":16384,"cell_head_chars":4096},"cells_cut":0,"cells_raw":0,"read":"whole","date_system":"1900"}

{"sheet":"Maelekezo-Miliki","index":0,"n_rows":39,"n_cols":2,"rows_kept":39,"cut":false,"hidden":false,"merged":[[1,1,1,16],[38,1,38,16]]}
[]
[null,"ZANA ZA UPIMAJI & MAELEKEZO YA KUINGIA   "]
[]
[]
[]
[]
[]
[]
[]
[]
[]
[]
[]
[]
[]
[]
[]
[]
[]
[]
[]
[]
[]
[]
[]
[]
[]
[]
[]
[]
[]
[]
[]
[]
[]
[]
[]
[]
[null,"ORODHA YA UHAKIKI WA MILIKI & MAELEKEZO YA RIPOTI  "]

{"sheet":"Orodha ua uhakiki wa Miliki","index":1,"n_rows":397,"n_cols":10,"rows_kept":397,"cut":false,"hidden":false,"merged":[]}
[]
[null,1,"Uhakiki wa Orodha ya Tathmini ",null,"Hali","Maoni & Uhifadhi wa Nyaraka ","Kihatarishi (1= ya chini ; 3= Ya juu)",null,"Report Ident","Group"]
[null,2]
[null,3,"I. Sera ya Shirika na Tathmini ya Uwezo  ",{"$f":"IF(COUNT(D6:D22)=0,\"\",ROUND(SUM(D6:D22)/COUNT(D6:D22),0))","v":""},null,null,{"$f":"IFERROR(ROUND(SUM(G5:G23)/COUNT(G5:G23),0),\"\")","v":""}]
[null,4]
[null,5,"1.1  Thathmini ya Sera "]
[null,6,"1.1.1  Je, shirika lina sera inayohusiana na uwekezaji wajibifu wa ardhi?  ",{"$f":"IF(OR(E7=\"\",E7=\"(chagua uchaguzi)\"),\"\",IF(VLOOKUP(E7,DropDowns!B:D,3,0)=0,\"\",VLOOKUP(E7,DropDowns!B:D,3,0)))","v":""},"(chagua uchaguzi)",null,"(chagua kiwango)",null,{"$f":"IF(OR(AND(D7<3,E7<>\"N/A\" ),AND(G7>1,G7<>\"(chagua kiwango)\",E7<>\"N/A\")),\"Yes\",\"No\")","v":"No"},1]
[null,7,"1.1.2 Ikiwa jibu ni ndiyo, je sera hiyo imekuwa ikitekelezwa au kuna mpango uliowekwa kwa ajili ya utekelezaji wa sera hiyo?   ",{"$f":"IF(OR(E8=\"\",E8=\"(chagua uchaguzi)\"),\"\",IF(VLOOKUP(E8,DropDowns!B:D,3,0)=0,\"\",VLOOKUP(E8,DropDowns!B:D,3,0)))","v":""},"(chagua uchaguzi)",null,"(chagua kiwango)",null,{"$f":"IF(OR(AND(D8<3,E8<>\"N/A\" ),AND(G8>1,G8<>\"(chagua kiwango)\",E8<>\"N/A\")),\"Yes\",\"No\")","v":"No"},1]
[null,8,"1.1.3 Je, shirika lina sera inayohusu haki za wanawake, ikiwa ni pamoja na haki za wanawake katika ardhi ",{"$f":"IF(OR(E9=\"\",E9=\"(chagua uchaguzi)\"),\"\",IF(VLOOKUP(E9,DropDowns!B:D,3,0)=0,\"\",VLOOKUP(E9,DropDowns!B:D,3,0)))","v":""},"(chagua uchaguzi)",null,"(chagua kiwango)",null,"No",1]
[null,9,"1.1.4  Ikiwa jibu ni ndiyo, je sera hiyo imekuwa ikitekelezwa au kuna mipango iliyowekwa kwa ajili ya utekelezaji wa sera hiyo?  ",{"$f":"IF(OR(E10=\"\",E10=\"(chagua uchaguzi)\"),\"\",IF(VLOOKUP(E10,DropDowns!B:D,3,0)=0,\"\",VLOOKUP(E10,DropDowns!B:D,3,0)))","v":""},"(chagua uchaguzi)",null,"(chagua kiwango)",null,"No",1]
[null,10,"1.1.5 Je, kampuni ina sera kuhusu namna ya kuendesha ESIAs ambayo inajumuisha upimaji wa athari za haki ya kumiliki ardhi, mazingira, mahusiano ya kijamii, usalama wa chakula, haki za binadamu, na haki za wanawake?  ",{"$f":"IF(OR(E11=\"\",E11=\"(chagua uchaguzi)\"),\"\",IF(VLOOKUP(E11,DropDowns!B:D,3,0)=0,\"\",VLOOKUP(E11,DropDowns!B:D,3,0)))","v":""},"(chagua uchaguzi)",null,"(chagua kiwango)",null,"No",1]
[null,11,"1.1.6 Je, kampuni ina sera ya uvumilivu sifuri wa rushwa?  ",{"$f":"IF(OR(E12=\"\",E12=\"(chagua uchaguzi)\"),\"\",IF(VLOOKUP(E12,DropDowns!B:D,3,0)=0,\"\",VLOOKUP(E12,DropDowns!B:D,3,0)))","v":""},"(chagua uchaguzi)",null,"(chagua kiwango)",null,"No",1]
[null,12,null,{"$f":"IF(OR(E13=\"\",E13=\"(select option)\"),\"\",VLOOKUP(E13,DropDowns!C:D,2,0))","v":""},null,null,null,null,"No",1]
[null,13,null,{"$f":"IF(OR(E14=\"\",E14=\"(select option)\"),\"\",VLOOKUP(E14,DropDowns!C:D,2,0))","v":""},null,null,null,null,"No",1]
[null,14,"1.2 Tathmini ya Uwezo  ",{"$f":"IF(OR(E15=\"\",E15=\"(select option)\"),\"\",VLOOKUP(E15,DropDowns!C:D,2,0))","v":""},null,null,null,null,"No",1]
[null,15,"1.2.1 Je, kampuni ina uwezo madhubuti wa kutathmini sheria, sera na uhakiki wa kitaasisi? ",{"$f":"IF(OR(E16=\"\",E16=\"(chagua uchaguzi)\"),\"\",IF(VLOOKUP(E16,DropDowns!B:D,3,0)=0,\"\",VLOOKUP(E16,DropDowns!B:D,3,0)))","v":""},"(chagua uchaguzi)",null,"(chagua kiwango)",null,"No",1]
[null,16,"1.2.2 Je, kampuni ina utaalamu ambao ni wa lazima katika kuendesha Tathmini ya athari ya kumiliki ardhi na ESIAs ambayo inajumuisha tathmini ya haki za binadamu na athari za usalama wa chakula? Je, kampuni pia ina uwezo wa kutengeneza mpango wa namna ya kuepuka au kupunguza athari hizo? ",{"$f":"IF(OR(E17=\"\",E17=\"(chagua uchaguzi)\"),\"\",IF(VLOOKUP(E17,DropDowns!B:D,3,0)=0,\"\",VLOOKUP(E17,DropDowns!B:D,3,0)))","v":""},"(chagua uchaguzi)",null,"(chagua kiwango)",null,"No",1]
[null,17,"1.2.3 Je, kampuni ina uwezo ambao ni wa lazima katika kutathmini mitazamo na wasiwasi ya jamii? ",{"$f":"IF(OR(E18=\"\",E18=\"(chagua uchaguzi)\"),\"\",IF(VLOOKUP(E18,DropDowns!B:D,3,0)=0,\"\",VLOOKUP(E18,DropDowns!B:D,3,0)))","v":""},"(chagua uchaguzi)",null,"(chagua kiwango)",null,"No",1]
[null,18,"1.2.4 Je, kampuni hiyo ina uwezo madhubuti wa kutathmini athari pana zaidi kwenye jamii asilia? (kwa mfano, afisa/maafisa mawasiliano wa jamii, njia ya mawasiliano ya pande mbili)? ",{"$f":"IF(OR(E19=\"\",E19=\"(chagua uchaguzi)\"),\"\",IF(VLOOKUP(E19,DropDowns!B:D,3,0)=0,\"\",VLOOKUP(E19,DropDowns!B:D,3,0)))","v":""},"(chagua uchaguzi)",null,"(chagua kiwango)",null,"No",1]
[null,19,"1.2.5 Je, wafanyakazi wanaohusika wana muda na rasilimali za kutosha kuweza kushirikiana na wadau muhimu katika haki za ardhi (kwa mfano, wadhamini wa kilimo cha mkataba, vyama, vyama vya ushirika, wakulima, viongozi wa jamii na wajumbe, serikali za mitaa, nk)?  ",{"$f":"IF(OR(E20=\"\",E20=\"(chagua uchaguzi)\"),\"\",IF(VLOOKUP(E20,DropDowns!B:D,3,0)=0,\"\",VLOOKUP(E20,DropDowns!B:D,3,0)))","v":""},"(chagua uchaguzi)",null,"(chagua kiwango)",null,"No",1]
[null,20,"1.2.6 Je, wafanyakazi wanaohusika wana mamlaka ya kutosha na wanapata msaada wa taasisi katika kutekeleza majukumu yao ambayo yanahusiana na ardhi (kwa mfano, orodha ya maelezo ya kazi na yanahusishwa na uhakiki wa utendaji)? ",{"$f":"IF(OR(E21=\"\",E21=\"(chagua uchaguzi)\"),\"\",IF(VLOOKUP(E21,DropDowns!B:D,3,0)=0,\"\",VLOOKUP(E21,DropDowns!B:D,3,0)))","v":""},"(chagua uchaguzi)",null,"(chagua kiwango)",null,"No",1]
[null,21,"1.2.7 Je, kampuni ina uelewa mzuri juu ya hali ya rushwa nchini, hususani katika eneo ambapo uwekezaji unafanyika?  ",{"$f":"IF(OR(E22=\"\",E22=\"(chagua uchaguzi)\"),\"\",IF(VLOOKUP(E22,DropDowns!B:D,3,0)=0,\"\",VLOOKUP(E22,DropDowns!B:D,3,0)))","v":""},"(chagua uchaguzi)",null,"(chagua kiwango)",null,"No",1]
[null,22,null,{"$f":"IF(OR(E23=\"\",E23=\"(select option)\"),\"\",VLOOKUP(E23,DropDowns!C:D,2,0))","v":""}]
[null,23,null,{"$f":"IF(OR(E24=\"\",E24=\"(select option)\"),\"\",VLOOKUP(E24,DropDowns!C:D,2,0))","v":""}]
[null,24,"II. Uhakiki wa Kisheria, kiutawala na kitaasisi ",{"$f":"IF(COUNT(D27:D53)=0,\"\",ROUND(SUM(D27:D53)/COUNT(D27:D53),0))","v":""},null,null,{"$f":"IFERROR(ROUND(SUM(G26:G47)/COUNT(G26:G47),0),\"\")","v":""}]
[null,25,null,{"$f":"IF(OR(E26=\"\",E26=\"(select option)\"),\"\",VLOOKUP(E26,DropDowns!C:D,2,0))","v":""}]
[null,26,"2.1 Uhakiki wa Sheria & Sera ",{"$f":"IF(OR(E27=\"\",E27=\"(select option)\"),\"\",VLOOKUP(E27,DropDowns!C:D,2,0))","v":""}]
[null,27,"2.1.1 Je, kuna sheria au kanuni za ndani au kanuni zinazoongoza iwapo na au jinsi ambavyo makampuni ya kigeni na ya ndani yanaweza kupata haki za ardhi na / au kubadilisha matumizi ya ardhi?  ",{"$f":"IF(OR(E28=\"\",E28=\"(chagua uchaguzi)\"),\"\",IF(VLOOKUP(E28,DropDowns!B:D,3,0)=0,\"\",VLOOKUP(E28,DropDowns!B:D,3,0)))","v":""},"(chagua uchaguzi)",null,"(chagua kiwango)",null,{"$f":"IF(OR(AND(D28<3,E28<>\"N/A\" ),AND(G28>1,G28<>\"(chagua kiwango)\",E28<>\"N/A\")),\"Yes\",\"No\")","v":"No"},2]
[null,28,"2.1.2 Je, kuna sheria au kanuni ambazo zinatumika mahsusi kwa ajili ya mradi huu wa uwekezaji, ikiwa ni kama nyongeza kwenye sheria za taifa zinazotumika kwenye makampuni yote (kwa mfano, Sheria ya Sukari au sheria zingine zinazohusiana na bidhaa, Sheria ya Ulinzi wa Mazingira, nk)?  ",{"$f":"IF(OR(E29=\"\",E29=\"(chagua uchaguzi)\"),\"\",IF(VLOOKUP(E29,DropDowns!B:D,3,0)=0,\"\",VLOOKUP(E29,DropDowns!B:D,3,0)))","v":""},"(chagua uchaguzi)",null,"(chagua kiwango)",null,"No",2]
[null,29,"2.1.3 Je, sheria au kanuni zilizotajwa hapo juu zimekuwa zikitekelezwa na je zinatekelezwa  kwa vitendo? ",{"$f":"IF(OR(E30=\"\",E30=\"(chagua uchaguzi)\"),\"\",IF(VLOOKUP(E30,DropDowns!B:D,3,0)=0,\"\",VLOOKUP(E30,DropDowns!B:D,3,0)))","v":""},"(chagua uchaguzi)",null,"(chagua kiwango)",null,"No",2]
[null,30,"2.1.4 Je, sheria au kanuni hizi zinatoa ulinzi kamilifu wa haki za binadamu au ardhi?  ",{"$f":"IF(OR(E31=\"\",E31=\"(chagua uchaguzi)\"),\"\",IF(VLOOKUP(E31,DropDowns!B:D,3,0)=0,\"\",VLOOKUP(E31,DropDowns!B:D,3,0)))","v":""},"(chagua uchaguzi)",null,"(chagua kiwango)",null,"No",2]
[null,31,"2.1.5 Je, kuna vikwazo katika matumizi ya sheria au kanuni za ndani kwenye eneo la mradi wa uwekezaji ambavyo vinaweza kuathiri haki za wale wanaoishi na kufanya kazi kwenye eneo hilo?  ",{"$f":"IF(OR(E32=\"\",E32=\"(chagua uchaguzi)\"),\"\",IF(VLOOKUP(E32,DropDowns!B:D,3,0)=0,\"\",VLOOKUP(E32,DropDowns!B:D,3,0)))","v":""},"(chagua uchaguzi)",null,"(chagua kiwango)",null,"No",2]
[null,32,"2.1.6 Je, kuna sheria au kanuni za ndani zinazofungamana na utaifishaji? Ikiwa jibu ni ndiyo, je ni masharti  gani ambayo serikali inapaswa kuyazingatia ili kutaifisha ardhi? ",{"$f":"IF(OR(E33=\"\",E33=\"(chagua uchaguzi)\"),\"\",IF(VLOOKUP(E33,DropDowns!B:D,3,0)=0,\"\",VLOOKUP(E33,DropDowns!B:D,3,0)))","v":""},"(chagua uchaguzi)",null,"(chagua kiwango)",null,"No",2]
[null,33,"2.1.7  Je, sheria na kanuni za ndani zinatambua haki za umiliki wa ardhi, ikiwa ni pamoja na haki za kimila na haki zisizo rasmi za watu binafsi na vikundi? Je, sheria au kanuni hizo zinatekelezwa? ",{"$f":"IF(OR(E34=\"\",E34=\"(chagua uchaguzi)\"),\"\",IF(VLOOKUP(E34,DropDowns!B:D,3,0)=0,\"\",VLOOKUP(E34,DropDowns!B:D,3,0)))","v":""},"(chagua uchaguzi)",null,"(chagua kiwango)",null,"No",2]
[null,34,"2.1.8 Je, sheria za ndani zinahitaji makampuni ya kigeni na / au ya ndani kufanya tathmini ya athari za kimazingira na / au za kijamii (ESIA) kabla ya kupata ardhi au kubadilisha matumizi ya ardhi? ",{"$f":"IF(OR(E35=\"\",E35=\"(chagua uchaguzi)\"),\"\",IF(VLOOKUP(E35,DropDowns!B:D,3,0)=0,\"\",VLOOKUP(E35,DropDowns!B:D,3,0)))","v":""},"(chagua uchaguzi)",null,"(chagua kiwango)",null,"No",2]
[null,35,"2.1.9 Ikiwa jibu ni ndiyo, je, sheria au kanuni hizo zinafafanua wazi ni wakati gani ESIAs inahitajika (kwa mfano kabla ya makubaliano)? ",{"$f":"IF(OR(E36=\"\",E36=\"(chagua uchaguzi)\"),\"\",IF(VLOOKUP(E36,DropDowns!B:D,3,0)=0,\"\",VLOOKUP(E36,DropDowns!B:D,3,0)))","v":""},"(chagua uchaguzi)",null,"(chagua kiwango)",null,"No",2]
[null,36,"2.1.10 Je, sheria au kanuni hizo zinahitaji kipimo cha athari zinazohusiana na usalama wa kumiliki ardhi, usalama wa chakula, na haki za binadamu? ",{"$f":"IF(OR(E37=\"\",E37=\"(chagua uchaguzi)\"),\"\",IF(VLOOKUP(E37,DropDowns!B:D,3,0)=0,\"\",VLOOKUP(E37,DropDowns!B:D,3,0)))","v":""},"(chagua uchaguzi)",null,"(chagua kiwango)",null,"No",2]
[null,37,"2.1.11 Chini ya sheria zilizopo kwa sasa, sera, na desturi, ni taratibu zipi za malalamiko zinazopatikana kwa raia, wanajamii, na wafanyakazi? ",{"$f":"IF(OR(E38=\"\",E38=\"(chagua uchaguzi)\"),\"\",IF(VLOOKUP(E38,DropDowns!B:D,3,0)=0,\"\",VLOOKUP(E38,DropDowns!B:D,3,0)))","v":""},"(chagua uchaguzi)",null,"(chagua kiwango)",null,"No",2]
[null,38,"2.1.12 Je, taratibu hizo za malalamiko zinapatikana, zinafanya kazi na ni za haki? Taratibu kama hizo za malalamiko zinaweza kupatikana, kufanya kazi, na ni za haki? ",{"$f":"IF(OR(E39=\"\",E39=\"(chagua uchaguzi)\"),\"\",IF(VLOOKUP(E39,DropDowns!B:D,3,0)=0,\"\",VLOOKUP(E39,DropDowns!B:D,3,0)))","v":""},"(chagua uchaguzi)",null,"(chagua kiwango)",null,"No",2]
[null,39,null,{"$f":"IF(OR(E40=\"\",E40=\"(select option)\"),\"\",VLOOKUP(E40,DropDowns!C:D,2,0))","v":""},null,null,null,null,"No",2]
[null,40,null,{"$f":"IF(OR(E41=\"\",E41=\"(select option)\"),\"\",VLOOKUP(E41,DropDowns!C:D,2,0))","v":""},null,null,null,null,"No",2]
[null,41,"2.2 Uhakiki wa Masuala ya Kiutawala  ",{"$f":"IF(OR(E42=\"\",E42=\"(select option)\"),\"\",VLOOKUP(E42,DropDowns!C:D,2,0))","v":""},null,null,null,null,"No",2]
[null,42,"2.2.1  Je, kuna kumbukumbu zilizopo kwenye eneo la mradi ambazo zimetunza haki za ardhi  ",{"$f":"IF(OR(E43=\"\",E43=\"(chagua uchaguzi)\"),\"\",IF(VLOOKUP(E43,DropDowns!B:D,3,0)=0,\"\",VLOOKUP(E43,DropDowns!B:D,3,0)))","v":""},"(chagua uchaguzi)",null,"(chagua kiwango)",null,"No",2]
[null,43,"2.2.2 Je, nyaraka hizo zimeweka katika maandishi ya kumbukumbu za sheria za nchi, sheria za kimila, na haki zinazotolewa na serikali?  ",{"$f":"IF(OR(E44=\"\",E44=\"(chagua uchaguzi)\"),\"\",IF(VLOOKUP(E44,DropDowns!B:D,3,0)=0,\"\",VLOOKUP(E44,DropDowns!B:D,3,0)))","v":""},"(chagua uchaguzi)",null,"(chagua kiwango)",null,"No",2]
[null,44,"2.2.3  Je, nyaraka hizi zinatoa fursa kwa ajili ya haki za umiliki sawa kwa pamoja au za umiliki wa pamoja unaopishana ziweze kuhifadhiwa katika kumbukumbu za maandishi?  ",{"$f":"IF(OR(E45=\"\",E45=\"(chagua uchaguzi)\"),\"\",IF(VLOOKUP(E45,DropDowns!B:D,3,0)=0,\"\",VLOOKUP(E45,DropDowns!B:D,3,0)))","v":""},"(chagua uchaguzi)",null,"(chagua kiwango)",null,"No",2]
[null,45,"2.2.4 Je, wanajamii na serikali wana uwezo wa kuzipata hizi nyaraka za kumbukumbu? ",{"$f":"IF(OR(E46=\"\",E46=\"(chagua uchaguzi)\"),\"\",IF(VLOOKUP(E46,DropDowns!B:D,3,0)=0,\"\",VLOOKUP(E46,DropDowns!B:D,3,0)))","v":""},"(chagua uchaguzi)",null,"(chagua kiwango)",null,"No",2]
[null,46,null,{"$f":"IF(OR(E47=\"\",E47=\"(select option)\"),\"\",VLOOKUP(E47,DropDowns!C:D,2,0))","v":""},null,null,null,null,"No",2]
[null,47,null,{"$f":"IF(OR(E48=\"\",E48=\"(select option)\"),\"\",VLOOKUP(E48,DropDowns!C:D,2,0))","v":""},null,null,null,null,"No",2]
[null,48,"2.3 Uhakiki wa Kitaasisi  ",{"$f":"IF(OR(E49=\"\",E49=\"(select option)\"),\"\",VLOOKUP(E49,DropDowns!C:D,2,0))","v":""},null,null,null,null,"No",2]
[null,49,"2.3.1 Je, kuna mamlaka ya kisheria, kiutawala, au kimila ambayo hufanya kazi kama wadhamini wa haki za ardhi na / au sheria za usimamizi wa pamoja? ",{"$f":"IF(OR(E50=\"\",E50=\"(chagua uchaguzi)\"),\"\",IF(VLOOKUP(E50,DropDowns!B:D,3,0)=0,\"\",VLOOKUP(E50,DropDowns!B:D,3,0)))","v":""},"(chagua uchaguzi)",null,"(chagua kiwango)",null,"No",2]
[null,50,"2.3.2 Kama jibu ni ndiyo, je mamlaka hizo zina uwezo wa kutosha wa kufanya kazi kama mdhamini? ",{"$f":"IF(OR(E51=\"\",E51=\"(chagua uchaguzi)\"),\"\",IF(VLOOKUP(E51,DropDowns!B:D,3,0)=0,\"\",VLOOKUP(E51,DropDowns!B:D,3,0)))","v":""},"(chagua uchaguzi)",null,"(chagua kiwango)",null,"No",2]
[null,51,"2.3.3 Je, kuna migogoro iliyopo kuhusu uwezo wa mdhamini/wadhamini katika kulinda haki za ardhi kwa ufanisi?  ",{"$f":"IF(OR(E52=\"\",E52=\"(chagua uchaguzi)\"),\"\",IF(VLOOKUP(E52,DropDowns!B:D,3,0)=0,\"\",VLOOKUP(E52,DropDowns!B:D,3,0)))","v":""},"(chagua uchaguzi)",null,"(chagua kiwango)",null,"No",2]
[null,52,null,{"$f":"IF(OR(E53=\"\",E53=\"(select option)\"),\"\",VLOOKUP(E53,DropDowns!C:D,2,0))","v":""}]
[null,53,null,{"$f":"IF(OR(E54=\"\",E54=\"(select option)\"),\"\",VLOOKUP(E54,DropDowns!C:D,2,0))","v":""}]
[null,54,"III. Tathmini ya Athari  ",{"$f":"IF(COUNT(D57:D82)=0,\"\",ROUND(SUM(D57:D82)/COUNT(D57:D82),0))","v":""},null,null,{"$f":"IFERROR(ROUND(SUM(G56:G82)/COUNT(G56:G82),0),\"\")","v":""}]
[null,55,null,{"$f":"IF(OR(E56=\"\",E56=\"(select option)\"),\"\",VLOOKUP(E56,DropDowns!C:D,2,0))","v":""}]
[null,56,"3.1 Tathmini ya Umiliki wa Ardhi  ",{"$f":"IF(OR(E57=\"\",E57=\"(select option)\"),\"\",VLOOKUP(E57,DropDowns!C:D,2,0))","v":""}]
[null,57,"3.1.1  Je, kampuni ilipataje haki kwenye umiliki wake wa sasa?  ",{"$f":"IF(OR(E58=\"\",E58=\"(chagua uchaguzi)\"),\"\",IF(VLOOKUP(E58,DropDowns!B:D,3,0)=0,\"\",VLOOKUP(E58,DropDowns!B:D,3,0)))","v":""},"(chagua uchaguzi)",null,"(chagua kiwango)",null,{"$f":"IF(OR(AND(D58<3,E58<>\"N/A\" ),AND(G58>1,G58<>\"(chagua kiwango)\",E58<>\"N/A\")),\"Yes\",\"No\")","v":"No"},3]
[null,58,"3.1.2 Uhamishaji wa ardhi ulihusisha utaifishaji wa serikali na uhamisho usio wa hiari?  ",{"$f":"IF(OR(E59=\"\",E59=\"(chagua uchaguzi)\"),\"\",IF(VLOOKUP(E59,DropDowns!B:D,3,0)=0,\"\",VLOOKUP(E59,DropDowns!B:D,3,0)))","v":""},"(chagua uchaguzi)",null,"(chagua kiwango)",null,"No",3]
[null,59,"3.1.3    Je, kampuni iliwabainisha  wazi wamiliki na watumiaji wote wa haki za ardhi walioathiriwa na uhamishaji wa ardhi?  ",{"$f":"IF(OR(E60=\"\",E60=\"(chagua uchaguzi)\"),\"\",IF(VLOOKUP(E60,DropDowns!B:D,3,0)=0,\"\",VLOOKUP(E60,DropDowns!B:D,3,0)))","v":""},"(chagua uchaguzi)",null,"(chagua kiwango)",null,"No",3]
[null,60,"3.1.4 Je, ubainishaji huo umechukua wigo wa haki za ardhi kwa wamiliki na watumiaji wote wa ardhi, ikiwa ni pamoja na haki za sheria za nchi, kimila, msimu, haki zinazotolewa na serikali, kuingiliana, na haki nyingine zinazotumika? ",{"$f":"IF(OR(E61=\"\",E61=\"(chagua uchaguzi)\"),\"\",IF(VLOOKUP(E61,DropDowns!B:D,3,0)=0,\"\",VLOOKUP(E61,DropDowns!B:D,3,0)))","v":""},"(chagua uchaguzi)",null,"(chagua kiwango)",null,"No",3]
[null,61,"3.1.5 Je, ubainishaji umezingatia haki na matumizi ya ardhi kwa wanawake, makundi madogo katika jamii, na makundi mengine yanayoishi katika mazingira hatarishi?  ",{"$f":"IF(OR(E62=\"\",E62=\"(chagua uchaguzi)\"),\"\",IF(VLOOKUP(E62,DropDowns!B:D,3,0)=0,\"\",VLOOKUP(E62,DropDowns!B:D,3,0)))","v":""},"(chagua uchaguzi)",null,"(chagua kiwango)",null,"No",3]
[null,62,"3.1.6 Je, Kampuni ililenga kubainisha utata wowote  au masuala yoyote ya kihistoria katika ardhi au migogoro kwenye eneo la uwekezaji? Na je kampuni hiyo iliamua endapo uwekezaji unaweza kughadhibisha masuala hayo au migogoro hiyo?  ",{"$f":"IF(OR(E63=\"\",E63=\"(chagua uchaguzi)\"),\"\",IF(VLOOKUP(E63,DropDowns!B:D,3,0)=0,\"\",VLOOKUP(E63,DropDowns!B:D,3,0)))","v":""},"(chagua uchaguzi)",null,"(chagua kiwango)",null,"No",3]
[null,63,"3.1.7 Ikiwa jibu ni ndiyo, je kampuni imetengeneza mkakati wa ushirikiano au upunguzaji wa hatari ili kutafuta suluhisho au kuepuka kuendelea kwa masuala au migogoro hii?  ",{"$f":"IF(OR(E64=\"\",E64=\"(chagua uchaguzi)\"),\"\",IF(VLOOKUP(E64,DropDowns!B:D,3,0)=0,\"\",VLOOKUP(E64,DropDowns!B:D,3,0)))","v":""},"(chagua uchaguzi)",null,"(chagua kiwango)",null,"No",3]
[null,64,"3.1.8 Kabla ya uhamishaji wa ardhi, je kampuni ilitathmini athari za haki za ardhi, ikiwa ni pamoja na haki zisizo rasmi, kama vile haki za wanawake, vijana, na / au makundi ya watu wanaoishi katika mazingira hatarishi?   ",{"$f":"IF(OR(E65=\"\",E65=\"(chagua uchaguzi)\"),\"\",IF(VLOOKUP(E65,DropDowns!B:D,3,0)=0,\"\",VLOOKUP(E65,DropDowns!B:D,3,0)))","v":""},"(chagua uchaguzi)",null,"(chagua kiwango)",null,"No",3]
[null,65,"3.1.10  Kabla ya uhamishaji wa ardhi, je kampuni ilitathmini athari za haki za ardhi, ikiwa ni pamoja na haki zisizo rasmi, kama vile haki za wanawake, vijana, na / au makundi ya watu wanaoishi katika mazingira hatarishi? je, kampuni ilitengeneza sera au mkakati ili kupunguza au kuepuka athari hasi?  ",{"$f":"IF(OR(E66=\"\",E66=\"(chagua uchaguzi)\"),\"\",IF(VLOOKUP(E66,DropDowns!B:D,3,0)=0,\"\",VLOOKUP(E66,DropDowns!B:D,3,0)))","v":""},"(chagua uchaguzi)",null,"(chagua kiwango)",null,"No",3]
[null,66,"3.1.11 Je, usanifu wa mradi na / au usanidi wa ardhi umebadilika ili kupunguza athari hizi?  ",{"$f":"IF(OR(E67=\"\",E67=\"(chagua uchaguzi)\"),\"\",IF(VLOOKUP(E67,DropDowns!B:D,3,0)=0,\"\",VLOOKUP(E67,DropDowns!B:D,3,0)))","v":""},"(chagua uchaguzi)",null,"(chagua kiwango)",null,"No",3]
[null,67,"3.1.12 Je, wale ambao haki zao za ardhi kisheria ziliathiriwa hupokea fidia ya haraka?  ",{"$f":"IF(OR(E68=\"\",E68=\"(chagua uchaguzi)\"),\"\",IF(VLOOKUP(E68,DropDowns!B:D,3,0)=0,\"\",VLOOKUP(E68,DropDowns!B:D,3,0)))","v":""},"(chagua uchaguzi)",null,"(chagua kiwango)",null,"No",3]
[null,68,"3.1.13  Ikiwa jibu ni ndiyo,  je fidia hiyo ilikuwa ya haki, kulingana na uthaminishaji sahihi wa thamani ya hasara iliyopo sokoni na isiyo kwenye soko?  ",{"$f":"IF(OR(E69=\"\",E69=\"(chagua uchaguzi)\"),\"\",IF(VLOOKUP(E69,DropDowns!B:D,3,0)=0,\"\",VLOOKUP(E69,DropDowns!B:D,3,0)))","v":""},"(chagua uchaguzi)",null,"(chagua kiwango)",null,"No",3]
[null,69,"3.1.14 Je, kampuni ina taratibu ambazo zimewekwa kwa ajili ya kusimamia na kupunguza athari katika kipindi chote cha maisha ya mradi?  ",{"$f":"IF(OR(E70=\"\",E70=\"(chagua uchaguzi)\"),\"\",IF(VLOOKUP(E70,DropDowns!B:D,3,0)=0,\"\",VLOOKUP(E70,DropDowns!B:D,3,0)))","v":""},"(chagua uchaguzi)",null,"(chagua kiwango)",null,"No",3]
[null,70,null,{"$f":"IF(OR(E71=\"\",E71=\"(select option)\"),\"\",VLOOKUP(E71,DropDowns!C:D,2,0))","v":""},null,null,null,null,"No",3]
[null,71,null,{"$f":"IF(OR(E72=\"\",E72=\"(select option)\"),\"\",VLOOKUP(E72,DropDowns!C:D,2,0))","v":""},null,null,null,null,"No",3]
[null,72,"3.2 Tathmini ya Athari za Kimazingira na Kijamii (ESIA)",{"$f":"IF(OR(E73=\"\",E73=\"(select option)\"),\"\",VLOOKUP(E73,DropDowns!C:D,2,0))","v":""},null,null,null,null,"No",3]
[null,73,"3.2.1 Je, kampuni ilifanya tathmini ya athari za kimazingira na za kijamii za uwekezaji wa muda mfupi na muda mrefu, na za moja kwa moja na zisizo za moja?   ",{"$f":"IF(OR(E74=\"\",E74=\"(chagua uchaguzi)\"),\"\",IF(VLOOKUP(E74,DropDowns!B:D,3,0)=0,\"\",VLOOKUP(E74,DropDowns!B:D,3,0)))","v":""},"(chagua uchaguzi)",null,"(chagua kiwango)",null,"No",3]
[null,74,"3.2.2 Je, kampuni iliendeleza mpango wa upunguzaji ili kupunguza au kuepuka athari za kimazingira na kijamii? ",{"$f":"IF(OR(E75=\"\",E75=\"(chagua uchaguzi)\"),\"\",IF(VLOOKUP(E75,DropDowns!B:D,3,0)=0,\"\",VLOOKUP(E75,DropDowns!B:D,3,0)))","v":""},"(chagua uchaguzi)",null,"(chagua kiwango)",null,"No",3]
[null,75,"3.2.3 Kama sehemu ya ESIA, kampuni ilifanya tathmini ya athari ya muda mfupi na muda mrefu, na athari ya moja kwa moja na isiyo ya moja kwa moja juu ya usalama wa chakula katika jamii iliyoathiriwa na uwekezaji? ",{"$f":"IF(OR(E76=\"\",E76=\"(chagua uchaguzi)\"),\"\",IF(VLOOKUP(E76,DropDowns!B:D,3,0)=0,\"\",VLOOKUP(E76,DropDowns!B:D,3,0)))","v":""},"(chagua uchaguzi)",null,"(chagua kiwango)",null,"No",3]
[null,76,"3.2.4 Je, kampuni imetengeneza mpango wa upunguzaji ili kupunguza au kuepuka hatari za usalama wa chakula?",{"$f":"IF(OR(E77=\"\",E77=\"(chagua uchaguzi)\"),\"\",IF(VLOOKUP(E77,DropDowns!B:D,3,0)=0,\"\",VLOOKUP(E77,DropDowns!B:D,3,0)))","v":""},"(chagua uchaguzi)",null,"(chagua kiwango)",null,"No",3]
[null,77,"3.2.5 Je, kampuni imezingatia njia za kuboresha usalama wa chakula? ",{"$f":"IF(OR(E78=\"\",E78=\"(chagua uchaguzi)\"),\"\",IF(VLOOKUP(E78,DropDowns!B:D,3,0)=0,\"\",VLOOKUP(E78,DropDowns!B:D,3,0)))","v":""},"(chagua uchaguzi)",null,"(chagua kiwango)",null,"No",3]
[null,78,"3.2.6 Kama sehemu ya ESIA, kampuni ilitathmini athari za haki za binadamu zitokanazo na uwekezaji? ",{"$f":"IF(OR(E79=\"\",E79=\"(chagua uchaguzi)\"),\"\",IF(VLOOKUP(E79,DropDowns!B:D,3,0)=0,\"\",VLOOKUP(E79,DropDowns!B:D,3,0)))","v":""},"(chagua uchaguzi)",null,"(chagua kiwango)",null,"No",3]
[null,79,"3.2.7 Je, kampuni ilitengeneza mpango wa upunguzaji ili kupunguza athari kwenye haki za binadamu? ",{"$f":"IF(OR(E80=\"\",E80=\"(chagua uchaguzi)\"),\"\",IF(VLOOKUP(E80,DropDowns!B:D,3,0)=0,\"\",VLOOKUP(E80,DropDowns!B:D,3,0)))","v":""},"(chagua uchaguzi)",null,"(chagua kiwango)",null,"No",3]
[null,80,"3.2.8 Je, kampuni ina taratibu zilizowekwa za kusimamia na kupunguza athari katika kipindi chote cha maisha ya mradi? ",{"$f":"IF(OR(E81=\"\",E81=\"(chagua uchaguzi)\"),\"\",IF(VLOOKUP(E81,DropDowns!B:D,3,0)=0,\"\",VLOOKUP(E81,DropDowns!B:D,3,0)))","v":""},"(chagua uchaguzi)",null,"(chagua kiwango)",null,"No",3]
[null,81]
[null,82,null,{"$f":"IF(OR(E83=\"\",E83=\"(select option)\"),\"\",VLOOKUP(E83,DropDowns!C:D,2,0))","v":""}]
[null,83,"IV. Mashauriano na Ushirikiano",{"$f":"IF(COUNT(D86:D95)=0,\"\",ROUND(SUM(D86:D95)/COUNT(D86:D95),0))","v":""},null,null,{"$f":"IFERROR(ROUND(SUM(G85:G95)/COUNT(G85:G95),0),\"\")","v":""}]
[null,84,null,{"$f":"IF(OR(E85=\"\",E85=\"(select option)\"),\"\",VLOOKUP(E85,DropDowns!C:D,2,0))","v":""}]
[null,85,"4.1 Mashauriano & Ushirikiano ",{"$f":"IF(OR(E86=\"\",E86=\"(select option)\"),\"\",VLOOKUP(E86,DropDowns!C:D,2,0))","v":""}]
[null,86,"4.1.1 Je, kampuni hiyo imeshirikisha taarifa zote muhimu kuhusiana na uendeshaji wa sasa na / au mradi uliopendekezwa (ikiwa ni pamoja na madhumuni, upeo, athari, muda na kiunzi cha biashara na hatari za mradi, matokeo ya ESIA, maelezo ya mikataba) kwa wamiliki na watumiaji wa haki za ardhi walioathiriwa?  ",{"$f":"IF(OR(E87=\"\",E87=\"(chagua uchaguzi)\"),\"\",IF(VLOOKUP(E87,DropDowns!B:D,3,0)=0,\"\",VLOOKUP(E87,DropDowns!B:D,3,0)))","v":""},"(chagua uchaguzi)",null,"(chagua kiwango)",null,{"$f":"IF(OR(AND(D87<3,E87<>\"N/A\" ),AND(G87>1,G87<>\"(chagua kiwango)\",E87<>\"N/A\")),\"Yes\",\"No\")","v":"No"},4]
[null,87,"4.1.2 Je, taarifa zote muhimu zinazohusika zilishirikishwa kwa njia inayofaa (kwa mfano, katika lugha za kijamii, kwa wakati unaofaa, kwa uwazi, wakati na mahali zinapoweza kupatikana, kwenye ukumbi sahihi/unafaa nk)?  ",{"$f":"IF(OR(E88=\"\",E88=\"(chagua uchaguzi)\"),\"\",IF(VLOOKUP(E88,DropDowns!B:D,3,0)=0,\"\",VLOOKUP(E88,DropDowns!B:D,3,0)))","v":""},"(chagua uchaguzi)",null,"(chagua kiwango)",null,"No",4]
[null,88,"4.1.3 Je, kampuni imechukua hatua za kuzisaidia jamii na wadau wengine kutengeneza uwezo unaotosha ili waweze kushiriki kikamilifu katika mashauriano yenye maana na ya haki? ",{"$f":"IF(OR(E89=\"\",E89=\"(chagua uchaguzi)\"),\"\",IF(VLOOKUP(E89,DropDowns!B:D,3,0)=0,\"\",VLOOKUP(E89,DropDowns!B:D,3,0)))","v":""},"(chagua uchaguzi)",null,"(chagua kiwango)",null,"No",4]
[null,89,"4.1.4 Je, kampuni ilitengeneza mpango wa ushirikishaji wa wadau ambao unajumuisha jamii kushirikiana pamoja katika ngazi zote ikiwa ni pamoja na wanawake na makundi mengine yanayoishi katika mazingira hatarishi (kwa mfano, wafugaji, watu wa asili, nk)? ",{"$f":"IF(OR(E90=\"\",E90=\"(chagua uchaguzi)\"),\"\",IF(VLOOKUP(E90,DropDowns!B:D,3,0)=0,\"\",VLOOKUP(E90,DropDowns!B:D,3,0)))","v":""},"(chagua uchaguzi)",null,"(chagua kiwango)",null,"No",4]
[null,90,"4.1.5 5 Je, kampuni ilifanya mashauriano na wamiliki na watumiaji wa haki za ardhi walioathiriwa katika awamu muhimu za uhamishaji wa ardhi au utekelezaji wa mradi ambao unaathiri maslahi ya ardhi (kwa mfano, baada ya matokeo ya ESIA kusambazwa, kabla majadiliano hayajafanyika, nk)? ",{"$f":"IF(OR(E91=\"\",E91=\"(chagua uchaguzi)\"),\"\",IF(VLOOKUP(E91,DropDowns!B:D,3,0)=0,\"\",VLOOKUP(E91,DropDowns!B:D,3,0)))","v":""},"(chagua uchaguzi)",null,"(chagua kiwango)",null,"No",4]
[null,91,"4.1.6 Je, kuna taratibu (kwa mfano, kamati ya usimamizi yenye mamlaka na raslimali za kutosha ambayo inajumuisha wawakilishi wa wadau) uliowekwa ili kuwezesha mawasiliano ya pande mbili baina ya jamii, kampuni na serikali? ",{"$f":"IF(OR(E92=\"\",E92=\"(chagua uchaguzi)\"),\"\",IF(VLOOKUP(E92,DropDowns!B:D,3,0)=0,\"\",VLOOKUP(E92,DropDowns!B:D,3,0)))","v":""},"(chagua uchaguzi)",null,"(chagua kiwango)",null,"No",4]
[null,92,"4.1.7 Orodhesha / Elezea taratibu hizi  ",{"$f":"IF(OR(E93=\"\",E93=\"(chagua uchaguzi)\"),\"\",IF(VLOOKUP(E93,DropDowns!B:D,3,0)=0,\"\",VLOOKUP(E93,DropDowns!B:D,3,0)))","v":""},"(chagua uchaguzi)",null,"(chagua kiwango)",null,"No",4]
[null,93,"4.1.8 Je, kampuni inahakikisha taarifa zote muhimu ambazo siyo za siri kisheria zinazopatikana kwa wadau walioathirika na kwa umma katika hatua zote za mradi, ikiwa ni pamoja na taarifa za kimkataba? ",{"$f":"IF(OR(E94=\"\",E94=\"(chagua uchaguzi)\"),\"\",IF(VLOOKUP(E94,DropDowns!B:D,3,0)=0,\"\",VLOOKUP(E94,DropDowns!B:D,3,0)))","v":""},"(chagua uchaguzi)",null,"(chagua kiwango)",null,"No",4]
[null,94,null,{"$f":"IF(OR(E95=\"\",E95=\"(select option)\"),\"\",VLOOKUP(E95,DropDowns!C:D,2,0))","v":""}]
[null,95,null,{"$f":"IF(OR(E96=\"\",E96=\"(select option)\"),\"\",VLOOKUP(E96,DropDowns!C:D,2,0))","v":""}]
[null,96,"V. Uingiaji Mkataba na Makubaliano  ",{"$f":"IF(COUNT(D100:D118)=0,\"\",ROUND(SUM(D100:D118)/COUNT(D100:D118),0))","v":""},null,null,{"$f":"IFERROR(ROUND(SUM(G98:G118)/COUNT(G98:G118),0),\"\")","v":""}]
[null,97,null,{"$f":"IF(OR(E98=\"\",E98=\"(select option)\"),\"\",VLOOKUP(E98,DropDowns!C:D,2,0))","v":""}]
[null,98,"5.1 Uingiaji mkataba na makubaliano "]
[null,99,"5.1.1 Je mkataba unaelezea wazi ahadi na makubaliano ambayo kampuni imefanya kuhusiana na wajibu wake kijamii na kimazingira katika kushughulikia matokeo ya ESIA na ushiriki wake wa baadaye? ",{"$f":"IF(OR(E100=\"\",E100=\"(chagua uchaguzi)\"),\"\",IF(VLOOKUP(E100,DropDowns!B:D,3,0)=0,\"\",VLOOKUP(E100,DropDowns!B:D,3,0)))","v":""},"(chagua uchaguzi)",null,"(chagua kiwango)",null,{"$f":"IF(OR(AND(D100<3,E100<>\"N/A\" ),AND(G100>1,G100<>\"(chagua kiwango)\",E100<>\"N/A\")),\"Yes\",\"No\")","v":"No"},5]
[null,100,"5.1.2 Je mkataba unajumuisha utoaji wa taarifa ya kila mwaka juu ya utekelezaji wa mpango wa upunguzaji wa athari?  ",{"$f":"IF(OR(E101=\"\",E101=\"(chagua uchaguzi)\"),\"\",IF(VLOOKUP(E101,DropDowns!B:D,3,0)=0,\"\",VLOOKUP(E101,DropDowns!B:D,3,0)))","v":""},"(chagua uchaguzi)",null,"(chagua kiwango)",null,"No",5]
[null,101,"5.1.3 Ikiwa jibu ni ndiyo, je ripoti hizi zinafanywa kuwa ni mali ya umma na zinapatikana kwa jamii asilia?  ",{"$f":"IF(OR(E102=\"\",E102=\"(chagua uchaguzi)\"),\"\",IF(VLOOKUP(E102,DropDowns!B:D,3,0)=0,\"\",VLOOKUP(E102,DropDowns!B:D,3,0)))","v":""},"(chagua uchaguzi)",null,"(chagua kiwango)",null,"No",5]
[null,102,"5.1.4 Je, makubaliano ya mwisho ya mkataba yanasawiri muafaka wa makubaliano ya wamiliki wa haki ambayo yalifikiwa kupitia majadiliano na mashauriano?  ",{"$f":"IF(OR(E103=\"\",E103=\"(chagua uchaguzi)\"),\"\",IF(VLOOKUP(E103,DropDowns!B:D,3,0)=0,\"\",VLOOKUP(E103,DropDowns!B:D,3,0)))","v":""},"(chagua uchaguzi)",null,"(chagua kiwango)",null,"No",5]
[null,103,"5.1.5 Je mkataba unajumuisha ibara inayolinda matumizi bora na endelevu ya rasilimali za asili, hususan maji? ",{"$f":"IF(OR(E104=\"\",E104=\"(chagua uchaguzi)\"),\"\",IF(VLOOKUP(E104,DropDowns!B:D,3,0)=0,\"\",VLOOKUP(E104,DropDowns!B:D,3,0)))","v":""},"(chagua uchaguzi)",null,"(chagua kiwango)",null,"No",5]
[null,104,"5.1.6 Je, kampuni inachukua hatua sahihi ili kuamua endapo wale wanaoiwakilisha jamii katika majadiliano na mashauriano wanalenga kulinda maslahi bora ya jamii nzima?  ",{"$f":"IF(OR(E105=\"\",E105=\"(chagua uchaguzi)\"),\"\",IF(VLOOKUP(E105,DropDowns!B:D,3,0)=0,\"\",VLOOKUP(E105,DropDowns!B:D,3,0)))","v":""},"(chagua uchaguzi)",null,"(chagua kiwango)",null,"No",5]
[null,105,"5.1.7 Je, kampuni hufanya majadiliano na wamiliki na watumiaji wa haki za ardhi waliobainishwa kabla ya kuingia mkataba? ",{"$f":"IF(OR(E106=\"\",E106=\"(chagua uchaguzi)\"),\"\",IF(VLOOKUP(E106,DropDowns!B:D,3,0)=0,\"\",VLOOKUP(E106,DropDowns!B:D,3,0)))","v":""},"(chagua uchaguzi)",null,"(chagua kiwango)",null,"No",5]
[null,106,"5.1.8 Je, majadiliano yalishughulikia maslahi na haki za wanawake na makundi mengine yanayoishi katika mazingira hatarishi? ",{"$f":"IF(OR(E107=\"\",E107=\"(chagua uchaguzi)\"),\"\",IF(VLOOKUP(E107,DropDowns!B:D,3,0)=0,\"\",VLOOKUP(E107,DropDowns!B:D,3,0)))","v":""},"(chagua uchaguzi)",null,"(chagua kiwango)",null,"No",5]
[null,107,"5.1.9 Je, majadiliano hayo yalitokea baada ya kampuni kushirikisha taarifa zote muhimu zinazohusiana na uhamishaji wa ardhi au mabadiliko ya matumizi ya ardhi? ",{"$f":"IF(OR(E108=\"\",E108=\"(chagua uchaguzi)\"),\"\",IF(VLOOKUP(E108,DropDowns!B:D,3,0)=0,\"\",VLOOKUP(E108,DropDowns!B:D,3,0)))","v":""},"(chagua uchaguzi)",null,"(chagua kiwango)",null,"No",5]
[null,108,"5.1.10 Je, kampuni imesaidia jamii kupata uwezo wa kutosha kushiriki katika mazungumzo ya haki? ",{"$f":"IF(OR(E109=\"\",E109=\"(chagua uchaguzi)\"),\"\",IF(VLOOKUP(E109,DropDowns!B:D,3,0)=0,\"\",VLOOKUP(E109,DropDowns!B:D,3,0)))","v":""},"(chagua uchaguzi)",null,"(chagua kiwango)",null,"No",5]
[null,109,"5.1.11 Je, kampuni ilianzisha taratibu za ufuatiliaji na tathmini kwa ajili ya kubainisha vitendo visivyotii  masharti ya mkataba?  ",{"$f":"IF(OR(E110=\"\",E110=\"(chagua uchaguzi)\"),\"\",IF(VLOOKUP(E110,DropDowns!B:D,3,0)=0,\"\",VLOOKUP(E110,DropDowns!B:D,3,0)))","v":""},"(chagua uchaguzi)",null,"(chagua kiwango)",null,"No",5]
[null,110,"5.1.12 Je, kampuni ilizipatia jamii muda na rasilimali za kutosha ili kuupitia mkataba kabla ya kuusaini? Wakati na rasilimali za kutosha zitajumuisha muda na njia za kuwasiliana na wataalam wa nje?  ",{"$f":"IF(OR(E111=\"\",E111=\"(chagua uchaguzi)\"),\"\",IF(VLOOKUP(E111,DropDowns!B:D,3,0)=0,\"\",VLOOKUP(E111,DropDowns!B:D,3,0)))","v":""},"(chagua uchaguzi)",null,"(chagua kiwango)",null,"No",5]
[null,111,"5.1.13 Je, wamiliki na watumiaji wa ardhi waliobainishwa wana uhuru wa kusema \"ndiyo\" kwa maana  kwamba wanakubaliana na masharti ya uhamishaji wa ardhi au mradi, au kusema \"hapana\" kwa maana kwamba hawakukubaliani na masharti ya uhamishaji wa ardhi au mradi?   ",{"$f":"IF(OR(E112=\"\",E112=\"(chagua uchaguzi)\"),\"\",IF(VLOOKUP(E112,DropDowns!B:D,3,0)=0,\"\",VLOOKUP(E112,DropDowns!B:D,3,0)))","v":""},"(chagua uchaguzi)",null,"(chagua kiwango)",null,"No",5]
[null,112,"5.1.14 Je, kampuni ya biashara ilipata hati ya ridhaa huru, ya kabla na taarifa (FPIC) ya wenyeji walioathirika? ",{"$f":"IF(OR(E113=\"\",E113=\"(chagua uchaguzi)\"),\"\",IF(VLOOKUP(E113,DropDowns!B:D,3,0)=0,\"\",VLOOKUP(E113,DropDowns!B:D,3,0)))","v":""},"(chagua uchaguzi)",null,"(chagua kiwango)",null,"No",5]
[null,113,"5.1.15 Je, jamii zilizoathirika zinaweza kupata mkataba wa mwisho?  ",{"$f":"IF(OR(E114=\"\",E114=\"(chagua uchaguzi)\"),\"\",IF(VLOOKUP(E114,DropDowns!B:D,3,0)=0,\"\",VLOOKUP(E114,DropDowns!B:D,3,0)))","v":""},"(chagua uchaguzi)",null,"(chagua kiwango)",null,"No",5]
[null,114,"5.1.16 Chini ya sheria na sheria za kimila, je, waweka saini kwenye mkataba wana mammlaka ya kukubaliana juu ya uhamishaji wa ardhi au mabadiliko ya matumizi ya ardhi? ",{"$f":"IF(OR(E115=\"\",E115=\"(chagua uchaguzi)\"),\"\",IF(VLOOKUP(E115,DropDowns!B:D,3,0)=0,\"\",VLOOKUP(E115,DropDowns!B:D,3,0)))","v":""},"(chagua uchaguzi)",null,"(chagua kiwango)",null,"No",5]
[null,115,"5.1.17 Je, kuna migogoro iliyopo inayohusiana na mamlaka ya waweka saini kwenye mkataba na / au uwezo wa kuwasilisha haki za ardhi na maslahi ya wale walioathirika na uhamisho wa ardhi au mabadiliko ya matumizi ya ardhi?  ",{"$f":"IF(OR(E116=\"\",E116=\"(chagua uchaguzi)\"),\"\",IF(VLOOKUP(E116,DropDowns!B:D,3,0)=0,\"\",VLOOKUP(E116,DropDowns!B:D,3,0)))","v":""},"(chagua uchaguzi)",null,"(chagua kiwango)",null,"No",5]
[null,116,"5.1.18 Je, mkataba hutoa mchakato msingi wa kampuni kwa ajili ya wajumbe wa jamii kutoa malalamiko na kuhakikisha madai hayo yanashughulikiwa?  ",{"$f":"IF(OR(E117=\"\",E117=\"(chagua uchaguzi)\"),\"\",IF(VLOOKUP(E117,DropDowns!B:D,3,0)=0,\"\",VLOOKUP(E117,DropDowns!B:D,3,0)))","v":""},"(chagua uchaguzi)",null,"(chagua kiwango)",null,"No",5]
[null,117,null,{"$f":"IF(OR(E118=\"\",E118=\"(select option)\"),\"\",VLOOKUP(E118,DropDowns!C:D,2,0))","v":""}]
[null,118,null,{"$f":"IF(OR(E119=\"\",E119=\"(select option)\"),\"\",VLOOKUP(E119,DropDowns!C:D,2,0))","v":""}]
[null,119,"VI. Malalamiko & Mrejesho ",{"$f":"IF(COUNT(D122:D143)=0,\"\",ROUND(SUM(D122:D143)/COUNT(D122:D143),0))","v":""},null,null,{"$f":"IFERROR(ROUND(SUM(G121:G143)/COUNT(G121:G143),0),\"\")","v":""}]
[null,120,null,{"$f":"IF(OR(E121=\"\",E121=\"(select option)\"),\"\",VLOOKUP(E121,DropDowns!C:D,2,0))","v":""}]
[null,121,"6.1 Usanifu na Utekelezaji wa Taratibu za Malalamiko  ",{"$f":"IF(OR(E122=\"\",E122=\"(select option)\"),\"\",VLOOKUP(E122,DropDowns!C:D,2,0))","v":""}]
[null,122,"6.1.1 Je, kampuni ina utaratibu wa uwasilishaji wa malalamiko?  ",{"$f":"IF(OR(E123=\"\",E123=\"(chagua uchaguzi)\"),\"\",IF(VLOOKUP(E123,DropDowns!B:D,3,0)=0,\"\",VLOOKUP(E123,DropDowns!B:D,3,0)))","v":""},"(chagua uchaguzi)",null,"(chagua kiwango)",null,{"$f":"IF(OR(AND(D123<3,E123<>\"N/A\" ),AND(G123>1,G123<>\"(chagua kiwango)\",E123<>\"N/A\")),\"Yes\",\"No\")","v":"No"},6]
[null,123,"6.1.2 Je, kampuni inawapatia wafanyakazi wanaostahili rasilimali za kutosha katika usanifu, utekelezaji na usimamizi wa utaratibu wake wa malalamiko?  ",{"$f":"IF(OR(E124=\"\",E124=\"(chagua uchaguzi)\"),\"\",IF(VLOOKUP(E124,DropDowns!B:D,3,0)=0,\"\",VLOOKUP(E124,DropDowns!B:D,3,0)))","v":""},"(chagua uchaguzi)",null,"(chagua kiwango)",null,"No",6]
[null,124,"6.1.3 Je, kampuni iliwahamasisha wafanyakazi juu ya umuhimu wa kuzitambua na kuziheshimu haki rasmi za ardhi na haki za ardhi za kimila, pamoja na uwezekano wa kuzifanyia marekebisho?  ",{"$f":"IF(OR(E125=\"\",E125=\"(chagua uchaguzi)\"),\"\",IF(VLOOKUP(E125,DropDowns!B:D,3,0)=0,\"\",VLOOKUP(E125,DropDowns!B:D,3,0)))","v":""},"(chagua uchaguzi)",null,"(chagua kiwango)",null,"No",6]
[null,125,"6.1.4 Je, kampuni hushauriana na wadau wa nje (kwa mfano, viongozi wa jamii na wanajamii, serikali, nk) ili kuhakikisha kwamba utaratibu wa malalamiko unaaminika na unaozingatia utamaduni wa taratibu za ufumbuzi wa mgogoro?  ",{"$f":"IF(OR(E126=\"\",E126=\"(chagua uchaguzi)\"),\"\",IF(VLOOKUP(E126,DropDowns!B:D,3,0)=0,\"\",VLOOKUP(E126,DropDowns!B:D,3,0)))","v":""},"(chagua uchaguzi)",null,"(chagua kiwango)",null,"No",6]
[null,126,"6.1.5 Je, kampuni inafasili wazi mipaka ya utaratibu wa malalamiko (kwa mfano, aina ya malalamiko na walalamikaji)?  ",{"$f":"IF(OR(E127=\"\",E127=\"(chagua uchaguzi)\"),\"\",IF(VLOOKUP(E127,DropDowns!B:D,3,0)=0,\"\",VLOOKUP(E127,DropDowns!B:D,3,0)))","v":""},"(chagua uchaguzi)",null,"(chagua kiwango)",null,"No",6]
[null,127,"6.1.6 Je, kampuni iliamua endapo ipanue au isipanue mipaka ya utaratibu wa malalamiko ili kujumuisha  malalamiko kutoka kwa wakulima wa kilimo cha mkataba au vyama/mashirika dhidi ya kampuni?  ",{"$f":"IF(OR(E128=\"\",E128=\"(chagua uchaguzi)\"),\"\",IF(VLOOKUP(E128,DropDowns!B:D,3,0)=0,\"\",VLOOKUP(E128,DropDowns!B:D,3,0)))","v":""},"(chagua uchaguzi)",null,"(chagua kiwango)",null,"No",6]
[null,128,"6.1.7 Je, kampuni iliamua kupanua au kutopanua wigo wa utaratibu wa malalamiko ili kujumuisha malalamiko kutoka kwa wakulima wa kilimo cha mkataba dhidi ya vyama vya kilimo cha mkataba au wakulima wengine wa kilimo cha mkataba?",{"$f":"IF(OR(E129=\"\",E129=\"(chagua uchaguzi)\"),\"\",IF(VLOOKUP(E129,DropDowns!B:D,3,0)=0,\"\",VLOOKUP(E129,DropDowns!B:D,3,0)))","v":""},"(chagua uchaguzi)",null,"(chagua kiwango)",null,"No",6]
[null,129,"6.1.8 Je, utaratibu wa malalamiko unazingatia vigezo vya UNGP kwa ajili ya michakato isiyo ya kiserikali ya utatuzi wa migogoro (sheria za nchi, inayopatikana, inayotabirika, yenye usawa, ya wazi, inayoendana na haki, chanzo cha ujifunzaji endelevu, iliyojikita katika mazungumzo na ushirikiano)?  ",{"$f":"IF(OR(E130=\"\",E130=\"(chagua uchaguzi)\"),\"\",IF(VLOOKUP(E130,DropDowns!B:D,3,0)=0,\"\",VLOOKUP(E130,DropDowns!B:D,3,0)))","v":""},"(chagua uchaguzi)",null,"(chagua kiwango)",null,"No",6]
[null,130,"6.1.9 Je, kampuni imeitaarifu ipasavyo jamii na watumiaji lengwa wengine  wa utaratibu wa malalamiko? ",{"$f":"IF(OR(E131=\"\",E131=\"(chagua uchaguzi)\"),\"\",IF(VLOOKUP(E131,DropDowns!B:D,3,0)=0,\"\",VLOOKUP(E131,DropDowns!B:D,3,0)))","v":""},"(chagua uchaguzi)",null,"(chagua kiwango)",null,"No",6]
[null,131,null,{"$f":"IF(OR(E132=\"\",E132=\"(select option)\"),\"\",VLOOKUP(E132,DropDowns!C:D,2,0))","v":""},null,null,null,null,"No",6]
[null,132,null,{"$f":"IF(OR(E133=\"\",E133=\"(select option)\"),\"\",VLOOKUP(E133,DropDowns!C:D,2,0))","v":""},null,null,null,null,"No",6]
[null,133,"6.2 Hatua za kupokea, kuchakata na kushughulikia malalamiko ",{"$f":"IF(OR(E134=\"\",E134=\"(select option)\"),\"\",VLOOKUP(E134,DropDowns!C:D,2,0))","v":""},null,null,null,null,"No",6]
[null,134,"6.2.1 Je, utaratibu wa malalamiko umeweka taratibu zinazoeleweka kwa ajili ya kupokea malalamiko? ",{"$f":"IF(OR(E135=\"\",E135=\"(chagua uchaguzi)\"),\"\",IF(VLOOKUP(E135,DropDowns!B:D,3,0)=0,\"\",VLOOKUP(E135,DropDowns!B:D,3,0)))","v":""},"(chagua uchaguzi)",null,"(chagua kiwango)",null,"No",6]
[null,135,"6.2.2 Je, utaratibu wa malalamiko umeweka taratibu zinazoeleweka kwa ajili ya uchakataji wa malalamiko? ",{"$f":"IF(OR(E136=\"\",E136=\"(chagua uchaguzi)\"),\"\",IF(VLOOKUP(E136,DropDowns!B:D,3,0)=0,\"\",VLOOKUP(E136,DropDowns!B:D,3,0)))","v":""},"(chagua uchaguzi)",null,"(chagua kiwango)",null,"No",6]
[null,136,"6.2.3 Je, utaratibu wa malalamiko umeweka taratibu zinazoeleweka kwa ajili ya kufanya uamuzi wa mwisho kuhusu malalamiko?  ",{"$f":"IF(OR(E137=\"\",E137=\"(chagua uchaguzi)\"),\"\",IF(VLOOKUP(E137,DropDowns!B:D,3,0)=0,\"\",VLOOKUP(E137,DropDowns!B:D,3,0)))","v":""},"(chagua uchaguzi)",null,"(chagua kiwango)",null,"No",6]
[null,137,null,{"$f":"IF(OR(E138=\"\",E138=\"(select option)\"),\"\",VLOOKUP(E138,DropDowns!C:D,2,0))","v":""},null,null,null,null,"No",6]
[null,138,null,{"$f":"IF(OR(E139=\"\",E139=\"(select option)\"),\"\",VLOOKUP(E139,DropDowns!C:D,2,0))","v":""},null,null,null,null,"No",6]
[null,139,"6.3 Taratibu za Kufuatilia na Kutathmini Utaratibu wa Malalamiko  ",{"$f":"IF(OR(E140=\"\",E140=\"(select option)\"),\"\",VLOOKUP(E140,DropDowns!C:D,2,0))","v":""},null,null,null,null,"No",6]
[null,140,"6.3.1 Je, kampuni ina taratibu zinazoeleweka na vihatarishi vilivyowekwa kwa ajili ya kufuatilia na kutathmini utaratibu wa malalamiko (kwa mfano, idadi na aina ya malalamiko, wastani wa muda utakaochukuliwa kushughulikia malalamiko na kutoa uamuzi wa mwisho, kiwango cha utatuzi, nk)?  ",{"$f":"IF(OR(E141=\"\",E141=\"(chagua uchaguzi)\"),\"\",IF(VLOOKUP(E141,DropDowns!B:D,3,0)=0,\"\",VLOOKUP(E141,DropDowns!B:D,3,0)))","v":""},"(chagua uchaguzi)",null,"(chagua kiwango)",null,"No",6]
[null,141,"6.3.2 Je, Kampuni inashirikisha matokeo ya ufuatiliaji na tathmini ili kuboresha utaratibu wa malalamiko?  ",{"$f":"IF(OR(E142=\"\",E142=\"(chagua uchaguzi)\"),\"\",IF(VLOOKUP(E142,DropDowns!B:D,3,0)=0,\"\",VLOOKUP(E142,DropDowns!B:D,3,0)))","v":""},"(chagua uchaguzi)",null,"(chagua kiwango)",null,"No",6]
[null,142,null,{"$f":"IF(OR(E143=\"\",E143=\"(select option)\"),\"\",VLOOKUP(E143,DropDowns!C:D,2,0))","v":""}]
[null,143,null,{"$f":"IF(OR(E144=\"\",E144=\"(select option)\"),\"\",VLOOKUP(E144,DropDowns!C:D,2,0))","v":""}]
[null,144,"VII. Uvamizi",{"$f":"IF(COUNT(D147:D173)=0,\"\",ROUND(SUM(D147:D173)/COUNT(D147:D173),0))","v":""},null,null,{"$f":"IFERROR(ROUND(SUM(G146:G173)/COUNT(G146:G173),0),\"\")","v":""}]
[null,145,null,{"$f":"IF(OR(E146=\"\",E146=\"(select option)\"),\"\",VLOOKUP(E146,DropDowns!C:D,2,0))","v":""}]
[null,146,"7.1 Ubainishaji wa Hatari za Uvamizi ",{"$f":"IF(OR(E147=\"\",E147=\"(select option)\"),\"\",VLOOKUP(E147,DropDowns!C:D,2,0))","v":""}]
[null,147,"7.1.1 Je, kampuni imebainisha na kuweka katika maandishi hatari za uvamizi kwa kategoria: unaoendelea, unaoibuka, na katika hatari au maeneo \"ya moto\"?   ",{"$f":"IF(OR(E148=\"\",E148=\"(chagua uchaguzi)\"),\"\",IF(VLOOKUP(E148,DropDowns!B:D,3,0)=0,\"\",VLOOKUP(E148,DropDowns!B:D,3,0)))","v":""},"(chagua uchaguzi)",null,"(chagua kiwango)",null,{"$f":"IF(OR(AND(D148<3,E148<>\"N/A\" ),AND(G148>1,G148<>\"(chagua kiwango)\",E148<>\"N/A\")),\"Yes\",\"No\")","v":"No"},7]
[null,148,"7.1.2 Je, kampuni inabainisha na kuandika kumbukumbu za hatari za uvamizi kulingana na eneo, ukubwa, na idadi ya ujitokezaji?  ",{"$f":"IF(OR(E149=\"\",E149=\"(chagua uchaguzi)\"),\"\",IF(VLOOKUP(E149,DropDowns!B:D,3,0)=0,\"\",VLOOKUP(E149,DropDowns!B:D,3,0)))","v":""},"(chagua uchaguzi)",null,"(chagua kiwango)",null,"No",7]
[null,149,"7.1.3 Je, kampuni inabinisha na kuandika kumbukumbu za maeneo ambayo ni au yanaonekana kuwa hayatumiki? ",{"$f":"IF(OR(E150=\"\",E150=\"(chagua uchaguzi)\"),\"\",IF(VLOOKUP(E150,DropDowns!B:D,3,0)=0,\"\",VLOOKUP(E150,DropDowns!B:D,3,0)))","v":""},"(chagua uchaguzi)",null,"(chagua kiwango)",null,"No",7]
[null,150,null,{"$f":"IF(OR(E151=\"\",E151=\"(select option)\"),\"\",VLOOKUP(E151,DropDowns!C:D,2,0))","v":""},null,null,null,null,"No",7]
[null,151,null,{"$f":"IF(OR(E152=\"\",E152=\"(select option)\"),\"\",VLOOKUP(E152,DropDowns!C:D,2,0))","v":""},null,null,null,null,"No",7]
[null,152,"7.2 Uvamizi unaoendelea na unaoibuka  ",{"$f":"IF(OR(E153=\"\",E153=\"(select option)\"),\"\",VLOOKUP(E153,DropDowns!C:D,2,0))","v":""},null,null,null,null,"No",7]
[null,153,"7.2.1 Je, kampuni inaendesha utambuzi wa wadau watu binafsi na vikundi vinavyodaiwa kuingilia? Utambuzi unapaswa kujumuisha:  \n   o Demografia  ya watu binafsi na vikundi vinavyovamia (kwa mfano, idadi ya watu na vikundi, wastani wa umri, uwiano wa jinsia, nk) \n   o Jinsi gani ardhi imekuwa ikitumika (kwa mfano, fedha dhidi ya mazao ya chakula, nyumba ya mkulima, nyumbani, makazi, shamba) na kwa muda gani  \n   o Mienendo ya nguvu kati ya watu binafsi na wavamizi (kwa mfano, viongozi, kamati, nk)  \n   o Mahusiano ya mienendo kati ya wadau mbalimbali na watu binafsi na vikundi vya uvamizi  (kwa mfano, kampuni, serikali ya wilaya, mamlaka za jadi, nk)  \n   o Mitazamo ya watu binafsi na vikundi kuhusiana na hati miliki za ardhi (kwa mfano, kutokuelewana  juu ya mipaka, idhini iliyotolewa, masuala ya urithi, nk)  \n   o Vichocheo vya uvamizi (kwa mfano, maladhi, chakula au maisha, mabadiliko ya hali ya hewa, nk)\nvigezo muhimu kwa ajili ya kushirikiana na kushauriana, kuhamasisha, au thamani ya miradi pamoja \n ",{"$f":"IF(OR(E154=\"\",E154=\"(chagua uchaguzi)\"),\"\",IF(VLOOKUP(E154,DropDowns!B:D,3,0)=0,\"\",VLOOKUP(E154,DropDowns!B:D,3,0)))","v":""},"(chagua uchaguzi)",null,"(chagua kiwango)",null,"No",7]
[null,154,"7.2.2 Je, kampuni ina uwezo wa wafanyakazi na rasilimali ili kukabiliana na hatari za uvamizi zinazoendelea na zinazojitokeza?  ",{"$f":"IF(OR(E155=\"\",E155=\"(chagua uchaguzi)\"),\"\",IF(VLOOKUP(E155,DropDowns!B:D,3,0)=0,\"\",VLOOKUP(E155,DropDowns!B:D,3,0)))","v":""},"(chagua uchaguzi)",null,"(chagua kiwango)",null,"No",7]
[null,155,"7.2.3 Je, kampuni ina mipango kazi iliyowekwa kwa ajili ya kushughulikia hatari za uvamizi zilizopo na zinazoibuka?  ",{"$f":"IF(OR(E156=\"\",E156=\"(chagua uchaguzi)\"),\"\",IF(VLOOKUP(E156,DropDowns!B:D,3,0)=0,\"\",VLOOKUP(E156,DropDowns!B:D,3,0)))","v":""},"(chagua uchaguzi)",null,"(chagua kiwango)",null,"No",7]
[null,156,"7.2.4 Je, serikali ya mitaa ni wajibifu kwenye matatizo ya kampuni kuhusu uvamizi kwa jamii na imejiandaa kuunga mkono au kusaidia pamoja na kuzuia uvamizi na kuwaondoa kisheria wavamizi katika ardhi ya kampuni?  ",{"$f":"IF(OR(E157=\"\",E157=\"(chagua uchaguzi)\"),\"\",IF(VLOOKUP(E157,DropDowns!B:D,3,0)=0,\"\",VLOOKUP(E157,DropDowns!B:D,3,0)))","v":""},"(chagua uchaguzi)",null,"(chagua kiwango)",null,"No",7]
[null,157,null,{"$f":"IF(OR(E158=\"\",E158=\"(select option)\"),\"\",VLOOKUP(E158,DropDowns!C:D,2,0))","v":""},null,null,null,null,"No",7]
[null,158,null,{"$f":"IF(OR(E159=\"\",E159=\"(select option)\"),\"\",VLOOKUP(E159,DropDowns!C:D,2,0))","v":""},null,null,null,null,"No",7]
[null,159,"7.3 Kwenye Hatari au \"Maeneo ya Moto\" ",{"$f":"IF(OR(E160=\"\",E160=\"(select option)\"),\"\",VLOOKUP(E160,DropDowns!C:D,2,0))","v":""},null,null,null,null,"No",7]
[null,160,"7.3.1 Je, kampuni inabainisha kwa nini maeneo yapo katika hatari ya kuvamiwa (kwa mfano, ardhi inatumika kama haki ya njia katika ardhi au alama ya kufikia, inaonekana kuwa haitumiki, ni eneo lenye mgogoro, lina mipaka isiyojulikana au isiyoeleweka vizuri, imeathiriwa na mabadiliko ya hali ya hewa, nk)?  ",{"$f":"IF(OR(E161=\"\",E161=\"(chagua uchaguzi)\"),\"\",IF(VLOOKUP(E161,DropDowns!B:D,3,0)=0,\"\",VLOOKUP(E161,DropDowns!B:D,3,0)))","v":""},"(chagua uchaguzi)",null,"(chagua kiwango)",null,"No",7]
[null,161,"7.3.2 Je, kampuni ina uwezo wa wafanyakazi na rasilimali zinazohitajika ili kutengeneza na kutekeleza mipango kazi, ikiwa ni pamoja na juhudi makini za kushauriana na kushirikiana, kuzuia ujitokezaji wa uvamizi katika maeneo yaliyo kwenye hatari? ",{"$f":"IF(OR(E162=\"\",E162=\"(chagua uchaguzi)\"),\"\",IF(VLOOKUP(E162,DropDowns!B:D,3,0)=0,\"\",VLOOKUP(E162,DropDowns!B:D,3,0)))","v":""},"(chagua uchaguzi)",null,"(chagua kiwango)",null,"No",7]
[null,162,null,{"$f":"IF(OR(E163=\"\",E163=\"(select option)\"),\"\",VLOOKUP(E163,DropDowns!C:D,2,0))","v":""},null,null,null,null,"No",7]
[null,163,null,{"$f":"IF(OR(E164=\"\",E164=\"(select option)\"),\"\",VLOOKUP(E164,DropDowns!C:D,2,0))","v":""},null,null,null,null,"No",7]
[null,164,"7.4 Hatua za kuzuia ",{"$f":"IF(OR(E165=\"\",E165=\"(select option)\"),\"\",VLOOKUP(E165,DropDowns!C:D,2,0))","v":""},null,null,null,null,"No",7]
[null,165,"7.4.1 Je, kampuni imefanya shughuli za ufuatiliaji na uwekaji wa mipaka (kwa mfano, kupima upya ramani, kushauriana na kushirikiana na majirani watu binafsi na jamii ili kufafanua zaidi mipaka)? ",{"$f":"IF(OR(E166=\"\",E166=\"(chagua uchaguzi)\"),\"\",IF(VLOOKUP(E166,DropDowns!B:D,3,0)=0,\"\",VLOOKUP(E166,DropDowns!B:D,3,0)))","v":""},"(chagua uchaguzi)",null,"(chagua kiwango)",null,"No",7]
[null,166,"7.4.2 Je, kampuni ina taratibu za kufanya doria/kulinda mipaka /utekelezaji wa sheria ziliowekwa?  ",{"$f":"IF(OR(E167=\"\",E167=\"(chagua uchaguzi)\"),\"\",IF(VLOOKUP(E167,DropDowns!B:D,3,0)=0,\"\",VLOOKUP(E167,DropDowns!B:D,3,0)))","v":""},"(chagua uchaguzi)",null,"(chagua kiwango)",null,"No",7]
[null,167,"7.4.3 Je, kampuni hiyo imeendeleza mipango ya muda mfupi na muda mrefu kwa ajili ya matumizi mahususi ya ardhi isiyotumika au kwa ajili ya ardhi inayoonekana kutotumika?  ",{"$f":"IF(OR(E168=\"\",E168=\"(chagua uchaguzi)\"),\"\",IF(VLOOKUP(E168,DropDowns!B:D,3,0)=0,\"\",VLOOKUP(E168,DropDowns!B:D,3,0)))","v":""},"(chagua uchaguzi)",null,"(chagua kiwango)",null,"No",7]
[null,168,"7.4.4 Je, uchunguzi wa kampuni unaweka kumbukumbu ya hatari za uvamizi? ",{"$f":"IF(OR(E169=\"\",E169=\"(chagua uchaguzi)\"),\"\",IF(VLOOKUP(E169,DropDowns!B:D,3,0)=0,\"\",VLOOKUP(E169,DropDowns!B:D,3,0)))","v":""},"(chagua uchaguzi)",null,"(chagua kiwango)",null,"No",7]
[null,169,"7.4.5 Je, kampuni ina mikakati ambayo imeiweka kwa ajili ya ushirikishaji wa pamoja kuhusu thamani ya miradi?  ",{"$f":"IF(OR(E170=\"\",E170=\"(chagua uchaguzi)\"),\"\",IF(VLOOKUP(E170,DropDowns!B:D,3,0)=0,\"\",VLOOKUP(E170,DropDowns!B:D,3,0)))","v":""},"(chagua uchaguzi)",null,"(chagua kiwango)",null,"No",7]
[null,170,"7.4.6 Je, kampuni ina uwezo unaohitajika wa wafanyakazi na rasilimali kwa ajili ya hatua za uzuiaji?  ",{"$f":"IF(OR(E171=\"\",E171=\"(chagua uchaguzi)\"),\"\",IF(VLOOKUP(E171,DropDowns!B:D,3,0)=0,\"\",VLOOKUP(E171,DropDowns!B:D,3,0)))","v":""},"(chagua uchaguzi)",null,"(chagua kiwango)",null,"No",7]
[null,171,"7.4.7 Je serikali ya mtaa ina uwezo na rasilimali za kusaidia hatua za uzuiaji ili kupunguza hatari ya uvamizi? ",{"$f":"IF(OR(E172=\"\",E172=\"(chagua uchaguzi)\"),\"\",IF(VLOOKUP(E172,DropDowns!B:D,3,0)=0,\"\",VLOOKUP(E172,DropDowns!B:D,3,0)))","v":""},"(chagua uchaguzi)",null,"(chagua kiwango)",null,"No",7]
[null,172,null,{"$f":"IF(OR(E173=\"\",E173=\"(select option)\"),\"\",VLOOKUP(E173,DropDowns!C:D,2,0))","v":""}]
[null,173,null,{"$f":"IF(OR(E174=\"\",E174=\"(select option)\"),\"\",VLOOKUP(E174,DropDowns!C:D,2,0))","v":""}]
[null,174,"VIII. Mabadiliko ya Matumizi ya ardhi  ",{"$f":"IF(COUNT(D177:D202)=0,\"\",ROUND(SUM(D177:D202)/COUNT(D177:D202),0))","v":""},null,null,{"$f":"IFERROR(ROUND(SUM(G176:G202)/COUNT(G176:G202),0),\"\")","v":""}]
[null,175,null,{"$f":"IF(OR(E176=\"\",E176=\"(select option)\"),\"\",VLOOKUP(E176,DropDowns!C:D,2,0))","v":""}]
[null,176,"8.1 Kutathmini haki ya kampuni kwenye ardhi ",{"$f":"IF(OR(E177=\"\",E177=\"(select option)\"),\"\",VLOOKUP(E177,DropDowns!C:D,2,0))","v":""}]
[null,177,"8.1.1 Je, Kampuni ilipata ardhi kwa kufuata taratibu zinazowiana na sera ya mashirika?  ",{"$f":"IF(OR(E178=\"\",E178=\"(chagua uchaguzi)\"),\"\",IF(VLOOKUP(E178,DropDowns!B:D,3,0)=0,\"\",VLOOKUP(E178,DropDowns!B:D,3,0)))","v":""},"(chagua uchaguzi)",null,"(chagua kiwango)",null,{"$f":"IF(OR(AND(D178<3,E178<>\"N/A\" ),AND(G178>1,G178<>\"(chagua kiwango)\",E178<>\"N/A\")),\"Yes\",\"No\")","v":"No"},8]
[null,178,"8.1.2 Je, Kampuni ilipata ardhi kwa kuzingatia utaratibu unaofuata sheria za ndani? ",{"$f":"IF(OR(E179=\"\",E179=\"(chagua uchaguzi)\"),\"\",IF(VLOOKUP(E179,DropDowns!B:D,3,0)=0,\"\",VLOOKUP(E179,DropDowns!B:D,3,0)))","v":""},"(chagua uchaguzi)",null,"(chagua kiwango)",null,"No",8]
[null,179,"8.1.3 Wakati wa kupata ardhi, je kampuni ilifanya Tathmini ya umiliki wa Ardhi na Tathmini ya Haki za Binadamu (tazama orodha katika Sehemu ya 3)?  ",{"$f":"IF(OR(E180=\"\",E180=\"(chagua uchaguzi)\"),\"\",IF(VLOOKUP(E180,DropDowns!B:D,3,0)=0,\"\",VLOOKUP(E180,DropDowns!B:D,3,0)))","v":""},"(chagua uchaguzi)",null,"(chagua kiwango)",null,"No",8]
[null,180,"8.1.4 Wakati wa kupata ardhi, je kampuni ilikamilisha mahitaji ya Mashauriano na Ushirikiano (angalia orodha katika Sehemu ya 4)?  ",{"$f":"IF(OR(E181=\"\",E181=\"(chagua uchaguzi)\"),\"\",IF(VLOOKUP(E181,DropDowns!B:D,3,0)=0,\"\",VLOOKUP(E181,DropDowns!B:D,3,0)))","v":""},"(chagua uchaguzi)",null,"(chagua kiwango)",null,"No",8]
[null,181,"8.1.5 Wakati wa kupata ardhi, je kampuni ilikamilisha mahitaji ya Kuingia Mkataba na Makubaliano (tazama orodha katika Sehemu ya 5)?  ",{"$f":"IF(OR(E182=\"\",E182=\"(chagua uchaguzi)\"),\"\",IF(VLOOKUP(E182,DropDowns!B:D,3,0)=0,\"\",VLOOKUP(E182,DropDowns!B:D,3,0)))","v":""},"(chagua uchaguzi)",null,"(chagua kiwango)",null,"No",8]
[null,182,"8.1.6 Je, kampuni imekamilisha mahitaji yote chini ya sheria za ndani kwa ajili ya mabadiliko ya matumizi ya ardhi (kwa mfano, mabadiliko ya ukanda, ruhusa ikiwa inatumika)?  ",{"$f":"IF(OR(E183=\"\",E183=\"(chagua uchaguzi)\"),\"\",IF(VLOOKUP(E183,DropDowns!B:D,3,0)=0,\"\",VLOOKUP(E183,DropDowns!B:D,3,0)))","v":""},"(chagua uchaguzi)",null,"(chagua kiwango)",null,"No",8]
[null,183,"8.1.7 Je, wadau wa ndani na nje wanaweza kufikia utaratibu wa malalamiko ya kutatua migogoro kuhusiana na haki za kampuni na matumizi ya ardhi hii? Tazama Orodha ya Uhakiki wa \"Malalamiko\". ",{"$f":"IF(OR(E184=\"\",E184=\"(chagua uchaguzi)\"),\"\",IF(VLOOKUP(E184,DropDowns!B:D,3,0)=0,\"\",VLOOKUP(E184,DropDowns!B:D,3,0)))","v":""},"(chagua uchaguzi)",null,"(chagua kiwango)",null,"No",8]
[null,184,"8.1.8 Kuhakikisha kwamba malalamiko yote yaliyo wazi ambayo yanahusiana na kampuni inayopata ardhi yametatuliwa?  ",{"$f":"IF(OR(E185=\"\",E185=\"(chagua uchaguzi)\"),\"\",IF(VLOOKUP(E185,DropDowns!B:D,3,0)=0,\"\",VLOOKUP(E185,DropDowns!B:D,3,0)))","v":""},"(chagua uchaguzi)",null,"(chagua kiwango)",null,"No",8]
[null,185,null,{"$f":"IF(OR(E186=\"\",E186=\"(select option)\"),\"\",VLOOKUP(E186,DropDowns!C:D,2,0))","v":""},null,null,null,null,"No",8]
[null,186,null,{"$f":"IF(OR(E187=\"\",E187=\"(select option)\"),\"\",VLOOKUP(E187,DropDowns!C:D,2,0))","v":""},null,null,null,null,"No",8]
[null,187,"8.2 Ubainishaji wa wamiliki wengine wa ardhi & Watumiaji na Athari inayoweza tokea  ",{"$f":"IF(OR(E188=\"\",E188=\"(select option)\"),\"\",VLOOKUP(E188,DropDowns!C:D,2,0))","v":""},null,null,null,null,"No",8]
[null,188,"8.2.1 Je, kampuni imekamilisha Tathmini ya haki miliki ya Ardhi na Tathmini ya Haki za Binadamu kwa ajili ya mabadiliko ya matumizi ya ardhi yaliyopangwa? Tazama orodha ya \"Tathmini ya haki miliki ya Ardhi na Tathmini ya Haki za Binadamu\". ",{"$f":"IF(OR(E189=\"\",E189=\"(chagua uchaguzi)\"),\"\",IF(VLOOKUP(E189,DropDowns!B:D,3,0)=0,\"\",VLOOKUP(E189,DropDowns!B:D,3,0)))","v":""},"(chagua uchaguzi)",null,"(chagua kiwango)",null,"No",8]
[null,189,null,{"$f":"IF(OR(E190=\"\",E190=\"(select option)\"),\"\",VLOOKUP(E190,DropDowns!C:D,2,0))","v":""},null,null,null,null,"No",8]
[null,190,null,{"$f":"IF(OR(E191=\"\",E191=\"(select option)\"),\"\",VLOOKUP(E191,DropDowns!C:D,2,0))","v":""},null,null,null,null,"No",8]
[null,191,"8.3 Mashauriano & Ushirikiano   ",{"$f":"IF(OR(E192=\"\",E192=\"(select option)\"),\"\",VLOOKUP(E192,DropDowns!C:D,2,0))","v":""},null,null,null,null,"No",8]
[null,192,"8.3.1 Je, kampuni imeshauriana na kushirikiana na wamiliki wa haki za ardhi na watumiaji walioathiriwa kuhusu mabadiliko ya matumizi ya ardhi yaliyopangwa? Tazama orodha ya \"Mashauriano na Ushirikiano\". ",{"$f":"IF(OR(E193=\"\",E193=\"(chagua uchaguzi)\"),\"\",IF(VLOOKUP(E193,DropDowns!B:D,3,0)=0,\"\",VLOOKUP(E193,DropDowns!B:D,3,0)))","v":""},"(chagua uchaguzi)",null,"(chagua kiwango)",null,"No",8]
[null,193,null,{"$f":"IF(OR(E194=\"\",E194=\"(select option)\"),\"\",VLOOKUP(E194,DropDowns!C:D,2,0))","v":""},null,null,null,null,"No",8]
[null,194,null,{"$f":"IF(OR(E195=\"\",E195=\"(select option)\"),\"\",VLOOKUP(E195,DropDowns!C:D,2,0))","v":""},null,null,null,null,"No",8]
[null,195,"8.4 Kuingia Mkataba na Makubaliano ",{"$f":"IF(OR(E196=\"\",E196=\"(select option)\"),\"\",VLOOKUP(E196,DropDowns!C:D,2,0))","v":""},null,null,null,null,"No",8]
[null,196,"8.4.1 Je, kampuni imekamilisha vipengele vyote kwa ajili ya majadiliano ya kutosha na uingiaji wa mkataba kuhusiana na mabadiliko ya matumizi ya ardhi yaliyopangwa? Angalia orodha ya \"Uingiaji wa Mkataba na Makubaliano\". ",{"$f":"IF(OR(E197=\"\",E197=\"(chagua uchaguzi)\"),\"\",IF(VLOOKUP(E197,DropDowns!B:D,3,0)=0,\"\",VLOOKUP(E197,DropDowns!B:D,3,0)))","v":""},"(chagua uchaguzi)",null,"(chagua kiwango)",null,"No",8]
[null,197,null,{"$f":"IF(OR(E198=\"\",E198=\"(select option)\"),\"\",VLOOKUP(E198,DropDowns!C:D,2,0))","v":""},null,null,null,null,"No",8]
[null,198,null,{"$f":"IF(OR(E199=\"\",E199=\"(select option)\"),\"\",VLOOKUP(E199,DropDowns!C:D,2,0))","v":""},null,null,null,null,"No",8]
[null,199,"8.5 Malalamiko",{"$f":"IF(OR(E200=\"\",E200=\"(select option)\"),\"\",VLOOKUP(E200,DropDowns!C:D,2,0))","v":""},null,null,null,null,"No",8]
[null,200,"8.5.1 Je, wadau wa ndani na nje walioathiriwa na mabadiliko ya matumizi ya ardhi wanaweza kupata  utaratibu wa malalamiko kwa ajili ya kutatua migogoro inayohusiana na haki za kampuni katika ardhi na kutumia ardhi hii? ",{"$f":"IF(OR(E201=\"\",E201=\"(chagua uchaguzi)\"),\"\",IF(VLOOKUP(E201,DropDowns!B:D,3,0)=0,\"\",VLOOKUP(E201,DropDowns!B:D,3,0)))","v":""},"(chagua uchaguzi)",null,"(chagua kiwango)",null,"No",8]
[null,201,null,{"$f":"IF(OR(E202=\"\",E202=\"(select option)\"),\"\",VLOOKUP(E202,DropDowns!C:D,2,0))","v":""}]
[null,202]
[null,203]
[null,204]
[null,205]
[null,206]
[null,207]
[null,208]
[null,209]
[null,210]
[null,211]
[null,212]
[null,213]
[null,214]
[null,215]
[null,216]
[null,217]
[null,218]
[null,219]
[null,220]
[null,221]
[null,222]
[null,223]
[null,224]
[null,225]
[null,226]
[null,227]
[null,228]
[null,229]
[null,230]
[null,231]
[null,232]
[null,233]
[null,234]
[null,235]
[null,236]
[null,237]
[null,238]
[null,239]
[null,240]
[null,241]
[null,242]
[null,243]
[null,244]
[null,245]
[null,246]
[null,247]
[null,248]
[null,249]
[null,250]
[null,251]
[null,252]
[null,253]
[null,254]
[null,255]
[null,256]
[null,257]
[null,258]
[null,259]
[null,260]
[null,261]
[null,262]
[null,263]
[null,264]
[null,265]
[null,266]
[null,267]
[null,268]
[null,269]
[null,270]
[null,271]
[null,272]
[null,273]
[null,274]
[null,275]
[null,276]
[null,277]
[null,278]
[null,279]
[null,280]
[null,281]
[null,282]
[null,283]
[null,284]
[null,285]
[null,286]
[null,287]
[null,288]
[null,289]
[null,290]
[null,291]
[null,292]
[null,293]
[null,294]
[null,295]
[null,296]
[null,297]
[null,298]
[null,299]
[null,300]
[null,301]
[null,302]
[null,303]
[null,304]
[null,305]
[null,306]
[null,307]
[null,308]
[null,309]
[null,310]
[null,311]
[null,312]
[null,313]
[null,314]
[null,315]
[null,316]
[null,317]
[null,318]
[null,319]
[null,320]
[null,321]
[null,322]
[null,323]
[null,324]
[null,325]
[null,326]
[null,327]
[null,328]
[null,329]
[null,330]
[null,331]
[null,332]
[null,333]
[null,334]
[null,335]
[null,336]
[null,337]
[null,338]
[null,339]
[null,340]
[null,341]
[null,342]
[null,343]
[null,344]
[null,345]
[null,346]
[null,347]
[null,348]
[null,349]
[null,350]
[null,351]
[null,352]
[null,353]
[null,354]
[null,355]
[null,356]
[null,357]
[null,358]
[null,359]
[null,360]
[null,361]
[null,362]
[null,363]
[null,364]
[null,365]
[null,366]
[null,367]
[null,368]
[null,369]
[null,370]
[null,371]
[null,372]
[null,373]
[null,374]
[null,375]
[null,376]
[null,377]
[null,378]
[null,379]
[null,380]
[null,381]
[null,382]
[null,383]
[null,384]
[null,385]
[null,386]
[null,387]
[null,388]
[null,389]
[null,390]
[null,391]
[null,392]
[null,393]
[null,394]
[null,395]
[null,396]

{"sheet":"Ripoti ya Miliki","index":2,"n_rows":200,"n_cols":12,"rows_kept":200,"cut":false,"hidden":false,"merged":[[3,7,3,10],[1,1,1,11]]}
[]
[null,"Ripoti ya Ufuatiliaji wa Miliki"]
[]
[null,"Checklist Row","Kipengee cha Orodha ya Uhakiki","Sehemu (Mada kuu ya orodha ya uhakiki) ","Hali  ","Vihatarishi (1=ya chini ; 3=ya juu )","Hatua za ufatiliaji ","Uwezo (Ni nani atakayeendesha shughuli za mpango kazi)  ",null,null,null,"Muda/Mipango  "]
[null,{"$f":"IFERROR(INDEX('Orodha ua uhakiki wa Miliki'!$B$1:$B$397, SMALL(INDEX(('Orodha ua uhakiki wa Miliki'!$I$1:$I$397=\"Yes\")*(MATCH(ROW('Orodha ua uhakiki wa Miliki'!$I$1:$I$397), ROW('Orodha ua uhakiki wa Miliki'!$I$1:$I$397)))+('Orodha ua uhakiki wa Miliki'!$I$1:$I$397<>\"Yes\")*1048577, 0, 0), ROW(A1))),\"\")","v":""},{"$f":"IFERROR(VLOOKUP(B5,'Orodha ua uhakiki wa Miliki'!B:C,2,0),\"\")","v":""},{"$f":"IFERROR(VLOOKUP(VLOOKUP(B5,'Orodha ua uhakiki wa Miliki'!B:J,9,0),DropDowns!G:H,2,0),\"\")","v":""},{"$f":"IFERROR(VLOOKUP(B5,'Orodha ua uhakiki wa Miliki'!B:E,4,0),\"\")","v":""},{"$f":"IFERROR(VLOOKUP(B5,'Orodha ua uhakiki wa Miliki'!B:G,6,0),\"\")","v":""},null,{"$f":"IF(B5<>\"\",\"Ya ndani:\",\"\")","v":""},null,{"$f":"IF(B5<>\"\",\"Ya nje:\",\"\")","v":""}]
[null,{"$f":"IFERROR(INDEX('Orodha ua uhakiki wa Miliki'!$B$1:$B$397, SMALL(INDEX(('Orodha ua uhakiki wa Miliki'!$I$1:$I$397=\"Yes\")*(MATCH(ROW('Orodha ua uhakiki wa Miliki'!$I$1:$I$397), ROW('Orodha ua uhakiki wa Miliki'!$I$1:$I$397)))+('Orodha ua uhakiki wa Miliki'!$I$1:$I$397<>\"Yes\")*1048577, 0, 0), ROW(A2))),\"\")","v":""},{"$f":"IFERROR(VLOOKUP(B6,'Orodha ua uhakiki wa Miliki'!B:C,2,0),\"\")","v":""},{"$f":"IFERROR(VLOOKUP(VLOOKUP(B6,'Orodha ua uhakiki wa Miliki'!B:J,9,0),DropDowns!G:H,2,0),\"\")","v":""},{"$f":"IFERROR(VLOOKUP(B6,'Orodha ua uhakiki wa Miliki'!B:E,4,0),\"\")","v":""},{"$f":"IFERROR(VLOOKUP(B6,'Orodha ua uhakiki wa Miliki'!B:G,6,0),\"\")","v":""},null,{"$f":"IF(B6<>\"\",\"Ya ndani:\",\"\")","v":""},null,{"$f":"IF(B6<>\"\",\"Ya nje:\",\"\")","v":""}]
[null,{"$f":"IFERROR(INDEX('Orodha ua uhakiki wa Miliki'!$B$1:$B$397, SMALL(INDEX(('Orodha ua uhakiki wa Miliki'!$I$1:$I$397=\"Yes\")*(MATCH(ROW('Orodha ua uhakiki wa Miliki'!$I$1:$I$397), ROW('Orodha ua uhakiki wa Miliki'!$I$1:$I$397)))+('Orodha ua uhakiki wa Miliki'!$I$1:$I$397<>\"Yes\")*1048577, 0, 0), ROW(A3))),\"\")","v":""},{"$f":"IFERROR(VLOOKUP(B7,'Orodha ua uhakiki wa Miliki'!B:C,2,0),\"\")","v":""},{"$f":"IFERROR(VLOOKUP(VLOOKUP(B7,'Orodha ua uhakiki wa Miliki'!B:J,9,0),DropDowns!G:H,2,0),\"\")","v":""},{"$f":"IFERROR(VLOOKUP(B7,'Orodha ua uhakiki wa Miliki'!B:E,4,0),\"\")","v":""},{"$f":"IFERROR(VLOOKUP(B7,'Orodha ua uhakiki wa Miliki'!B:G,6,0),\"\")","v":""},null,"",null,""]
[null,{"$f":"IFERROR(INDEX('Orodha ua uhakiki wa Miliki'!$B$1:$B$397, SMALL(INDEX(('Orodha ua uhakiki wa Miliki'!$I$1:$I$397=\"Yes\")*(MATCH(ROW('Orodha ua uhakiki wa Miliki'!$I$1:$I$397), ROW('Orodha ua uhakiki wa Miliki'!$I$1:$I$397)))+('Orodha ua uhakiki wa Miliki'!$I$1:$I$397<>\"Yes\")*1048577, 0, 0), ROW(A4))),\"\")","v":""},{"$f":"IFERROR(VLOOKUP(B8,'Orodha ua uhakiki wa Miliki'!B:C,2,0),\"\")","v":""},{"$f":"IFERROR(VLOOKUP(VLOOKUP(B8,'Orodha ua uhakiki wa Miliki'!B:J,9,0),DropDowns!G:H,2,0),\"\")","v":""},{"$f":"IFERROR(VLOOKUP(B8,'Orodha ua uhakiki wa Miliki'!B:E,4,0),\"\")","v":""},{"$f":"IFERROR(VLOOKUP(B8,'Orodha ua uhakiki wa Miliki'!B:G,6,0),\"\")","v":""},null,"",null,""]
[null,{"$f":"IFERROR(INDEX('Orodha ua uhakiki wa Miliki'!$B$1:$B$397, SMALL(INDEX(('Orodha ua uhakiki wa Miliki'!$I$1:$I$397=\"Yes\")*(MATCH(ROW('Orodha ua uhakiki wa Miliki'!$I$1:$I$397), ROW('Orodha ua uhakiki wa Miliki'!$I$1:$I$397)))+('Orodha ua uhakiki wa Miliki'!$I$1:$I$397<>\"Yes\")*1048577, 0, 0), ROW(A5))),\"\")","v":""},{"$f":"IFERROR(VLOOKUP(B9,'Orodha ua uhakiki wa Miliki'!B:C,2,0),\"\")","v":""},{"$f":"IFERROR(VLOOKUP(VLOOKUP(B9,'Orodha ua uhakiki wa Miliki'!B:J,9,0),DropDowns!G:H,2,0),\"\")","v":""},{"$f":"IFERROR(VLOOKUP(B9,'Orodha ua uhakiki wa Miliki'!B:E,4,0),\"\")","v":""},{"$f":"IFERROR(VLOOKUP(B9,'Orodha ua uhakiki wa Miliki'!B:G,6,0),\"\")","v":""},null,"",null,""]
[null,{"$f":"IFERROR(INDEX('Orodha ua uhakiki wa Miliki'!$B$1:$B$397, SMALL(INDEX(('Orodha ua uhakiki wa Miliki'!$I$1:$I$397=\"Yes\")*(MATCH(ROW('Orodha ua uhakiki wa Miliki'!$I$1:$I$397), ROW('Orodha ua uhakiki wa Miliki'!$I$1:$I$397)))+('Orodha ua uhakiki wa Miliki'!$I$1:$I$397<>\"Yes\")*1048577, 0, 0), ROW(A6))),\"\")","v":""},{"$f":"IFERROR(VLOOKUP(B10,'Orodha ua uhakiki wa Miliki'!B:C,2,0),\"\")","v":""},{"$f":"IFERROR(VLOOKUP(VLOOKUP(B10,'Orodha ua uhakiki wa Miliki'!B:J,9,0),DropDowns!G:H,2,0),\"\")","v":""},{"$f":"IFERROR(VLOOKUP(B10,'Orodha ua uhakiki wa Miliki'!B:E,4,0),\"\")","v":""},{"$f":"IFERROR(VLOOKUP(B10,'Orodha ua uhakiki wa Miliki'!B:G,6,0),\"\")","v":""},null,"",null,""]
[null,{"$f":"IFERROR(INDEX('Orodha ua uhakiki wa Miliki'!$B$1:$B$397, SMALL(INDEX(('Orodha ua uhakiki wa Miliki'!$I$1:$I$397=\"Yes\")*(MATCH(ROW('Orodha ua uhakiki wa Miliki'!$I$1:$I$397), ROW('Orodha ua uhakiki wa Miliki'!$I$1:$I$397)))+('Orodha ua uhakiki wa Miliki'!$I$1:$I$397<>\"Yes\")*1048577, 0, 0), ROW(A7))),\"\")","v":""},{"$f":"IFERROR(VLOOKUP(B11,'Orodha ua uhakiki wa Miliki'!B:C,2,0),\"\")","v":""},{"$f":"IFERROR(VLOOKUP(VLOOKUP(B11,'Orodha ua uhakiki wa Miliki'!B:J,9,0),DropDowns!G:H,2,0),\"\")","v":""},{"$f":"IFERROR(VLOOKUP(B11,'Orodha ua uhakiki wa Miliki'!B:E,4,0),\"\")","v":""},{"$f":"IFERROR(VLOOKUP(B11,'Orodha ua uhakiki wa Miliki'!B:G,6,0),\"\")","v":""},null,"",null,""]
[null,{"$f":"IFERROR(INDEX('Orodha ua uhakiki wa Miliki'!$B$1:$B$397, SMALL(INDEX(('Orodha ua uhakiki wa Miliki'!$I$1:$I$397=\"Yes\")*(MATCH(ROW('Orodha ua uhakiki wa Miliki'!$I$1:$I$397), ROW('Orodha ua uhakiki wa Miliki'!$I$1:$I$397)))+('Orodha ua uhakiki wa Miliki'!$I$1:$I$397<>\"Yes\")*1048577, 0, 0), ROW(A8))),\"\")","v":""},{"$f":"IFERROR(VLOOKUP(B12,'Orodha ua uhakiki wa Miliki'!B:C,2,0),\"\")","v":""},{"$f":"IFERROR(VLOOKUP(VLOOKUP(B12,'Orodha ua uhakiki wa Miliki'!B:J,9,0),DropDowns!G:H,2,0),\"\")","v":""},{"$f":"IFERROR(VLOOKUP(B12,'Orodha ua uhakiki wa Miliki'!B:E,4,0),\"\")","v":""},{"$f":"IFERROR(VLOOKUP(B12,'Orodha ua uhakiki wa Miliki'!B:G,6,0),\"\")","v":""},null,"",null,""]
[null,{"$f":"IFERROR(INDEX('Orodha ua uhakiki wa Miliki'!$B$1:$B$397, SMALL(INDEX(('Orodha ua uhakiki wa Miliki'!$I$1:$I$397=\"Yes\")*(MATCH(ROW('Orodha ua uhakiki wa Miliki'!$I$1:$I$397), ROW('Orodha ua uhakiki wa Miliki'!$I$1:$I$397)))+('Orodha ua uhakiki wa Miliki'!$I$1:$I$397<>\"Yes\")*1048577, 0, 0), ROW(A9))),\"\")","v":""},{"$f":"IFERROR(VLOOKUP(B13,'Orodha ua uhakiki wa Miliki'!B:C,2,0),\"\")","v":""},{"$f":"IFERROR(VLOOKUP(VLOOKUP(B13,'Orodha ua uhakiki wa Miliki'!B:J,9,0),DropDowns!G:H,2,0),\"\")","v":""},{"$f":"IFERROR(VLOOKUP(B13,'Orodha ua uhakiki wa Miliki'!B:E,4,0),\"\")","v":""},{"$f":"IFERROR(VLOOKUP(B13,'Orodha ua uhakiki wa Miliki'!B:G,6,0),\"\")","v":""},null,"",null,""]
[null,{"$f":"IFERROR(INDEX('Orodha ua uhakiki wa Miliki'!$B$1:$B$397, SMALL(INDEX(('Orodha ua uhakiki wa Miliki'!$I$1:$I$397=\"Yes\")*(MATCH(ROW('Orodha ua uhakiki wa Miliki'!$I$1:$I$397), ROW('Orodha ua uhakiki wa Miliki'!$I$1:$I$397)))+('Orodha ua uhakiki wa Miliki'!$I$1:$I$397<>\"Yes\")*1048577, 0, 0), ROW(A10))),\"\")","v":""},{"$f":"IFERROR(VLOOKUP(B14,'Orodha ua uhakiki wa Miliki'!B:C,2,0),\"\")","v":""},{"$f":"IFERROR(VLOOKUP(VLOOKUP(B14,'Orodha ua uhakiki wa Miliki'!B:J,9,0),DropDowns!G:H,2,0),\"\")","v":""},{"$f":"IFERROR(VLOOKUP(B14,'Orodha ua uhakiki wa Miliki'!B:E,4,0),\"\")","v":""},{"$f":"IFERROR(VLOOKUP(B14,'Orodha ua uhakiki wa Miliki'!B:G,6,0),\"\")","v":""},null,"",null,""]
[null,{"$f":"IFERROR(INDEX('Orodha ua uhakiki wa Miliki'!$B$1:$B$397, SMALL(INDEX(('Orodha ua uhakiki wa Miliki'!$I$1:$I$397=\"Yes\")*(MATCH(ROW('Orodha ua uhakiki wa Miliki'!$I$1:$I$397), ROW('Orodha ua uhakiki wa Miliki'!$I$1:$I$397)))+('Orodha ua uhakiki wa Miliki'!$I$1:$I$397<>\"Yes\")*1048577, 0, 0), ROW(A11))),\"\")","v":""},{"$f":"IFERROR(VLOOKUP(B15,'Orodha ua uhakiki wa Miliki'!B:C,2,0),\"\")","v":""},{"$f":"IFERROR(VLOOKUP(VLOOKUP(B15,'Orodha ua uhakiki wa Miliki'!B:J,9,0),DropDowns!G:H,2,0),\"\")","v":""},{"$f":"IFERROR(VLOOKUP(B15,'Orodha ua uhakiki wa Miliki'!B:E,4,0),\"\")","v":""},{"$f":"IFERROR(VLOOKUP(B15,'Orodha ua uhakiki wa Miliki'!B:G,6,0),\"\")","v":""},null,"",null,""]
[null,{"$f":"IFERROR(INDEX('Orodha ua uhakiki wa Miliki'!$B$1:$B$397, SMALL(INDEX(('Orodha ua uhakiki wa Miliki'!$I$1:$I$397=\"Yes\")*(MATCH(ROW('Orodha ua uhakiki wa Miliki'!$I$1:$I$397), ROW('Orodha ua uhakiki wa Miliki'!$I$1:$I$397)))+('Orodha ua uhakiki wa Miliki'!$I$1:$I$397<>\"Yes\")*1048577, 0, 0), ROW(A12))),\"\")","v":""},{"$f":"IFERROR(VLOOKUP(B16,'Orodha ua uhakiki wa Miliki'!B:C,2,0),\"\")","v":""},{"$f":"IFERROR(VLOOKUP(VLOOKUP(B16,'Orodha ua uhakiki wa Miliki'!B:J,9,0),DropDowns!G:H,2,0),\"\")","v":""},{"$f":"IFERROR(VLOOKUP(B16,'Orodha ua uhakiki wa Miliki'!B:E,4,0),\"\")","v":""},{"$f":"IFERROR(VLOOKUP(B16,'Orodha ua uhakiki wa Miliki'!B:G,6,0),\"\")","v":""},null,"",null,""]
[null,{"$f":"IFERROR(INDEX('Orodha ua uhakiki wa Miliki'!$B$1:$B$397, SMALL(INDEX(('Orodha ua uhakiki wa Miliki'!$I$1:$I$397=\"Yes\")*(MATCH(ROW('Orodha ua uhakiki wa Miliki'!$I$1:$I$397), ROW('Orodha ua uhakiki wa Miliki'!$I$1:$I$397)))+('Orodha ua uhakiki wa Miliki'!$I$1:$I$397<>\"Yes\")*1048577, 0, 0), ROW(A13))),\"\")","v":""},{"$f":"IFERROR(VLOOKUP(B17,'Orodha ua uhakiki wa Miliki'!B:C,2,0),\"\")","v":""},{"$f":"IFERROR(VLOOKUP(VLOOKUP(B17,'Orodha ua uhakiki wa Miliki'!B:J,9,0),DropDowns!G:H,2,0),\"\")","v":""},{"$f":"IFERROR(VLOOKUP(B17,'Orodha ua uhakiki wa Miliki'!B:E,4,0),\"\")","v":""},{"$f":"IFERROR(VLOOKUP(B17,'Orodha ua uhakiki wa Miliki'!B:G,6,0),\"\")","v":""},null,"",null,""]
[null,{"$f":"IFERROR(INDEX('Orodha ua uhakiki wa Miliki'!$B$1:$B$397, SMALL(INDEX(('Orodha ua uhakiki wa Miliki'!$I$1:$I$397=\"Yes\")*(MATCH(ROW('Orodha ua uhakiki wa Miliki'!$I$1:$I$397), ROW('Orodha ua uhakiki wa Miliki'!$I$1:$I$397)))+('Orodha ua uhakiki wa Miliki'!$I$1:$I$397<>\"Yes\")*1048577, 0, 0), ROW(A14))),\"\")","v":""},{"$f":"IFERROR(VLOOKUP(B18,'Orodha ua uhakiki wa Miliki'!B:C,2,0),\"\")","v":""},{"$f":"IFERROR(VLOOKUP(VLOOKUP(B18,'Orodha ua uhakiki wa Miliki'!B:J,9,0),DropDowns!G:H,2,0),\"\")","v":""},{"$f":"IFERROR(VLOOKUP(B18,'Orodha ua uhakiki wa Miliki'!B:E,4,0),\"\")","v":""},{"$f":"IFERROR(VLOOKUP(B18,'Orodha ua uhakiki wa Miliki'!B:G,6,0),\"\")","v":""},null,"",null,""]
[null,{"$f":"IFERROR(INDEX('Orodha ua uhakiki wa Miliki'!$B$1:$B$397, SMALL(INDEX(('Orodha ua uhakiki wa Miliki'!$I$1:$I$397=\"Yes\")*(MATCH(ROW('Orodha ua uhakiki wa Miliki'!$I$1:$I$397), ROW('Orodha ua uhakiki wa Miliki'!$I$1:$I$397)))+('Orodha ua uhakiki wa Miliki'!$I$1:$I$397<>\"Yes\")*1048577, 0, 0), ROW(A15))),\"\")","v":""},{"$f":"IFERROR(VLOOKUP(B19,'Orodha ua uhakiki wa Miliki'!B:C,2,0),\"\")","v":""},{"$f":"IFERROR(VLOOKUP(VLOOKUP(B19,'Orodha ua uhakiki wa Miliki'!B:J,9,0),DropDowns!G:H,2,0),\"\")","v":""},{"$f":"IFERROR(VLOOKUP(B19,'Orodha ua uhakiki wa Miliki'!B:E,4,0),\"\")","v":""},{"$f":"IFERROR(VLOOKUP(B19,'Orodha ua uhakiki wa Miliki'!B:G,6,0),\"\")","v":""},null,"",null,""]
[null,{"$f":"IFERROR(INDEX('Orodha ua uhakiki wa Miliki'!$B$1:$B$397, SMALL(INDEX(('Orodha ua uhakiki wa Miliki'!$I$1:$I$397=\"Yes\")*(MATCH(ROW('Orodha ua uhakiki wa Miliki'!$I$1:$I$397), ROW('Orodha ua uhakiki wa Miliki'!$I$1:$I$397)))+('Orodha ua uhakiki wa Miliki'!$I$1:$I$397<>\"Yes\")*1048577, 0, 0), ROW(A16))),\"\")","v":""},{"$f":"IFERROR(VLOOKUP(B20,'Orodha ua uhakiki wa Miliki'!B:C,2,0),\"\")","v":""},{"$f":"IFERROR(VLOOKUP(VLOOKUP(B20,'Orodha ua uhakiki wa Miliki'!B:J,9,0),DropDowns!G:H,2,0),\"\")","v":""},{"$f":"IFERROR(VLOOKUP(B20,'Orodha ua uhakiki wa Miliki'!B:E,4,0),\"\")","v":""},{"$f":"IFERROR(VLOOKUP(B20,'Orodha ua uhakiki wa Miliki'!B:G,6,0),\"\")","v":""},null,"",null,""]
[null,{"$f":"IFERROR(INDEX('Orodha ua uhakiki wa Miliki'!$B$1:$B$397, SMALL(INDEX(('Orodha ua uhakiki wa Miliki'!$I$1:$I$397=\"Yes\")*(MATCH(ROW('Orodha ua uhakiki wa Miliki'!$I$1:$I$397), ROW('Orodha ua uhakiki wa Miliki'!$I$1:$I$397)))+('Orodha ua uhakiki wa Miliki'!$I$1:$I$397<>\"Yes\")*1048577, 0, 0), ROW(A17))),\"\")","v":""},{"$f":"IFERROR(VLOOKUP(B21,'Orodha ua uhakiki wa Miliki'!B:C,2,0),\"\")","v":""},{"$f":"IFERROR(VLOOKUP(VLOOKUP(B21,'Orodha ua uhakiki wa Miliki'!B:J,9,0),DropDowns!G:H,2,0),\"\")","v":""},{"$f":"IFERROR(VLOOKUP(B21,'Orodha ua uhakiki wa Miliki'!B:E,4,0),\"\")","v":""},{"$f":"IFERROR(VLOOKUP(B21,'Orodha ua uhakiki wa Miliki'!B:G,6,0),\"\")","v":""},null,"",null,""]
[null,{"$f":"IFERROR(INDEX('Orodha ua uhakiki wa Miliki'!$B$1:$B$397, SMALL(INDEX(('Orodha ua uhakiki wa Miliki'!$I$1:$I$397=\"Yes\")*(MATCH(ROW('Orodha ua uhakiki wa Miliki'!$I$1:$I$397), ROW('Orodha ua uhakiki wa Miliki'!$I$1:$I$397)))+('Orodha ua uhakiki wa Miliki'!$I$1:$I$397<>\"Yes\")*1048577, 0, 0), ROW(A18))),\"\")","v":""},{"$f":"IFERROR(VLOOKUP(B22,'Orodha ua uhakiki wa Miliki'!B:C,2,0),\"\")","v":""},{"$f":"IFERROR(VLOOKUP(VLOOKUP(B22,'Orodha ua uhakiki wa Miliki'!B:J,9,0),DropDowns!G:H,2,0),\"\")","v":""},{"$f":"IFERROR(VLOOKUP(B22,'Orodha ua uhakiki wa Miliki'!B:E,4,0),\"\")","v":""},{"$f":"IFERROR(VLOOKUP(B22,'Orodha ua uhakiki wa Miliki'!B:G,6,0),\"\")","v":""},null,"",null,""]
[null,{"$f":"IFERROR(INDEX('Orodha ua uhakiki wa Miliki'!$B$1:$B$397, SMALL(INDEX(('Orodha ua uhakiki wa Miliki'!$I$1:$I$397=\"Yes\")*(MATCH(ROW('Orodha ua uhakiki wa Miliki'!$I$1:$I$397), ROW('Orodha ua uhakiki wa Miliki'!$I$1:$I$397)))+('Orodha ua uhakiki wa Miliki'!$I$1:$I$397<>\"Yes\")*1048577, 0, 0), ROW(A19))),\"\")","v":""},{"$f":"IFERROR(VLOOKUP(B23,'Orodha ua uhakiki wa Miliki'!B:C,2,0),\"\")","v":""},{"$f":"IFERROR(VLOOKUP(VLOOKUP(B23,'Orodha ua uhakiki wa Miliki'!B:J,9,0),DropDowns!G:H,2,0),\"\")","v":""},{"$f":"IFERROR(VLOOKUP(B23,'Orodha ua uhakiki wa Miliki'!B:E,4,0),\"\")","v":""},{"$f":"IFERROR(VLOOKUP(B23,'Orodha ua uhakiki wa Miliki'!B:G,6,0),\"\")","v":""},null,"",null,""]
[null,{"$f":"IFERROR(INDEX('Orodha ua uhakiki wa Miliki'!$B$1:$B$397, SMALL(INDEX(('Orodha ua uhakiki wa Miliki'!$I$1:$I$397=\"Yes\")*(MATCH(ROW('Orodha ua uhakiki wa Miliki'!$I$1:$I$397), ROW('Orodha ua uhakiki wa Miliki'!$I$1:$I$397)))+('Orodha ua uhakiki wa Miliki'!$I$1:$I$397<>\"Yes\")*1048577, 0, 0), ROW(A20))),\"\")","v":""},{"$f":"IFERROR(VLOOKUP(B24,'Orodha ua uhakiki wa Miliki'!B:C,2,0),\"\")","v":""},{"$f":"IFERROR(VLOOKUP(VLOOKUP(B24,'Orodha ua uhakiki wa Miliki'!B:J,9,0),DropDowns!G:H,2,0),\"\")","v":""},{"$f":"IFERROR(VLOOKUP(B24,'Orodha ua uhakiki wa Miliki'!B:E,4,0),\"\")","v":""},{"$f":"IFERROR(VLOOKUP(B24,'Orodha ua uhakiki wa Miliki'!B:G,6,0),\"\")","v":""},null,"",null,""]
[null,{"$f":"IFERROR(INDEX('Orodha ua uhakiki wa Miliki'!$B$1:$B$397, SMALL(INDEX(('Orodha ua uhakiki wa Miliki'!$I$1:$I$397=\"Yes\")*(MATCH(ROW('Orodha ua uhakiki wa Miliki'!$I$1:$I$397), ROW('Orodha ua uhakiki wa Miliki'!$I$1:$I$397)))+('Orodha ua uhakiki wa Miliki'!$I$1:$I$397<>\"Yes\")*1048577, 0, 0), ROW(A21))),\"\")","v":""},{"$f":"IFERROR(VLOOKUP(B25,'Orodha ua uhakiki wa Miliki'!B:C,2,0),\"\")","v":""},{"$f":"IFERROR(VLOOKUP(VLOOKUP(B25,'Orodha ua uhakiki wa Miliki'!B:J,9,0),DropDowns!G:H,2,0),\"\")","v":""},{"$f":"IFERROR(VLOOKUP(B25,'Orodha ua uhakiki wa Miliki'!B:E,4,0),\"\")","v":""},{"$f":"IFERROR(VLOOKUP(B25,'Orodha ua uhakiki wa Miliki'!B:G,6,0),\"\")","v":""},null,"",null,""]
[null,{"$f":"IFERROR(INDEX('Orodha ua uhakiki wa Miliki'!$B$1:$B$397, SMALL(INDEX(('Orodha ua uhakiki wa Miliki'!$I$1:$I$397=\"Yes\")*(MATCH(ROW('Orodha ua uhakiki wa Miliki'!$I$1:$I$397), ROW('Orodha ua uhakiki wa Miliki'!$I$1:$I$397)))+('Orodha ua uhakiki wa Miliki'!$I$1:$I$397<>\"Yes\")*1048577, 0, 0), ROW(A22))),\"\")","v":""},{"$f":"IFERROR(VLOOKUP(B26,'Orodha ua uhakiki wa Miliki'!B:C,2,0),\"\")","v":""},{"$f":"IFERROR(VLOOKUP(VLOOKUP(B26,'Orodha ua uhakiki wa Miliki'!B:J,9,0),DropDowns!G:H,2,0),\"\")","v":""},{"$f":"IFERROR(VLOOKUP(B26,'Orodha ua uhakiki wa Miliki'!B:E,4,0),\"\")","v":""},{"$f":"IFERROR(VLOOKUP(B26,'Orodha ua uhakiki wa Miliki'!B:G,6,0),\"\")","v":""},null,"",null,""]
[null,{"$f":"IFERROR(INDEX('Orodha ua uhakiki wa Miliki'!$B$1:$B$397, SMALL(INDEX(('Orodha ua uhakiki wa Miliki'!$I$1:$I$397=\"Yes\")*(MATCH(ROW('Orodha ua uhakiki wa Miliki'!$I$1:$I$397), ROW('Orodha ua uhakiki wa Miliki'!$I$1:$I$397)))+('Orodha ua uhakiki wa Miliki'!$I$1:$I$397<>\"Yes\")*1048577, 0, 0), ROW(A23))),\"\")","v":""},{"$f":"IFERROR(VLOOKUP(B27,'Orodha ua uhakiki wa Miliki'!B:C,2,0),\"\")","v":""},{"$f":"IFERROR(VLOOKUP(VLOOKUP(B27,'Orodha ua uhakiki wa Miliki'!B:J,9,0),DropDowns!G:H,2,0),\"\")","v":""},{"$f":"IFERROR(VLOOKUP(B27,'Orodha ua uhakiki wa Miliki'!B:E,4,0),\"\")","v":""},{"$f":"IFERROR(VLOOKUP(B27,'Orodha ua uhakiki wa Miliki'!B:G,6,0),\"\")","v":""},null,"",null,""]
[null,{"$f":"IFERROR(INDEX('Orodha ua uhakiki wa Miliki'!$B$1:$B$397, SMALL(INDEX(('Orodha ua uhakiki wa Miliki'!$I$1:$I$397=\"Yes\")*(MATCH(ROW('Orodha ua uhakiki wa Miliki'!$I$1:$I$397), ROW('Orodha ua uhakiki wa Miliki'!$I$1:$I$397)))+('Orodha ua uhakiki wa Miliki'!$I$1:$I$397<>\"Yes\")*1048577, 0, 0), ROW(A24))),\"\")","v":""},{"$f":"IFERROR(VLOOKUP(B28,'Orodha ua uhakiki wa Miliki'!B:C,2,0),\"\")","v":""},{"$f":"IFERROR(VLOOKUP(VLOOKUP(B28,'Orodha ua uhakiki wa Miliki'!B:J,9,0),DropDowns!G:H,2,0),\"\")","v":""},{"$f":"IFERROR(VLOOKUP(B28,'Orodha ua uhakiki wa Miliki'!B:E,4,0),\"\")","v":""},{"$f":"IFERROR(VLOOKUP(B28,'Orodha ua uhakiki wa Miliki'!B:G,6,0),\"\")","v":""},null,"",null,""]
[null,{"$f":"IFERROR(INDEX('Orodha ua uhakiki wa Miliki'!$B$1:$B$397, SMALL(INDEX(('Orodha ua uhakiki wa Miliki'!$I$1:$I$397=\"Yes\")*(MATCH(ROW('Orodha ua uhakiki wa Miliki'!$I$1:$I$397), ROW('Orodha ua uhakiki wa Miliki'!$I$1:$I$397)))+('Orodha ua uhakiki wa Miliki'!$I$1:$I$397<>\"Yes\")*1048577, 0, 0), ROW(A25))),\"\")","v":""},{"$f":"IFERROR(VLOOKUP(B29,'Orodha ua uhakiki wa Miliki'!B:C,2,0),\"\")","v":""},{"$f":"IFERROR(VLOOKUP(VLOOKUP(B29,'Orodha ua uhakiki wa Miliki'!B:J,9,0),DropDowns!G:H,2,0),\"\")","v":""},{"$f":"IFERROR(VLOOKUP(B29,'Orodha ua uhakiki wa Miliki'!B:E,4,0),\"\")","v":""},{"$f":"IFERROR(VLOOKUP(B29,'Orodha ua uhakiki wa Miliki'!B:G,6,0),\"\")","v":""},null,"",null,""]
[null,{"$f":"IFERROR(INDEX('Orodha ua uhakiki wa Miliki'!$B$1:$B$397, SMALL(INDEX(('Orodha ua uhakiki wa Miliki'!$I$1:$I$397=\"Yes\")*(MATCH(ROW('Orodha ua uhakiki wa Miliki'!$I$1:$I$397), ROW('Orodha ua uhakiki wa Miliki'!$I$1:$I$397)))+('Orodha ua uhakiki wa Miliki'!$I$1:$I$397<>\"Yes\")*1048577, 0, 0), ROW(A26))),\"\")","v":""},{"$f":"IFERROR(VLOOKUP(B30,'Orodha ua uhakiki wa Miliki'!B:C,2,0),\"\")","v":""},{"$f":"IFERROR(VLOOKUP(VLOOKUP(B30,'Orodha ua uhakiki wa Miliki'!B:J,9,0),DropDowns!G:H,2,0),\"\")","v":""},{"$f":"IFERROR(VLOOKUP(B30,'Orodha ua uhakiki wa Miliki'!B:E,4,0),\"\")","v":""},{"$f":"IFERROR(VLOOKUP(B30,'Orodha ua uhakiki wa Miliki'!B:G,6,0),\"\")","v":""},null,"",null,""]
[null,{"$f":"IFERROR(INDEX('Orodha ua uhakiki wa Miliki'!$B$1:$B$397, SMALL(INDEX(('Orodha ua uhakiki wa Miliki'!$I$1:$I$397=\"Yes\")*(MATCH(ROW('Orodha ua uhakiki wa Miliki'!$I$1:$I$397), ROW('Orodha ua uhakiki wa Miliki'!$I$1:$I$397)))+('Orodha ua uhakiki wa Miliki'!$I$1:$I$397<>\"Yes\")*1048577, 0, 0), ROW(A27))),\"\")","v":""},{"$f":"IFERROR(VLOOKUP(B31,'Orodha ua uhakiki wa Miliki'!B:C,2,0),\"\")","v":""},{"$f":"IFERROR(VLOOKUP(VLOOKUP(B31,'Orodha ua uhakiki wa Miliki'!B:J,9,0),DropDowns!G:H,2,0),\"\")","v":""},{"$f":"IFERROR(VLOOKUP(B31,'Orodha ua uhakiki wa Miliki'!B:E,4,0),\"\")","v":""},{"$f":"IFERROR(VLOOKUP(B31,'Orodha ua uhakiki wa Miliki'!B:G,6,0),\"\")","v":""},null,"",null,""]
[null,{"$f":"IFERROR(INDEX('Orodha ua uhakiki wa Miliki'!$B$1:$B$397, SMALL(INDEX(('Orodha ua uhakiki wa Miliki'!$I$1:$I$397=\"Yes\")*(MATCH(ROW('Orodha ua uhakiki wa Miliki'!$I$1:$I$397), ROW('Orodha ua uhakiki wa Miliki'!$I$1:$I$397)))+('Orodha ua uhakiki wa Miliki'!$I$1:$I$397<>\"Yes\")*1048577, 0, 0), ROW(A28))),\"\")","v":""},{"$f":"IFERROR(VLOOKUP(B32,'Orodha ua uhakiki wa Miliki'!B:C,2,0),\"\")","v":""},{"$f":"IFERROR(VLOOKUP(VLOOKUP(B32,'Orodha ua uhakiki wa Miliki'!B:J,9,0),DropDowns!G:H,2,0),\"\")","v":""},{"$f":"IFERROR(VLOOKUP(B32,'Orodha ua uhakiki wa Miliki'!B:E,4,0),\"\")","v":""},{"$f":"IFERROR(VLOOKUP(B32,'Orodha ua uhakiki wa Miliki'!B:G,6,0),\"\")","v":""},null,"",null,""]
[null,{"$f":"IFERROR(INDEX('Orodha ua uhakiki wa Miliki'!$B$1:$B$397, SMALL(INDEX(('Orodha ua uhakiki wa Miliki'!$I$1:$I$397=\"Yes\")*(MATCH(ROW('Orodha ua uhakiki wa Miliki'!$I$1:$I$397), ROW('Orodha ua uhakiki wa Miliki'!$I$1:$I$397)))+('Orodha ua uhakiki wa Miliki'!$I$1:$I$397<>\"Yes\")*1048577, 0, 0), ROW(A29))),\"\")","v":""},{"$f":"IFERROR(VLOOKUP(B33,'Orodha ua uhakiki wa Miliki'!B:C,2,0),\"\")","v":""},{"$f":"IFERROR(VLOOKUP(VLOOKUP(B33,'Orodha ua uhakiki wa Miliki'!B:J,9,0),DropDowns!G:H,2,0),\"\")","v":""},{"$f":"IFERROR(VLOOKUP(B33,'Orodha ua uhakiki wa Miliki'!B:E,4,0),\"\")","v":""},{"$f":"IFERROR(VLOOKUP(B33,'Orodha ua uhakiki wa Miliki'!B:G,6,0),\"\")","v":""},null,"",null,""]
[null,{"$f":"IFERROR(INDEX('Orodha ua uhakiki wa Miliki'!$B$1:$B$397, SMALL(INDEX(('Orodha ua uhakiki wa Miliki'!$I$1:$I$397=\"Yes\")*(MATCH(ROW('Orodha ua uhakiki wa Miliki'!$I$1:$I$397), ROW('Orodha ua uhakiki wa Miliki'!$I$1:$I$397)))+('Orodha ua uhakiki wa Miliki'!$I$1:$I$397<>\"Yes\")*1048577, 0, 0), ROW(A30))),\"\")","v":""},{"$f":"IFERROR(VLOOKUP(B34,'Orodha ua uhakiki wa Miliki'!B:C,2,0),\"\")","v":""},{"$f":"IFERROR(VLOOKUP(VLOOKUP(B34,'Orodha ua uhakiki wa Miliki'!B:J,9,0),DropDowns!G:H,2,0),\"\")","v":""},{"$f":"IFERROR(VLOOKUP(B34,'Orodha ua uhakiki wa Miliki'!B:E,4,0),\"\")","v":""},{"$f":"IFERROR(VLOOKUP(B34,'Orodha ua uhakiki wa Miliki'!B:G,6,0),\"\")","v":""},null,"",null,""]
[null,{"$f":"IFERROR(INDEX('Orodha ua uhakiki wa Miliki'!$B$1:$B$397, SMALL(INDEX(('Orodha ua uhakiki wa Miliki'!$I$1:$I$397=\"Yes\")*(MATCH(ROW('Orodha ua uhakiki wa Miliki'!$I$1:$I$397), ROW('Orodha ua uhakiki wa Miliki'!$I$1:$I$397)))+('Orodha ua uhakiki wa Miliki'!$I$1:$I$397<>\"Yes\")*1048577, 0, 0), ROW(A31))),\"\")","v":""},{"$f":"IFERROR(VLOOKUP(B35,'Orodha ua uhakiki wa Miliki'!B:C,2,0),\"\")","v":""},{"$f":"IFERROR(VLOOKUP(VLOOKUP(B35,'Orodha ua uhakiki wa Miliki'!B:J,9,0),DropDowns!G:H,2,0),\"\")","v":""},{"$f":"IFERROR(VLOOKUP(B35,'Orodha ua uhakiki wa Miliki'!B:E,4,0),\"\")","v":""},{"$f":"IFERROR(VLOOKUP(B35,'Orodha ua uhakiki wa Miliki'!B:G,6,0),\"\")","v":""},null,"",null,""]
[null,{"$f":"IFERROR(INDEX('Orodha ua uhakiki wa Miliki'!$B$1:$B$397, SMALL(INDEX(('Orodha ua uhakiki wa Miliki'!$I$1:$I$397=\"Yes\")*(MATCH(ROW('Orodha ua uhakiki wa Miliki'!$I$1:$I$397), ROW('Orodha ua uhakiki wa Miliki'!$I$1:$I$397)))+('Orodha ua uhakiki wa Miliki'!$I$1:$I$397<>\"Yes\")*1048577, 0, 0), ROW(A32))),\"\")","v":""},{"$f":"IFERROR(VLOOKUP(B36,'Orodha ua uhakiki wa Miliki'!B:C,2,0),\"\")","v":""},{"$f":"IFERROR(VLOOKUP(VLOOKUP(B36,'Orodha ua uhakiki wa Miliki'!B:J,9,0),DropDowns!G:H,2,0),\"\")","v":""},{"$f":"IFERROR(VLOOKUP(B36,'Orodha ua uhakiki wa Miliki'!B:E,4,0),\"\")","v":""},{"$f":"IFERROR(VLOOKUP(B36,'Orodha ua uhakiki wa Miliki'!B:G,6,0),\"\")","v":""},null,"",null,""]
[null,{"$f":"IFERROR(INDEX('Orodha ua uhakiki wa Miliki'!$B$1:$B$397, SMALL(INDEX(('Orodha ua uhakiki wa Miliki'!$I$1:$I$397=\"Yes\")*(MATCH(ROW('Orodha ua uhakiki wa Miliki'!$I$1:$I$397), ROW('Orodha ua uhakiki wa Miliki'!$I$1:$I$397)))+('Orodha ua uhakiki wa Miliki'!$I$1:$I$397<>\"Yes\")*1048577, 0, 0), ROW(A33))),\"\")","v":""},{"$f":"IFERROR(VLOOKUP(B37,'Orodha ua uhakiki wa Miliki'!B:C,2,0),\"\")","v":""},{"$f":"IFERROR(VLOOKUP(VLOOKUP(B37,'Orodha ua uhakiki wa Miliki'!B:J,9,0),DropDowns!G:H,2,0),\"\")","v":""},{"$f":"IFERROR(VLOOKUP(B37,'Orodha ua uhakiki wa Miliki'!B:E,4,0),\"\")","v":""},{"$f":"IFERROR(VLOOKUP(B37,'Orodha ua uhakiki wa Miliki'!B:G,6,0),\"\")","v":""},null,"",null,""]
[null,{"$f":"IFERROR(INDEX('Orodha ua uhakiki wa Miliki'!$B$1:$B$397, SMALL(INDEX(('Orodha ua uhakiki wa Miliki'!$I$1:$I$397=\"Yes\")*(MATCH(ROW('Orodha ua uhakiki wa Miliki'!$I$1:$I$397), ROW('Orodha ua uhakiki wa Miliki'!$I$1:$I$397)))+('Orodha ua uhakiki wa Miliki'!$I$1:$I$397<>\"Yes\")*1048577, 0, 0), ROW(A34))),\"\")","v":""},{"$f":"IFERROR(VLOOKUP(B38,'Orodha ua uhakiki wa Miliki'!B:C,2,0),\"\")","v":""},{"$f":"IFERROR(VLOOKUP(VLOOKUP(B38,'Orodha ua uhakiki wa Miliki'!B:J,9,0),DropDowns!G:H,2,0),\"\")","v":""},{"$f":"IFERROR(VLOOKUP(B38,'Orodha ua uhakiki wa Miliki'!B:E,4,0),\"\")","v":""},{"$f":"IFERROR(VLOOKUP(B38,'Orodha ua uhakiki wa Miliki'!B:G,6,0),\"\")","v":""},null,"",null,""]
[null,{"$f":"IFERROR(INDEX('Orodha ua uhakiki wa Miliki'!$B$1:$B$397, SMALL(INDEX(('Orodha ua uhakiki wa Miliki'!$I$1:$I$397=\"Yes\")*(MATCH(ROW('Orodha ua uhakiki wa Miliki'!$I$1:$I$397), ROW('Orodha ua uhakiki wa Miliki'!$I$1:$I$397)))+('Orodha ua uhakiki wa Miliki'!$I$1:$I$397<>\"Yes\")*1048577, 0, 0), ROW(A35))),\"\")","v":""},{"$f":"IFERROR(VLOOKUP(B39,'Orodha ua uhakiki wa Miliki'!B:C,2,0),\"\")","v":""},{"$f":"IFERROR(VLOOKUP(VLOOKUP(B39,'Orodha ua uhakiki wa Miliki'!B:J,9,0),DropDowns!G:H,2,0),\"\")","v":""},{"$f":"IFERROR(VLOOKUP(B39,'Orodha ua uhakiki wa Miliki'!B:E,4,0),\"\")","v":""},{"$f":"IFERROR(VLOOKUP(B39,'Orodha ua uhakiki wa Miliki'!B:G,6,0),\"\")","v":""},null,"",null,""]
[null,{"$f":"IFERROR(INDEX('Orodha ua uhakiki wa Miliki'!$B$1:$B$397, SMALL(INDEX(('Orodha ua uhakiki wa Miliki'!$I$1:$I$397=\"Yes\")*(MATCH(ROW('Orodha ua uhakiki wa Miliki'!$I$1:$I$397), ROW('Orodha ua uhakiki wa Miliki'!$I$1:$I$397)))+('Orodha ua uhakiki wa Miliki'!$I$1:$I$397<>\"Yes\")*1048577, 0, 0), ROW(A36))),\"\")","v":""},{"$f":"IFERROR(VLOOKUP(B40,'Orodha ua uhakiki wa Miliki'!B:C,2,0),\"\")","v":""},{"$f":"IFERROR(VLOOKUP(VLOOKUP(B40,'Orodha ua uhakiki wa Miliki'!B:J,9,0),DropDowns!G:H,2,0),\"\")","v":""},{"$f":"IFERROR(VLOOKUP(B40,'Orodha ua uhakiki wa Miliki'!B:E,4,0),\"\")","v":""},{"$f":"IFERROR(VLOOKUP(B40,'Orodha ua uhakiki wa Miliki'!B:G,6,0),\"\")","v":""},null,"",null,""]
[null,{"$f":"IFERROR(INDEX('Orodha ua uhakiki wa Miliki'!$B$1:$B$397, SMALL(INDEX(('Orodha ua uhakiki wa Miliki'!$I$1:$I$397=\"Yes\")*(MATCH(ROW('Orodha ua uhakiki wa Miliki'!$I$1:$I$397), ROW('Orodha ua uhakiki wa Miliki'!$I$1:$I$397)))+('Orodha ua uhakiki wa Miliki'!$I$1:$I$397<>\"Yes\")*1048577, 0, 0), ROW(A37))),\"\")","v":""},{"$f":"IFERROR(VLOOKUP(B41,'Orodha ua uhakiki wa Miliki'!B:C,2,0),\"\")","v":""},{"$f":"IFERROR(VLOOKUP(VLOOKUP(B41,'Orodha ua uhakiki wa Miliki'!B:J,9,0),DropDowns!G:H,2,0),\"\")","v":""},{"$f":"IFERROR(VLOOKUP(B41,'Orodha ua uhakiki wa Miliki'!B:E,4,0),\"\")","v":""},{"$f":"IFERROR(VLOOKUP(B41,'Orodha ua uhakiki wa Miliki'!B:G,6,0),\"\")","v":""},null,"",null,""]
[null,{"$f":"IFERROR(INDEX('Orodha ua uhakiki wa Miliki'!$B$1:$B$397, SMALL(INDEX(('Orodha ua uhakiki wa Miliki'!$I$1:$I$397=\"Yes\")*(MATCH(ROW('Orodha ua uhakiki wa Miliki'!$I$1:$I$397), ROW('Orodha ua uhakiki wa Miliki'!$I$1:$I$397)))+('Orodha ua uhakiki wa Miliki'!$I$1:$I$397<>\"Yes\")*1048577, 0, 0), ROW(A38))),\"\")","v":""},{"$f":"IFERROR(VLOOKUP(B42,'Orodha ua uhakiki wa Miliki'!B:C,2,0),\"\")","v":""},{"$f":"IFERROR(VLOOKUP(VLOOKUP(B42,'Orodha ua uhakiki wa Miliki'!B:J,9,0),DropDowns!G:H,2,0),\"\")","v":""},{"$f":"IFERROR(VLOOKUP(B42,'Orodha ua uhakiki wa Miliki'!B:E,4,0),\"\")","v":""},{"$f":"IFERROR(VLOOKUP(B42,'Orodha ua uhakiki wa Miliki'!B:G,6,0),\"\")","v":""},null,"",null,""]
[null,{"$f":"IFERROR(INDEX('Orodha ua uhakiki wa Miliki'!$B$1:$B$397, SMALL(INDEX(('Orodha ua uhakiki wa Miliki'!$I$1:$I$397=\"Yes\")*(MATCH(ROW('Orodha ua uhakiki wa Miliki'!$I$1:$I$397), ROW('Orodha ua uhakiki wa Miliki'!$I$1:$I$397)))+('Orodha ua uhakiki wa Miliki'!$I$1:$I$397<>\"Yes\")*1048577, 0, 0), ROW(A39))),\"\")","v":""},{"$f":"IFERROR(VLOOKUP(B43,'Orodha ua uhakiki wa Miliki'!B:C,2,0),\"\")","v":""},{"$f":"IFERROR(VLOOKUP(VLOOKUP(B43,'Orodha ua uhakiki wa Miliki'!B:J,9,0),DropDowns!G:H,2,0),\"\")","v":""},{"$f":"IFERROR(VLOOKUP(B43,'Orodha ua uhakiki wa Miliki'!B:E,4,0),\"\")","v":""},{"$f":"IFERROR(VLOOKUP(B43,'Orodha ua uhakiki wa Miliki'!B:G,6,0),\"\")","v":""},null,"",null,""]
[null,{"$f":"IFERROR(INDEX('Orodha ua uhakiki wa Miliki'!$B$1:$B$397, SMALL(INDEX(('Orodha ua uhakiki wa Miliki'!$I$1:$I$397=\"Yes\")*(MATCH(ROW('Orodha ua uhakiki wa Miliki'!$I$1:$I$397), ROW('Orodha ua uhakiki wa Miliki'!$I$1:$I$397)))+('Orodha ua uhakiki wa Miliki'!$I$1:$I$397<>\"Yes\")*1048577, 0, 0), ROW(A40))),\"\")","v":""},{"$f":"IFERROR(VLOOKUP(B44,'Orodha ua uhakiki wa Miliki'!B:C,2,0),\"\")","v":""},{"$f":"IFERROR(VLOOKUP(VLOOKUP(B44,'Orodha ua uhakiki wa Miliki'!B:J,9,0),DropDowns!G:H,2,0),\"\")","v":""},{"$f":"IFERROR(VLOOKUP(B44,'Orodha ua uhakiki wa Miliki'!B:E,4,0),\"\")","v":""},{"$f":"IFERROR(VLOOKUP(B44,'Orodha ua uhakiki wa Miliki'!B:G,6,0),\"\")","v":""},null,"",null,""]
[null,{"$f":"IFERROR(INDEX('Orodha ua uhakiki wa Miliki'!$B$1:$B$397, SMALL(INDEX(('Orodha ua uhakiki wa Miliki'!$I$1:$I$397=\"Yes\")*(MATCH(ROW('Orodha ua uhakiki wa Miliki'!$I$1:$I$397), ROW('Orodha ua uhakiki wa Miliki'!$I$1:$I$397)))+('Orodha ua uhakiki wa Miliki'!$I$1:$I$397<>\"Yes\")*1048577, 0, 0), ROW(A41))),\"\")","v":""},{"$f":"IFERROR(VLOOKUP(B45,'Orodha ua uhakiki wa Miliki'!B:C,2,0),\"\")","v":""},{"$f":"IFERROR(VLOOKUP(VLOOKUP(B45,'Orodha ua uhakiki wa Miliki'!B:J,9,0),DropDowns!G:H,2,0),\"\")","v":""},{"$f":"IFERROR(VLOOKUP(B45,'Orodha ua uhakiki wa Miliki'!B:E,4,0),\"\")","v":""},{"$f":"IFERROR(VLOOKUP(B45,'Orodha ua uhakiki wa Miliki'!B:G,6,0),\"\")","v":""},null,"",null,""]
[null,{"$f":"IFERROR(INDEX('Orodha ua uhakiki wa Miliki'!$B$1:$B$397, SMALL(INDEX(('Orodha ua uhakiki wa Miliki'!$I$1:$I$397=\"Yes\")*(MATCH(ROW('Orodha ua uhakiki wa Miliki'!$I$1:$I$397), ROW('Orodha ua uhakiki wa Miliki'!$I$1:$I$397)))+('Orodha ua uhakiki wa Miliki'!$I$1:$I$397<>\"Yes\")*1048577, 0, 0), ROW(A42))),\"\")","v":""},{"$f":"IFERROR(VLOOKUP(B46,'Orodha ua uhakiki wa Miliki'!B:C,2,0),\"\")","v":""},{"$f":"IFERROR(VLOOKUP(VLOOKUP(B46,'Orodha ua uhakiki wa Miliki'!B:J,9,0),DropDowns!G:H,2,0),\"\")","v":""},{"$f":"IFERROR(VLOOKUP(B46,'Orodha ua uhakiki wa Miliki'!B:E,4,0),\"\")","v":""},{"$f":"IFERROR(VLOOKUP(B46,'Orodha ua uhakiki wa Miliki'!B:G,6,0),\"\")","v":""},null,"",null,""]
[null,{"$f":"IFERROR(INDEX('Orodha ua uhakiki wa Miliki'!$B$1:$B$397, SMALL(INDEX(('Orodha ua uhakiki wa Miliki'!$I$1:$I$397=\"Yes\")*(MATCH(ROW('Orodha ua uhakiki wa Miliki'!$I$1:$I$397), ROW('Orodha ua uhakiki wa Miliki'!$I$1:$I$397)))+('Orodha ua uhakiki wa Miliki'!$I$1:$I$397<>\"Yes\")*1048577, 0, 0), ROW(A43))),\"\")","v":""},{"$f":"IFERROR(VLOOKUP(B47,'Orodha ua uhakiki wa Miliki'!B:C,2,0),\"\")","v":""},{"$f":"IFERROR(VLOOKUP(VLOOKUP(B47,'Orodha ua uhakiki wa Miliki'!B:J,9,0),DropDowns!G:H,2,0),\"\")","v":""},{"$f":"IFERROR(VLOOKUP(B47,'Orodha ua uhakiki wa Miliki'!B:E,4,0),\"\")","v":""},{"$f":"IFERROR(VLOOKUP(B47,'Orodha ua uhakiki wa Miliki'!B:G,6,0),\"\")","v":""},null,"",null,""]
[null,{"$f":"IFERROR(INDEX('Orodha ua uhakiki wa Miliki'!$B$1:$B$397, SMALL(INDEX(('Orodha ua uhakiki wa Miliki'!$I$1:$I$397=\"Yes\")*(MATCH(ROW('Orodha ua uhakiki wa Miliki'!$I$1:$I$397), ROW('Orodha ua uhakiki wa Miliki'!$I$1:$I$397)))+('Orodha ua uhakiki wa Miliki'!$I$1:$I$397<>\"Yes\")*1048577, 0, 0), ROW(A44))),\"\")","v":""},{"$f":"IFERROR(VLOOKUP(B48,'Orodha ua uhakiki wa Miliki'!B:C,2,0),\"\")","v":""},{"$f":"IFERROR(VLOOKUP(VLOOKUP(B48,'Orodha ua uhakiki wa Miliki'!B:J,9,0),DropDowns!G:H,2,0),\"\")","v":""},{"$f":"IFERROR(VLOOKUP(B48,'Orodha ua uhakiki wa Miliki'!B:E,4,0),\"\")","v":""},{"$f":"IFERROR(VLOOKUP(B48,'Orodha ua uhakiki wa Miliki'!B:G,6,0),\"\")","v":""},null,"",null,""]
[null,{"$f":"IFERROR(INDEX('Orodha ua uhakiki wa Miliki'!$B$1:$B$397, SMALL(INDEX(('Orodha ua uhakiki wa Miliki'!$I$1:$I$397=\"Yes\")*(MATCH(ROW('Orodha ua uhakiki wa Miliki'!$I$1:$I$397), ROW('Orodha ua uhakiki wa Miliki'!$I$1:$I$397)))+('Orodha ua uhakiki wa Miliki'!$I$1:$I$397<>\"Yes\")*1048577, 0, 0), ROW(A45))),\"\")","v":""},{"$f":"IFERROR(VLOOKUP(B49,'Orodha ua uhakiki wa Miliki'!B:C,2,0),\"\")","v":""},{"$f":"IFERROR(VLOOKUP(VLOOKUP(B49,'Orodha ua uhakiki wa Miliki'!B:J,9,0),DropDowns!G:H,2,0),\"\")","v":""},{"$f":"IFERROR(VLOOKUP(B49,'Orodha ua uhakiki wa Miliki'!B:E,4,0),\"\")","v":""},{"$f":"IFERROR(VLOOKUP(B49,'Orodha ua uhakiki wa Miliki'!B:G,6,0),\"\")","v":""},null,"",null,""]
[null,{"$f":"IFERROR(INDEX('Orodha ua uhakiki wa Miliki'!$B$1:$B$397, SMALL(INDEX(('Orodha ua uhakiki wa Miliki'!$I$1:$I$397=\"Yes\")*(MATCH(ROW('Orodha ua uhakiki wa Miliki'!$I$1:$I$397), ROW('Orodha ua uhakiki wa Miliki'!$I$1:$I$397)))+('Orodha ua uhakiki wa Miliki'!$I$1:$I$397<>\"Yes\")*1048577, 0, 0), ROW(A46))),\"\")","v":""},{"$f":"IFERROR(VLOOKUP(B50,'Orodha ua uhakiki wa Miliki'!B:C,2,0),\"\")","v":""},{"$f":"IFERROR(VLOOKUP(VLOOKUP(B50,'Orodha ua uhakiki wa Miliki'!B:J,9,0),DropDowns!G:H,2,0),\"\")","v":""},{"$f":"IFERROR(VLOOKUP(B50,'Orodha ua uhakiki wa Miliki'!B:E,4,0),\"\")","v":""},{"$f":"IFERROR(VLOOKUP(B50,'Orodha ua uhakiki wa Miliki'!B:G,6,0),\"\")","v":""},null,"",null,""]
[null,{"$f":"IFERROR(INDEX('Orodha ua uhakiki wa Miliki'!$B$1:$B$397, SMALL(INDEX(('Orodha ua uhakiki wa Miliki'!$I$1:$I$397=\"Yes\")*(MATCH(ROW('Orodha ua uhakiki wa Miliki'!$I$1:$I$397), ROW('Orodha ua uhakiki wa Miliki'!$I$1:$I$397)))+('Orodha ua uhakiki wa Miliki'!$I$1:$I$397<>\"Yes\")*1048577, 0, 0), ROW(A47))),\"\")","v":""},{"$f":"IFERROR(VLOOKUP(B51,'Orodha ua uhakiki wa Miliki'!B:C,2,0),\"\")","v":""},{"$f":"IFERROR(VLOOKUP(VLOOKUP(B51,'Orodha ua uhakiki wa Miliki'!B:J,9,0),DropDowns!G:H,2,0),\"\")","v":""},{"$f":"IFERROR(VLOOKUP(B51,'Orodha ua uhakiki wa Miliki'!B:E,4,0),\"\")","v":""},{"$f":"IFERROR(VLOOKUP(B51,'Orodha ua uhakiki wa Miliki'!B:G,6,0),\"\")","v":""},null,"",null,""]
[null,{"$f":"IFERROR(INDEX('Orodha ua uhakiki wa Miliki'!$B$1:$B$397, SMALL(INDEX(('Orodha ua uhakiki wa Miliki'!$I$1:$I$397=\"Yes\")*(MATCH(ROW('Orodha ua uhakiki wa Miliki'!$I$1:$I$397), ROW('Orodha ua uhakiki wa Miliki'!$I$1:$I$397)))+('Orodha ua uhakiki wa Miliki'!$I$1:$I$397<>\"Yes\")*1048577, 0, 0), ROW(A48))),\"\")","v":""},{"$f":"IFERROR(VLOOKUP(B52,'Orodha ua uhakiki wa Miliki'!B:C,2,0),\"\")","v":""},{"$f":"IFERROR(VLOOKUP(VLOOKUP(B52,'Orodha ua uhakiki wa Miliki'!B:J,9,0),DropDowns!G:H,2,0),\"\")","v":""},{"$f":"IFERROR(VLOOKUP(B52,'Orodha ua uhakiki wa Miliki'!B:E,4,0),\"\")","v":""},{"$f":"IFERROR(VLOOKUP(B52,'Orodha ua uhakiki wa Miliki'!B:G,6,0),\"\")","v":""},null,"",null,""]
[null,{"$f":"IFERROR(INDEX('Orodha ua uhakiki wa Miliki'!$B$1:$B$397, SMALL(INDEX(('Orodha ua uhakiki wa Miliki'!$I$1:$I$397=\"Yes\")*(MATCH(ROW('Orodha ua uhakiki wa Miliki'!$I$1:$I$397), ROW('Orodha ua uhakiki wa Miliki'!$I$1:$I$397)))+('Orodha ua uhakiki wa Miliki'!$I$1:$I$397<>\"Yes\")*1048577, 0, 0), ROW(A49))),\"\")","v":""},{"$f":"IFERROR(VLOOKUP(B53,'Orodha ua uhakiki wa Miliki'!B:C,2,0),\"\")","v":""},{"$f":"IFERROR(VLOOKUP(VLOOKUP(B53,'Orodha ua uhakiki wa Miliki'!B:J,9,0),DropDowns!G:H,2,0),\"\")","v":""},{"$f":"IFERROR(VLOOKUP(B53,'Orodha ua uhakiki wa Miliki'!B:E,4,0),\"\")","v":""},{"$f":"IFERROR(VLOOKUP(B53,'Orodha ua uhakiki wa Miliki'!B:G,6,0),\"\")","v":""},null,"",null,""]
[null,{"$f":"IFERROR(INDEX('Orodha ua uhakiki wa Miliki'!$B$1:$B$397, SMALL(INDEX(('Orodha ua uhakiki wa Miliki'!$I$1:$I$397=\"Yes\")*(MATCH(ROW('Orodha ua uhakiki wa Miliki'!$I$1:$I$397), ROW('Orodha ua uhakiki wa Miliki'!$I$1:$I$397)))+('Orodha ua uhakiki wa Miliki'!$I$1:$I$397<>\"Yes\")*1048577, 0, 0), ROW(A50))),\"\")","v":""},{"$f":"IFERROR(VLOOKUP(B54,'Orodha ua uhakiki wa Miliki'!B:C,2,0),\"\")","v":""},{"$f":"IFERROR(VLOOKUP(VLOOKUP(B54,'Orodha ua uhakiki wa Miliki'!B:J,9,0),DropDowns!G:H,2,0),\"\")","v":""},{"$f":"IFERROR(VLOOKUP(B54,'Orodha ua uhakiki wa Miliki'!B:E,4,0),\"\")","v":""},{"$f":"IFERROR(VLOOKUP(B54,'Orodha ua uhakiki wa Miliki'!B:G,6,0),\"\")","v":""},null,"",null,""]
[null,{"$f":"IFERROR(INDEX('Orodha ua uhakiki wa Miliki'!$B$1:$B$397, SMALL(INDEX(('Orodha ua uhakiki wa Miliki'!$I$1:$I$397=\"Yes\")*(MATCH(ROW('Orodha ua uhakiki wa Miliki'!$I$1:$I$397), ROW('Orodha ua uhakiki wa Miliki'!$I$1:$I$397)))+('Orodha ua uhakiki wa Miliki'!$I$1:$I$397<>\"Yes\")*1048577, 0, 0), ROW(A51))),\"\")","v":""},{"$f":"IFERROR(VLOOKUP(B55,'Orodha ua uhakiki wa Miliki'!B:C,2,0),\"\")","v":""},{"$f":"IFERROR(VLOOKUP(VLOOKUP(B55,'Orodha ua uhakiki wa Miliki'!B:J,9,0),DropDowns!G:H,2,0),\"\")","v":""},{"$f":"IFERROR(VLOOKUP(B55,'Orodha ua uhakiki wa Miliki'!B:E,4,0),\"\")","v":""},{"$f":"IFERROR(VLOOKUP(B55,'Orodha ua uhakiki wa Miliki'!B:G,6,0),\"\")","v":""},null,"",null,""]
[null,{"$f":"IFERROR(INDEX('Orodha ua uhakiki wa Miliki'!$B$1:$B$397, SMALL(INDEX(('Orodha ua uhakiki wa Miliki'!$I$1:$I$397=\"Yes\")*(MATCH(ROW('Orodha ua uhakiki wa Miliki'!$I$1:$I$397), ROW('Orodha ua uhakiki wa Miliki'!$I$1:$I$397)))+('Orodha ua uhakiki wa Miliki'!$I$1:$I$397<>\"Yes\")*1048577, 0, 0), ROW(A52))),\"\")","v":""},{"$f":"IFERROR(VLOOKUP(B56,'Orodha ua uhakiki wa Miliki'!B:C,2,0),\"\")","v":""},{"$f":"IFERROR(VLOOKUP(VLOOKUP(B56,'Orodha ua uhakiki wa Miliki'!B:J,9,0),DropDowns!G:H,2,0),\"\")","v":""},{"$f":"IFERROR(VLOOKUP(B56,'Orodha ua uhakiki wa Miliki'!B:E,4,0),\"\")","v":""},{"$f":"IFERROR(VLOOKUP(B56,'Orodha ua uhakiki wa Miliki'!B:G,6,0),\"\")","v":""},null,"",null,""]
[null,{"$f":"IFERROR(INDEX('Orodha ua uhakiki wa Miliki'!$B$1:$B$397, SMALL(INDEX(('Orodha ua uhakiki wa Miliki'!$I$1:$I$397=\"Yes\")*(MATCH(ROW('Orodha ua uhakiki wa Miliki'!$I$1:$I$397), ROW('Orodha ua uhakiki wa Miliki'!$I$1:$I$397)))+('Orodha ua uhakiki wa Miliki'!$I$1:$I$397<>\"Yes\")*1048577, 0, 0), ROW(A53))),\"\")","v":""},{"$f":"IFERROR(VLOOKUP(B57,'Orodha ua uhakiki wa Miliki'!B:C,2,0),\"\")","v":""},{"$f":"IFERROR(VLOOKUP(VLOOKUP(B57,'Orodha ua uhakiki wa Miliki'!B:J,9,0),DropDowns!G:H,2,0),\"\")","v":""},{"$f":"IFERROR(VLOOKUP(B57,'Orodha ua uhakiki wa Miliki'!B:E,4,0),\"\")","v":""},{"$f":"IFERROR(VLOOKUP(B57,'Orodha ua uhakiki wa Miliki'!B:G,6,0),\"\")","v":""},null,"",null,""]
[null,{"$f":"IFERROR(INDEX('Orodha ua uhakiki wa Miliki'!$B$1:$B$397, SMALL(INDEX(('Orodha ua uhakiki wa Miliki'!$I$1:$I$397=\"Yes\")*(MATCH(ROW('Orodha ua uhakiki wa Miliki'!$I$1:$I$397), ROW('Orodha ua uhakiki wa Miliki'!$I$1:$I$397)))+('Orodha ua uhakiki wa Miliki'!$I$1:$I$397<>\"Yes\")*1048577, 0, 0), ROW(A54))),\"\")","v":""},{"$f":"IFERROR(VLOOKUP(B58,'Orodha ua uhakiki wa Miliki'!B:C,2,0),\"\")","v":""},{"$f":"IFERROR(VLOOKUP(VLOOKUP(B58,'Orodha ua uhakiki wa Miliki'!B:J,9,0),DropDowns!G:H,2,0),\"\")","v":""},{"$f":"IFERROR(VLOOKUP(B58,'Orodha ua uhakiki wa Miliki'!B:E,4,0),\"\")","v":""},{"$f":"IFERROR(VLOOKUP(B58,'Orodha ua uhakiki wa Miliki'!B:G,6,0),\"\")","v":""},null,"",null,""]
[null,{"$f":"IFERROR(INDEX('Orodha ua uhakiki wa Miliki'!$B$1:$B$397, SMALL(INDEX(('Orodha ua uhakiki wa Miliki'!$I$1:$I$397=\"Yes\")*(MATCH(ROW('Orodha ua uhakiki wa Miliki'!$I$1:$I$397), ROW('Orodha ua uhakiki wa Miliki'!$I$1:$I$397)))+('Orodha ua uhakiki wa Miliki'!$I$1:$I$397<>\"Yes\")*1048577, 0, 0), ROW(A55))),\"\")","v":""},{"$f":"IFERROR(VLOOKUP(B59,'Orodha ua uhakiki wa Miliki'!B:C,2,0),\"\")","v":""},{"$f":"IFERROR(VLOOKUP(VLOOKUP(B59,'Orodha ua uhakiki wa Miliki'!B:J,9,0),DropDowns!G:H,2,0),\"\")","v":""},{"$f":"IFERROR(VLOOKUP(B59,'Orodha ua uhakiki wa Miliki'!B:E,4,0),\"\")","v":""},{"$f":"IFERROR(VLOOKUP(B59,'Orodha ua uhakiki wa Miliki'!B:G,6,0),\"\")","v":""},null,"",null,""]
[null,{"$f":"IFERROR(INDEX('Orodha ua uhakiki wa Miliki'!$B$1:$B$397, SMALL(INDEX(('Orodha ua uhakiki wa Miliki'!$I$1:$I$397=\"Yes\")*(MATCH(ROW('Orodha ua uhakiki wa Miliki'!$I$1:$I$397), ROW('Orodha ua uhakiki wa Miliki'!$I$1:$I$397)))+('Orodha ua uhakiki wa Miliki'!$I$1:$I$397<>\"Yes\")*1048577, 0, 0), ROW(A56))),\"\")","v":""},{"$f":"IFERROR(VLOOKUP(B60,'Orodha ua uhakiki wa Miliki'!B:C,2,0),\"\")","v":""},{"$f":"IFERROR(VLOOKUP(VLOOKUP(B60,'Orodha ua uhakiki wa Miliki'!B:J,9,0),DropDowns!G:H,2,0),\"\")","v":""},{"$f":"IFERROR(VLOOKUP(B60,'Orodha ua uhakiki wa Miliki'!B:E,4,0),\"\")","v":""},{"$f":"IFERROR(VLOOKUP(B60,'Orodha ua uhakiki wa Miliki'!B:G,6,0),\"\")","v":""},null,"",null,""]
[null,{"$f":"IFERROR(INDEX('Orodha ua uhakiki wa Miliki'!$B$1:$B$397, SMALL(INDEX(('Orodha ua uhakiki wa Miliki'!$I$1:$I$397=\"Yes\")*(MATCH(ROW('Orodha ua uhakiki wa Miliki'!$I$1:$I$397), ROW('Orodha ua uhakiki wa Miliki'!$I$1:$I$397)))+('Orodha ua uhakiki wa Miliki'!$I$1:$I$397<>\"Yes\")*1048577, 0, 0), ROW(A57))),\"\")","v":""},{"$f":"IFERROR(VLOOKUP(B61,'Orodha ua uhakiki wa Miliki'!B:C,2,0),\"\")","v":""},{"$f":"IFERROR(VLOOKUP(VLOOKUP(B61,'Orodha ua uhakiki wa Miliki'!B:J,9,0),DropDowns!G:H,2,0),\"\")","v":""},{"$f":"IFERROR(VLOOKUP(B61,'Orodha ua uhakiki wa Miliki'!B:E,4,0),\"\")","v":""},{"$f":"IFERROR(VLOOKUP(B61,'Orodha ua uhakiki wa Miliki'!B:G,6,0),\"\")","v":""},null,"",null,""]
[null,{"$f":"IFERROR(INDEX('Orodha ua uhakiki wa Miliki'!$B$1:$B$397, SMALL(INDEX(('Orodha ua uhakiki wa Miliki'!$I$1:$I$397=\"Yes\")*(MATCH(ROW('Orodha ua uhakiki wa Miliki'!$I$1:$I$397), ROW('Orodha ua uhakiki wa Miliki'!$I$1:$I$397)))+('Orodha ua uhakiki wa Miliki'!$I$1:$I$397<>\"Yes\")*1048577, 0, 0), ROW(A58))),\"\")","v":""},{"$f":"IFERROR(VLOOKUP(B62,'Orodha ua uhakiki wa Miliki'!B:C,2,0),\"\")","v":""},{"$f":"IFERROR(VLOOKUP(VLOOKUP(B62,'Orodha ua uhakiki wa Miliki'!B:J,9,0),DropDowns!G:H,2,0),\"\")","v":""},{"$f":"IFERROR(VLOOKUP(B62,'Orodha ua uhakiki wa Miliki'!B:E,4,0),\"\")","v":""},{"$f":"IFERROR(VLOOKUP(B62,'Orodha ua uhakiki wa Miliki'!B:G,6,0),\"\")","v":""},null,"",null,""]
[null,{"$f":"IFERROR(INDEX('Orodha ua uhakiki wa Miliki'!$B$1:$B$397, SMALL(INDEX(('Orodha ua uhakiki wa Miliki'!$I$1:$I$397=\"Yes\")*(MATCH(ROW('Orodha ua uhakiki wa Miliki'!$I$1:$I$397), ROW('Orodha ua uhakiki wa Miliki'!$I$1:$I$397)))+('Orodha ua uhakiki wa Miliki'!$I$1:$I$397<>\"Yes\")*1048577, 0, 0), ROW(A59))),\"\")","v":""},{"$f":"IFERROR(VLOOKUP(B63,'Orodha ua uhakiki wa Miliki'!B:C,2,0),\"\")","v":""},{"$f":"IFERROR(VLOOKUP(VLOOKUP(B63,'Orodha ua uhakiki wa Miliki'!B:J,9,0),DropDowns!G:H,2,0),\"\")","v":""},{"$f":"IFERROR(VLOOKUP(B63,'Orodha ua uhakiki wa Miliki'!B:E,4,0),\"\")","v":""},{"$f":"IFERROR(VLOOKUP(B63,'Orodha ua uhakiki wa Miliki'!B:G,6,0),\"\")","v":""},null,"",null,""]
[null,{"$f":"IFERROR(INDEX('Orodha ua uhakiki wa Miliki'!$B$1:$B$397, SMALL(INDEX(('Orodha ua uhakiki wa Miliki'!$I$1:$I$397=\"Yes\")*(MATCH(ROW('Orodha ua uhakiki wa Miliki'!$I$1:$I$397), ROW('Orodha ua uhakiki wa Miliki'!$I$1:$I$397)))+('Orodha ua uhakiki wa Miliki'!$I$1:$I$397<>\"Yes\")*1048577, 0, 0), ROW(A60))),\"\")","v":""},{"$f":"IFERROR(VLOOKUP(B64,'Orodha ua uhakiki wa Miliki'!B:C,2,0),\"\")","v":""},{"$f":"IFERROR(VLOOKUP(VLOOKUP(B64,'Orodha ua uhakiki wa Miliki'!B:J,9,0),DropDowns!G:H,2,0),\"\")","v":""},{"$f":"IFERROR(VLOOKUP(B64,'Orodha ua uhakiki wa Miliki'!B:E,4,0),\"\")","v":""},{"$f":"IFERROR(VLOOKUP(B64,'Orodha ua uhakiki wa Miliki'!B:G,6,0),\"\")","v":""},null,"",null,""]
[null,{"$f":"IFERROR(INDEX('Orodha ua uhakiki wa Miliki'!$B$1:$B$397, SMALL(INDEX(('Orodha ua uhakiki wa Miliki'!$I$1:$I$397=\"Yes\")*(MATCH(ROW('Orodha ua uhakiki wa Miliki'!$I$1:$I$397), ROW('Orodha ua uhakiki wa Miliki'!$I$1:$I$397)))+('Orodha ua uhakiki wa Miliki'!$I$1:$I$397<>\"Yes\")*1048577, 0, 0), ROW(A61))),\"\")","v":""},{"$f":"IFERROR(VLOOKUP(B65,'Orodha ua uhakiki wa Miliki'!B:C,2,0),\"\")","v":""},{"$f":"IFERROR(VLOOKUP(VLOOKUP(B65,'Orodha ua uhakiki wa Miliki'!B:J,9,0),DropDowns!G:H,2,0),\"\")","v":""},{"$f":"IFERROR(VLOOKUP(B65,'Orodha ua uhakiki wa Miliki'!B:E,4,0),\"\")","v":""},{"$f":"IFERROR(VLOOKUP(B65,'Orodha ua uhakiki wa Miliki'!B:G,6,0),\"\")","v":""},null,"",null,""]
[null,{"$f":"IFERROR(INDEX('Orodha ua uhakiki wa Miliki'!$B$1:$B$397, SMALL(INDEX(('Orodha ua uhakiki wa Miliki'!$I$1:$I$397=\"Yes\")*(MATCH(ROW('Orodha ua uhakiki wa Miliki'!$I$1:$I$397), ROW('Orodha ua uhakiki wa Miliki'!$I$1:$I$397)))+('Orodha ua uhakiki wa Miliki'!$I$1:$I$397<>\"Yes\")*1048577, 0, 0), ROW(A62))),\"\")","v":""},{"$f":"IFERROR(VLOOKUP(B66,'Orodha ua uhakiki wa Miliki'!B:C,2,0),\"\")","v":""},{"$f":"IFERROR(VLOOKUP(VLOOKUP(B66,'Orodha ua uhakiki wa Miliki'!B:J,9,0),DropDowns!G:H,2,0),\"\")","v":""},{"$f":"IFERROR(VLOOKUP(B66,'Orodha ua uhakiki wa Miliki'!B:E,4,0),\"\")","v":""},{"$f":"IFERROR(VLOOKUP(B66,'Orodha ua uhakiki wa Miliki'!B:G,6,0),\"\")","v":""},null,"",null,""]
[null,{"$f":"IFERROR(INDEX('Orodha ua uhakiki wa Miliki'!$B$1:$B$397, SMALL(INDEX(('Orodha ua uhakiki wa Miliki'!$I$1:$I$397=\"Yes\")*(MATCH(ROW('Orodha ua uhakiki wa Miliki'!$I$1:$I$397), ROW('Orodha ua uhakiki wa Miliki'!$I$1:$I$397)))+('Orodha ua uhakiki wa Miliki'!$I$1:$I$397<>\"Yes\")*1048577, 0, 0), ROW(A63))),\"\")","v":""},{"$f":"IFERROR(VLOOKUP(B67,'Orodha ua uhakiki wa Miliki'!B:C,2,0),\"\")","v":""},{"$f":"IFERROR(VLOOKUP(VLOOKUP(B67,'Orodha ua uhakiki wa Miliki'!B:J,9,0),DropDowns!G:H,2,0),\"\")","v":""},{"$f":"IFERROR(VLOOKUP(B67,'Orodha ua uhakiki wa Miliki'!B:E,4,0),\"\")","v":""},{"$f":"IFERROR(VLOOKUP(B67,'Orodha ua uhakiki wa Miliki'!B:G,6,0),\"\")","v":""},null,"",null,""]
[null,{"$f":"IFERROR(INDEX('Orodha ua uhakiki wa Miliki'!$B$1:$B$397, SMALL(INDEX(('Orodha ua uhakiki wa Miliki'!$I$1:$I$397=\"Yes\")*(MATCH(ROW('Orodha ua uhakiki wa Miliki'!$I$1:$I$397), ROW('Orodha ua uhakiki wa Miliki'!$I$1:$I$397)))+('Orodha ua uhakiki wa Miliki'!$I$1:$I$397<>\"Yes\")*1048577, 0, 0), ROW(A64))),\"\")","v":""},{"$f":"IFERROR(VLOOKUP(B68,'Orodha ua uhakiki wa Miliki'!B:C,2,0),\"\")","v":""},{"$f":"IFERROR(VLOOKUP(VLOOKUP(B68,'Orodha ua uhakiki wa Miliki'!B:J,9,0),DropDowns!G:H,2,0),\"\")","v":""},{"$f":"IFERROR(VLOOKUP(B68,'Orodha ua uhakiki wa Miliki'!B:E,4,0),\"\")","v":""},{"$f":"IFERROR(VLOOKUP(B68,'Orodha ua uhakiki wa Miliki'!B:G,6,0),\"\")","v":""},null,"",null,""]
[null,{"$f":"IFERROR(INDEX('Orodha ua uhakiki wa Miliki'!$B$1:$B$397, SMALL(INDEX(('Orodha ua uhakiki wa Miliki'!$I$1:$I$397=\"Yes\")*(MATCH(ROW('Orodha ua uhakiki wa Miliki'!$I$1:$I$397), ROW('Orodha ua uhakiki wa Miliki'!$I$1:$I$397)))+('Orodha ua uhakiki wa Miliki'!$I$1:$I$397<>\"Yes\")*1048577, 0, 0), ROW(A65))),\"\")","v":""},{"$f":"IFERROR(VLOOKUP(B69,'Orodha ua uhakiki wa Miliki'!B:C,2,0),\"\")","v":""},{"$f":"IFERROR(VLOOKUP(VLOOKUP(B69,'Orodha ua uhakiki wa Miliki'!B:J,9,0),DropDowns!G:H,2,0),\"\")","v":""},{"$f":"IFERROR(VLOOKUP(B69,'Orodha ua uhakiki wa Miliki'!B:E,4,0),\"\")","v":""},{"$f":"IFERROR(VLOOKUP(B69,'Orodha ua uhakiki wa Miliki'!B:G,6,0),\"\")","v":""},null,"",null,""]
[null,{"$f":"IFERROR(INDEX('Orodha ua uhakiki wa Miliki'!$B$1:$B$397, SMALL(INDEX(('Orodha ua uhakiki wa Miliki'!$I$1:$I$397=\"Yes\")*(MATCH(ROW('Orodha ua uhakiki wa Miliki'!$I$1:$I$397), ROW('Orodha ua uhakiki wa Miliki'!$I$1:$I$397)))+('Orodha ua uhakiki wa Miliki'!$I$1:$I$397<>\"Yes\")*1048577, 0, 0), ROW(A66))),\"\")","v":""},{"$f":"IFERROR(VLOOKUP(B70,'Orodha ua uhakiki wa Miliki'!B:C,2,0),\"\")","v":""},{"$f":"IFERROR(VLOOKUP(VLOOKUP(B70,'Orodha ua uhakiki wa Miliki'!B:J,9,0),DropDowns!G:H,2,0),\"\")","v":""},{"$f":"IFERROR(VLOOKUP(B70,'Orodha ua uhakiki wa Miliki'!B:E,4,0),\"\")","v":""},{"$f":"IFERROR(VLOOKUP(B70,'Orodha ua uhakiki wa Miliki'!B:G,6,0),\"\")","v":""},null,{"$f":"IF(B70<>\"\",\"Ya ndani:\",\"\")","v":""},null,{"$f":"IF(B70<>\"\",\"Ya nje:\",\"\")","v":""}]
[null,{"$f":"IFERROR(INDEX('Orodha ua uhakiki wa Miliki'!$B$1:$B$397, SMALL(INDEX(('Orodha ua uhakiki wa Miliki'!$I$1:$I$397=\"Yes\")*(MATCH(ROW('Orodha ua uhakiki wa Miliki'!$I$1:$I$397), ROW('Orodha ua uhakiki wa Miliki'!$I$1:$I$397)))+('Orodha ua uhakiki wa Miliki'!$I$1:$I$397<>\"Yes\")*1048577, 0, 0), ROW(A67))),\"\")","v":""},{"$f":"IFERROR(VLOOKUP(B71,'Orodha ua uhakiki wa Miliki'!B:C,2,0),\"\")","v":""},{"$f":"IFERROR(VLOOKUP(VLOOKUP(B71,'Orodha ua uhakiki wa Miliki'!B:J,9,0),DropDowns!G:H,2,0),\"\")","v":""},{"$f":"IFERROR(VLOOKUP(B71,'Orodha ua uhakiki wa Miliki'!B:E,4,0),\"\")","v":""},{"$f":"IFERROR(VLOOKUP(B71,'Orodha ua uhakiki wa Miliki'!B:G,6,0),\"\")","v":""},null,"",null,""]
[null,{"$f":"IFERROR(INDEX('Orodha ua uhakiki wa Miliki'!$B$1:$B$397, SMALL(INDEX(('Orodha ua uhakiki wa Miliki'!$I$1:$I$397=\"Yes\")*(MATCH(ROW('Orodha ua uhakiki wa Miliki'!$I$1:$I$397), ROW('Orodha ua uhakiki wa Miliki'!$I$1:$I$397)))+('Orodha ua uhakiki wa Miliki'!$I$1:$I$397<>\"Yes\")*1048577, 0, 0), ROW(A68))),\"\")","v":""},{"$f":"IFERROR(VLOOKUP(B72,'Orodha ua uhakiki wa Miliki'!B:C,2,0),\"\")","v":""},{"$f":"IFERROR(VLOOKUP(VLOOKUP(B72,'Orodha ua uhakiki wa Miliki'!B:J,9,0),DropDowns!G:H,2,0),\"\")","v":""},{"$f":"IFERROR(VLOOKUP(B72,'Orodha ua uhakiki wa Miliki'!B:E,4,0),\"\")","v":""},{"$f":"IFERROR(VLOOKUP(B72,'Orodha ua uhakiki wa Miliki'!B:G,6,0),\"\")","v":""},null,"",null,""]
[null,{"$f":"IFERROR(INDEX('Orodha ua uhakiki wa Miliki'!$B$1:$B$397, SMALL(INDEX(('Orodha ua uhakiki wa Miliki'!$I$1:$I$397=\"Yes\")*(MATCH(ROW('Orodha ua uhakiki wa Miliki'!$I$1:$I$397), ROW('Orodha ua uhakiki wa Miliki'!$I$1:$I$397)))+('Orodha ua uhakiki wa Miliki'!$I$1:$I$397<>\"Yes\")*1048577, 0, 0), ROW(A69))),\"\")","v":""},{"$f":"IFERROR(VLOOKUP(B73,'Orodha ua uhakiki wa Miliki'!B:C,2,0),\"\")","v":""},{"$f":"IFERROR(VLOOKUP(VLOOKUP(B73,'Orodha ua uhakiki wa Miliki'!B:J,9,0),DropDowns!G:H,2,0),\"\")","v":""},{"$f":"IFERROR(VLOOKUP(B73,'Orodha ua uhakiki wa Miliki'!B:E,4,0),\"\")","v":""},{"$f":"IFERROR(VLOOKUP(B73,'Orodha ua uhakiki wa Miliki'!B:G,6,0),\"\")","v":""},null,"",null,""]
[null,{"$f":"IFERROR(INDEX('Orodha ua uhakiki wa Miliki'!$B$1:$B$397, SMALL(INDEX(('Orodha ua uhakiki wa Miliki'!$I$1:$I$397=\"Yes\")*(MATCH(ROW('Orodha ua uhakiki wa Miliki'!$I$1:$I$397), ROW('Orodha ua uhakiki wa Miliki'!$I$1:$I$397)))+('Orodha ua uhakiki wa Miliki'!$I$1:$I$397<>\"Yes\")*1048577, 0, 0), ROW(A70))),\"\")","v":""},{"$f":"IFERROR(VLOOKUP(B74,'Orodha ua uhakiki wa Miliki'!B:C,2,0),\"\")","v":""},{"$f":"IFERROR(VLOOKUP(VLOOKUP(B74,'Orodha ua uhakiki wa Miliki'!B:J,9,0),DropDowns!G:H,2,0),\"\")","v":""},{"$f":"IFERROR(VLOOKUP(B74,'Orodha ua uhakiki wa Miliki'!B:E,4,0),\"\")","v":""},{"$f":"IFERROR(VLOOKUP(B74,'Orodha ua uhakiki wa Miliki'!B:G,6,0),\"\")","v":""},null,"",null,""]
[null,{"$f":"IFERROR(INDEX('Orodha ua uhakiki wa Miliki'!$B$1:$B$397, SMALL(INDEX(('Orodha ua uhakiki wa Miliki'!$I$1:$I$397=\"Yes\")*(MATCH(ROW('Orodha ua uhakiki wa Miliki'!$I$1:$I$397), ROW('Orodha ua uhakiki wa Miliki'!$I$1:$I$397)))+('Orodha ua uhakiki wa Miliki'!$I$1:$I$397<>\"Yes\")*1048577, 0, 0), ROW(A71))),\"\")","v":""},{"$f":"IFERROR(VLOOKUP(B75,'Orodha ua uhakiki wa Miliki'!B:C,2,0),\"\")","v":""},{"$f":"IFERROR(VLOOKUP(VLOOKUP(B75,'Orodha ua uhakiki wa Miliki'!B:J,9,0),DropDowns!G:H,2,0),\"\")","v":""},{"$f":"IFERROR(VLOOKUP(B75,'Orodha ua uhakiki wa Miliki'!B:E,4,0),\"\")","v":""},{"$f":"IFERROR(VLOOKUP(B75,'Orodha ua uhakiki wa Miliki'!B:G,6,0),\"\")","v":""},null,"",null,""]
[null,{"$f":"IFERROR(INDEX('Orodha ua uhakiki wa Miliki'!$B$1:$B$397, SMALL(INDEX(('Orodha ua uhakiki wa Miliki'!$I$1:$I$397=\"Yes\")*(MATCH(ROW('Orodha ua uhakiki wa Miliki'!$I$1:$I$397), ROW('Orodha ua uhakiki wa Miliki'!$I$1:$I$397)))+('Orodha ua uhakiki wa Miliki'!$I$1:$I$397<>\"Yes\")*1048577, 0, 0), ROW(A72))),\"\")","v":""},{"$f":"IFERROR(VLOOKUP(B76,'Orodha ua uhakiki wa Miliki'!B:C,2,0),\"\")","v":""},{"$f":"IFERROR(VLOOKUP(VLOOKUP(B76,'Orodha ua uhakiki wa Miliki'!B:J,9,0),DropDowns!G:H,2,0),\"\")","v":""},{"$f":"IFERROR(VLOOKUP(B76,'Orodha ua uhakiki wa Miliki'!B:E,4,0),\"\")","v":""},{"$f":"IFERROR(VLOOKUP(B76,'Orodha ua uhakiki wa Miliki'!B:G,6,0),\"\")","v":""},null,"",null,""]
[null,{"$f":"IFERROR(INDEX('Orodha ua uhakiki wa Miliki'!$B$1:$B$397, SMALL(INDEX(('Orodha ua uhakiki wa Miliki'!$I$1:$I$397=\"Yes\")*(MATCH(ROW('Orodha ua uhakiki wa Miliki'!$I$1:$I$397), ROW('Orodha ua uhakiki wa Miliki'!$I$1:$I$397)))+('Orodha ua uhakiki wa Miliki'!$I$1:$I$397<>\"Yes\")*1048577, 0, 0), ROW(A73))),\"\")","v":""},{"$f":"IFERROR(VLOOKUP(B77,'Orodha ua uhakiki wa Miliki'!B:C,2,0),\"\")","v":""},{"$f":"IFERROR(VLOOKUP(VLOOKUP(B77,'Orodha ua uhakiki wa Miliki'!B:J,9,0),DropDowns!G:H,2,0),\"\")","v":""},{"$f":"IFERROR(VLOOKUP(B77,'Orodha ua uhakiki wa Miliki'!B:E,4,0),\"\")","v":""},{"$f":"IFERROR(VLOOKUP(B77,'Orodha ua uhakiki wa Miliki'!B:G,6,0),\"\")","v":""},null,"",null,""]
[null,{"$f":"IFERROR(INDEX('Orodha ua uhakiki wa Miliki'!$B$1:$B$397, SMALL(INDEX(('Orodha ua uhakiki wa Miliki'!$I$1:$I$397=\"Yes\")*(MATCH(ROW('Orodha ua uhakiki wa Miliki'!$I$1:$I$397), ROW('Orodha ua uhakiki wa Miliki'!$I$1:$I$397)))+('Orodha ua uhakiki wa Miliki'!$I$1:$I$397<>\"Yes\")*1048577, 0, 0), ROW(A74))),\"\")","v":""},{"$f":"IFERROR(VLOOKUP(B78,'Orodha ua uhakiki wa Miliki'!B:C,2,0),\"\")","v":""},{"$f":"IFERROR(VLOOKUP(VLOOKUP(B78,'Orodha ua uhakiki wa Miliki'!B:J,9,0),DropDowns!G:H,2,0),\"\")","v":""},{"$f":"IFERROR(VLOOKUP(B78,'Orodha ua uhakiki wa Miliki'!B:E,4,0),\"\")","v":""},{"$f":"IFERROR(VLOOKUP(B78,'Orodha ua uhakiki wa Miliki'!B:G,6,0),\"\")","v":""},null,"",null,""]
[null,{"$f":"IFERROR(INDEX('Orodha ua uhakiki wa Miliki'!$B$1:$B$397, SMALL(INDEX(('Orodha ua uhakiki wa Miliki'!$I$1:$I$397=\"Yes\")*(MATCH(ROW('Orodha ua uhakiki wa Miliki'!$I$1:$I$397), ROW('Orodha ua uhakiki wa Miliki'!$I$1:$I$397)))+('Orodha ua uhakiki wa Miliki'!$I$1:$I$397<>\"Yes\")*1048577, 0, 0), ROW(A75))),\"\")","v":""},{"$f":"IFERROR(VLOOKUP(B79,'Orodha ua uhakiki wa Miliki'!B:C,2,0),\"\")","v":""},{"$f":"IFERROR(VLOOKUP(VLOOKUP(B79,'Orodha ua uhakiki wa Miliki'!B:J,9,0),DropDowns!G:H,2,0),\"\")","v":""},{"$f":"IFERROR(VLOOKUP(B79,'Orodha ua uhakiki wa Miliki'!B:E,4,0),\"\")","v":""},{"$f":"IFERROR(VLOOKUP(B79,'Orodha ua uhakiki wa Miliki'!B:G,6,0),\"\")","v":""},null,"",null,""]
[null,{"$f":"IFERROR(INDEX('Orodha ua uhakiki wa Miliki'!$B$1:$B$397, SMALL(INDEX(('Orodha ua uhakiki wa Miliki'!$I$1:$I$397=\"Yes\")*(MATCH(ROW('Orodha ua uhakiki wa Miliki'!$I$1:$I$397), ROW('Orodha ua uhakiki wa Miliki'!$I$1:$I$397)))+('Orodha ua uhakiki wa Miliki'!$I$1:$I$397<>\"Yes\")*1048577, 0, 0), ROW(A76))),\"\")","v":""},{"$f":"IFERROR(VLOOKUP(B80,'Orodha ua uhakiki wa Miliki'!B:C,2,0),\"\")","v":""},{"$f":"IFERROR(VLOOKUP(VLOOKUP(B80,'Orodha ua uhakiki wa Miliki'!B:J,9,0),DropDowns!G:H,2,0),\"\")","v":""},{"$f":"IFERROR(VLOOKUP(B80,'Orodha ua uhakiki wa Miliki'!B:E,4,0),\"\")","v":""},{"$f":"IFERROR(VLOOKUP(B80,'Orodha ua uhakiki wa Miliki'!B:G,6,0),\"\")","v":""},null,"",null,""]
[null,{"$f":"IFERROR(INDEX('Orodha ua uhakiki wa Miliki'!$B$1:$B$397, SMALL(INDEX(('Orodha ua uhakiki wa Miliki'!$I$1:$I$397=\"Yes\")*(MATCH(ROW('Orodha ua uhakiki wa Miliki'!$I$1:$I$397), ROW('Orodha ua uhakiki wa Miliki'!$I$1:$I$397)))+('Orodha ua uhakiki wa Miliki'!$I$1:$I$397<>\"Yes\")*1048577, 0, 0), ROW(A77))),\"\")","v":""},{"$f":"IFERROR(VLOOKUP(B81,'Orodha ua uhakiki wa Miliki'!B:C,2,0),\"\")","v":""},{"$f":"IFERROR(VLOOKUP(VLOOKUP(B81,'Orodha ua uhakiki wa Miliki'!B:J,9,0),DropDowns!G:H,2,0),\"\")","v":""},{"$f":"IFERROR(VLOOKUP(B81,'Orodha ua uhakiki wa Miliki'!B:E,4,0),\"\")","v":""},{"$f":"IFERROR(VLOOKUP(B81,'Orodha ua uhakiki wa Miliki'!B:G,6,0),\"\")","v":""},null,"",null,""]
[null,{"$f":"IFERROR(INDEX('Orodha ua uhakiki wa Miliki'!$B$1:$B$397, SMALL(INDEX(('Orodha ua uhakiki wa Miliki'!$I$1:$I$397=\"Yes\")*(MATCH(ROW('Orodha ua uhakiki wa Miliki'!$I$1:$I$397), ROW('Orodha ua uhakiki wa Miliki'!$I$1:$I$397)))+('Orodha ua uhakiki wa Miliki'!$I$1:$I$397<>\"Yes\")*1048577, 0, 0), ROW(A78))),\"\")","v":""},{"$f":"IFERROR(VLOOKUP(B82,'Orodha ua uhakiki wa Miliki'!B:C,2,0),\"\")","v":""},{"$f":"IFERROR(VLOOKUP(VLOOKUP(B82,'Orodha ua uhakiki wa Miliki'!B:J,9,0),DropDowns!G:H,2,0),\"\")","v":""},{"$f":"IFERROR(VLOOKUP(B82,'Orodha ua uhakiki wa Miliki'!B:E,4,0),\"\")","v":""},{"$f":"IFERROR(VLOOKUP(B82,'Orodha ua uhakiki wa Miliki'!B:G,6,0),\"\")","v":""},null,"",null,""]
[null,{"$f":"IFERROR(INDEX('Orodha ua uhakiki wa Miliki'!$B$1:$B$397, SMALL(INDEX(('Orodha ua uhakiki wa Miliki'!$I$1:$I$397=\"Yes\")*(MATCH(ROW('Orodha ua uhakiki wa Miliki'!$I$1:$I$397), ROW('Orodha ua uhakiki wa Miliki'!$I$1:$I$397)))+('Orodha ua uhakiki wa Miliki'!$I$1:$I$397<>\"Yes\")*1048577, 0, 0), ROW(A79))),\"\")","v":""},{"$f":"IFERROR(VLOOKUP(B83,'Orodha ua uhakiki wa Miliki'!B:C,2,0),\"\")","v":""},{"$f":"IFERROR(VLOOKUP(VLOOKUP(B83,'Orodha ua uhakiki wa Miliki'!B:J,9,0),DropDowns!G:H,2,0),\"\")","v":""},{"$f":"IFERROR(VLOOKUP(B83,'Orodha ua uhakiki wa Miliki'!B:E,4,0),\"\")","v":""},{"$f":"IFERROR(VLOOKUP(B83,'Orodha ua uhakiki wa Miliki'!B:G,6,0),\"\")","v":""},null,"",null,""]
[null,{"$f":"IFERROR(INDEX('Orodha ua uhakiki wa Miliki'!$B$1:$B$397, SMALL(INDEX(('Orodha ua uhakiki wa Miliki'!$I$1:$I$397=\"Yes\")*(MATCH(ROW('Orodha ua uhakiki wa Miliki'!$I$1:$I$397), ROW('Orodha ua uhakiki wa Miliki'!$I$1:$I$397)))+('Orodha ua uhakiki wa Miliki'!$I$1:$I$397<>\"Yes\")*1048577, 0, 0), ROW(A80))),\"\")","v":""},{"$f":"IFERROR(VLOOKUP(B84,'Orodha ua uhakiki wa Miliki'!B:C,2,0),\"\")","v":""},{"$f":"IFERROR(VLOOKUP(VLOOKUP(B84,'Orodha ua uhakiki wa Miliki'!B:J,9,0),DropDowns!G:H,2,0),\"\")","v":""},{"$f":"IFERROR(VLOOKUP(B84,'Orodha ua uhakiki wa Miliki'!B:E,4,0),\"\")","v":""},{"$f":"IFERROR(VLOOKUP(B84,'Orodha ua uhakiki wa Miliki'!B:G,6,0),\"\")","v":""},null,"",null,""]
[null,{"$f":"IFERROR(INDEX('Orodha ua uhakiki wa Miliki'!$B$1:$B$397, SMALL(INDEX(('Orodha ua uhakiki wa Miliki'!$I$1:$I$397=\"Yes\")*(MATCH(ROW('Orodha ua uhakiki wa Miliki'!$I$1:$I$397), ROW('Orodha ua uhakiki wa Miliki'!$I$1:$I$397)))+('Orodha ua uhakiki wa Miliki'!$I$1:$I$397<>\"Yes\")*1048577, 0, 0), ROW(A81))),\"\")","v":""},{"$f":"IFERROR(VLOOKUP(B85,'Orodha ua uhakiki wa Miliki'!B:C,2,0),\"\")","v":""},{"$f":"IFERROR(VLOOKUP(VLOOKUP(B85,'Orodha ua uhakiki wa Miliki'!B:J,9,0),DropDowns!G:H,2,0),\"\")","v":""},{"$f":"IFERROR(VLOOKUP(B85,'Orodha ua uhakiki wa Miliki'!B:E,4,0),\"\")","v":""},{"$f":"IFERROR(VLOOKUP(B85,'Orodha ua uhakiki wa Miliki'!B:G,6,0),\"\")","v":""},null,"",null,""]
[null,{"$f":"IFERROR(INDEX('Orodha ua uhakiki wa Miliki'!$B$1:$B$397, SMALL(INDEX(('Orodha ua uhakiki wa Miliki'!$I$1:$I$397=\"Yes\")*(MATCH(ROW('Orodha ua uhakiki wa Miliki'!$I$1:$I$397), ROW('Orodha ua uhakiki wa Miliki'!$I$1:$I$397)))+('Orodha ua uhakiki wa Miliki'!$I$1:$I$397<>\"Yes\")*1048577, 0, 0), ROW(A82))),\"\")","v":""},{"$f":"IFERROR(VLOOKUP(B86,'Orodha ua uhakiki wa Miliki'!B:C,2,0),\"\")","v":""},{"$f":"IFERROR(VLOOKUP(VLOOKUP(B86,'Orodha ua uhakiki wa Miliki'!B:J,9,0),DropDowns!G:H,2,0),\"\")","v":""},{"$f":"IFERROR(VLOOKUP(B86,'Orodha ua uhakiki wa Miliki'!B:E,4,0),\"\")","v":""},{"$f":"IFERROR(VLOOKUP(B86,'Orodha ua uhakiki wa Miliki'!B:G,6,0),\"\")","v":""},null,"",null,""]
[null,{"$f":"IFERROR(INDEX('Orodha ua uhakiki wa Miliki'!$B$1:$B$397, SMALL(INDEX(('Orodha ua uhakiki wa Miliki'!$I$1:$I$397=\"Yes\")*(MATCH(ROW('Orodha ua uhakiki wa Miliki'!$I$1:$I$397), ROW('Orodha ua uhakiki wa Miliki'!$I$1:$I$397)))+('Orodha ua uhakiki wa Miliki'!$I$1:$I$397<>\"Yes\")*1048577, 0, 0), ROW(A83))),\"\")","v":""},{"$f":"IFERROR(VLOOKUP(B87,'Orodha ua uhakiki wa Miliki'!B:C,2,0),\"\")","v":""},{"$f":"IFERROR(VLOOKUP(VLOOKUP(B87,'Orodha ua uhakiki wa Miliki'!B:J,9,0),DropDowns!G:H,2,0),\"\")","v":""},{"$f":"IFERROR(VLOOKUP(B87,'Orodha ua uhakiki wa Miliki'!B:E,4,0),\"\")","v":""},{"$f":"IFERROR(VLOOKUP(B87,'Orodha ua uhakiki wa Miliki'!B:G,6,0),\"\")","v":""},null,"",null,""]
[null,{"$f":"IFERROR(INDEX('Orodha ua uhakiki wa Miliki'!$B$1:$B$397, SMALL(INDEX(('Orodha ua uhakiki wa Miliki'!$I$1:$I$397=\"Yes\")*(MATCH(ROW('Orodha ua uhakiki wa Miliki'!$I$1:$I$397), ROW('Orodha ua uhakiki wa Miliki'!$I$1:$I$397)))+('Orodha ua uhakiki wa Miliki'!$I$1:$I$397<>\"Yes\")*1048577, 0, 0), ROW(A84))),\"\")","v":""},{"$f":"IFERROR(VLOOKUP(B88,'Orodha ua uhakiki wa Miliki'!B:C,2,0),\"\")","v":""},{"$f":"IFERROR(VLOOKUP(VLOOKUP(B88,'Orodha ua uhakiki wa Miliki'!B:J,9,0),DropDowns!G:H,2,0),\"\")","v":""},{"$f":"IFERROR(VLOOKUP(B88,'Orodha ua uhakiki wa Miliki'!B:E,4,0),\"\")","v":""},{"$f":"IFERROR(VLOOKUP(B88,'Orodha ua uhakiki wa Miliki'!B:G,6,0),\"\")","v":""},null,"",null,""]
[null,{"$f":"IFERROR(INDEX('Orodha ua uhakiki wa Miliki'!$B$1:$B$397, SMALL(INDEX(('Orodha ua uhakiki wa Miliki'!$I$1:$I$397=\"Yes\")*(MATCH(ROW('Orodha ua uhakiki wa Miliki'!$I$1:$I$397), ROW('Orodha ua uhakiki wa Miliki'!$I$1:$I$397)))+('Orodha ua uhakiki wa Miliki'!$I$1:$I$397<>\"Yes\")*1048577, 0, 0), ROW(A85))),\"\")","v":""},{"$f":"IFERROR(VLOOKUP(B89,'Orodha ua uhakiki wa Miliki'!B:C,2,0),\"\")","v":""},{"$f":"IFERROR(VLOOKUP(VLOOKUP(B89,'Orodha ua uhakiki wa Miliki'!B:J,9,0),DropDowns!G:H,2,0),\"\")","v":""},{"$f":"IFERROR(VLOOKUP(B89,'Orodha ua uhakiki wa Miliki'!B:E,4,0),\"\")","v":""},{"$f":"IFERROR(VLOOKUP(B89,'Orodha ua uhakiki wa Miliki'!B:G,6,0),\"\")","v":""},null,"",null,""]
[null,{"$f":"IFERROR(INDEX('Orodha ua uhakiki wa Miliki'!$B$1:$B$397, SMALL(INDEX(('Orodha ua uhakiki wa Miliki'!$I$1:$I$397=\"Yes\")*(MATCH(ROW('Orodha ua uhakiki wa Miliki'!$I$1:$I$397), ROW('Orodha ua uhakiki wa Miliki'!$I$1:$I$397)))+('Orodha ua uhakiki wa Miliki'!$I$1:$I$397<>\"Yes\")*1048577, 0, 0), ROW(A86))),\"\")","v":""},{"$f":"IFERROR(VLOOKUP(B90,'Orodha ua uhakiki wa Miliki'!B:C,2,0),\"\")","v":""},{"$f":"IFERROR(VLOOKUP(VLOOKUP(B90,'Orodha ua uhakiki wa Miliki'!B:J,9,0),DropDowns!G:H,2,0),\"\")","v":""},{"$f":"IFERROR(VLOOKUP(B90,'Orodha ua uhakiki wa Miliki'!B:E,4,0),\"\")","v":""},{"$f":"IFERROR(VLOOKUP(B90,'Orodha ua uhakiki wa Miliki'!B:G,6,0),\"\")","v":""},null,"",null,""]
[null,{"$f":"IFERROR(INDEX('Orodha ua uhakiki wa Miliki'!$B$1:$B$397, SMALL(INDEX(('Orodha ua uhakiki wa Miliki'!$I$1:$I$397=\"Yes\")*(MATCH(ROW('Orodha ua uhakiki wa Miliki'!$I$1:$I$397), ROW('Orodha ua uhakiki wa Miliki'!$I$1:$I$397)))+('Orodha ua uhakiki wa Miliki'!$I$1:$I$397<>\"Yes\")*1048577, 0, 0), ROW(A87))),\"\")","v":""},{"$f":"IFERROR(VLOOKUP(B91,'Orodha ua uhakiki wa Miliki'!B:C,2,0),\"\")","v":""},{"$f":"IFERROR(VLOOKUP(VLOOKUP(B91,'Orodha ua uhakiki wa Miliki'!B:J,9,0),DropDowns!G:H,2,0),\"\")","v":""},{"$f":"IFERROR(VLOOKUP(B91,'Orodha ua uhakiki wa Miliki'!B:E,4,0),\"\")","v":""},{"$f":"IFERROR(VLOOKUP(B91,'Orodha ua uhakiki wa Miliki'!B:G,6,0),\"\")","v":""},null,"",null,""]
[null,{"$f":"IFERROR(INDEX('Orodha ua uhakiki wa Miliki'!$B$1:$B$397, SMALL(INDEX(('Orodha ua uhakiki wa Miliki'!$I$1:$I$397=\"Yes\")*(MATCH(ROW('Orodha ua uhakiki wa Miliki'!$I$1:$I$397), ROW('Orodha ua uhakiki wa Miliki'!$I$1:$I$397)))+('Orodha ua uhakiki wa Miliki'!$I$1:$I$397<>\"Yes\")*1048577, 0, 0), ROW(A88))),\"\")","v":""},{"$f":"IFERROR(VLOOKUP(B92,'Orodha ua uhakiki wa Miliki'!B:C,2,0),\"\")","v":""},{"$f":"IFERROR(VLOOKUP(VLOOKUP(B92,'Orodha ua uhakiki wa Miliki'!B:J,9,0),DropDowns!G:H,2,0),\"\")","v":""},{"$f":"IFERROR(VLOOKUP(B92,'Orodha ua uhakiki wa Miliki'!B:E,4,0),\"\")","v":""},{"$f":"IFERROR(VLOOKUP(B92,'Orodha ua uhakiki wa Miliki'!B:G,6,0),\"\")","v":""},null,"",null,""]
[null,{"$f":"IFERROR(INDEX('Orodha ua uhakiki wa Miliki'!$B$1:$B$397, SMALL(INDEX(('Orodha ua uhakiki wa Miliki'!$I$1:$I$397=\"Yes\")*(MATCH(ROW('Orodha ua uhakiki wa Miliki'!$I$1:$I$397), ROW('Orodha ua uhakiki wa Miliki'!$I$1:$I$397)))+('Orodha ua uhakiki wa Miliki'!$I$1:$I$397<>\"Yes\")*1048577, 0, 0), ROW(A89))),\"\")","v":""},{"$f":"IFERROR(VLOOKUP(B93,'Orodha ua uhakiki wa Miliki'!B:C,2,0),\"\")","v":""},{"$f":"IFERROR(VLOOKUP(VLOOKUP(B93,'Orodha ua uhakiki wa Miliki'!B:J,9,0),DropDowns!G:H,2,0),\"\")","v":""},{"$f":"IFERROR(VLOOKUP(B93,'Orodha ua uhakiki wa Miliki'!B:E,4,0),\"\")","v":""},{"$f":"IFERROR(VLOOKUP(B93,'Orodha ua uhakiki wa Miliki'!B:G,6,0),\"\")","v":""},null,"",null,""]
[null,{"$f":"IFERROR(INDEX('Orodha ua uhakiki wa Miliki'!$B$1:$B$397, SMALL(INDEX(('Orodha ua uhakiki wa Miliki'!$I$1:$I$397=\"Yes\")*(MATCH(ROW('Orodha ua uhakiki wa Miliki'!$I$1:$I$397), ROW('Orodha ua uhakiki wa Miliki'!$I$1:$I$397)))+('Orodha ua uhakiki wa Miliki'!$I$1:$I$397<>\"Yes\")*1048577, 0, 0), ROW(A90))),\"\")","v":""},{"$f":"IFERROR(VLOOKUP(B94,'Orodha ua uhakiki wa Miliki'!B:C,2,0),\"\")","v":""},{"$f":"IFERROR(VLOOKUP(VLOOKUP(B94,'Orodha ua uhakiki wa Miliki'!B:J,9,0),DropDowns!G:H,2,0),\"\")","v":""},{"$f":"IFERROR(VLOOKUP(B94,'Orodha ua uhakiki wa Miliki'!B:E,4,0),\"\")","v":""},{"$f":"IFERROR(VLOOKUP(B94,'Orodha ua uhakiki wa Miliki'!B:G,6,0),\"\")","v":""},null,"",null,""]
[null,{"$f":"IFERROR(INDEX('Orodha ua uhakiki wa Miliki'!$B$1:$B$397, SMALL(INDEX(('Orodha ua uhakiki wa Miliki'!$I$1:$I$397=\"Yes\")*(MATCH(ROW('Orodha ua uhakiki wa Miliki'!$I$1:$I$397), ROW('Orodha ua uhakiki wa Miliki'!$I$1:$I$397)))+('Orodha ua uhakiki wa Miliki'!$I$1:$I$397<>\"Yes\")*1048577, 0, 0), ROW(A91))),\"\")","v":""},{"$f":"IFERROR(VLOOKUP(B95,'Orodha ua uhakiki wa Miliki'!B:C,2,0),\"\")","v":""},{"$f":"IFERROR(VLOOKUP(VLOOKUP(B95,'Orodha ua uhakiki wa Miliki'!B:J,9,0),DropDowns!G:H,2,0),\"\")","v":""},{"$f":"IFERROR(VLOOKUP(B95,'Orodha ua uhakiki wa Miliki'!B:E,4,0),\"\")","v":""},{"$f":"IFERROR(VLOOKUP(B95,'Orodha ua uhakiki wa Miliki'!B:G,6,0),\"\")","v":""},null,"",null,""]
[null,{"$f":"IFERROR(INDEX('Orodha ua uhakiki wa Miliki'!$B$1:$B$397, SMALL(INDEX(('Orodha ua uhakiki wa Miliki'!$I$1:$I$397=\"Yes\")*(MATCH(ROW('Orodha ua uhakiki wa Miliki'!$I$1:$I$397), ROW('Orodha ua uhakiki wa Miliki'!$I$1:$I$397)))+('Orodha ua uhakiki wa Miliki'!$I$1:$I$397<>\"Yes\")*1048577, 0, 0), ROW(A92))),\"\")","v":""},{"$f":"IFERROR(VLOOKUP(B96,'Orodha ua uhakiki wa Miliki'!B:C,2,0),\"\")","v":""},{"$f":"IFERROR(VLOOKUP(VLOOKUP(B96,'Orodha ua uhakiki wa Miliki'!B:J,9,0),DropDowns!G:H,2,0),\"\")","v":""},{"$f":"IFERROR(VLOOKUP(B96,'Orodha ua uhakiki wa Miliki'!B:E,4,0),\"\")","v":""},{"$f":"IFERROR(VLOOKUP(B96,'Orodha ua uhakiki wa Miliki'!B:G,6,0),\"\")","v":""},null,"",null,""]
[null,{"$f":"IFERROR(INDEX('Orodha ua uhakiki wa Miliki'!$B$1:$B$397, SMALL(INDEX(('Orodha ua uhakiki wa Miliki'!$I$1:$I$397=\"Yes\")*(MATCH(ROW('Orodha ua uhakiki wa Miliki'!$I$1:$I$397), ROW('Orodha ua uhakiki wa Miliki'!$I$1:$I$397)))+('Orodha ua uhakiki wa Miliki'!$I$1:$I$397<>\"Yes\")*1048577, 0, 0), ROW(A93))),\"\")","v":""},{"$f":"IFERROR(VLOOKUP(B97,'Orodha ua uhakiki wa Miliki'!B:C,2,0),\"\")","v":""},{"$f":"IFERROR(VLOOKUP(VLOOKUP(B97,'Orodha ua uhakiki wa Miliki'!B:J,9,0),DropDowns!G:H,2,0),\"\")","v":""},{"$f":"IFERROR(VLOOKUP(B97,'Orodha ua uhakiki wa Miliki'!B:E,4,0),\"\")","v":""},{"$f":"IFERROR(VLOOKUP(B97,'Orodha ua uhakiki wa Miliki'!B:G,6,0),\"\")","v":""},null,"",null,""]
[null,{"$f":"IFERROR(INDEX('Orodha ua uhakiki wa Miliki'!$B$1:$B$397, SMALL(INDEX(('Orodha ua uhakiki wa Miliki'!$I$1:$I$397=\"Yes\")*(MATCH(ROW('Orodha ua uhakiki wa Miliki'!$I$1:$I$397), ROW('Orodha ua uhakiki wa Miliki'!$I$1:$I$397)))+('Orodha ua uhakiki wa Miliki'!$I$1:$I$397<>\"Yes\")*1048577, 0, 0), ROW(A94))),\"\")","v":""},{"$f":"IFERROR(VLOOKUP(B98,'Orodha ua uhakiki wa Miliki'!B:C,2,0),\"\")","v":""},{"$f":"IFERROR(VLOOKUP(VLOOKUP(B98,'Orodha ua uhakiki wa Miliki'!B:J,9,0),DropDowns!G:H,2,0),\"\")","v":""},{"$f":"IFERROR(VLOOKUP(B98,'Orodha ua uhakiki wa Miliki'!B:E,4,0),\"\")","v":""},{"$f":"IFERROR(VLOOKUP(B98,'Orodha ua uhakiki wa Miliki'!B:G,6,0),\"\")","v":""},null,"",null,""]
[null,{"$f":"IFERROR(INDEX('Orodha ua uhakiki wa Miliki'!$B$1:$B$397, SMALL(INDEX(('Orodha ua uhakiki wa Miliki'!$I$1:$I$397=\"Yes\")*(MATCH(ROW('Orodha ua uhakiki wa Miliki'!$I$1:$I$397), ROW('Orodha ua uhakiki wa Miliki'!$I$1:$I$397)))+('Orodha ua uhakiki wa Miliki'!$I$1:$I$397<>\"Yes\")*1048577, 0, 0), ROW(A95))),\"\")","v":""},{"$f":"IFERROR(VLOOKUP(B99,'Orodha ua uhakiki wa Miliki'!B:C,2,0),\"\")","v":""},{"$f":"IFERROR(VLOOKUP(VLOOKUP(B99,'Orodha ua uhakiki wa Miliki'!B:J,9,0),DropDowns!G:H,2,0),\"\")","v":""},{"$f":"IFERROR(VLOOKUP(B99,'Orodha ua uhakiki wa Miliki'!B:E,4,0),\"\")","v":""},{"$f":"IFERROR(VLOOKUP(B99,'Orodha ua uhakiki wa Miliki'!B:G,6,0),\"\")","v":""},null,"",null,""]
[null,{"$f":"IFERROR(INDEX('Orodha ua uhakiki wa Miliki'!$B$1:$B$397, SMALL(INDEX(('Orodha ua uhakiki wa Miliki'!$I$1:$I$397=\"Yes\")*(MATCH(ROW('Orodha ua uhakiki wa Miliki'!$I$1:$I$397), ROW('Orodha ua uhakiki wa Miliki'!$I$1:$I$397)))+('Orodha ua uhakiki wa Miliki'!$I$1:$I$397<>\"Yes\")*1048577, 0, 0), ROW(A96))),\"\")","v":""},{"$f":"IFERROR(VLOOKUP(B100,'Orodha ua uhakiki wa Miliki'!B:C,2,0),\"\")","v":""},{"$f":"IFERROR(VLOOKUP(VLOOKUP(B100,'Orodha ua uhakiki wa Miliki'!B:J,9,0),DropDowns!G:H,2,0),\"\")","v":""},{"$f":"IFERROR(VLOOKUP(B100,'Orodha ua uhakiki wa Miliki'!B:E,4,0),\"\")","v":""},{"$f":"IFERROR(VLOOKUP(B100,'Orodha ua uhakiki wa Miliki'!B:G,6,0),\"\")","v":""},null,"",null,""]
[null,{"$f":"IFERROR(INDEX('Orodha ua uhakiki wa Miliki'!$B$1:$B$397, SMALL(INDEX(('Orodha ua uhakiki wa Miliki'!$I$1:$I$397=\"Yes\")*(MATCH(ROW('Orodha ua uhakiki wa Miliki'!$I$1:$I$397), ROW('Orodha ua uhakiki wa Miliki'!$I$1:$I$397)))+('Orodha ua uhakiki wa Miliki'!$I$1:$I$397<>\"Yes\")*1048577, 0, 0), ROW(A97))),\"\")","v":""},{"$f":"IFERROR(VLOOKUP(B101,'Orodha ua uhakiki wa Miliki'!B:C,2,0),\"\")","v":""},{"$f":"IFERROR(VLOOKUP(VLOOKUP(B101,'Orodha ua uhakiki wa Miliki'!B:J,9,0),DropDowns!G:H,2,0),\"\")","v":""},{"$f":"IFERROR(VLOOKUP(B101,'Orodha ua uhakiki wa Miliki'!B:E,4,0),\"\")","v":""},{"$f":"IFERROR(VLOOKUP(B101,'Orodha ua uhakiki wa Miliki'!B:G,6,0),\"\")","v":""},null,{"$f":"IF(B101<>\"\",\"Ya ndani:\",\"\")","v":""},null,{"$f":"IF(B101<>\"\",\"Ya nje:\",\"\")","v":""}]
[null,{"$f":"IFERROR(INDEX('Orodha ua uhakiki wa Miliki'!$B$1:$B$397, SMALL(INDEX(('Orodha ua uhakiki wa Miliki'!$I$1:$I$397=\"Yes\")*(MATCH(ROW('Orodha ua uhakiki wa Miliki'!$I$1:$I$397), ROW('Orodha ua uhakiki wa Miliki'!$I$1:$I$397)))+('Orodha ua uhakiki wa Miliki'!$I$1:$I$397<>\"Yes\")*1048577, 0, 0), ROW(A98))),\"\")","v":""},{"$f":"IFERROR(VLOOKUP(B102,'Orodha ua uhakiki wa Miliki'!B:C,2,0),\"\")","v":""},{"$f":"IFERROR(VLOOKUP(VLOOKUP(B102,'Orodha ua uhakiki wa Miliki'!B:J,9,0),DropDowns!G:H,2,0),\"\")","v":""},{"$f":"IFERROR(VLOOKUP(B102,'Orodha ua uhakiki wa Miliki'!B:E,4,0),\"\")","v":""},{"$f":"IFERROR(VLOOKUP(B102,'Orodha ua uhakiki wa Miliki'!B:G,6,0),\"\")","v":""},null,"",null,""]
[null,{"$f":"IFERROR(INDEX('Orodha ua uhakiki wa Miliki'!$B$1:$B$397, SMALL(INDEX(('Orodha ua uhakiki wa Miliki'!$I$1:$I$397=\"Yes\")*(MATCH(ROW('Orodha ua uhakiki wa Miliki'!$I$1:$I$397), ROW('Orodha ua uhakiki wa Miliki'!$I$1:$I$397)))+('Orodha ua uhakiki wa Miliki'!$I$1:$I$397<>\"Yes\")*1048577, 0, 0), ROW(A99))),\"\")","v":""},{"$f":"IFERROR(VLOOKUP(B103,'Orodha ua uhakiki wa Miliki'!B:C,2,0),\"\")","v":""},{"$f":"IFERROR(VLOOKUP(VLOOKUP(B103,'Orodha ua uhakiki wa Miliki'!B:J,9,0),DropDowns!G:H,2,0),\"\")","v":""},{"$f":"IFERROR(VLOOKUP(B103,'Orodha ua uhakiki wa Miliki'!B:E,4,0),\"\")","v":""},{"$f":"IFERROR(VLOOKUP(B103,'Orodha ua uhakiki wa Miliki'!B:G,6,0),\"\")","v":""},null,"",null,""]
[null,{"$f":"IFERROR(INDEX('Orodha ua uhakiki wa Miliki'!$B$1:$B$397, SMALL(INDEX(('Orodha ua uhakiki wa Miliki'!$I$1:$I$397=\"Yes\")*(MATCH(ROW('Orodha ua uhakiki wa Miliki'!$I$1:$I$397), ROW('Orodha ua uhakiki wa Miliki'!$I$1:$I$397)))+('Orodha ua uhakiki wa Miliki'!$I$1:$I$397<>\"Yes\")*1048577, 0, 0), ROW(A100))),\"\")","v":""},{"$f":"IFERROR(VLOOKUP(B104,'Orodha ua uhakiki wa Miliki'!B:C,2,0),\"\")","v":""},{"$f":"IFERROR(VLOOKUP(VLOOKUP(B104,'Orodha ua uhakiki wa Miliki'!B:J,9,0),DropDowns!G:H,2,0),\"\")","v":""},{"$f":"IFERROR(VLOOKUP(B104,'Orodha ua uhakiki wa Miliki'!B:E,4,0),\"\")","v":""},{"$f":"IFERROR(VLOOKUP(B104,'Orodha ua uhakiki wa Miliki'!B:G,6,0),\"\")","v":""},null,"",null,""]
[null,{"$f":"IFERROR(INDEX('Orodha ua uhakiki wa Miliki'!$B$1:$B$397, SMALL(INDEX(('Orodha ua uhakiki wa Miliki'!$I$1:$I$397=\"Yes\")*(MATCH(ROW('Orodha ua uhakiki wa Miliki'!$I$1:$I$397), ROW('Orodha ua uhakiki wa Miliki'!$I$1:$I$397)))+('Orodha ua uhakiki wa Miliki'!$I$1:$I$397<>\"Yes\")*1048577, 0, 0), ROW(A101))),\"\")","v":""},{"$f":"IFERROR(VLOOKUP(B105,'Orodha ua uhakiki wa Miliki'!B:C,2,0),\"\")","v":""},{"$f":"IFERROR(VLOOKUP(VLOOKUP(B105,'Orodha ua uhakiki wa Miliki'!B:J,9,0),DropDowns!G:H,2,0),\"\")","v":""},{"$f":"IFERROR(VLOOKUP(B105,'Orodha ua uhakiki wa Miliki'!B:E,4,0),\"\")","v":""},{"$f":"IFERROR(VLOOKUP(B105,'Orodha ua uhakiki wa Miliki'!B:G,6,0),\"\")","v":""},null,"",null,""]
[null,{"$f":"IFERROR(INDEX('Orodha ua uhakiki wa Miliki'!$B$1:$B$397, SMALL(INDEX(('Orodha ua uhakiki wa Miliki'!$I$1:$I$397=\"Yes\")*(MATCH(ROW('Orodha ua uhakiki wa Miliki'!$I$1:$I$397), ROW('Orodha ua uhakiki wa Miliki'!$I$1:$I$397)))+('Orodha ua uhakiki wa Miliki'!$I$1:$I$397<>\"Yes\")*1048577, 0, 0), ROW(A102))),\"\")","v":""},{"$f":"IFERROR(VLOOKUP(B106,'Orodha ua uhakiki wa Miliki'!B:C,2,0),\"\")","v":""},{"$f":"IFERROR(VLOOKUP(VLOOKUP(B106,'Orodha ua uhakiki wa Miliki'!B:J,9,0),DropDowns!G:H,2,0),\"\")","v":""},{"$f":"IFERROR(VLOOKUP(B106,'Orodha ua uhakiki wa Miliki'!B:E,4,0),\"\")","v":""},{"$f":"IFERROR(VLOOKUP(B106,'Orodha ua uhakiki wa Miliki'!B:G,6,0),\"\")","v":""},null,"",null,""]
[null,{"$f":"IFERROR(INDEX('Orodha ua uhakiki wa Miliki'!$B$1:$B$397, SMALL(INDEX(('Orodha ua uhakiki wa Miliki'!$I$1:$I$397=\"Yes\")*(MATCH(ROW('Orodha ua uhakiki wa Miliki'!$I$1:$I$397), ROW('Orodha ua uhakiki wa Miliki'!$I$1:$I$397)))+('Orodha ua uhakiki wa Miliki'!$I$1:$I$397<>\"Yes\")*1048577, 0, 0), ROW(A103))),\"\")","v":""},{"$f":"IFERROR(VLOOKUP(B107,'Orodha ua uhakiki wa Miliki'!B:C,2,0),\"\")","v":""},{"$f":"IFERROR(VLOOKUP(VLOOKUP(B107,'Orodha ua uhakiki wa Miliki'!B:J,9,0),DropDowns!G:H,2,0),\"\")","v":""},{"$f":"IFERROR(VLOOKUP(B107,'Orodha ua uhakiki wa Miliki'!B:E,4,0),\"\")","v":""},{"$f":"IFERROR(VLOOKUP(B107,'Orodha ua uhakiki wa Miliki'!B:G,6,0),\"\")","v":""},null,"",null,""]
[null,{"$f":"IFERROR(INDEX('Orodha ua uhakiki wa Miliki'!$B$1:$B$397, SMALL(INDEX(('Orodha ua uhakiki wa Miliki'!$I$1:$I$397=\"Yes\")*(MATCH(ROW('Orodha ua uhakiki wa Miliki'!$I$1:$I$397), ROW('Orodha ua uhakiki wa Miliki'!$I$1:$I$397)))+('Orodha ua uhakiki wa Miliki'!$I$1:$I$397<>\"Yes\")*1048577, 0, 0), ROW(A104))),\"\")","v":""},{"$f":"IFERROR(VLOOKUP(B108,'Orodha ua uhakiki wa Miliki'!B:C,2,0),\"\")","v":""},{"$f":"IFERROR(VLOOKUP(VLOOKUP(B108,'Orodha ua uhakiki wa Miliki'!B:J,9,0),DropDowns!G:H,2,0),\"\")","v":""},{"$f":"IFERROR(VLOOKUP(B108,'Orodha ua uhakiki wa Miliki'!B:E,4,0),\"\")","v":""},{"$f":"IFERROR(VLOOKUP(B108,'Orodha ua uhakiki wa Miliki'!B:G,6,0),\"\")","v":""},null,"",null,""]
[null,{"$f":"IFERROR(INDEX('Orodha ua uhakiki wa Miliki'!$B$1:$B$397, SMALL(INDEX(('Orodha ua uhakiki wa Miliki'!$I$1:$I$397=\"Yes\")*(MATCH(ROW('Orodha ua uhakiki wa Miliki'!$I$1:$I$397), ROW('Orodha ua uhakiki wa Miliki'!$I$1:$I$397)))+('Orodha ua uhakiki wa Miliki'!$I$1:$I$397<>\"Yes\")*1048577, 0, 0), ROW(A105))),\"\")","v":""},{"$f":"IFERROR(VLOOKUP(B109,'Orodha ua uhakiki wa Miliki'!B:C,2,0),\"\")","v":""},{"$f":"IFERROR(VLOOKUP(VLOOKUP(B109,'Orodha ua uhakiki wa Miliki'!B:J,9,0),DropDowns!G:H,2,0),\"\")","v":""},{"$f":"IFERROR(VLOOKUP(B109,'Orodha ua uhakiki wa Miliki'!B:E,4,0),\"\")","v":""},{"$f":"IFERROR(VLOOKUP(B109,'Orodha ua uhakiki wa Miliki'!B:G,6,0),\"\")","v":""},null,"",null,""]
[null,{"$f":"IFERROR(INDEX('Orodha ua uhakiki wa Miliki'!$B$1:$B$397, SMALL(INDEX(('Orodha ua uhakiki wa Miliki'!$I$1:$I$397=\"Yes\")*(MATCH(ROW('Orodha ua uhakiki wa Miliki'!$I$1:$I$397), ROW('Orodha ua uhakiki wa Miliki'!$I$1:$I$397)))+('Orodha ua uhakiki wa Miliki'!$I$1:$I$397<>\"Yes\")*1048577, 0, 0), ROW(A106))),\"\")","v":""},{"$f":"IFERROR(VLOOKUP(B110,'Orodha ua uhakiki wa Miliki'!B:C,2,0),\"\")","v":""},{"$f":"IFERROR(VLOOKUP(VLOOKUP(B110,'Orodha ua uhakiki wa Miliki'!B:J,9,0),DropDowns!G:H,2,0),\"\")","v":""},{"$f":"IFERROR(VLOOKUP(B110,'Orodha ua uhakiki wa Miliki'!B:E,4,0),\"\")","v":""},{"$f":"IFERROR(VLOOKUP(B110,'Orodha ua uhakiki wa Miliki'!B:G,6,0),\"\")","v":""},null,"",null,""]
[null,{"$f":"IFERROR(INDEX('Orodha ua uhakiki wa Miliki'!$B$1:$B$397, SMALL(INDEX(('Orodha ua uhakiki wa Miliki'!$I$1:$I$397=\"Yes\")*(MATCH(ROW('Orodha ua uhakiki wa Miliki'!$I$1:$I$397), ROW('Orodha ua uhakiki wa Miliki'!$I$1:$I$397)))+('Orodha ua uhakiki wa Miliki'!$I$1:$I$397<>\"Yes\")*1048577, 0, 0), ROW(A107))),\"\")","v":""},{"$f":"IFERROR(VLOOKUP(B111,'Orodha ua uhakiki wa Miliki'!B:C,2,0),\"\")","v":""},{"$f":"IFERROR(VLOOKUP(VLOOKUP(B111,'Orodha ua uhakiki wa Miliki'!B:J,9,0),DropDowns!G:H,2,0),\"\")","v":""},{"$f":"IFERROR(VLOOKUP(B111,'Orodha ua uhakiki wa Miliki'!B:E,4,0),\"\")","v":""},{"$f":"IFERROR(VLOOKUP(B111,'Orodha ua uhakiki wa Miliki'!B:G,6,0),\"\")","v":""},null,"",null,""]
[null,{"$f":"IFERROR(INDEX('Orodha ua uhakiki wa Miliki'!$B$1:$B$397, SMALL(INDEX(('Orodha ua uhakiki wa Miliki'!$I$1:$I$397=\"Yes\")*(MATCH(ROW('Orodha ua uhakiki wa Miliki'!$I$1:$I$397), ROW('Orodha ua uhakiki wa Miliki'!$I$1:$I$397)))+('Orodha ua uhakiki wa Miliki'!$I$1:$I$397<>\"Yes\")*1048577, 0, 0), ROW(A108))),\"\")","v":""},{"$f":"IFERROR(VLOOKUP(B112,'Orodha ua uhakiki wa Miliki'!B:C,2,0),\"\")","v":""},{"$f":"IFERROR(VLOOKUP(VLOOKUP(B112,'Orodha ua uhakiki wa Miliki'!B:J,9,0),DropDowns!G:H,2,0),\"\")","v":""},{"$f":"IFERROR(VLOOKUP(B112,'Orodha ua uhakiki wa Miliki'!B:E,4,0),\"\")","v":""},{"$f":"IFERROR(VLOOKUP(B112,'Orodha ua uhakiki wa Miliki'!B:G,6,0),\"\")","v":""},null,"",null,""]
[null,{"$f":"IFERROR(INDEX('Orodha ua uhakiki wa Miliki'!$B$1:$B$397, SMALL(INDEX(('Orodha ua uhakiki wa Miliki'!$I$1:$I$397=\"Yes\")*(MATCH(ROW('Orodha ua uhakiki wa Miliki'!$I$1:$I$397), ROW('Orodha ua uhakiki wa Miliki'!$I$1:$I$397)))+('Orodha ua uhakiki wa Miliki'!$I$1:$I$397<>\"Yes\")*1048577, 0, 0), ROW(A109))),\"\")","v":""},{"$f":"IFERROR(VLOOKUP(B113,'Orodha ua uhakiki wa Miliki'!B:C,2,0),\"\")","v":""},{"$f":"IFERROR(VLOOKUP(VLOOKUP(B113,'Orodha ua uhakiki wa Miliki'!B:J,9,0),DropDowns!G:H,2,0),\"\")","v":""},{"$f":"IFERROR(VLOOKUP(B113,'Orodha ua uhakiki wa Miliki'!B:E,4,0),\"\")","v":""},{"$f":"IFERROR(VLOOKUP(B113,'Orodha ua uhakiki wa Miliki'!B:G,6,0),\"\")","v":""},null,"",null,""]
[null,{"$f":"IFERROR(INDEX('Orodha ua uhakiki wa Miliki'!$B$1:$B$397, SMALL(INDEX(('Orodha ua uhakiki wa Miliki'!$I$1:$I$397=\"Yes\")*(MATCH(ROW('Orodha ua uhakiki wa Miliki'!$I$1:$I$397), ROW('Orodha ua uhakiki wa Miliki'!$I$1:$I$397)))+('Orodha ua uhakiki wa Miliki'!$I$1:$I$397<>\"Yes\")*1048577, 0, 0), ROW(A110))),\"\")","v":""},{"$f":"IFERROR(VLOOKUP(B114,'Orodha ua uhakiki wa Miliki'!B:C,2,0),\"\")","v":""},{"$f":"IFERROR(VLOOKUP(VLOOKUP(B114,'Orodha ua uhakiki wa Miliki'!B:J,9,0),DropDowns!G:H,2,0),\"\")","v":""},{"$f":"IFERROR(VLOOKUP(B114,'Orodha ua uhakiki wa Miliki'!B:E,4,0),\"\")","v":""},{"$f":"IFERROR(VLOOKUP(B114,'Orodha ua uhakiki wa Miliki'!B:G,6,0),\"\")","v":""},null,"",null,""]
[null,{"$f":"IFERROR(INDEX('Orodha ua uhakiki wa Miliki'!$B$1:$B$397, SMALL(INDEX(('Orodha ua uhakiki wa Miliki'!$I$1:$I$397=\"Yes\")*(MATCH(ROW('Orodha ua uhakiki wa Miliki'!$I$1:$I$397), ROW('Orodha ua uhakiki wa Miliki'!$I$1:$I$397)))+('Orodha ua uhakiki wa Miliki'!$I$1:$I$397<>\"Yes\")*1048577, 0, 0), ROW(A111))),\"\")","v":""},{"$f":"IFERROR(VLOOKUP(B115,'Orodha ua uhakiki wa Miliki'!B:C,2,0),\"\")","v":""},{"$f":"IFERROR(VLOOKUP(VLOOKUP(B115,'Orodha ua uhakiki wa Miliki'!B:J,9,0),DropDowns!G:H,2,0),\"\")","v":""},{"$f":"IFERROR(VLOOKUP(B115,'Orodha ua uhakiki wa Miliki'!B:E,4,0),\"\")","v":""},{"$f":"IFERROR(VLOOKUP(B115,'Orodha ua uhakiki wa Miliki'!B:G,6,0),\"\")","v":""},null,"",null,""]
[null,{"$f":"IFERROR(INDEX('Orodha ua uhakiki wa Miliki'!$B$1:$B$397, SMALL(INDEX(('Orodha ua uhakiki wa Miliki'!$I$1:$I$397=\"Yes\")*(MATCH(ROW('Orodha ua uhakiki wa Miliki'!$I$1:$I$397), ROW('Orodha ua uhakiki wa Miliki'!$I$1:$I$397)))+('Orodha ua uhakiki wa Miliki'!$I$1:$I$397<>\"Yes\")*1048577, 0, 0), ROW(A112))),\"\")","v":""},{"$f":"IFERROR(VLOOKUP(B116,'Orodha ua uhakiki wa Miliki'!B:C,2,0),\"\")","v":""},{"$f":"IFERROR(VLOOKUP(VLOOKUP(B116,'Orodha ua uhakiki wa Miliki'!B:J,9,0),DropDowns!G:H,2,0),\"\")","v":""},{"$f":"IFERROR(VLOOKUP(B116,'Orodha ua uhakiki wa Miliki'!B:E,4,0),\"\")","v":""},{"$f":"IFERROR(VLOOKUP(B116,'Orodha ua uhakiki wa Miliki'!B:G,6,0),\"\")","v":""},null,"",null,""]
[null,{"$f":"IFERROR(INDEX('Orodha ua uhakiki wa Miliki'!$B$1:$B$397, SMALL(INDEX(('Orodha ua uhakiki wa Miliki'!$I$1:$I$397=\"Yes\")*(MATCH(ROW('Orodha ua uhakiki wa Miliki'!$I$1:$I$397), ROW('Orodha ua uhakiki wa Miliki'!$I$1:$I$397)))+('Orodha ua uhakiki wa Miliki'!$I$1:$I$397<>\"Yes\")*1048577, 0, 0), ROW(A113))),\"\")","v":""},{"$f":"IFERROR(VLOOKUP(B117,'Orodha ua uhakiki wa Miliki'!B:C,2,0),\"\")","v":""},{"$f":"IFERROR(VLOOKUP(VLOOKUP(B117,'Orodha ua uhakiki wa Miliki'!B:J,9,0),DropDowns!G:H,2,0),\"\")","v":""},{"$f":"IFERROR(VLOOKUP(B117,'Orodha ua uhakiki wa Miliki'!B:E,4,0),\"\")","v":""},{"$f":"IFERROR(VLOOKUP(B117,'Orodha ua uhakiki wa Miliki'!B:G,6,0),\"\")","v":""},null,"",null,""]
[null,{"$f":"IFERROR(INDEX('Orodha ua uhakiki wa Miliki'!$B$1:$B$397, SMALL(INDEX(('Orodha ua uhakiki wa Miliki'!$I$1:$I$397=\"Yes\")*(MATCH(ROW('Orodha ua uhakiki wa Miliki'!$I$1:$I$397), ROW('Orodha ua uhakiki wa Miliki'!$I$1:$I$397)))+('Orodha ua uhakiki wa Miliki'!$I$1:$I$397<>\"Yes\")*1048577, 0, 0), ROW(A114))),\"\")","v":""},{"$f":"IFERROR(VLOOKUP(B118,'Orodha ua uhakiki wa Miliki'!B:C,2,0),\"\")","v":""},{"$f":"IFERROR(VLOOKUP(VLOOKUP(B118,'Orodha ua uhakiki wa Miliki'!B:J,9,0),DropDowns!G:H,2,0),\"\")","v":""},{"$f":"IFERROR(VLOOKUP(B118,'Orodha ua uhakiki wa Miliki'!B:E,4,0),\"\")","v":""},{"$f":"IFERROR(VLOOKUP(B118,'Orodha ua uhakiki wa Miliki'!B:G,6,0),\"\")","v":""},null,"",null,""]
[null,{"$f":"IFERROR(INDEX('Orodha ua uhakiki wa Miliki'!$B$1:$B$397, SMALL(INDEX(('Orodha ua uhakiki wa Miliki'!$I$1:$I$397=\"Yes\")*(MATCH(ROW('Orodha ua uhakiki wa Miliki'!$I$1:$I$397), ROW('Orodha ua uhakiki wa Miliki'!$I$1:$I$397)))+('Orodha ua uhakiki wa Miliki'!$I$1:$I$397<>\"Yes\")*1048577, 0, 0), ROW(A115))),\"\")","v":""},{"$f":"IFERROR(VLOOKUP(B119,'Orodha ua uhakiki wa Miliki'!B:C,2,0),\"\")","v":""},{"$f":"IFERROR(VLOOKUP(VLOOKUP(B119,'Orodha ua uhakiki wa Miliki'!B:J,9,0),DropDowns!G:H,2,0),\"\")","v":""},{"$f":"IFERROR(VLOOKUP(B119,'Orodha ua uhakiki wa Miliki'!B:E,4,0),\"\")","v":""},{"$f":"IFERROR(VLOOKUP(B119,'Orodha ua uhakiki wa Miliki'!B:G,6,0),\"\")","v":""},null,"",null,""]
[null,{"$f":"IFERROR(INDEX('Orodha ua uhakiki wa Miliki'!$B$1:$B$397, SMALL(INDEX(('Orodha ua uhakiki wa Miliki'!$I$1:$I$397=\"Yes\")*(MATCH(ROW('Orodha ua uhakiki wa Miliki'!$I$1:$I$397), ROW('Orodha ua uhakiki wa Miliki'!$I$1:$I$397)))+('Orodha ua uhakiki wa Miliki'!$I$1:$I$397<>\"Yes\")*1048577, 0, 0), ROW(A116))),\"\")","v":""},{"$f":"IFERROR(VLOOKUP(B120,'Orodha ua uhakiki wa Miliki'!B:C,2,0),\"\")","v":""},{"$f":"IFERROR(VLOOKUP(VLOOKUP(B120,'Orodha ua uhakiki wa Miliki'!B:J,9,0),DropDowns!G:H,2,0),\"\")","v":""},{"$f":"IFERROR(VLOOKUP(B120,'Orodha ua uhakiki wa Miliki'!B:E,4,0),\"\")","v":""},{"$f":"IFERROR(VLOOKUP(B120,'Orodha ua uhakiki wa Miliki'!B:G,6,0),\"\")","v":""},null,"",null,""]
[null,{"$f":"IFERROR(INDEX('Orodha ua uhakiki wa Miliki'!$B$1:$B$397, SMALL(INDEX(('Orodha ua uhakiki wa Miliki'!$I$1:$I$397=\"Yes\")*(MATCH(ROW('Orodha ua uhakiki wa Miliki'!$I$1:$I$397), ROW('Orodha ua uhakiki wa Miliki'!$I$1:$I$397)))+('Orodha ua uhakiki wa Miliki'!$I$1:$I$397<>\"Yes\")*1048577, 0, 0), ROW(A117))),\"\")","v":""},{"$f":"IFERROR(VLOOKUP(B121,'Orodha ua uhakiki wa Miliki'!B:C,2,0),\"\")","v":""},{"$f":"IFERROR(VLOOKUP(VLOOKUP(B121,'Orodha ua uhakiki wa Miliki'!B:J,9,0),DropDowns!G:H,2,0),\"\")","v":""},{"$f":"IFERROR(VLOOKUP(B121,'Orodha ua uhakiki wa Miliki'!B:E,4,0),\"\")","v":""},{"$f":"IFERROR(VLOOKUP(B121,'Orodha ua uhakiki wa Miliki'!B:G,6,0),\"\")","v":""},null,"",null,""]
[null,{"$f":"IFERROR(INDEX('Orodha ua uhakiki wa Miliki'!$B$1:$B$397, SMALL(INDEX(('Orodha ua uhakiki wa Miliki'!$I$1:$I$397=\"Yes\")*(MATCH(ROW('Orodha ua uhakiki wa Miliki'!$I$1:$I$397), ROW('Orodha ua uhakiki wa Miliki'!$I$1:$I$397)))+('Orodha ua uhakiki wa Miliki'!$I$1:$I$397<>\"Yes\")*1048577, 0, 0), ROW(A118))),\"\")","v":""},{"$f":"IFERROR(VLOOKUP(B122,'Orodha ua uhakiki wa Miliki'!B:C,2,0),\"\")","v":""},{"$f":"IFERROR(VLOOKUP(VLOOKUP(B122,'Orodha ua uhakiki wa Miliki'!B:J,9,0),DropDowns!G:H,2,0),\"\")","v":""},{"$f":"IFERROR(VLOOKUP(B122,'Orodha ua uhakiki wa Miliki'!B:E,4,0),\"\")","v":""},{"$f":"IFERROR(VLOOKUP(B122,'Orodha ua uhakiki wa Miliki'!B:G,6,0),\"\")","v":""},null,"",null,""]
[null,{"$f":"IFERROR(INDEX('Orodha ua uhakiki wa Miliki'!$B$1:$B$397, SMALL(INDEX(('Orodha ua uhakiki wa Miliki'!$I$1:$I$397=\"Yes\")*(MATCH(ROW('Orodha ua uhakiki wa Miliki'!$I$1:$I$397), ROW('Orodha ua uhakiki wa Miliki'!$I$1:$I$397)))+('Orodha ua uhakiki wa Miliki'!$I$1:$I$397<>\"Yes\")*1048577, 0, 0), ROW(A119))),\"\")","v":""},{"$f":"IFERROR(VLOOKUP(B123,'Orodha ua uhakiki wa Miliki'!B:C,2,0),\"\")","v":""},{"$f":"IFERROR(VLOOKUP(VLOOKUP(B123,'Orodha ua uhakiki wa Miliki'!B:J,9,0),DropDowns!G:H,2,0),\"\")","v":""},{"$f":"IFERROR(VLOOKUP(B123,'Orodha ua uhakiki wa Miliki'!B:E,4,0),\"\")","v":""},{"$f":"IFERROR(VLOOKUP(B123,'Orodha ua uhakiki wa Miliki'!B:G,6,0),\"\")","v":""},null,"",null,""]
[null,{"$f":"IFERROR(INDEX('Orodha ua uhakiki wa Miliki'!$B$1:$B$397, SMALL(INDEX(('Orodha ua uhakiki wa Miliki'!$I$1:$I$397=\"Yes\")*(MATCH(ROW('Orodha ua uhakiki wa Miliki'!$I$1:$I$397), ROW('Orodha ua uhakiki wa Miliki'!$I$1:$I$397)))+('Orodha ua uhakiki wa Miliki'!$I$1:$I$397<>\"Yes\")*1048577, 0, 0), ROW(A120))),\"\")","v":""},{"$f":"IFERROR(VLOOKUP(B124,'Orodha ua uhakiki wa Miliki'!B:C,2,0),\"\")","v":""},{"$f":"IFERROR(VLOOKUP(VLOOKUP(B124,'Orodha ua uhakiki wa Miliki'!B:J,9,0),DropDowns!G:H,2,0),\"\")","v":""},{"$f":"IFERROR(VLOOKUP(B124,'Orodha ua uhakiki wa Miliki'!B:E,4,0),\"\")","v":""},{"$f":"IFERROR(VLOOKUP(B124,'Orodha ua uhakiki wa Miliki'!B:G,6,0),\"\")","v":""},null,"",null,""]
[null,{"$f":"IFERROR(INDEX('Orodha ua uhakiki wa Miliki'!$B$1:$B$397, SMALL(INDEX(('Orodha ua uhakiki wa Miliki'!$I$1:$I$397=\"Yes\")*(MATCH(ROW('Orodha ua uhakiki wa Miliki'!$I$1:$I$397), ROW('Orodha ua uhakiki wa Miliki'!$I$1:$I$397)))+('Orodha ua uhakiki wa Miliki'!$I$1:$I$397<>\"Yes\")*1048577, 0, 0), ROW(A121))),\"\")","v":""},{"$f":"IFERROR(VLOOKUP(B125,'Orodha ua uhakiki wa Miliki'!B:C,2,0),\"\")","v":""},{"$f":"IFERROR(VLOOKUP(VLOOKUP(B125,'Orodha ua uhakiki wa Miliki'!B:J,9,0),DropDowns!G:H,2,0),\"\")","v":""},{"$f":"IFERROR(VLOOKUP(B125,'Orodha ua uhakiki wa Miliki'!B:E,4,0),\"\")","v":""},{"$f":"IFERROR(VLOOKUP(B125,'Orodha ua uhakiki wa Miliki'!B:G,6,0),\"\")","v":""},null,"",null,""]
[null,{"$f":"IFERROR(INDEX('Orodha ua uhakiki wa Miliki'!$B$1:$B$397, SMALL(INDEX(('Orodha ua uhakiki wa Miliki'!$I$1:$I$397=\"Yes\")*(MATCH(ROW('Orodha ua uhakiki wa Miliki'!$I$1:$I$397), ROW('Orodha ua uhakiki wa Miliki'!$I$1:$I$397)))+('Orodha ua uhakiki wa Miliki'!$I$1:$I$397<>\"Yes\")*1048577, 0, 0), ROW(A122))),\"\")","v":""},{"$f":"IFERROR(VLOOKUP(B126,'Orodha ua uhakiki wa Miliki'!B:C,2,0),\"\")","v":""},{"$f":"IFERROR(VLOOKUP(VLOOKUP(B126,'Orodha ua uhakiki wa Miliki'!B:J,9,0),DropDowns!G:H,2,0),\"\")","v":""},{"$f":"IFERROR(VLOOKUP(B126,'Orodha ua uhakiki wa Miliki'!B:E,4,0),\"\")","v":""},{"$f":"IFERROR(VLOOKUP(B126,'Orodha ua uhakiki wa Miliki'!B:G,6,0),\"\")","v":""},null,"",null,""]
[null,{"$f":"IFERROR(INDEX('Orodha ua uhakiki wa Miliki'!$B$1:$B$397, SMALL(INDEX(('Orodha ua uhakiki wa Miliki'!$I$1:$I$397=\"Yes\")*(MATCH(ROW('Orodha ua uhakiki wa Miliki'!$I$1:$I$397), ROW('Orodha ua uhakiki wa Miliki'!$I$1:$I$397)))+('Orodha ua uhakiki wa Miliki'!$I$1:$I$397<>\"Yes\")*1048577, 0, 0), ROW(A123))),\"\")","v":""},{"$f":"IFERROR(VLOOKUP(B127,'Orodha ua uhakiki wa Miliki'!B:C,2,0),\"\")","v":""},{"$f":"IFERROR(VLOOKUP(VLOOKUP(B127,'Orodha ua uhakiki wa Miliki'!B:J,9,0),DropDowns!G:H,2,0),\"\")","v":""},{"$f":"IFERROR(VLOOKUP(B127,'Orodha ua uhakiki wa Miliki'!B:E,4,0),\"\")","v":""},{"$f":"IFERROR(VLOOKUP(B127,'Orodha ua uhakiki wa Miliki'!B:G,6,0),\"\")","v":""},null,"",null,""]
[null,{"$f":"IFERROR(INDEX('Orodha ua uhakiki wa Miliki'!$B$1:$B$397, SMALL(INDEX(('Orodha ua uhakiki wa Miliki'!$I$1:$I$397=\"Yes\")*(MATCH(ROW('Orodha ua uhakiki wa Miliki'!$I$1:$I$397), ROW('Orodha ua uhakiki wa Miliki'!$I$1:$I$397)))+('Orodha ua uhakiki wa Miliki'!$I$1:$I$397<>\"Yes\")*1048577, 0, 0), ROW(A124))),\"\")","v":""},{"$f":"IFERROR(VLOOKUP(B128,'Orodha ua uhakiki wa Miliki'!B:C,2,0),\"\")","v":""},{"$f":"IFERROR(VLOOKUP(VLOOKUP(B128,'Orodha ua uhakiki wa Miliki'!B:J,9,0),DropDowns!G:H,2,0),\"\")","v":""},{"$f":"IFERROR(VLOOKUP(B128,'Orodha ua uhakiki wa Miliki'!B:E,4,0),\"\")","v":""},{"$f":"IFERROR(VLOOKUP(B128,'Orodha ua uhakiki wa Miliki'!B:G,6,0),\"\")","v":""},null,"",null,""]
[null,{"$f":"IFERROR(INDEX('Orodha ua uhakiki wa Miliki'!$B$1:$B$397, SMALL(INDEX(('Orodha ua uhakiki wa Miliki'!$I$1:$I$397=\"Yes\")*(MATCH(ROW('Orodha ua uhakiki wa Miliki'!$I$1:$I$397), ROW('Orodha ua uhakiki wa Miliki'!$I$1:$I$397)))+('Orodha ua uhakiki wa Miliki'!$I$1:$I$397<>\"Yes\")*1048577, 0, 0), ROW(A125))),\"\")","v":""},{"$f":"IFERROR(VLOOKUP(B129,'Orodha ua uhakiki wa Miliki'!B:C,2,0),\"\")","v":""},{"$f":"IFERROR(VLOOKUP(VLOOKUP(B129,'Orodha ua uhakiki wa Miliki'!B:J,9,0),DropDowns!G:H,2,0),\"\")","v":""},{"$f":"IFERROR(VLOOKUP(B129,'Orodha ua uhakiki wa Miliki'!B:E,4,0),\"\")","v":""},{"$f":"IFERROR(VLOOKUP(B129,'Orodha ua uhakiki wa Miliki'!B:G,6,0),\"\")","v":""},null,"",null,""]
[null,{"$f":"IFERROR(INDEX('Orodha ua uhakiki wa Miliki'!$B$1:$B$397, SMALL(INDEX(('Orodha ua uhakiki wa Miliki'!$I$1:$I$397=\"Yes\")*(MATCH(ROW('Orodha ua uhakiki wa Miliki'!$I$1:$I$397), ROW('Orodha ua uhakiki wa Miliki'!$I$1:$I$397)))+('Orodha ua uhakiki wa Miliki'!$I$1:$I$397<>\"Yes\")*1048577, 0, 0), ROW(A126))),\"\")","v":""},{"$f":"IFERROR(VLOOKUP(B130,'Orodha ua uhakiki wa Miliki'!B:C,2,0),\"\")","v":""},{"$f":"IFERROR(VLOOKUP(VLOOKUP(B130,'Orodha ua uhakiki wa Miliki'!B:J,9,0),DropDowns!G:H,2,0),\"\")","v":""},{"$f":"IFERROR(VLOOKUP(B130,'Orodha ua uhakiki wa Miliki'!B:E,4,0),\"\")","v":""},{"$f":"IFERROR(VLOOKUP(B130,'Orodha ua uhakiki wa Miliki'!B:G,6,0),\"\")","v":""},null,"",null,""]
[null,{"$f":"IFERROR(INDEX('Orodha ua uhakiki wa Miliki'!$B$1:$B$397, SMALL(INDEX(('Orodha ua uhakiki wa Miliki'!$I$1:$I$397=\"Yes\")*(MATCH(ROW('Orodha ua uhakiki wa Miliki'!$I$1:$I$397), ROW('Orodha ua uhakiki wa Miliki'!$I$1:$I$397)))+('Orodha ua uhakiki wa Miliki'!$I$1:$I$397<>\"Yes\")*1048577, 0, 0), ROW(A127))),\"\")","v":""},{"$f":"IFERROR(VLOOKUP(B131,'Orodha ua uhakiki wa Miliki'!B:C,2,0),\"\")","v":""},{"$f":"IFERROR(VLOOKUP(VLOOKUP(B131,'Orodha ua uhakiki wa Miliki'!B:J,9,0),DropDowns!G:H,2,0),\"\")","v":""},{"$f":"IFERROR(VLOOKUP(B131,'Orodha ua uhakiki wa Miliki'!B:E,4,0),\"\")","v":""},{"$f":"IFERROR(VLOOKUP(B131,'Orodha ua uhakiki wa Miliki'!B:G,6,0),\"\")","v":""},null,"",null,""]
[null,{"$f":"IFERROR(INDEX('Orodha ua uhakiki wa Miliki'!$B$1:$B$397, SMALL(INDEX(('Orodha ua uhakiki wa Miliki'!$I$1:$I$397=\"Yes\")*(MATCH(ROW('Orodha ua uhakiki wa Miliki'!$I$1:$I$397), ROW('Orodha ua uhakiki wa Miliki'!$I$1:$I$397)))+('Orodha ua uhakiki wa Miliki'!$I$1:$I$397<>\"Yes\")*1048577, 0, 0), ROW(A128))),\"\")","v":""},{"$f":"IFERROR(VLOOKUP(B132,'Orodha ua uhakiki wa Miliki'!B:C,2,0),\"\")","v":""},{"$f":"IFERROR(VLOOKUP(VLOOKUP(B132,'Orodha ua uhakiki wa Miliki'!B:J,9,0),DropDowns!G:H,2,0),\"\")","v":""},{"$f":"IFERROR(VLOOKUP(B132,'Orodha ua uhakiki wa Miliki'!B:E,4,0),\"\")","v":""},{"$f":"IFERROR(VLOOKUP(B132,'Orodha ua uhakiki wa Miliki'!B:G,6,0),\"\")","v":""},null,"",null,""]
[null,{"$f":"IFERROR(INDEX('Orodha ua uhakiki wa Miliki'!$B$1:$B$397, SMALL(INDEX(('Orodha ua uhakiki wa Miliki'!$I$1:$I$397=\"Yes\")*(MATCH(ROW('Orodha ua uhakiki wa Miliki'!$I$1:$I$397), ROW('Orodha ua uhakiki wa Miliki'!$I$1:$I$397)))+('Orodha ua uhakiki wa Miliki'!$I$1:$I$397<>\"Yes\")*1048577, 0, 0), ROW(A129))),\"\")","v":""},{"$f":"IFERROR(VLOOKUP(B133,'Orodha ua uhakiki wa Miliki'!B:C,2,0),\"\")","v":""},{"$f":"IFERROR(VLOOKUP(VLOOKUP(B133,'Orodha ua uhakiki wa Miliki'!B:J,9,0),DropDowns!G:H,2,0),\"\")","v":""},{"$f":"IFERROR(VLOOKUP(B133,'Orodha ua uhakiki wa Miliki'!B:E,4,0),\"\")","v":""},{"$f":"IFERROR(VLOOKUP(B133,'Orodha ua uhakiki wa Miliki'!B:G,6,0),\"\")","v":""},null,"",null,""]
[null,{"$f":"IFERROR(INDEX('Orodha ua uhakiki wa Miliki'!$B$1:$B$397, SMALL(INDEX(('Orodha ua uhakiki wa Miliki'!$I$1:$I$397=\"Yes\")*(MATCH(ROW('Orodha ua uhakiki wa Miliki'!$I$1:$I$397), ROW('Orodha ua uhakiki wa Miliki'!$I$1:$I$397)))+('Orodha ua uhakiki wa Miliki'!$I$1:$I$397<>\"Yes\")*1048577, 0, 0), ROW(A130))),\"\")","v":""},{"$f":"IFERROR(VLOOKUP(B134,'Orodha ua uhakiki wa Miliki'!B:C,2,0),\"\")","v":""},{"$f":"IFERROR(VLOOKUP(VLOOKUP(B134,'Orodha ua uhakiki wa Miliki'!B:J,9,0),DropDowns!G:H,2,0),\"\")","v":""},{"$f":"IFERROR(VLOOKUP(B134,'Orodha ua uhakiki wa Miliki'!B:E,4,0),\"\")","v":""},{"$f":"IFERROR(VLOOKUP(B134,'Orodha ua uhakiki wa Miliki'!B:G,6,0),\"\")","v":""},null,"",null,""]
[null,{"$f":"IFERROR(INDEX('Orodha ua uhakiki wa Miliki'!$B$1:$B$397, SMALL(INDEX(('Orodha ua uhakiki wa Miliki'!$I$1:$I$397=\"Yes\")*(MATCH(ROW('Orodha ua uhakiki wa Miliki'!$I$1:$I$397), ROW('Orodha ua uhakiki wa Miliki'!$I$1:$I$397)))+('Orodha ua uhakiki wa Miliki'!$I$1:$I$397<>\"Yes\")*1048577, 0, 0), ROW(A131))),\"\")","v":""},{"$f":"IFERROR(VLOOKUP(B135,'Orodha ua uhakiki wa Miliki'!B:C,2,0),\"\")","v":""},{"$f":"IFERROR(VLOOKUP(VLOOKUP(B135,'Orodha ua uhakiki wa Miliki'!B:J,9,0),DropDowns!G:H,2,0),\"\")","v":""},{"$f":"IFERROR(VLOOKUP(B135,'Orodha ua uhakiki wa Miliki'!B:E,4,0),\"\")","v":""},{"$f":"IFERROR(VLOOKUP(B135,'Orodha ua uhakiki wa Miliki'!B:G,6,0),\"\")","v":""},null,"",null,""]
[null,{"$f":"IFERROR(INDEX('Orodha ua uhakiki wa Miliki'!$B$1:$B$397, SMALL(INDEX(('Orodha ua uhakiki wa Miliki'!$I$1:$I$397=\"Yes\")*(MATCH(ROW('Orodha ua uhakiki wa Miliki'!$I$1:$I$397), ROW('Orodha ua uhakiki wa Miliki'!$I$1:$I$397)))+('Orodha ua uhakiki wa Miliki'!$I$1:$I$397<>\"Yes\")*1048577, 0, 0), ROW(A132))),\"\")","v":""},{"$f":"IFERROR(VLOOKUP(B136,'Orodha ua uhakiki wa Miliki'!B:C,2,0),\"\")","v":""},{"$f":"IFERROR(VLOOKUP(VLOOKUP(B136,'Orodha ua uhakiki wa Miliki'!B:J,9,0),DropDowns!G:H,2,0),\"\")","v":""},{"$f":"IFERROR(VLOOKUP(B136,'Orodha ua uhakiki wa Miliki'!B:E,4,0),\"\")","v":""},{"$f":"IFERROR(VLOOKUP(B136,'Orodha ua uhakiki wa Miliki'!B:G,6,0),\"\")","v":""},null,"",null,""]
[null,{"$f":"IFERROR(INDEX('Orodha ua uhakiki wa Miliki'!$B$1:$B$397, SMALL(INDEX(('Orodha ua uhakiki wa Miliki'!$I$1:$I$397=\"Yes\")*(MATCH(ROW('Orodha ua uhakiki wa Miliki'!$I$1:$I$397), ROW('Orodha ua uhakiki wa Miliki'!$I$1:$I$397)))+('Orodha ua uhakiki wa Miliki'!$I$1:$I$397<>\"Yes\")*1048577, 0, 0), ROW(A133))),\"\")","v":""},{"$f":"IFERROR(VLOOKUP(B137,'Orodha ua uhakiki wa Miliki'!B:C,2,0),\"\")","v":""},{"$f":"IFERROR(VLOOKUP(VLOOKUP(B137,'Orodha ua uhakiki wa Miliki'!B:J,9,0),DropDowns!G:H,2,0),\"\")","v":""},{"$f":"IFERROR(VLOOKUP(B137,'Orodha ua uhakiki wa Miliki'!B:E,4,0),\"\")","v":""},{"$f":"IFERROR(VLOOKUP(B137,'Orodha ua uhakiki wa Miliki'!B:G,6,0),\"\")","v":""},null,"",null,""]
[null,{"$f":"IFERROR(INDEX('Orodha ua uhakiki wa Miliki'!$B$1:$B$397, SMALL(INDEX(('Orodha ua uhakiki wa Miliki'!$I$1:$I$397=\"Yes\")*(MATCH(ROW('Orodha ua uhakiki wa Miliki'!$I$1:$I$397), ROW('Orodha ua uhakiki wa Miliki'!$I$1:$I$397)))+('Orodha ua uhakiki wa Miliki'!$I$1:$I$397<>\"Yes\")*1048577, 0, 0), ROW(A134))),\"\")","v":""},{"$f":"IFERROR(VLOOKUP(B138,'Orodha ua uhakiki wa Miliki'!B:C,2,0),\"\")","v":""},{"$f":"IFERROR(VLOOKUP(VLOOKUP(B138,'Orodha ua uhakiki wa Miliki'!B:J,9,0),DropDowns!G:H,2,0),\"\")","v":""},{"$f":"IFERROR(VLOOKUP(B138,'Orodha ua uhakiki wa Miliki'!B:E,4,0),\"\")","v":""},{"$f":"IFERROR(VLOOKUP(B138,'Orodha ua uhakiki wa Miliki'!B:G,6,0),\"\")","v":""},null,"",null,""]
[null,{"$f":"IFERROR(INDEX('Orodha ua uhakiki wa Miliki'!$B$1:$B$397, SMALL(INDEX(('Orodha ua uhakiki wa Miliki'!$I$1:$I$397=\"Yes\")*(MATCH(ROW('Orodha ua uhakiki wa Miliki'!$I$1:$I$397), ROW('Orodha ua uhakiki wa Miliki'!$I$1:$I$397)))+('Orodha ua uhakiki wa Miliki'!$I$1:$I$397<>\"Yes\")*1048577, 0, 0), ROW(A135))),\"\")","v":""},{"$f":"IFERROR(VLOOKUP(B139,'Orodha ua uhakiki wa Miliki'!B:C,2,0),\"\")","v":""},{"$f":"IFERROR(VLOOKUP(VLOOKUP(B139,'Orodha ua uhakiki wa Miliki'!B:J,9,0),DropDowns!G:H,2,0),\"\")","v":""},{"$f":"IFERROR(VLOOKUP(B139,'Orodha ua uhakiki wa Miliki'!B:E,4,0),\"\")","v":""},{"$f":"IFERROR(VLOOKUP(B139,'Orodha ua uhakiki wa Miliki'!B:G,6,0),\"\")","v":""},null,"",null,""]
[null,{"$f":"IFERROR(INDEX('Orodha ua uhakiki wa Miliki'!$B$1:$B$397, SMALL(INDEX(('Orodha ua uhakiki wa Miliki'!$I$1:$I$397=\"Yes\")*(MATCH(ROW('Orodha ua uhakiki wa Miliki'!$I$1:$I$397), ROW('Orodha ua uhakiki wa Miliki'!$I$1:$I$397)))+('Orodha ua uhakiki wa Miliki'!$I$1:$I$397<>\"Yes\")*1048577, 0, 0), ROW(A136))),\"\")","v":""},{"$f":"IFERROR(VLOOKUP(B140,'Orodha ua uhakiki wa Miliki'!B:C,2,0),\"\")","v":""},{"$f":"IFERROR(VLOOKUP(VLOOKUP(B140,'Orodha ua uhakiki wa Miliki'!B:J,9,0),DropDowns!G:H,2,0),\"\")","v":""},{"$f":"IFERROR(VLOOKUP(B140,'Orodha ua uhakiki wa Miliki'!B:E,4,0),\"\")","v":""},{"$f":"IFERROR(VLOOKUP(B140,'Orodha ua uhakiki wa Miliki'!B:G,6,0),\"\")","v":""},null,"",null,""]
[null,{"$f":"IFERROR(INDEX('Orodha ua uhakiki wa Miliki'!$B$1:$B$397, SMALL(INDEX(('Orodha ua uhakiki wa Miliki'!$I$1:$I$397=\"Yes\")*(MATCH(ROW('Orodha ua uhakiki wa Miliki'!$I$1:$I$397), ROW('Orodha ua uhakiki wa Miliki'!$I$1:$I$397)))+('Orodha ua uhakiki wa Miliki'!$I$1:$I$397<>\"Yes\")*1048577, 0, 0), ROW(A137))),\"\")","v":""},{"$f":"IFERROR(VLOOKUP(B141,'Orodha ua uhakiki wa Miliki'!B:C,2,0),\"\")","v":""},{"$f":"IFERROR(VLOOKUP(VLOOKUP(B141,'Orodha ua uhakiki wa Miliki'!B:J,9,0),DropDowns!G:H,2,0),\"\")","v":""},{"$f":"IFERROR(VLOOKUP(B141,'Orodha ua uhakiki wa Miliki'!B:E,4,0),\"\")","v":""},{"$f":"IFERROR(VLOOKUP(B141,'Orodha ua uhakiki wa Miliki'!B:G,6,0),\"\")","v":""},null,"",null,""]
[null,{"$f":"IFERROR(INDEX('Orodha ua uhakiki wa Miliki'!$B$1:$B$397, SMALL(INDEX(('Orodha ua uhakiki wa Miliki'!$I$1:$I$397=\"Yes\")*(MATCH(ROW('Orodha ua uhakiki wa Miliki'!$I$1:$I$397), ROW('Orodha ua uhakiki wa Miliki'!$I$1:$I$397)))+('Orodha ua uhakiki wa Miliki'!$I$1:$I$397<>\"Yes\")*1048577, 0, 0), ROW(A138))),\"\")","v":""},{"$f":"IFERROR(VLOOKUP(B142,'Orodha ua uhakiki wa Miliki'!B:C,2,0),\"\")","v":""},{"$f":"IFERROR(VLOOKUP(VLOOKUP(B142,'Orodha ua uhakiki wa Miliki'!B:J,9,0),DropDowns!G:H,2,0),\"\")","v":""},{"$f":"IFERROR(VLOOKUP(B142,'Orodha ua uhakiki wa Miliki'!B:E,4,0),\"\")","v":""},{"$f":"IFERROR(VLOOKUP(B142,'Orodha ua uhakiki wa Miliki'!B:G,6,0),\"\")","v":""},null,"",null,""]
[null,{"$f":"IFERROR(INDEX('Orodha ua uhakiki wa Miliki'!$B$1:$B$397, SMALL(INDEX(('Orodha ua uhakiki wa Miliki'!$I$1:$I$397=\"Yes\")*(MATCH(ROW('Orodha ua uhakiki wa Miliki'!$I$1:$I$397), ROW('Orodha ua uhakiki wa Miliki'!$I$1:$I$397)))+('Orodha ua uhakiki wa Miliki'!$I$1:$I$397<>\"Yes\")*1048577, 0, 0), ROW(A139))),\"\")","v":""},{"$f":"IFERROR(VLOOKUP(B143,'Orodha ua uhakiki wa Miliki'!B:C,2,0),\"\")","v":""},{"$f":"IFERROR(VLOOKUP(VLOOKUP(B143,'Orodha ua uhakiki wa Miliki'!B:J,9,0),DropDowns!G:H,2,0),\"\")","v":""},{"$f":"IFERROR(VLOOKUP(B143,'Orodha ua uhakiki wa Miliki'!B:E,4,0),\"\")","v":""},{"$f":"IFERROR(VLOOKUP(B143,'Orodha ua uhakiki wa Miliki'!B:G,6,0),\"\")","v":""},null,"",null,""]
[null,{"$f":"IFERROR(INDEX('Orodha ua uhakiki wa Miliki'!$B$1:$B$397, SMALL(INDEX(('Orodha ua uhakiki wa Miliki'!$I$1:$I$397=\"Yes\")*(MATCH(ROW('Orodha ua uhakiki wa Miliki'!$I$1:$I$397), ROW('Orodha ua uhakiki wa Miliki'!$I$1:$I$397)))+('Orodha ua uhakiki wa Miliki'!$I$1:$I$397<>\"Yes\")*1048577, 0, 0), ROW(A140))),\"\")","v":""},{"$f":"IFERROR(VLOOKUP(B144,'Orodha ua uhakiki wa Miliki'!B:C,2,0),\"\")","v":""},{"$f":"IFERROR(VLOOKUP(VLOOKUP(B144,'Orodha ua uhakiki wa Miliki'!B:J,9,0),DropDowns!G:H,2,0),\"\")","v":""},{"$f":"IFERROR(VLOOKUP(B144,'Orodha ua uhakiki wa Miliki'!B:E,4,0),\"\")","v":""},{"$f":"IFERROR(VLOOKUP(B144,'Orodha ua uhakiki wa Miliki'!B:G,6,0),\"\")","v":""},null,"",null,""]
[null,{"$f":"IFERROR(INDEX('Orodha ua uhakiki wa Miliki'!$B$1:$B$397, SMALL(INDEX(('Orodha ua uhakiki wa Miliki'!$I$1:$I$397=\"Yes\")*(MATCH(ROW('Orodha ua uhakiki wa Miliki'!$I$1:$I$397), ROW('Orodha ua uhakiki wa Miliki'!$I$1:$I$397)))+('Orodha ua uhakiki wa Miliki'!$I$1:$I$397<>\"Yes\")*1048577, 0, 0), ROW(A141))),\"\")","v":""},{"$f":"IFERROR(VLOOKUP(B145,'Orodha ua uhakiki wa Miliki'!B:C,2,0),\"\")","v":""},{"$f":"IFERROR(VLOOKUP(VLOOKUP(B145,'Orodha ua uhakiki wa Miliki'!B:J,9,0),DropDowns!G:H,2,0),\"\")","v":""},{"$f":"IFERROR(VLOOKUP(B145,'Orodha ua uhakiki wa Miliki'!B:E,4,0),\"\")","v":""},{"$f":"IFERROR(VLOOKUP(B145,'Orodha ua uhakiki wa Miliki'!B:G,6,0),\"\")","v":""},null,"",null,""]
[null,{"$f":"IFERROR(INDEX('Orodha ua uhakiki wa Miliki'!$B$1:$B$397, SMALL(INDEX(('Orodha ua uhakiki wa Miliki'!$I$1:$I$397=\"Yes\")*(MATCH(ROW('Orodha ua uhakiki wa Miliki'!$I$1:$I$397), ROW('Orodha ua uhakiki wa Miliki'!$I$1:$I$397)))+('Orodha ua uhakiki wa Miliki'!$I$1:$I$397<>\"Yes\")*1048577, 0, 0), ROW(A142))),\"\")","v":""},{"$f":"IFERROR(VLOOKUP(B146,'Orodha ua uhakiki wa Miliki'!B:C,2,0),\"\")","v":""},{"$f":"IFERROR(VLOOKUP(VLOOKUP(B146,'Orodha ua uhakiki wa Miliki'!B:J,9,0),DropDowns!G:H,2,0),\"\")","v":""},{"$f":"IFERROR(VLOOKUP(B146,'Orodha ua uhakiki wa Miliki'!B:E,4,0),\"\")","v":""},{"$f":"IFERROR(VLOOKUP(B146,'Orodha ua uhakiki wa Miliki'!B:G,6,0),\"\")","v":""},null,"",null,""]
[null,{"$f":"IFERROR(INDEX('Orodha ua uhakiki wa Miliki'!$B$1:$B$397, SMALL(INDEX(('Orodha ua uhakiki wa Miliki'!$I$1:$I$397=\"Yes\")*(MATCH(ROW('Orodha ua uhakiki wa Miliki'!$I$1:$I$397), ROW('Orodha ua uhakiki wa Miliki'!$I$1:$I$397)))+('Orodha ua uhakiki wa Miliki'!$I$1:$I$397<>\"Yes\")*1048577, 0, 0), ROW(A143))),\"\")","v":""},{"$f":"IFERROR(VLOOKUP(B147,'Orodha ua uhakiki wa Miliki'!B:C,2,0),\"\")","v":""},{"$f":"IFERROR(VLOOKUP(VLOOKUP(B147,'Orodha ua uhakiki wa Miliki'!B:J,9,0),DropDowns!G:H,2,0),\"\")","v":""},{"$f":"IFERROR(VLOOKUP(B147,'Orodha ua uhakiki wa Miliki'!B:E,4,0),\"\")","v":""},{"$f":"IFERROR(VLOOKUP(B147,'Orodha ua uhakiki wa Miliki'!B:G,6,0),\"\")","v":""},null,"",null,""]
[null,{"$f":"IFERROR(INDEX('Orodha ua uhakiki wa Miliki'!$B$1:$B$397, SMALL(INDEX(('Orodha ua uhakiki wa Miliki'!$I$1:$I$397=\"Yes\")*(MATCH(ROW('Orodha ua uhakiki wa Miliki'!$I$1:$I$397), ROW('Orodha ua uhakiki wa Miliki'!$I$1:$I$397)))+('Orodha ua uhakiki wa Miliki'!$I$1:$I$397<>\"Yes\")*1048577, 0, 0), ROW(A144))),\"\")","v":""},{"$f":"IFERROR(VLOOKUP(B148,'Orodha ua uhakiki wa Miliki'!B:C,2,0),\"\")","v":""},{"$f":"IFERROR(VLOOKUP(VLOOKUP(B148,'Orodha ua uhakiki wa Miliki'!B:J,9,0),DropDowns!G:H,2,0),\"\")","v":""},{"$f":"IFERROR(VLOOKUP(B148,'Orodha ua uhakiki wa Miliki'!B:E,4,0),\"\")","v":""},{"$f":"IFERROR(VLOOKUP(B148,'Orodha ua uhakiki wa Miliki'!B:G,6,0),\"\")","v":""},null,"",null,""]
[null,{"$f":"IFERROR(INDEX('Orodha ua uhakiki wa Miliki'!$B$1:$B$397, SMALL(INDEX(('Orodha ua uhakiki wa Miliki'!$I$1:$I$397=\"Yes\")*(MATCH(ROW('Orodha ua uhakiki wa Miliki'!$I$1:$I$397), ROW('Orodha ua uhakiki wa Miliki'!$I$1:$I$397)))+('Orodha ua uhakiki wa Miliki'!$I$1:$I$397<>\"Yes\")*1048577, 0, 0), ROW(A145))),\"\")","v":""},{"$f":"IFERROR(VLOOKUP(B149,'Orodha ua uhakiki wa Miliki'!B:C,2,0),\"\")","v":""},{"$f":"IFERROR(VLOOKUP(VLOOKUP(B149,'Orodha ua uhakiki wa Miliki'!B:J,9,0),DropDowns!G:H,2,0),\"\")","v":""},{"$f":"IFERROR(VLOOKUP(B149,'Orodha ua uhakiki wa Miliki'!B:E,4,0),\"\")","v":""},{"$f":"IFERROR(VLOOKUP(B149,'Orodha ua uhakiki wa Miliki'!B:G,6,0),\"\")","v":""},null,"",null,""]
[null,{"$f":"IFERROR(INDEX('Orodha ua uhakiki wa Miliki'!$B$1:$B$397, SMALL(INDEX(('Orodha ua uhakiki wa Miliki'!$I$1:$I$397=\"Yes\")*(MATCH(ROW('Orodha ua uhakiki wa Miliki'!$I$1:$I$397), ROW('Orodha ua uhakiki wa Miliki'!$I$1:$I$397)))+('Orodha ua uhakiki wa Miliki'!$I$1:$I$397<>\"Yes\")*1048577, 0, 0), ROW(A146))),\"\")","v":""},{"$f":"IFERROR(VLOOKUP(B150,'Orodha ua uhakiki wa Miliki'!B:C,2,0),\"\")","v":""},{"$f":"IFERROR(VLOOKUP(VLOOKUP(B150,'Orodha ua uhakiki wa Miliki'!B:J,9,0),DropDowns!G:H,2,0),\"\")","v":""},{"$f":"IFERROR(VLOOKUP(B150,'Orodha ua uhakiki wa Miliki'!B:E,4,0),\"\")","v":""},{"$f":"IFERROR(VLOOKUP(B150,'Orodha ua uhakiki wa Miliki'!B:G,6,0),\"\")","v":""},null,"",null,""]
[null,{"$f":"IFERROR(INDEX('Orodha ua uhakiki wa Miliki'!$B$1:$B$397, SMALL(INDEX(('Orodha ua uhakiki wa Miliki'!$I$1:$I$397=\"Yes\")*(MATCH(ROW('Orodha ua uhakiki wa Miliki'!$I$1:$I$397), ROW('Orodha ua uhakiki wa Miliki'!$I$1:$I$397)))+('Orodha ua uhakiki wa Miliki'!$I$1:$I$397<>\"Yes\")*1048577, 0, 0), ROW(A147))),\"\")","v":""},{"$f":"IFERROR(VLOOKUP(B151,'Orodha ua uhakiki wa Miliki'!B:C,2,0),\"\")","v":""},{"$f":"IFERROR(VLOOKUP(VLOOKUP(B151,'Orodha ua uhakiki wa Miliki'!B:J,9,0),DropDowns!G:H,2,0),\"\")","v":""},{"$f":"IFERROR(VLOOKUP(B151,'Orodha ua uhakiki wa Miliki'!B:E,4,0),\"\")","v":""},{"$f":"IFERROR(VLOOKUP(B151,'Orodha ua uhakiki wa Miliki'!B:G,6,0),\"\")","v":""},null,"",null,""]
[null,{"$f":"IFERROR(INDEX('Orodha ua uhakiki wa Miliki'!$B$1:$B$397, SMALL(INDEX(('Orodha ua uhakiki wa Miliki'!$I$1:$I$397=\"Yes\")*(MATCH(ROW('Orodha ua uhakiki wa Miliki'!$I$1:$I$397), ROW('Orodha ua uhakiki wa Miliki'!$I$1:$I$397)))+('Orodha ua uhakiki wa Miliki'!$I$1:$I$397<>\"Yes\")*1048577, 0, 0), ROW(A148))),\"\")","v":""},{"$f":"IFERROR(VLOOKUP(B152,'Orodha ua uhakiki wa Miliki'!B:C,2,0),\"\")","v":""},{"$f":"IFERROR(VLOOKUP(VLOOKUP(B152,'Orodha ua uhakiki wa Miliki'!B:J,9,0),DropDowns!G:H,2,0),\"\")","v":""},{"$f":"IFERROR(VLOOKUP(B152,'Orodha ua uhakiki wa Miliki'!B:E,4,0),\"\")","v":""},{"$f":"IFERROR(VLOOKUP(B152,'Orodha ua uhakiki wa Miliki'!B:G,6,0),\"\")","v":""},null,"",null,""]
[null,{"$f":"IFERROR(INDEX('Orodha ua uhakiki wa Miliki'!$B$1:$B$397, SMALL(INDEX(('Orodha ua uhakiki wa Miliki'!$I$1:$I$397=\"Yes\")*(MATCH(ROW('Orodha ua uhakiki wa Miliki'!$I$1:$I$397), ROW('Orodha ua uhakiki wa Miliki'!$I$1:$I$397)))+('Orodha ua uhakiki wa Miliki'!$I$1:$I$397<>\"Yes\")*1048577, 0, 0), ROW(A149))),\"\")","v":""},{"$f":"IFERROR(VLOOKUP(B153,'Orodha ua uhakiki wa Miliki'!B:C,2,0),\"\")","v":""},{"$f":"IFERROR(VLOOKUP(VLOOKUP(B153,'Orodha ua uhakiki wa Miliki'!B:J,9,0),DropDowns!G:H,2,0),\"\")","v":""},{"$f":"IFERROR(VLOOKUP(B153,'Orodha ua uhakiki wa Miliki'!B:E,4,0),\"\")","v":""},{"$f":"IFERROR(VLOOKUP(B153,'Orodha ua uhakiki wa Miliki'!B:G,6,0),\"\")","v":""},null,"",null,""]
[null,{"$f":"IFERROR(INDEX('Orodha ua uhakiki wa Miliki'!$B$1:$B$397, SMALL(INDEX(('Orodha ua uhakiki wa Miliki'!$I$1:$I$397=\"Yes\")*(MATCH(ROW('Orodha ua uhakiki wa Miliki'!$I$1:$I$397), ROW('Orodha ua uhakiki wa Miliki'!$I$1:$I$397)))+('Orodha ua uhakiki wa Miliki'!$I$1:$I$397<>\"Yes\")*1048577, 0, 0), ROW(A150))),\"\")","v":""},{"$f":"IFERROR(VLOOKUP(B154,'Orodha ua uhakiki wa Miliki'!B:C,2,0),\"\")","v":""},{"$f":"IFERROR(VLOOKUP(VLOOKUP(B154,'Orodha ua uhakiki wa Miliki'!B:J,9,0),DropDowns!G:H,2,0),\"\")","v":""},{"$f":"IFERROR(VLOOKUP(B154,'Orodha ua uhakiki wa Miliki'!B:E,4,0),\"\")","v":""},{"$f":"IFERROR(VLOOKUP(B154,'Orodha ua uhakiki wa Miliki'!B:G,6,0),\"\")","v":""},null,"",null,""]
[null,{"$f":"IFERROR(INDEX('Orodha ua uhakiki wa Miliki'!$B$1:$B$397, SMALL(INDEX(('Orodha ua uhakiki wa Miliki'!$I$1:$I$397=\"Yes\")*(MATCH(ROW('Orodha ua uhakiki wa Miliki'!$I$1:$I$397), ROW('Orodha ua uhakiki wa Miliki'!$I$1:$I$397)))+('Orodha ua uhakiki wa Miliki'!$I$1:$I$397<>\"Yes\")*1048577, 0, 0), ROW(A151))),\"\")","v":""},{"$f":"IFERROR(VLOOKUP(B155,'Orodha ua uhakiki wa Miliki'!B:C,2,0),\"\")","v":""},{"$f":"IFERROR(VLOOKUP(VLOOKUP(B155,'Orodha ua uhakiki wa Miliki'!B:J,9,0),DropDowns!G:H,2,0),\"\")","v":""},{"$f":"IFERROR(VLOOKUP(B155,'Orodha ua uhakiki wa Miliki'!B:E,4,0),\"\")","v":""},{"$f":"IFERROR(VLOOKUP(B155,'Orodha ua uhakiki wa Miliki'!B:G,6,0),\"\")","v":""},null,"",null,""]
[null,{"$f":"IFERROR(INDEX('Orodha ua uhakiki wa Miliki'!$B$1:$B$397, SMALL(INDEX(('Orodha ua uhakiki wa Miliki'!$I$1:$I$397=\"Yes\")*(MATCH(ROW('Orodha ua uhakiki wa Miliki'!$I$1:$I$397), ROW('Orodha ua uhakiki wa Miliki'!$I$1:$I$397)))+('Orodha ua uhakiki wa Miliki'!$I$1:$I$397<>\"Yes\")*1048577, 0, 0), ROW(A152))),\"\")","v":""},{"$f":"IFERROR(VLOOKUP(B156,'Orodha ua uhakiki wa Miliki'!B:C,2,0),\"\")","v":""},{"$f":"IFERROR(VLOOKUP(VLOOKUP(B156,'Orodha ua uhakiki wa Miliki'!B:J,9,0),DropDowns!G:H,2,0),\"\")","v":""},{"$f":"IFERROR(VLOOKUP(B156,'Orodha ua uhakiki wa Miliki'!B:E,4,0),\"\")","v":""},{"$f":"IFERROR(VLOOKUP(B156,'Orodha ua uhakiki wa Miliki'!B:G,6,0),\"\")","v":""},null,"",null,""]
[null,{"$f":"IFERROR(INDEX('Orodha ua uhakiki wa Miliki'!$B$1:$B$397, SMALL(INDEX(('Orodha ua uhakiki wa Miliki'!$I$1:$I$397=\"Yes\")*(MATCH(ROW('Orodha ua uhakiki wa Miliki'!$I$1:$I$397), ROW('Orodha ua uhakiki wa Miliki'!$I$1:$I$397)))+('Orodha ua uhakiki wa Miliki'!$I$1:$I$397<>\"Yes\")*1048577, 0, 0), ROW(A153))),\"\")","v":""},{"$f":"IFERROR(VLOOKUP(B157,'Orodha ua uhakiki wa Miliki'!B:C,2,0),\"\")","v":""},{"$f":"IFERROR(VLOOKUP(VLOOKUP(B157,'Orodha ua uhakiki wa Miliki'!B:J,9,0),DropDowns!G:H,2,0),\"\")","v":""},{"$f":"IFERROR(VLOOKUP(B157,'Orodha ua uhakiki wa Miliki'!B:E,4,0),\"\")","v":""},{"$f":"IFERROR(VLOOKUP(B157,'Orodha ua uhakiki wa Miliki'!B:G,6,0),\"\")","v":""},null,"",null,""]
[null,{"$f":"IFERROR(INDEX('Orodha ua uhakiki wa Miliki'!$B$1:$B$397, SMALL(INDEX(('Orodha ua uhakiki wa Miliki'!$I$1:$I$397=\"Yes\")*(MATCH(ROW('Orodha ua uhakiki wa Miliki'!$I$1:$I$397), ROW('Orodha ua uhakiki wa Miliki'!$I$1:$I$397)))+('Orodha ua uhakiki wa Miliki'!$I$1:$I$397<>\"Yes\")*1048577, 0, 0), ROW(A154))),\"\")","v":""},{"$f":"IFERROR(VLOOKUP(B158,'Orodha ua uhakiki wa Miliki'!B:C,2,0),\"\")","v":""},{"$f":"IFERROR(VLOOKUP(VLOOKUP(B158,'Orodha ua uhakiki wa Miliki'!B:J,9,0),DropDowns!G:H,2,0),\"\")","v":""},{"$f":"IFERROR(VLOOKUP(B158,'Orodha ua uhakiki wa Miliki'!B:E,4,0),\"\")","v":""},{"$f":"IFERROR(VLOOKUP(B158,'Orodha ua uhakiki wa Miliki'!B:G,6,0),\"\")","v":""},null,"",null,""]
[null,{"$f":"IFERROR(INDEX('Orodha ua uhakiki wa Miliki'!$B$1:$B$397, SMALL(INDEX(('Orodha ua uhakiki wa Miliki'!$I$1:$I$397=\"Yes\")*(MATCH(ROW('Orodha ua uhakiki wa Miliki'!$I$1:$I$397), ROW('Orodha ua uhakiki wa Miliki'!$I$1:$I$397)))+('Orodha ua uhakiki wa Miliki'!$I$1:$I$397<>\"Yes\")*1048577, 0, 0), ROW(A155))),\"\")","v":""},{"$f":"IFERROR(VLOOKUP(B159,'Orodha ua uhakiki wa Miliki'!B:C,2,0),\"\")","v":""},{"$f":"IFERROR(VLOOKUP(VLOOKUP(B159,'Orodha ua uhakiki wa Miliki'!B:J,9,0),DropDowns!G:H,2,0),\"\")","v":""},{"$f":"IFERROR(VLOOKUP(B159,'Orodha ua uhakiki wa Miliki'!B:E,4,0),\"\")","v":""},{"$f":"IFERROR(VLOOKUP(B159,'Orodha ua uhakiki wa Miliki'!B:G,6,0),\"\")","v":""},null,"",null,""]
[null,{"$f":"IFERROR(INDEX('Orodha ua uhakiki wa Miliki'!$B$1:$B$397, SMALL(INDEX(('Orodha ua uhakiki wa Miliki'!$I$1:$I$397=\"Yes\")*(MATCH(ROW('Orodha ua uhakiki wa Miliki'!$I$1:$I$397), ROW('Orodha ua uhakiki wa Miliki'!$I$1:$I$397)))+('Orodha ua uhakiki wa Miliki'!$I$1:$I$397<>\"Yes\")*1048577, 0, 0), ROW(A156))),\"\")","v":""},{"$f":"IFERROR(VLOOKUP(B160,'Orodha ua uhakiki wa Miliki'!B:C,2,0),\"\")","v":""},{"$f":"IFERROR(VLOOKUP(VLOOKUP(B160,'Orodha ua uhakiki wa Miliki'!B:J,9,0),DropDowns!G:H,2,0),\"\")","v":""},{"$f":"IFERROR(VLOOKUP(B160,'Orodha ua uhakiki wa Miliki'!B:E,4,0),\"\")","v":""},{"$f":"IFERROR(VLOOKUP(B160,'Orodha ua uhakiki wa Miliki'!B:G,6,0),\"\")","v":""},null,"",null,""]
[null,{"$f":"IFERROR(INDEX('Orodha ua uhakiki wa Miliki'!$B$1:$B$397, SMALL(INDEX(('Orodha ua uhakiki wa Miliki'!$I$1:$I$397=\"Yes\")*(MATCH(ROW('Orodha ua uhakiki wa Miliki'!$I$1:$I$397), ROW('Orodha ua uhakiki wa Miliki'!$I$1:$I$397)))+('Orodha ua uhakiki wa Miliki'!$I$1:$I$397<>\"Yes\")*1048577, 0, 0), ROW(A157))),\"\")","v":""},{"$f":"IFERROR(VLOOKUP(B161,'Orodha ua uhakiki wa Miliki'!B:C,2,0),\"\")","v":""},{"$f":"IFERROR(VLOOKUP(VLOOKUP(B161,'Orodha ua uhakiki wa Miliki'!B:J,9,0),DropDowns!G:H,2,0),\"\")","v":""},{"$f":"IFERROR(VLOOKUP(B161,'Orodha ua uhakiki wa Miliki'!B:E,4,0),\"\")","v":""},{"$f":"IFERROR(VLOOKUP(B161,'Orodha ua uhakiki wa Miliki'!B:G,6,0),\"\")","v":""},null,"",null,""]
[null,{"$f":"IFERROR(INDEX('Orodha ua uhakiki wa Miliki'!$B$1:$B$397, SMALL(INDEX(('Orodha ua uhakiki wa Miliki'!$I$1:$I$397=\"Yes\")*(MATCH(ROW('Orodha ua uhakiki wa Miliki'!$I$1:$I$397), ROW('Orodha ua uhakiki wa Miliki'!$I$1:$I$397)))+('Orodha ua uhakiki wa Miliki'!$I$1:$I$397<>\"Yes\")*1048577, 0, 0), ROW(A158))),\"\")","v":""},{"$f":"IFERROR(VLOOKUP(B162,'Orodha ua uhakiki wa Miliki'!B:C,2,0),\"\")","v":""},{"$f":"IFERROR(VLOOKUP(VLOOKUP(B162,'Orodha ua uhakiki wa Miliki'!B:J,9,0),DropDowns!G:H,2,0),\"\")","v":""},{"$f":"IFERROR(VLOOKUP(B162,'Orodha ua uhakiki wa Miliki'!B:E,4,0),\"\")","v":""},{"$f":"IFERROR(VLOOKUP(B162,'Orodha ua uhakiki wa Miliki'!B:G,6,0),\"\")","v":""},null,"",null,""]
[null,{"$f":"IFERROR(INDEX('Orodha ua uhakiki wa Miliki'!$B$1:$B$397, SMALL(INDEX(('Orodha ua uhakiki wa Miliki'!$I$1:$I$397=\"Yes\")*(MATCH(ROW('Orodha ua uhakiki wa Miliki'!$I$1:$I$397), ROW('Orodha ua uhakiki wa Miliki'!$I$1:$I$397)))+('Orodha ua uhakiki wa Miliki'!$I$1:$I$397<>\"Yes\")*1048577, 0, 0), ROW(A159))),\"\")","v":""},{"$f":"IFERROR(VLOOKUP(B163,'Orodha ua uhakiki wa Miliki'!B:C,2,0),\"\")","v":""},{"$f":"IFERROR(VLOOKUP(VLOOKUP(B163,'Orodha ua uhakiki wa Miliki'!B:J,9,0),DropDowns!G:H,2,0),\"\")","v":""},{"$f":"IFERROR(VLOOKUP(B163,'Orodha ua uhakiki wa Miliki'!B:E,4,0),\"\")","v":""},{"$f":"IFERROR(VLOOKUP(B163,'Orodha ua uhakiki wa Miliki'!B:G,6,0),\"\")","v":""},null,"",null,""]
[null,{"$f":"IFERROR(INDEX('Orodha ua uhakiki wa Miliki'!$B$1:$B$397, SMALL(INDEX(('Orodha ua uhakiki wa Miliki'!$I$1:$I$397=\"Yes\")*(MATCH(ROW('Orodha ua uhakiki wa Miliki'!$I$1:$I$397), ROW('Orodha ua uhakiki wa Miliki'!$I$1:$I$397)))+('Orodha ua uhakiki wa Miliki'!$I$1:$I$397<>\"Yes\")*1048577, 0, 0), ROW(A160))),\"\")","v":""},{"$f":"IFERROR(VLOOKUP(B164,'Orodha ua uhakiki wa Miliki'!B:C,2,0),\"\")","v":""},{"$f":"IFERROR(VLOOKUP(VLOOKUP(B164,'Orodha ua uhakiki wa Miliki'!B:J,9,0),DropDowns!G:H,2,0),\"\")","v":""},{"$f":"IFERROR(VLOOKUP(B164,'Orodha ua uhakiki wa Miliki'!B:E,4,0),\"\")","v":""},{"$f":"IFERROR(VLOOKUP(B164,'Orodha ua uhakiki wa Miliki'!B:G,6,0),\"\")","v":""},null,"",null,""]
[null,{"$f":"IFERROR(INDEX('Orodha ua uhakiki wa Miliki'!$B$1:$B$397, SMALL(INDEX(('Orodha ua uhakiki wa Miliki'!$I$1:$I$397=\"Yes\")*(MATCH(ROW('Orodha ua uhakiki wa Miliki'!$I$1:$I$397), ROW('Orodha ua uhakiki wa Miliki'!$I$1:$I$397)))+('Orodha ua uhakiki wa Miliki'!$I$1:$I$397<>\"Yes\")*1048577, 0, 0), ROW(A161))),\"\")","v":""},{"$f":"IFERROR(VLOOKUP(B165,'Orodha ua uhakiki wa Miliki'!B:C,2,0),\"\")","v":""},{"$f":"IFERROR(VLOOKUP(VLOOKUP(B165,'Orodha ua uhakiki wa Miliki'!B:J,9,0),DropDowns!G:H,2,0),\"\")","v":""},{"$f":"IFERROR(VLOOKUP(B165,'Orodha ua uhakiki wa Miliki'!B:E,4,0),\"\")","v":""},{"$f":"IFERROR(VLOOKUP(B165,'Orodha ua uhakiki wa Miliki'!B:G,6,0),\"\")","v":""},null,{"$f":"IF(B165<>\"\",\"Ya ndani:\",\"\")","v":""},null,{"$f":"IF(B165<>\"\",\"Ya nje:\",\"\")","v":""}]
[null,{"$f":"IFERROR(INDEX('Orodha ua uhakiki wa Miliki'!$B$1:$B$397, SMALL(INDEX(('Orodha ua uhakiki wa Miliki'!$I$1:$I$397=\"Yes\")*(MATCH(ROW('Orodha ua uhakiki wa Miliki'!$I$1:$I$397), ROW('Orodha ua uhakiki wa Miliki'!$I$1:$I$397)))+('Orodha ua uhakiki wa Miliki'!$I$1:$I$397<>\"Yes\")*1048577, 0, 0), ROW(A162))),\"\")","v":""},{"$f":"IFERROR(VLOOKUP(B166,'Orodha ua uhakiki wa Miliki'!B:C,2,0),\"\")","v":""},{"$f":"IFERROR(VLOOKUP(VLOOKUP(B166,'Orodha ua uhakiki wa Miliki'!B:J,9,0),DropDowns!G:H,2,0),\"\")","v":""},{"$f":"IFERROR(VLOOKUP(B166,'Orodha ua uhakiki wa Miliki'!B:E,4,0),\"\")","v":""},{"$f":"IFERROR(VLOOKUP(B166,'Orodha ua uhakiki wa Miliki'!B:G,6,0),\"\")","v":""},null,"",null,""]
[null,{"$f":"IFERROR(INDEX('Orodha ua uhakiki wa Miliki'!$B$1:$B$397, SMALL(INDEX(('Orodha ua uhakiki wa Miliki'!$I$1:$I$397=\"Yes\")*(MATCH(ROW('Orodha ua uhakiki wa Miliki'!$I$1:$I$397), ROW('Orodha ua uhakiki wa Miliki'!$I$1:$I$397)))+('Orodha ua uhakiki wa Miliki'!$I$1:$I$397<>\"Yes\")*1048577, 0, 0), ROW(A163))),\"\")","v":""},{"$f":"IFERROR(VLOOKUP(B167,'Orodha ua uhakiki wa Miliki'!B:C,2,0),\"\")","v":""},{"$f":"IFERROR(VLOOKUP(VLOOKUP(B167,'Orodha ua uhakiki wa Miliki'!B:J,9,0),DropDowns!G:H,2,0),\"\")","v":""},{"$f":"IFERROR(VLOOKUP(B167,'Orodha ua uhakiki wa Miliki'!B:E,4,0),\"\")","v":""},{"$f":"IFERROR(VLOOKUP(B167,'Orodha ua uhakiki wa Miliki'!B:G,6,0),\"\")","v":""},null,"",null,""]
[null,{"$f":"IFERROR(INDEX('Orodha ua uhakiki wa Miliki'!$B$1:$B$397, SMALL(INDEX(('Orodha ua uhakiki wa Miliki'!$I$1:$I$397=\"Yes\")*(MATCH(ROW('Orodha ua uhakiki wa Miliki'!$I$1:$I$397), ROW('Orodha ua uhakiki wa Miliki'!$I$1:$I$397)))+('Orodha ua uhakiki wa Miliki'!$I$1:$I$397<>\"Yes\")*1048577, 0, 0), ROW(A164))),\"\")","v":""},{"$f":"IFERROR(VLOOKUP(B168,'Orodha ua uhakiki wa Miliki'!B:C,2,0),\"\")","v":""},{"$f":"IFERROR(VLOOKUP(VLOOKUP(B168,'Orodha ua uhakiki wa Miliki'!B:J,9,0),DropDowns!G:H,2,0),\"\")","v":""},{"$f":"IFERROR(VLOOKUP(B168,'Orodha ua uhakiki wa Miliki'!B:E,4,0),\"\")","v":""},{"$f":"IFERROR(VLOOKUP(B168,'Orodha ua uhakiki wa Miliki'!B:G,6,0),\"\")","v":""},null,"",null,""]
[null,{"$f":"IFERROR(INDEX('Orodha ua uhakiki wa Miliki'!$B$1:$B$397, SMALL(INDEX(('Orodha ua uhakiki wa Miliki'!$I$1:$I$397=\"Yes\")*(MATCH(ROW('Orodha ua uhakiki wa Miliki'!$I$1:$I$397), ROW('Orodha ua uhakiki wa Miliki'!$I$1:$I$397)))+('Orodha ua uhakiki wa Miliki'!$I$1:$I$397<>\"Yes\")*1048577, 0, 0), ROW(A165))),\"\")","v":""},{"$f":"IFERROR(VLOOKUP(B169,'Orodha ua uhakiki wa Miliki'!B:C,2,0),\"\")","v":""},{"$f":"IFERROR(VLOOKUP(VLOOKUP(B169,'Orodha ua uhakiki wa Miliki'!B:J,9,0),DropDowns!G:H,2,0),\"\")","v":""},{"$f":"IFERROR(VLOOKUP(B169,'Orodha ua uhakiki wa Miliki'!B:E,4,0),\"\")","v":""},{"$f":"IFERROR(VLOOKUP(B169,'Orodha ua uhakiki wa Miliki'!B:G,6,0),\"\")","v":""},null,"",null,""]
[null,{"$f":"IFERROR(INDEX('Orodha ua uhakiki wa Miliki'!$B$1:$B$397, SMALL(INDEX(('Orodha ua uhakiki wa Miliki'!$I$1:$I$397=\"Yes\")*(MATCH(ROW('Orodha ua uhakiki wa Miliki'!$I$1:$I$397), ROW('Orodha ua uhakiki wa Miliki'!$I$1:$I$397)))+('Orodha ua uhakiki wa Miliki'!$I$1:$I$397<>\"Yes\")*1048577, 0, 0), ROW(A166))),\"\")","v":""},{"$f":"IFERROR(VLOOKUP(B170,'Orodha ua uhakiki wa Miliki'!B:C,2,0),\"\")","v":""},{"$f":"IFERROR(VLOOKUP(VLOOKUP(B170,'Orodha ua uhakiki wa Miliki'!B:J,9,0),DropDowns!G:H,2,0),\"\")","v":""},{"$f":"IFERROR(VLOOKUP(B170,'Orodha ua uhakiki wa Miliki'!B:E,4,0),\"\")","v":""},{"$f":"IFERROR(VLOOKUP(B170,'Orodha ua uhakiki wa Miliki'!B:G,6,0),\"\")","v":""},null,"",null,""]
[null,{"$f":"IFERROR(INDEX('Orodha ua uhakiki wa Miliki'!$B$1:$B$397, SMALL(INDEX(('Orodha ua uhakiki wa Miliki'!$I$1:$I$397=\"Yes\")*(MATCH(ROW('Orodha ua uhakiki wa Miliki'!$I$1:$I$397), ROW('Orodha ua uhakiki wa Miliki'!$I$1:$I$397)))+('Orodha ua uhakiki wa Miliki'!$I$1:$I$397<>\"Yes\")*1048577, 0, 0), ROW(A167))),\"\")","v":""},{"$f":"IFERROR(VLOOKUP(B171,'Orodha ua uhakiki wa Miliki'!B:C,2,0),\"\")","v":""},{"$f":"IFERROR(VLOOKUP(VLOOKUP(B171,'Orodha ua uhakiki wa Miliki'!B:J,9,0),DropDowns!G:H,2,0),\"\")","v":""},{"$f":"IFERROR(VLOOKUP(B171,'Orodha ua uhakiki wa Miliki'!B:E,4,0),\"\")","v":""},{"$f":"IFERROR(VLOOKUP(B171,'Orodha ua uhakiki wa Miliki'!B:G,6,0),\"\")","v":""},null,"",null,""]
[null,{"$f":"IFERROR(INDEX('Orodha ua uhakiki wa Miliki'!$B$1:$B$397, SMALL(INDEX(('Orodha ua uhakiki wa Miliki'!$I$1:$I$397=\"Yes\")*(MATCH(ROW('Orodha ua uhakiki wa Miliki'!$I$1:$I$397), ROW('Orodha ua uhakiki wa Miliki'!$I$1:$I$397)))+('Orodha ua uhakiki wa Miliki'!$I$1:$I$397<>\"Yes\")*1048577, 0, 0), ROW(A168))),\"\")","v":""},{"$f":"IFERROR(VLOOKUP(B172,'Orodha ua uhakiki wa Miliki'!B:C,2,0),\"\")","v":""},{"$f":"IFERROR(VLOOKUP(VLOOKUP(B172,'Orodha ua uhakiki wa Miliki'!B:J,9,0),DropDowns!G:H,2,0),\"\")","v":""},{"$f":"IFERROR(VLOOKUP(B172,'Orodha ua uhakiki wa Miliki'!B:E,4,0),\"\")","v":""},{"$f":"IFERROR(VLOOKUP(B172,'Orodha ua uhakiki wa Miliki'!B:G,6,0),\"\")","v":""},null,"",null,""]
[null,{"$f":"IFERROR(INDEX('Orodha ua uhakiki wa Miliki'!$B$1:$B$397, SMALL(INDEX(('Orodha ua uhakiki wa Miliki'!$I$1:$I$397=\"Yes\")*(MATCH(ROW('Orodha ua uhakiki wa Miliki'!$I$1:$I$397), ROW('Orodha ua uhakiki wa Miliki'!$I$1:$I$397)))+('Orodha ua uhakiki wa Miliki'!$I$1:$I$397<>\"Yes\")*1048577, 0, 0), ROW(A169))),\"\")","v":""},{"$f":"IFERROR(VLOOKUP(B173,'Orodha ua uhakiki wa Miliki'!B:C,2,0),\"\")","v":""},{"$f":"IFERROR(VLOOKUP(VLOOKUP(B173,'Orodha ua uhakiki wa Miliki'!B:J,9,0),DropDowns!G:H,2,0),\"\")","v":""},{"$f":"IFERROR(VLOOKUP(B173,'Orodha ua uhakiki wa Miliki'!B:E,4,0),\"\")","v":""},{"$f":"IFERROR(VLOOKUP(B173,'Orodha ua uhakiki wa Miliki'!B:G,6,0),\"\")","v":""},null,"",null,""]
[null,{"$f":"IFERROR(INDEX('Orodha ua uhakiki wa Miliki'!$B$1:$B$397, SMALL(INDEX(('Orodha ua uhakiki wa Miliki'!$I$1:$I$397=\"Yes\")*(MATCH(ROW('Orodha ua uhakiki wa Miliki'!$I$1:$I$397), ROW('Orodha ua uhakiki wa Miliki'!$I$1:$I$397)))+('Orodha ua uhakiki wa Miliki'!$I$1:$I$397<>\"Yes\")*1048577, 0, 0), ROW(A170))),\"\")","v":""},{"$f":"IFERROR(VLOOKUP(B174,'Orodha ua uhakiki wa Miliki'!B:C,2,0),\"\")","v":""},{"$f":"IFERROR(VLOOKUP(VLOOKUP(B174,'Orodha ua uhakiki wa Miliki'!B:J,9,0),DropDowns!G:H,2,0),\"\")","v":""},{"$f":"IFERROR(VLOOKUP(B174,'Orodha ua uhakiki wa Miliki'!B:E,4,0),\"\")","v":""},{"$f":"IFERROR(VLOOKUP(B174,'Orodha ua uhakiki wa Miliki'!B:G,6,0),\"\")","v":""},null,"",null,""]
[null,{"$f":"IFERROR(INDEX('Orodha ua uhakiki wa Miliki'!$B$1:$B$397, SMALL(INDEX(('Orodha ua uhakiki wa Miliki'!$I$1:$I$397=\"Yes\")*(MATCH(ROW('Orodha ua uhakiki wa Miliki'!$I$1:$I$397), ROW('Orodha ua uhakiki wa Miliki'!$I$1:$I$397)))+('Orodha ua uhakiki wa Miliki'!$I$1:$I$397<>\"Yes\")*1048577, 0, 0), ROW(A171))),\"\")","v":""},{"$f":"IFERROR(VLOOKUP(B175,'Orodha ua uhakiki wa Miliki'!B:C,2,0),\"\")","v":""},{"$f":"IFERROR(VLOOKUP(VLOOKUP(B175,'Orodha ua uhakiki wa Miliki'!B:J,9,0),DropDowns!G:H,2,0),\"\")","v":""},{"$f":"IFERROR(VLOOKUP(B175,'Orodha ua uhakiki wa Miliki'!B:E,4,0),\"\")","v":""},{"$f":"IFERROR(VLOOKUP(B175,'Orodha ua uhakiki wa Miliki'!B:G,6,0),\"\")","v":""},null,"",null,""]
[null,{"$f":"IFERROR(INDEX('Orodha ua uhakiki wa Miliki'!$B$1:$B$397, SMALL(INDEX(('Orodha ua uhakiki wa Miliki'!$I$1:$I$397=\"Yes\")*(MATCH(ROW('Orodha ua uhakiki wa Miliki'!$I$1:$I$397), ROW('Orodha ua uhakiki wa Miliki'!$I$1:$I$397)))+('Orodha ua uhakiki wa Miliki'!$I$1:$I$397<>\"Yes\")*1048577, 0, 0), ROW(A172))),\"\")","v":""},{"$f":"IFERROR(VLOOKUP(B176,'Orodha ua uhakiki wa Miliki'!B:C,2,0),\"\")","v":""},{"$f":"IFERROR(VLOOKUP(VLOOKUP(B176,'Orodha ua uhakiki wa Miliki'!B:J,9,0),DropDowns!G:H,2,0),\"\")","v":""},{"$f":"IFERROR(VLOOKUP(B176,'Orodha ua uhakiki wa Miliki'!B:E,4,0),\"\")","v":""},{"$f":"IFERROR(VLOOKUP(B176,'Orodha ua uhakiki wa Miliki'!B:G,6,0),\"\")","v":""},null,"",null,""]
[null,{"$f":"IFERROR(INDEX('Orodha ua uhakiki wa Miliki'!$B$1:$B$397, SMALL(INDEX(('Orodha ua uhakiki wa Miliki'!$I$1:$I$397=\"Yes\")*(MATCH(ROW('Orodha ua uhakiki wa Miliki'!$I$1:$I$397), ROW('Orodha ua uhakiki wa Miliki'!$I$1:$I$397)))+('Orodha ua uhakiki wa Miliki'!$I$1:$I$397<>\"Yes\")*1048577, 0, 0), ROW(A173))),\"\")","v":""},{"$f":"IFERROR(VLOOKUP(B177,'Orodha ua uhakiki wa Miliki'!B:C,2,0),\"\")","v":""},{"$f":"IFERROR(VLOOKUP(VLOOKUP(B177,'Orodha ua uhakiki wa Miliki'!B:J,9,0),DropDowns!G:H,2,0),\"\")","v":""},{"$f":"IFERROR(VLOOKUP(B177,'Orodha ua uhakiki wa Miliki'!B:E,4,0),\"\")","v":""},{"$f":"IFERROR(VLOOKUP(B177,'Orodha ua uhakiki wa Miliki'!B:G,6,0),\"\")","v":""},null,"",null,""]
[null,{"$f":"IFERROR(INDEX('Orodha ua uhakiki wa Miliki'!$B$1:$B$397, SMALL(INDEX(('Orodha ua uhakiki wa Miliki'!$I$1:$I$397=\"Yes\")*(MATCH(ROW('Orodha ua uhakiki wa Miliki'!$I$1:$I$397), ROW('Orodha ua uhakiki wa Miliki'!$I$1:$I$397)))+('Orodha ua uhakiki wa Miliki'!$I$1:$I$397<>\"Yes\")*1048577, 0, 0), ROW(A174))),\"\")","v":""},{"$f":"IFERROR(VLOOKUP(B178,'Orodha ua uhakiki wa Miliki'!B:C,2,0),\"\")","v":""},{"$f":"IFERROR(VLOOKUP(VLOOKUP(B178,'Orodha ua uhakiki wa Miliki'!B:J,9,0),DropDowns!G:H,2,0),\"\")","v":""},{"$f":"IFERROR(VLOOKUP(B178,'Orodha ua uhakiki wa Miliki'!B:E,4,0),\"\")","v":""},{"$f":"IFERROR(VLOOKUP(B178,'Orodha ua uhakiki wa Miliki'!B:G,6,0),\"\")","v":""},null,"",null,""]
[null,{"$f":"IFERROR(INDEX('Orodha ua uhakiki wa Miliki'!$B$1:$B$397, SMALL(INDEX(('Orodha ua uhakiki wa Miliki'!$I$1:$I$397=\"Yes\")*(MATCH(ROW('Orodha ua uhakiki wa Miliki'!$I$1:$I$397), ROW('Orodha ua uhakiki wa Miliki'!$I$1:$I$397)))+('Orodha ua uhakiki wa Miliki'!$I$1:$I$397<>\"Yes\")*1048577, 0, 0), ROW(A175))),\"\")","v":""},{"$f":"IFERROR(VLOOKUP(B179,'Orodha ua uhakiki wa Miliki'!B:C,2,0),\"\")","v":""},{"$f":"IFERROR(VLOOKUP(VLOOKUP(B179,'Orodha ua uhakiki wa Miliki'!B:J,9,0),DropDowns!G:H,2,0),\"\")","v":""},{"$f":"IFERROR(VLOOKUP(B179,'Orodha ua uhakiki wa Miliki'!B:E,4,0),\"\")","v":""},{"$f":"IFERROR(VLOOKUP(B179,'Orodha ua uhakiki wa Miliki'!B:G,6,0),\"\")","v":""},null,"",null,""]
[null,{"$f":"IFERROR(INDEX('Orodha ua uhakiki wa Miliki'!$B$1:$B$397, SMALL(INDEX(('Orodha ua uhakiki wa Miliki'!$I$1:$I$397=\"Yes\")*(MATCH(ROW('Orodha ua uhakiki wa Miliki'!$I$1:$I$397), ROW('Orodha ua uhakiki wa Miliki'!$I$1:$I$397)))+('Orodha ua uhakiki wa Miliki'!$I$1:$I$397<>\"Yes\")*1048577, 0, 0), ROW(A176))),\"\")","v":""},{"$f":"IFERROR(VLOOKUP(B180,'Orodha ua uhakiki wa Miliki'!B:C,2,0),\"\")","v":""},{"$f":"IFERROR(VLOOKUP(VLOOKUP(B180,'Orodha ua uhakiki wa Miliki'!B:J,9,0),DropDowns!G:H,2,0),\"\")","v":""},{"$f":"IFERROR(VLOOKUP(B180,'Orodha ua uhakiki wa Miliki'!B:E,4,0),\"\")","v":""},{"$f":"IFERROR(VLOOKUP(B180,'Orodha ua uhakiki wa Miliki'!B:G,6,0),\"\")","v":""},null,"",null,""]
[null,{"$f":"IFERROR(INDEX('Orodha ua uhakiki wa Miliki'!$B$1:$B$397, SMALL(INDEX(('Orodha ua uhakiki wa Miliki'!$I$1:$I$397=\"Yes\")*(MATCH(ROW('Orodha ua uhakiki wa Miliki'!$I$1:$I$397), ROW('Orodha ua uhakiki wa Miliki'!$I$1:$I$397)))+('Orodha ua uhakiki wa Miliki'!$I$1:$I$397<>\"Yes\")*1048577, 0, 0), ROW(A177))),\"\")","v":""},{"$f":"IFERROR(VLOOKUP(B181,'Orodha ua uhakiki wa Miliki'!B:C,2,0),\"\")","v":""},{"$f":"IFERROR(VLOOKUP(VLOOKUP(B181,'Orodha ua uhakiki wa Miliki'!B:J,9,0),DropDowns!G:H,2,0),\"\")","v":""},{"$f":"IFERROR(VLOOKUP(B181,'Orodha ua uhakiki wa Miliki'!B:E,4,0),\"\")","v":""},{"$f":"IFERROR(VLOOKUP(B181,'Orodha ua uhakiki wa Miliki'!B:G,6,0),\"\")","v":""},null,"",null,""]
[null,{"$f":"IFERROR(INDEX('Orodha ua uhakiki wa Miliki'!$B$1:$B$397, SMALL(INDEX(('Orodha ua uhakiki wa Miliki'!$I$1:$I$397=\"Yes\")*(MATCH(ROW('Orodha ua uhakiki wa Miliki'!$I$1:$I$397), ROW('Orodha ua uhakiki wa Miliki'!$I$1:$I$397)))+('Orodha ua uhakiki wa Miliki'!$I$1:$I$397<>\"Yes\")*1048577, 0, 0), ROW(A178))),\"\")","v":""},{"$f":"IFERROR(VLOOKUP(B182,'Orodha ua uhakiki wa Miliki'!B:C,2,0),\"\")","v":""},{"$f":"IFERROR(VLOOKUP(VLOOKUP(B182,'Orodha ua uhakiki wa Miliki'!B:J,9,0),DropDowns!G:H,2,0),\"\")","v":""},{"$f":"IFERROR(VLOOKUP(B182,'Orodha ua uhakiki wa Miliki'!B:E,4,0),\"\")","v":""},{"$f":"IFERROR(VLOOKUP(B182,'Orodha ua uhakiki wa Miliki'!B:G,6,0),\"\")","v":""},null,"",null,""]
[null,{"$f":"IFERROR(INDEX('Orodha ua uhakiki wa Miliki'!$B$1:$B$397, SMALL(INDEX(('Orodha ua uhakiki wa Miliki'!$I$1:$I$397=\"Yes\")*(MATCH(ROW('Orodha ua uhakiki wa Miliki'!$I$1:$I$397), ROW('Orodha ua uhakiki wa Miliki'!$I$1:$I$397)))+('Orodha ua uhakiki wa Miliki'!$I$1:$I$397<>\"Yes\")*1048577, 0, 0), ROW(A179))),\"\")","v":""},{"$f":"IFERROR(VLOOKUP(B183,'Orodha ua uhakiki wa Miliki'!B:C,2,0),\"\")","v":""},{"$f":"IFERROR(VLOOKUP(VLOOKUP(B183,'Orodha ua uhakiki wa Miliki'!B:J,9,0),DropDowns!G:H,2,0),\"\")","v":""},{"$f":"IFERROR(VLOOKUP(B183,'Orodha ua uhakiki wa Miliki'!B:E,4,0),\"\")","v":""},{"$f":"IFERROR(VLOOKUP(B183,'Orodha ua uhakiki wa Miliki'!B:G,6,0),\"\")","v":""},null,"",null,""]
[null,{"$f":"IFERROR(INDEX('Orodha ua uhakiki wa Miliki'!$B$1:$B$397, SMALL(INDEX(('Orodha ua uhakiki wa Miliki'!$I$1:$I$397=\"Yes\")*(MATCH(ROW('Orodha ua uhakiki wa Miliki'!$I$1:$I$397), ROW('Orodha ua uhakiki wa Miliki'!$I$1:$I$397)))+('Orodha ua uhakiki wa Miliki'!$I$1:$I$397<>\"Yes\")*1048577, 0, 0), ROW(A180))),\"\")","v":""},{"$f":"IFERROR(VLOOKUP(B184,'Orodha ua uhakiki wa Miliki'!B:C,2,0),\"\")","v":""},{"$f":"IFERROR(VLOOKUP(VLOOKUP(B184,'Orodha ua uhakiki wa Miliki'!B:J,9,0),DropDowns!G:H,2,0),\"\")","v":""},{"$f":"IFERROR(VLOOKUP(B184,'Orodha ua uhakiki wa Miliki'!B:E,4,0),\"\")","v":""},{"$f":"IFERROR(VLOOKUP(B184,'Orodha ua uhakiki wa Miliki'!B:G,6,0),\"\")","v":""},null,"",null,""]
[null,{"$f":"IFERROR(INDEX('Orodha ua uhakiki wa Miliki'!$B$1:$B$397, SMALL(INDEX(('Orodha ua uhakiki wa Miliki'!$I$1:$I$397=\"Yes\")*(MATCH(ROW('Orodha ua uhakiki wa Miliki'!$I$1:$I$397), ROW('Orodha ua uhakiki wa Miliki'!$I$1:$I$397)))+('Orodha ua uhakiki wa Miliki'!$I$1:$I$397<>\"Yes\")*1048577, 0, 0), ROW(A181))),\"\")","v":""},{"$f":"IFERROR(VLOOKUP(B185,'Orodha ua uhakiki wa Miliki'!B:C,2,0),\"\")","v":""},{"$f":"IFERROR(VLOOKUP(VLOOKUP(B185,'Orodha ua uhakiki wa Miliki'!B:J,9,0),DropDowns!G:H,2,0),\"\")","v":""},{"$f":"IFERROR(VLOOKUP(B185,'Orodha ua uhakiki wa Miliki'!B:E,4,0),\"\")","v":""},{"$f":"IFERROR(VLOOKUP(B185,'Orodha ua uhakiki wa Miliki'!B:G,6,0),\"\")","v":""},null,"",null,""]
[null,{"$f":"IFERROR(INDEX('Orodha ua uhakiki wa Miliki'!$B$1:$B$397, SMALL(INDEX(('Orodha ua uhakiki wa Miliki'!$I$1:$I$397=\"Yes\")*(MATCH(ROW('Orodha ua uhakiki wa Miliki'!$I$1:$I$397), ROW('Orodha ua uhakiki wa Miliki'!$I$1:$I$397)))+('Orodha ua uhakiki wa Miliki'!$I$1:$I$397<>\"Yes\")*1048577, 0, 0), ROW(A182))),\"\")","v":""},{"$f":"IFERROR(VLOOKUP(B186,'Orodha ua uhakiki wa Miliki'!B:C,2,0),\"\")","v":""},{"$f":"IFERROR(VLOOKUP(VLOOKUP(B186,'Orodha ua uhakiki wa Miliki'!B:J,9,0),DropDowns!G:H,2,0),\"\")","v":""},{"$f":"IFERROR(VLOOKUP(B186,'Orodha ua uhakiki wa Miliki'!B:E,4,0),\"\")","v":""},{"$f":"IFERROR(VLOOKUP(B186,'Orodha ua uhakiki wa Miliki'!B:G,6,0),\"\")","v":""},null,"",null,""]
[null,{"$f":"IFERROR(INDEX('Orodha ua uhakiki wa Miliki'!$B$1:$B$397, SMALL(INDEX(('Orodha ua uhakiki wa Miliki'!$I$1:$I$397=\"Yes\")*(MATCH(ROW('Orodha ua uhakiki wa Miliki'!$I$1:$I$397), ROW('Orodha ua uhakiki wa Miliki'!$I$1:$I$397)))+('Orodha ua uhakiki wa Miliki'!$I$1:$I$397<>\"Yes\")*1048577, 0, 0), ROW(A183))),\"\")","v":""},{"$f":"IFERROR(VLOOKUP(B187,'Orodha ua uhakiki wa Miliki'!B:C,2,0),\"\")","v":""},{"$f":"IFERROR(VLOOKUP(VLOOKUP(B187,'Orodha ua uhakiki wa Miliki'!B:J,9,0),DropDowns!G:H,2,0),\"\")","v":""},{"$f":"IFERROR(VLOOKUP(B187,'Orodha ua uhakiki wa Miliki'!B:E,4,0),\"\")","v":""},{"$f":"IFERROR(VLOOKUP(B187,'Orodha ua uhakiki wa Miliki'!B:G,6,0),\"\")","v":""},null,"",null,""]
[null,{"$f":"IFERROR(INDEX('Orodha ua uhakiki wa Miliki'!$B$1:$B$397, SMALL(INDEX(('Orodha ua uhakiki wa Miliki'!$I$1:$I$397=\"Yes\")*(MATCH(ROW('Orodha ua uhakiki wa Miliki'!$I$1:$I$397), ROW('Orodha ua uhakiki wa Miliki'!$I$1:$I$397)))+('Orodha ua uhakiki wa Miliki'!$I$1:$I$397<>\"Yes\")*1048577, 0, 0), ROW(A184))),\"\")","v":""},{"$f":"IFERROR(VLOOKUP(B188,'Orodha ua uhakiki wa Miliki'!B:C,2,0),\"\")","v":""},{"$f":"IFERROR(VLOOKUP(VLOOKUP(B188,'Orodha ua uhakiki wa Miliki'!B:J,9,0),DropDowns!G:H,2,0),\"\")","v":""},{"$f":"IFERROR(VLOOKUP(B188,'Orodha ua uhakiki wa Miliki'!B:E,4,0),\"\")","v":""},{"$f":"IFERROR(VLOOKUP(B188,'Orodha ua uhakiki wa Miliki'!B:G,6,0),\"\")","v":""},null,"",null,""]
[null,{"$f":"IFERROR(INDEX('Orodha ua uhakiki wa Miliki'!$B$1:$B$397, SMALL(INDEX(('Orodha ua uhakiki wa Miliki'!$I$1:$I$397=\"Yes\")*(MATCH(ROW('Orodha ua uhakiki wa Miliki'!$I$1:$I$397), ROW('Orodha ua uhakiki wa Miliki'!$I$1:$I$397)))+('Orodha ua uhakiki wa Miliki'!$I$1:$I$397<>\"Yes\")*1048577, 0, 0), ROW(A185))),\"\")","v":""},{"$f":"IFERROR(VLOOKUP(B189,'Orodha ua uhakiki wa Miliki'!B:C,2,0),\"\")","v":""},{"$f":"IFERROR(VLOOKUP(VLOOKUP(B189,'Orodha ua uhakiki wa Miliki'!B:J,9,0),DropDowns!G:H,2,0),\"\")","v":""},{"$f":"IFERROR(VLOOKUP(B189,'Orodha ua uhakiki wa Miliki'!B:E,4,0),\"\")","v":""},{"$f":"IFERROR(VLOOKUP(B189,'Orodha ua uhakiki wa Miliki'!B:G,6,0),\"\")","v":""},null,"",null,""]
[null,{"$f":"IFERROR(INDEX('Orodha ua uhakiki wa Miliki'!$B$1:$B$397, SMALL(INDEX(('Orodha ua uhakiki wa Miliki'!$I$1:$I$397=\"Yes\")*(MATCH(ROW('Orodha ua uhakiki wa Miliki'!$I$1:$I$397), ROW('Orodha ua uhakiki wa Miliki'!$I$1:$I$397)))+('Orodha ua uhakiki wa Miliki'!$I$1:$I$397<>\"Yes\")*1048577, 0, 0), ROW(A186))),\"\")","v":""},{"$f":"IFERROR(VLOOKUP(B190,'Orodha ua uhakiki wa Miliki'!B:C,2,0),\"\")","v":""},{"$f":"IFERROR(VLOOKUP(VLOOKUP(B190,'Orodha ua uhakiki wa Miliki'!B:J,9,0),DropDowns!G:H,2,0),\"\")","v":""},{"$f":"IFERROR(VLOOKUP(B190,'Orodha ua uhakiki wa Miliki'!B:E,4,0),\"\")","v":""},{"$f":"IFERROR(VLOOKUP(B190,'Orodha ua uhakiki wa Miliki'!B:G,6,0),\"\")","v":""},null,"",null,""]
[null,{"$f":"IFERROR(INDEX('Orodha ua uhakiki wa Miliki'!$B$1:$B$397, SMALL(INDEX(('Orodha ua uhakiki wa Miliki'!$I$1:$I$397=\"Yes\")*(MATCH(ROW('Orodha ua uhakiki wa Miliki'!$I$1:$I$397), ROW('Orodha ua uhakiki wa Miliki'!$I$1:$I$397)))+('Orodha ua uhakiki wa Miliki'!$I$1:$I$397<>\"Yes\")*1048577, 0, 0), ROW(A187))),\"\")","v":""},{"$f":"IFERROR(VLOOKUP(B191,'Orodha ua uhakiki wa Miliki'!B:C,2,0),\"\")","v":""},{"$f":"IFERROR(VLOOKUP(VLOOKUP(B191,'Orodha ua uhakiki wa Miliki'!B:J,9,0),DropDowns!G:H,2,0),\"\")","v":""},{"$f":"IFERROR(VLOOKUP(B191,'Orodha ua uhakiki wa Miliki'!B:E,4,0),\"\")","v":""},{"$f":"IFERROR(VLOOKUP(B191,'Orodha ua uhakiki wa Miliki'!B:G,6,0),\"\")","v":""},null,"",null,""]
[null,{"$f":"IFERROR(INDEX('Orodha ua uhakiki wa Miliki'!$B$1:$B$397, SMALL(INDEX(('Orodha ua uhakiki wa Miliki'!$I$1:$I$397=\"Yes\")*(MATCH(ROW('Orodha ua uhakiki wa Miliki'!$I$1:$I$397), ROW('Orodha ua uhakiki wa Miliki'!$I$1:$I$397)))+('Orodha ua uhakiki wa Miliki'!$I$1:$I$397<>\"Yes\")*1048577, 0, 0), ROW(A188))),\"\")","v":""},{"$f":"IFERROR(VLOOKUP(B192,'Orodha ua uhakiki wa Miliki'!B:C,2,0),\"\")","v":""},{"$f":"IFERROR(VLOOKUP(VLOOKUP(B192,'Orodha ua uhakiki wa Miliki'!B:J,9,0),DropDowns!G:H,2,0),\"\")","v":""},{"$f":"IFERROR(VLOOKUP(B192,'Orodha ua uhakiki wa Miliki'!B:E,4,0),\"\")","v":""},{"$f":"IFERROR(VLOOKUP(B192,'Orodha ua uhakiki wa Miliki'!B:G,6,0),\"\")","v":""},null,"",null,""]
[null,{"$f":"IFERROR(INDEX('Orodha ua uhakiki wa Miliki'!$B$1:$B$397, SMALL(INDEX(('Orodha ua uhakiki wa Miliki'!$I$1:$I$397=\"Yes\")*(MATCH(ROW('Orodha ua uhakiki wa Miliki'!$I$1:$I$397), ROW('Orodha ua uhakiki wa Miliki'!$I$1:$I$397)))+('Orodha ua uhakiki wa Miliki'!$I$1:$I$397<>\"Yes\")*1048577, 0, 0), ROW(A189))),\"\")","v":""},{"$f":"IFERROR(VLOOKUP(B193,'Orodha ua uhakiki wa Miliki'!B:C,2,0),\"\")","v":""},{"$f":"IFERROR(VLOOKUP(VLOOKUP(B193,'Orodha ua uhakiki wa Miliki'!B:J,9,0),DropDowns!G:H,2,0),\"\")","v":""},{"$f":"IFERROR(VLOOKUP(B193,'Orodha ua uhakiki wa Miliki'!B:E,4,0),\"\")","v":""},{"$f":"IFERROR(VLOOKUP(B193,'Orodha ua uhakiki wa Miliki'!B:G,6,0),\"\")","v":""},null,"",null,""]
[null,{"$f":"IFERROR(INDEX('Orodha ua uhakiki wa Miliki'!$B$1:$B$397, SMALL(INDEX(('Orodha ua uhakiki wa Miliki'!$I$1:$I$397=\"Yes\")*(MATCH(ROW('Orodha ua uhakiki wa Miliki'!$I$1:$I$397), ROW('Orodha ua uhakiki wa Miliki'!$I$1:$I$397)))+('Orodha ua uhakiki wa Miliki'!$I$1:$I$397<>\"Yes\")*1048577, 0, 0), ROW(A190))),\"\")","v":""},{"$f":"IFERROR(VLOOKUP(B194,'Orodha ua uhakiki wa Miliki'!B:C,2,0),\"\")","v":""},{"$f":"IFERROR(VLOOKUP(VLOOKUP(B194,'Orodha ua uhakiki wa Miliki'!B:J,9,0),DropDowns!G:H,2,0),\"\")","v":""},{"$f":"IFERROR(VLOOKUP(B194,'Orodha ua uhakiki wa Miliki'!B:E,4,0),\"\")","v":""},{"$f":"IFERROR(VLOOKUP(B194,'Orodha ua uhakiki wa Miliki'!B:G,6,0),\"\")","v":""},null,"",null,""]
[null,{"$f":"IFERROR(INDEX('Orodha ua uhakiki wa Miliki'!$B$1:$B$397, SMALL(INDEX(('Orodha ua uhakiki wa Miliki'!$I$1:$I$397=\"Yes\")*(MATCH(ROW('Orodha ua uhakiki wa Miliki'!$I$1:$I$397), ROW('Orodha ua uhakiki wa Miliki'!$I$1:$I$397)))+('Orodha ua uhakiki wa Miliki'!$I$1:$I$397<>\"Yes\")*1048577, 0, 0), ROW(A191))),\"\")","v":""},{"$f":"IFERROR(VLOOKUP(B195,'Orodha ua uhakiki wa Miliki'!B:C,2,0),\"\")","v":""},{"$f":"IFERROR(VLOOKUP(VLOOKUP(B195,'Orodha ua uhakiki wa Miliki'!B:J,9,0),DropDowns!G:H,2,0),\"\")","v":""},{"$f":"IFERROR(VLOOKUP(B195,'Orodha ua uhakiki wa Miliki'!B:E,4,0),\"\")","v":""},{"$f":"IFERROR(VLOOKUP(B195,'Orodha ua uhakiki wa Miliki'!B:G,6,0),\"\")","v":""},null,"",null,""]
[null,{"$f":"IFERROR(INDEX('Orodha ua uhakiki wa Miliki'!$B$1:$B$397, SMALL(INDEX(('Orodha ua uhakiki wa Miliki'!$I$1:$I$397=\"Yes\")*(MATCH(ROW('Orodha ua uhakiki wa Miliki'!$I$1:$I$397), ROW('Orodha ua uhakiki wa Miliki'!$I$1:$I$397)))+('Orodha ua uhakiki wa Miliki'!$I$1:$I$397<>\"Yes\")*1048577, 0, 0), ROW(A192))),\"\")","v":""},{"$f":"IFERROR(VLOOKUP(B196,'Orodha ua uhakiki wa Miliki'!B:C,2,0),\"\")","v":""},{"$f":"IFERROR(VLOOKUP(VLOOKUP(B196,'Orodha ua uhakiki wa Miliki'!B:J,9,0),DropDowns!G:H,2,0),\"\")","v":""},{"$f":"IFERROR(VLOOKUP(B196,'Orodha ua uhakiki wa Miliki'!B:E,4,0),\"\")","v":""},{"$f":"IFERROR(VLOOKUP(B196,'Orodha ua uhakiki wa Miliki'!B:G,6,0),\"\")","v":""},null,"",null,""]
[null,{"$f":"IFERROR(INDEX('Orodha ua uhakiki wa Miliki'!$B$1:$B$397, SMALL(INDEX(('Orodha ua uhakiki wa Miliki'!$I$1:$I$397=\"Yes\")*(MATCH(ROW('Orodha ua uhakiki wa Miliki'!$I$1:$I$397), ROW('Orodha ua uhakiki wa Miliki'!$I$1:$I$397)))+('Orodha ua uhakiki wa Miliki'!$I$1:$I$397<>\"Yes\")*1048577, 0, 0), ROW(A193))),\"\")","v":""},{"$f":"IFERROR(VLOOKUP(B197,'Orodha ua uhakiki wa Miliki'!B:C,2,0),\"\")","v":""},{"$f":"IFERROR(VLOOKUP(VLOOKUP(B197,'Orodha ua uhakiki wa Miliki'!B:J,9,0),DropDowns!G:H,2,0),\"\")","v":""},{"$f":"IFERROR(VLOOKUP(B197,'Orodha ua uhakiki wa Miliki'!B:E,4,0),\"\")","v":""},{"$f":"IFERROR(VLOOKUP(B197,'Orodha ua uhakiki wa Miliki'!B:G,6,0),\"\")","v":""},null,"",null,""]
[null,{"$f":"IFERROR(INDEX('Orodha ua uhakiki wa Miliki'!$B$1:$B$397, SMALL(INDEX(('Orodha ua uhakiki wa Miliki'!$I$1:$I$397=\"Yes\")*(MATCH(ROW('Orodha ua uhakiki wa Miliki'!$I$1:$I$397), ROW('Orodha ua uhakiki wa Miliki'!$I$1:$I$397)))+('Orodha ua uhakiki wa Miliki'!$I$1:$I$397<>\"Yes\")*1048577, 0, 0), ROW(A194))),\"\")","v":""},{"$f":"IFERROR(VLOOKUP(B198,'Orodha ua uhakiki wa Miliki'!B:C,2,0),\"\")","v":""},{"$f":"IFERROR(VLOOKUP(VLOOKUP(B198,'Orodha ua uhakiki wa Miliki'!B:J,9,0),DropDowns!G:H,2,0),\"\")","v":""},{"$f":"IFERROR(VLOOKUP(B198,'Orodha ua uhakiki wa Miliki'!B:E,4,0),\"\")","v":""},{"$f":"IFERROR(VLOOKUP(B198,'Orodha ua uhakiki wa Miliki'!B:G,6,0),\"\")","v":""},null,"",null,""]
[null,{"$f":"IFERROR(INDEX('Orodha ua uhakiki wa Miliki'!$B$1:$B$397, SMALL(INDEX(('Orodha ua uhakiki wa Miliki'!$I$1:$I$397=\"Yes\")*(MATCH(ROW('Orodha ua uhakiki wa Miliki'!$I$1:$I$397), ROW('Orodha ua uhakiki wa Miliki'!$I$1:$I$397)))+('Orodha ua uhakiki wa Miliki'!$I$1:$I$397<>\"Yes\")*1048577, 0, 0), ROW(A195))),\"\")","v":""},{"$f":"IFERROR(VLOOKUP(B199,'Orodha ua uhakiki wa Miliki'!B:C,2,0),\"\")","v":""},{"$f":"IFERROR(VLOOKUP(VLOOKUP(B199,'Orodha ua uhakiki wa Miliki'!B:J,9,0),DropDowns!G:H,2,0),\"\")","v":""},{"$f":"IFERROR(VLOOKUP(B199,'Orodha ua uhakiki wa Miliki'!B:E,4,0),\"\")","v":""},{"$f":"IFERROR(VLOOKUP(B199,'Orodha ua uhakiki wa Miliki'!B:G,6,0),\"\")","v":""},null,"",null,""]
[null,{"$f":"IFERROR(INDEX('Orodha ua uhakiki wa Miliki'!$B$1:$B$397, SMALL(INDEX(('Orodha ua uhakiki wa Miliki'!$I$1:$I$397=\"Yes\")*(MATCH(ROW('Orodha ua uhakiki wa Miliki'!$I$1:$I$397), ROW('Orodha ua uhakiki wa Miliki'!$I$1:$I$397)))+('Orodha ua uhakiki wa Miliki'!$I$1:$I$397<>\"Yes\")*1048577, 0, 0), ROW(A196))),\"\")","v":""},{"$f":"IFERROR(VLOOKUP(B200,'Orodha ua uhakiki wa Miliki'!B:C,2,0),\"\")","v":""},{"$f":"IFERROR(VLOOKUP(VLOOKUP(B200,'Orodha ua uhakiki wa Miliki'!B:J,9,0),DropDowns!G:H,2,0),\"\")","v":""},{"$f":"IFERROR(VLOOKUP(B200,'Orodha ua uhakiki wa Miliki'!B:E,4,0),\"\")","v":""},{"$f":"IFERROR(VLOOKUP(B200,'Orodha ua uhakiki wa Miliki'!B:G,6,0),\"\")","v":""},null,"",null,""]

{"sheet":"Maelekezo-Kilimo cha mkataba","index":3,"n_rows":40,"n_cols":2,"rows_kept":40,"cut":false,"hidden":false,"merged":[[1,1,1,16],[38,1,38,16],[39,1,39,16]]}
[]
[null,"ZANA ZA UPIMAJI NA MAELEKEZO YA UINGIAJI"]
[]
[]
[]
[]
[]
[]
[]
[]
[]
[]
[]
[]
[]
[]
[]
[]
[]
[]
[]
[]
[]
[]
[]
[]
[]
[]
[]
[]
[]
[]
[]
[]
[]
[]
[]
[]
[]
[null,"ORODHA YA UHAKIKI WA KILIMO CHA MKATABA & MAELEKEZO  "]

{"sheet":"OUKIM","index":4,"n_rows":326,"n_cols":10,"rows_kept":326,"cut":false,"hidden":false,"merged":[]}
[]
[null,1,"Orodha ya Tathmini   ",null,"Hali","Maoni & Uhifadhi wa nyaraka  ","Kihatarishi (1=ya chini; 3= ya juu  )",null,"Report Ident","Group"]
[null,2]
[null,3,"I. Tathmini ya Sera ya Kilimo cha Mkataba na Uwezo  ",{"$f":"IF(COUNT(D5:D19)=0,\"\",ROUND(SUM(D5:D19)/COUNT(D5:D19),0))","v":""},null,null,{"$f":"IFERROR(ROUND(SUM(G5:G18)/COUNT(G5:G18),0),\"\")","v":""}]
[null,null,null,{"$f":"IF(OR(E5=\"\",E5=\"(select option)\"),\"\",VLOOKUP(E5,DropDowns!C:D,2,0))","v":""}]
[null,5,"1.1 Sera ya Kilimo cha Mkataba  "]
[null,6,"1.1.1 Je, haki ya ardhi ya kampuni na sera ya ESIA zinafanya kazi kwenye mpango wa kilimo cha mkataba au mbinu zingine mbadala za kibiashara (kama nyongeza ya ardhi inayomilikiwa, kukodiwa au kutumiwa na kampuni)  ",{"$f":"IF(OR(E7=\"\",E7=\"(chagua uchaguzi)\"),\"\",IF(VLOOKUP(E7,DropDowns!B:D,3,0)=0,\"\",VLOOKUP(E7,DropDowns!B:D,3,0)))","v":""},"(chagua uchaguzi)",null,"(chagua kiwango)",null,{"$f":"IF(OR(AND(D7<3,E7<>\"N/A\" ),AND(G7>1,G7<>\"(chagua kiwango)\",E7<>\"N/A\")),\"Yes\",\"No\")","v":"No"},1]
[null,7,"1.1.2 Are outgrower bodies (e.g., outgrower associations, trusts, cooperatives, etc.) and farmers aware of the company’s policies, including whether they apply to them?",{"$f":"IF(OR(E8=\"\",E8=\"(chagua uchaguzi)\"),\"\",IF(VLOOKUP(E8,DropDowns!B:D,3,0)=0,\"\",VLOOKUP(E8,DropDowns!B:D,3,0)))","v":""},"(chagua uchaguzi)",null,"(chagua kiwango)",null,{"$f":"IF(OR(AND(D8<3,E8<>\"N/A\" ),AND(G8>1,G8<>\"(chagua kiwango)\",E8<>\"N/A\")),\"Yes\",\"No\")","v":"No"},1]
[null,8,"1.1.3 Je, kuna Haki za ardhi na sera za ESIA zilizotajwa katika nyaraka za serikali na makubaliano baina ya mihimili ya kilimo cha mkataba, wakulima wa kilimo cha mkataba na mikataba ya kampuni (kwa mfano, sheria ndogo ndogo, mikataba ya utafutaji wa miwa nk)?",{"$f":"IF(OR(E9=\"\",E9=\"(chagua uchaguzi)\"),\"\",IF(VLOOKUP(E9,DropDowns!B:D,3,0)=0,\"\",VLOOKUP(E9,DropDowns!B:D,3,0)))","v":""},"(chagua uchaguzi)",null,"(chagua kiwango)",null,"No",1]
[null,9,"1.1.4  Je, marejeo ya mikataba baina ya mihimili ya kilimo cha mkataba, wakulima wa kilimo cha mkataba, na kampuni hujumuisha hatua ambazo kampuni itachukua katika kukabiliana na vitendo visivyotii masharti ya mkataba (kwa mfano, onyo, kusitisha mkataba, nk)?",{"$f":"IF(OR(E10=\"\",E10=\"(chagua uchaguzi)\"),\"\",IF(VLOOKUP(E10,DropDowns!B:D,3,0)=0,\"\",VLOOKUP(E10,DropDowns!B:D,3,0)))","v":""},"(chagua uchaguzi)",null,"(chagua kiwango)",null,"No",1]
[null,10,"1.1.5 Je, mpango wa kilimo cha mkataba cha kampuni unashughulika na namna ya kuhamasisha vyombo vya kilimo cha mkataba na wakulima juu ya haki ardhi yake na  sera ya ESIA?",{"$f":"IF(OR(E11=\"\",E11=\"(chagua uchaguzi)\"),\"\",IF(VLOOKUP(E11,DropDowns!B:D,3,0)=0,\"\",VLOOKUP(E11,DropDowns!B:D,3,0)))","v":""},"(chagua uchaguzi)",null,"(chagua kiwango)",null,"No",1]
[null,11,"1.1.6 Je, mpango wa kilimo cha mkataba unaonesha jinsi utakavyoshughulika katika kuvihamasisha na kuvifanya vyombo vya kilimo cha mkataba na wakulima waweze kutii sheria kwa kukubaliana na haki zake za ardhi na sera ya ESIA?",{"$f":"IF(OR(E12=\"\",E12=\"(chagua uchaguzi)\"),\"\",IF(VLOOKUP(E12,DropDowns!B:D,3,0)=0,\"\",VLOOKUP(E12,DropDowns!B:D,3,0)))","v":""},"(chagua uchaguzi)",null,"(chagua kiwango)",null,"No",1]
[null,12,null,{"$f":"IF(OR(E13=\"\",E13=\"(select option)\"),\"\",VLOOKUP(E13,DropDowns!C:D,2,0))","v":""},null,null,null,null,"No",1]
[null,13,null,{"$f":"IF(OR(E14=\"\",E14=\"(select option)\"),\"\",VLOOKUP(E14,DropDowns!C:D,2,0))","v":""},null,null,null,null,"No",1]
[null,14,"1.2 Uwezo wa Wafanyakazi  ",{"$f":"IF(OR(E15=\"\",E15=\"(select option)\"),\"\",VLOOKUP(E15,DropDowns!C:D,2,0))","v":""},null,null,null,null,"No",1]
[null,15,"1.2.1  Je, kampuni ina wafanyakazi ambao majukumu yao yanajumuisha ufuatiliaji endapo mipangilio ya kilimo cha mkataba imeanzishwa na kusimamiwa kwa namna inayoendana na sera ya ardhi ya kampuni?",{"$f":"IF(OR(E16=\"\",E16=\"(select option)\"),\"\",IF(VLOOKUP(E16,DropDowns!B:D,3,0)=0,\"\",VLOOKUP(E16,DropDowns!B:D,3,0)))","v":""},"(chagua uchaguzi)",null,"(chagua kiwango)",null,"No",1]
[null,16,"1.2.2 Je, wafanyakazi husika wana muda na rasilimali zinazowawezesha kushirikiana na wadau wanaohusika kwa ajili ya kuanzisha au kusimamia miradi ya kilimo cha mkataba (kwa mfano, wadhamini wa kilimo cha mkataba, vyama, mashirika, wakulima, viongozi wa jamii na wajumbe; serikali za mitaa, nk)?",{"$f":"IF(OR(E17=\"\",E17=\"(select option)\"),\"\",IF(VLOOKUP(E17,DropDowns!B:D,3,0)=0,\"\",VLOOKUP(E17,DropDowns!B:D,3,0)))","v":""},"(chagua uchaguzi)",null,"(chagua kiwango)",null,"No",1]
[null,17,null,{"$f":"IF(OR(E18=\"\",E18=\"(select option)\"),\"\",VLOOKUP(E18,DropDowns!C:D,2,0))","v":""}]
[null,18,null,{"$f":"IF(OR(E19=\"\",E19=\"(select option)\"),\"\",VLOOKUP(E19,DropDowns!C:D,2,0))","v":""}]
[null,19,"II. Uhakiki wa Kisheria, Kiutawala na Kitaasisi   ",{"$f":"IF(COUNT(D21:D43)=0,\"\",ROUND(SUM(D21:D43)/COUNT(D21:D43),0))","v":""},null,null,{"$f":"IFERROR(ROUND(SUM(G21:G43)/COUNT(G21:G43),0),\"\")","v":""}]
[null,20,null,{"$f":"IF(OR(E21=\"\",E21=\"(select option)\"),\"\",VLOOKUP(E21,DropDowns!C:D,2,0))","v":""}]
[null,21,"2.1 Uhakiki wa Sheria & Sera  ",{"$f":"IF(OR(E22=\"\",E22=\"(select option)\"),\"\",VLOOKUP(E22,DropDowns!C:D,2,0))","v":""}]
[null,22,"2.1.1  Je! Kuna sheria za ndani au kanuni zinazoongoza namna mipangilio ya kilimo cha mkataba inavyopaswa kuanzishwa na kusimamiwa? Je, sheria hizo zinatekelezwa? ",{"$f":"IF(OR(E23=\"\",E23=\"(select option)\"),\"\",IF(VLOOKUP(E23,DropDowns!B:D,3,0)=0,\"\",VLOOKUP(E23,DropDowns!B:D,3,0)))","v":""},"(chagua uchaguzi)",null,"(chagua kiwango)",null,{"$f":"IF(OR(AND(D23<3,E23<>\"N/A\" ),AND(G23>1,G23<>\"(chagua kiwango)\",E23<>\"N/A\")),\"Yes\",\"No\")","v":"No"},2]
[null,23,"2.1.2 Je, sheria au kanuni hizi hufafanua wazi ulinzi wa haki za binadamu au za ardhi? Je, sheria au kanuni hizo zinatekelezwa?",{"$f":"IF(OR(E24=\"\",E24=\"(select option)\"),\"\",IF(VLOOKUP(E24,DropDowns!B:D,3,0)=0,\"\",VLOOKUP(E24,DropDowns!B:D,3,0)))","v":""},"(chagua uchaguzi)",null,"(chagua kiwango)",null,{"$f":"IF(OR(AND(D24<3,E24<>\"N/A\" ),AND(G24>1,G24<>\"(chagua kiwango)\",E24<>\"N/A\")),\"Yes\",\"No\")","v":"No"},2]
[null,24,"2.1.3  Je, Sheria au kanuni za ndani zinatambua haki za umiliki wa ardhi, ikiwa ni pamoja na haki za kimila na haki zisizo rasmi za watu binafsi na vikundi? Je, sheria hizo zinatekelezwa?  ",{"$f":"IF(OR(E25=\"\",E25=\"(select option)\"),\"\",IF(VLOOKUP(E25,DropDowns!B:D,3,0)=0,\"\",VLOOKUP(E25,DropDowns!B:D,3,0)))","v":""},"(chagua uchaguzi)",null,"(chagua kiwango)",null,"No",2]
[null,25,"2.1.4 Je, Kuna masharti katika matumizi ya sheria au kanuni za ndani zilizopo ndani ya eneo la mradi wa uwekezaji ambazo zinaweza kuathiri haki za wale wanaoishi na kufanya kazi huko?",{"$f":"IF(OR(E26=\"\",E26=\"(select option)\"),\"\",IF(VLOOKUP(E26,DropDowns!B:D,3,0)=0,\"\",VLOOKUP(E26,DropDowns!B:D,3,0)))","v":""},"(chagua uchaguzi)",null,"(chagua kiwango)",null,"No",2]
[null,26,"2.1.5 Je, kuna sheria za ndani zinazohusiana na utaifishaji? Ikiwa ndivyo, ni mahitaji gani ambayo serikali inapaswa kuyazingatia ili kutaifisha ardhi?",{"$f":"IF(OR(E27=\"\",E27=\"(select option)\"),\"\",IF(VLOOKUP(E27,DropDowns!B:D,3,0)=0,\"\",VLOOKUP(E27,DropDowns!B:D,3,0)))","v":""},"(chagua uchaguzi)",null,"(chagua kiwango)",null,"No",2]
[null,27,"2.1.6  Je, au uanzishwaji wa mpango/mipango ya kilimo cha mkataba au mbinu zingine mbadala za kibiashara zinahitaji utaifishaji na makubaliano ya hiari ya jamii inayoishi ndani na ile inayolizunguka eneo la mradi  ",{"$f":"IF(OR(E28=\"\",E28=\"(select option)\"),\"\",IF(VLOOKUP(E28,DropDowns!B:D,3,0)=0,\"\",VLOOKUP(E28,DropDowns!B:D,3,0)))","v":""},"(chagua uchaguzi)",null,"(chagua kiwango)",null,"No",2]
[null,28,"2.1.7   Je, Sheria za ndani zinahitaji mipango ya kilimo cha mkataba kufanya tathmini ya athari za mazingira na / au za kijamii (ESIA) kabla ya kuuanzisha mpango huo?",{"$f":"IF(OR(E29=\"\",E29=\"(select option)\"),\"\",IF(VLOOKUP(E29,DropDowns!B:D,3,0)=0,\"\",VLOOKUP(E29,DropDowns!B:D,3,0)))","v":""},"(chagua uchaguzi)",null,"(chagua kiwango)",null,"No",2]
[null,29,"2.1.8 Ikiwa jibu ni ndiyo, je, sheria zinabainisha ni kipindi gani ESIAs inahitajika (kwa mfano, kabla ya wakulima kukubali kushiriki)?",{"$f":"IF(OR(E30=\"\",E30=\"(select option)\"),\"\",IF(VLOOKUP(E30,DropDowns!B:D,3,0)=0,\"\",VLOOKUP(E30,DropDowns!B:D,3,0)))","v":""},"(chagua uchaguzi)",null,"(chagua kiwango)",null,"No",2]
[null,30,"2.1.9 Je, Sheria zinahitaji kipimo cha athari zinazohusiana na usalama wa haki za ardhi, usalama wa chakula, na haki za binadamu?",{"$f":"IF(OR(E31=\"\",E31=\"(select option)\"),\"\",IF(VLOOKUP(E31,DropDowns!B:D,3,0)=0,\"\",VLOOKUP(E31,DropDowns!B:D,3,0)))","v":""},"(chagua uchaguzi)",null,"(chagua kiwango)",null,"No",2]
[null,31,"2.1.10  Chini ya sheria za sasa, sera, na desturi, je taratibu za kuwasilisha malalamiko zinapatikana kwa vyombo vya kilimo cha mikataba na wakulima?",{"$f":"IF(OR(E32=\"\",E32=\"(select option)\"),\"\",IF(VLOOKUP(E32,DropDowns!B:D,3,0)=0,\"\",VLOOKUP(E32,DropDowns!B:D,3,0)))","v":""},"(chagua uchaguzi)",null,"(chagua kiwango)",null,"No",2]
[null,32,"2.1.11 Ikiwa jibu ni ndiyo, je, taratibu hizo zinapatikana, zinafanya kazi na ni za haki?  ",{"$f":"IF(OR(E33=\"\",E33=\"(select option)\"),\"\",IF(VLOOKUP(E33,DropDowns!B:D,3,0)=0,\"\",VLOOKUP(E33,DropDowns!B:D,3,0)))","v":""},"(chagua uchaguzi)",null,"(chagua kiwango)",null,"No",2]
[null,33,null,{"$f":"IF(OR(E34=\"\",E34=\"(select option)\"),\"\",VLOOKUP(E34,DropDowns!C:D,2,0))","v":""},null,null,null,null,"No",2]
[null,34,null,{"$f":"IF(OR(E35=\"\",E35=\"(select option)\"),\"\",VLOOKUP(E35,DropDowns!C:D,2,0))","v":""},null,null,null,null,"No",2]
[null,35,"2.2 Uhakiki wa Kiutawala ",{"$f":"IF(OR(E36=\"\",E36=\"(select option)\"),\"\",VLOOKUP(E36,DropDowns!C:D,2,0))","v":""},null,null,null,null,"No",2]
[null,36,"2.2.1 Je, kuna kumbukumbu zilizopo ambazo zimehifadhi nyaraka za kumbukumbu za haki za ardhi kwenye  eneo la mradi  ",{"$f":"IF(OR(E37=\"\",E37=\"(select option)\"),\"\",IF(VLOOKUP(E37,DropDowns!B:D,3,0)=0,\"\",VLOOKUP(E37,DropDowns!B:D,3,0)))","v":""},"(chagua uchaguzi)",null,"(chagua kiwango)",null,"No",2]
[null,37,"2.2.2  Je, nyaraka hizo zimeweka katika maandishi kumbukumbu za sheria za nchi, sheria za kimila, na haki zinazotolewa na serikali?",{"$f":"IF(OR(E38=\"\",E38=\"(select option)\"),\"\",IF(VLOOKUP(E38,DropDowns!B:D,3,0)=0,\"\",VLOOKUP(E38,DropDowns!B:D,3,0)))","v":""},"(chagua uchaguzi)",null,"(chagua kiwango)",null,"No",2]
[null,38,"2.2.3 Je, nyaraka hizo zinatoa fursa kwa ajili ya haki za pamoja au za muungano ziweze kuhifadhiwa katika kumbukumbu za maandishi? ",{"$f":"IF(OR(E39=\"\",E39=\"(select option)\"),\"\",IF(VLOOKUP(E39,DropDowns!B:D,3,0)=0,\"\",VLOOKUP(E39,DropDowns!B:D,3,0)))","v":""},"(chagua uchaguzi)",null,"(chagua kiwango)",null,"No",2]
[null,39,"2.2.4 Je, wadau husika (kampuni, serikali, jamii) wana uwezo wa kuzipata nyaraka hizi za kumbukumbu? ",{"$f":"IF(OR(E40=\"\",E40=\"(select option)\"),\"\",IF(VLOOKUP(E40,DropDowns!B:D,3,0)=0,\"\",VLOOKUP(E40,DropDowns!B:D,3,0)))","v":""},"(chagua uchaguzi)",null,"(chagua kiwango)",null,"No",2]
[null,40,"2.2.5   Je, kuna nyaraka ambazo zinathibitisha uhalali wa haki za vyama vya kilimo cha mkataba  na wakulima kumiliki, kukodisha, kutumia, au kuchukua ardhi?",{"$f":"IF(OR(E41=\"\",E41=\"(select option)\"),\"\",IF(VLOOKUP(E41,DropDowns!B:D,3,0)=0,\"\",VLOOKUP(E41,DropDowns!B:D,3,0)))","v":""},"(chagua uchaguzi)",null,"(chagua kiwango)",null,"No",2]
[null,41,"2.2.6  Je, kuna nyaraka zinazounga mkono kwamba ardhi hiyo ilibainishwa na kugawiwa kihalali kwenye mpango wa kilimo cha mkataba?  ",{"$f":"IF(OR(E42=\"\",E42=\"(select option)\"),\"\",IF(VLOOKUP(E42,DropDowns!B:D,3,0)=0,\"\",VLOOKUP(E42,DropDowns!B:D,3,0)))","v":""},"(chagua uchaguzi)",null,"(chagua kiwango)",null,"No",2]
[null,42,null,{"$f":"IF(OR(E43=\"\",E43=\"(select option)\"),\"\",VLOOKUP(E43,DropDowns!C:D,2,0))","v":""},null,null,null,null,"No",2]
[null,43,null,{"$f":"IF(OR(E44=\"\",E44=\"(select option)\"),\"\",VLOOKUP(E44,DropDowns!C:D,2,0))","v":""},null,null,null,null,"No",2]
[null,44,"2.3 Uhakiki wa Kitaasisi  ",{"$f":"IF(OR(E45=\"\",E45=\"(select option)\"),\"\",VLOOKUP(E45,DropDowns!C:D,2,0))","v":""},null,null,null,null,"No",2]
[null,45,"2.3.1 Je, kuna mamlaka za kisheria, kiutawala au kimila ambazo zinafanya kazi kama wadhamini wa haki za ardhi na au sheria jumuishi za usimamizi? ",{"$f":"IF(OR(E46=\"\",E46=\"(select option)\"),\"\",IF(VLOOKUP(E46,DropDowns!B:D,3,0)=0,\"\",VLOOKUP(E46,DropDowns!B:D,3,0)))","v":""},"(chagua uchaguzi)",null,"(chagua kiwango)",null,"No",2]
[null,46,"2.3.2  Ikiwa jibu ni ndiyo, je, mamlaka hizo zina uwezo unaotosheleza kufanya kazi kama wadhamini? ",{"$f":"IF(OR(E47=\"\",E47=\"(select option)\"),\"\",IF(VLOOKUP(E47,DropDowns!B:D,3,0)=0,\"\",VLOOKUP(E47,DropDowns!B:D,3,0)))","v":""},"(chagua uchaguzi)",null,"(chagua kiwango)",null,"No",2]
[null,47,"2.3.3  Je, kuna migogoro iliyopo ambayo inahusiana na uwezo wa mdhamini/wadhamini katika kulinda haki na matumizi ya ardhi kwa ufanisi? ",{"$f":"IF(OR(E48=\"\",E48=\"(select option)\"),\"\",IF(VLOOKUP(E48,DropDowns!B:D,3,0)=0,\"\",VLOOKUP(E48,DropDowns!B:D,3,0)))","v":""},"(chagua uchaguzi)",null,"(chagua kiwango)",null,"No",2]
[null,48,null,{"$f":"IF(OR(E49=\"\",E49=\"(select option)\"),\"\",VLOOKUP(E49,DropDowns!C:D,2,0))","v":""}]
[null,49,null,{"$f":"IF(OR(E50=\"\",E50=\"(select option)\"),\"\",VLOOKUP(E50,DropDowns!C:D,2,0))","v":""}]
[null,50,"III. Tathmini ya Athari   ",{"$f":"IF(COUNT(D52:D78)=0,\"\",ROUND(SUM(D52:D78)/COUNT(D52:D78),0))","v":""},null,null,{"$f":"IFERROR(ROUND(SUM(G52:G78)/COUNT(G52:G78),0),\"\")","v":""}]
[null,51,null,{"$f":"IF(OR(E52=\"\",E52=\"(select option)\"),\"\",VLOOKUP(E52,DropDowns!C:D,2,0))","v":""}]
[null,52,"3.1 Tathmini ya Umiliki wa Ardhi   ",{"$f":"IF(OR(E53=\"\",E53=\"(select option)\"),\"\",VLOOKUP(E53,DropDowns!C:D,2,0))","v":""}]
[null,53,"3.1.1 Ni kwa jinsi gani mpango wa kilimo cha mkataba au mbinu zingine mbadala za kibiashara zilipata au zitapata haki ya kutumia ardhi au kumiliki ardhi vinginevyo?  ",{"$f":"IF(OR(E54=\"\",E54=\"(select option)\"),\"\",IF(VLOOKUP(E54,DropDowns!B:D,3,0)=0,\"\",VLOOKUP(E54,DropDowns!B:D,3,0)))","v":""},"(chagua uchaguzi)",null,"(chagua kiwango)",null,{"$f":"IF(OR(AND(D54<3,E54<>\"N/A\" ),AND(G54>1,G54<>\"(chagua kiwango)\",E54<>\"N/A\")),\"Yes\",\"No\")","v":"No"},3]
[null,54,"3.1.2 Je, maendeleo ya mpango wa kilimo cha mkataba yalihusisha au yatahusisha utaifishaji wa serikali na uhamisho usio wa hiari? ",{"$f":"IF(OR(E55=\"\",E55=\"(select option)\"),\"\",IF(VLOOKUP(E55,DropDowns!B:D,3,0)=0,\"\",VLOOKUP(E55,DropDowns!B:D,3,0)))","v":""},"(chagua uchaguzi)",null,"(chagua kiwango)",null,"No",3]
[null,55,"3.1.3  Je, kampuni imewabainisha wamiliki wote wa haki za ardhi walioathiriwa na uanzishaji wa mpango wa kilimo cha mkataba? ",{"$f":"IF(OR(E56=\"\",E56=\"(select option)\"),\"\",IF(VLOOKUP(E56,DropDowns!B:D,3,0)=0,\"\",VLOOKUP(E56,DropDowns!B:D,3,0)))","v":""},"(chagua uchaguzi)",null,"(chagua kiwango)",null,"No",3]
[null,56,"3.1.4 Je, ubainishaji huo umechukua wigo wa haki za ardhi kwa wamiliki na watumiaji wote wa ardhi, ikiwa ni pamoja na haki za sheria za nchi, kimila, msimu, sheria zinazotolewa na serikali, zinazoingiliana, na haki nyingine zinazotumika? ",{"$f":"IF(OR(E57=\"\",E57=\"(select option)\"),\"\",IF(VLOOKUP(E57,DropDowns!B:D,3,0)=0,\"\",VLOOKUP(E57,DropDowns!B:D,3,0)))","v":""},"(chagua uchaguzi)",null,"(chagua kiwango)",null,"No",3]
[null,57,"3.1.5 Je, ubainishaji huo umezingatia haki na matumizi ya ardhi kwa wanawake, makundi madogo katika jamii, na makundi mengine yanayoishi katika mazingira hatarishi?  ",{"$f":"IF(OR(E58=\"\",E58=\"(select option)\"),\"\",IF(VLOOKUP(E58,DropDowns!B:D,3,0)=0,\"\",VLOOKUP(E58,DropDowns!B:D,3,0)))","v":""},"(chagua uchaguzi)",null,"(chagua kiwango)",null,"No",3]
[null,58,"3.1.6 Je, Kampuni ililenga kubainisha utata wowote  au masuala yoyote ya ardhi kihistoria au migogoro katika eneo la uwekezaji? Na je kampuni hiyo iliamua endapo uwekezaji unaweza kughadhibisha masuala au migogoro hiyo?  ",{"$f":"IF(OR(E59=\"\",E59=\"(select option)\"),\"\",IF(VLOOKUP(E59,DropDowns!B:D,3,0)=0,\"\",VLOOKUP(E59,DropDowns!B:D,3,0)))","v":""},"(chagua uchaguzi)",null,"(chagua kiwango)",null,"No",3]
[null,59,"3.1.7 Ikiwa jibu ni ndiyo, je kampuni imetengeneza mkakati wa ushirikiano au upunguzaji wa vihatarishi ili kutatua migogoro au kuepuka kuendelea kwa migogoro au masuala hayo?  ",{"$f":"IF(OR(E60=\"\",E60=\"(select option)\"),\"\",IF(VLOOKUP(E60,DropDowns!B:D,3,0)=0,\"\",VLOOKUP(E60,DropDowns!B:D,3,0)))","v":""},"(chagua uchaguzi)",null,"(chagua kiwango)",null,"No",3]
[null,60,"3.1.8  Je, kampuni ilitathmini athari za haki za ardhi na matumizi yatokanayo na uanzishaji wa mpango wa kilimo cha mkataba, ikiwa ni pamoja na haki zisizo rasmi, kama vile haki za wanawake, vijana, na / au makundi ya watu wanaoishi katika mazingira hatarishi? tathmini inapaswa ifanyike kabla mpango wa kilimo cha mkataba haujaanzishwa",{"$f":"IF(OR(E61=\"\",E61=\"(select option)\"),\"\",IF(VLOOKUP(E61,DropDowns!B:D,3,0)=0,\"\",VLOOKUP(E61,DropDowns!B:D,3,0)))","v":""},"(chagua uchaguzi)",null,"(chagua kiwango)",null,"No",3]
[null,61,"3.1.9 Je, kampuni ilitengeneza sera au mikakati ya kupunguza au kuepuka athari hasi? ",{"$f":"IF(OR(E62=\"\",E62=\"(select option)\"),\"\",IF(VLOOKUP(E62,DropDowns!B:D,3,0)=0,\"\",VLOOKUP(E62,DropDowns!B:D,3,0)))","v":""},"(chagua uchaguzi)",null,"(chagua kiwango)",null,"No",3]
[null,62,"3.1.10 Je, usanifu wa mradi na / au usanidi wa ardhi umebadilika ili kupunguza athari hizi?  ",{"$f":"IF(OR(E63=\"\",E63=\"(select option)\"),\"\",IF(VLOOKUP(E63,DropDowns!B:D,3,0)=0,\"\",VLOOKUP(E63,DropDowns!B:D,3,0)))","v":""},"(chagua uchaguzi)",null,"(chagua kiwango)",null,"No",3]
[null,63,"3.1.11 Je, wale ambao haki zao za kisheria za ardhi ziliathiriwa hupokea fidia kwa haraka?  ",{"$f":"IF(OR(E64=\"\",E64=\"(select option)\"),\"\",IF(VLOOKUP(E64,DropDowns!B:D,3,0)=0,\"\",VLOOKUP(E64,DropDowns!B:D,3,0)))","v":""},"(chagua uchaguzi)",null,"(chagua kiwango)",null,"No",3]
[null,64,"3.1.12 Ikiwa jibu ni ndiyo, je fidia hiyo huwa ni ya haki, kulingana na uthaminishaji sahihi wa thamani ya hasara iliyopo sokoni na thamani isiyo sokoni?",{"$f":"IF(OR(E65=\"\",E65=\"(select option)\"),\"\",IF(VLOOKUP(E65,DropDowns!B:D,3,0)=0,\"\",VLOOKUP(E65,DropDowns!B:D,3,0)))","v":""},"(chagua uchaguzi)",null,"(chagua kiwango)",null,"No",3]
[null,65,"3.1.13 Je, kampuni ina taratibu zilizowekwa za kusimamia na kupunguza athari katika kipindi chote cha maisha ya mradi?  ",{"$f":"IF(OR(E66=\"\",E66=\"(select option)\"),\"\",IF(VLOOKUP(E66,DropDowns!B:D,3,0)=0,\"\",VLOOKUP(E66,DropDowns!B:D,3,0)))","v":""},"(chagua uchaguzi)",null,"(chagua kiwango)",null,"No",3]
[null,66,null,{"$f":"IF(OR(E67=\"\",E67=\"(select option)\"),\"\",IF(VLOOKUP(E67,DropDowns!B:D,3,0)=0,\"\",VLOOKUP(E67,DropDowns!B:D,3,0)))","v":""},null,null,null,null,"No"]
[null,67,null,{"$f":"IF(OR(E68=\"\",E68=\"(select option)\"),\"\",IF(VLOOKUP(E68,DropDowns!B:D,3,0)=0,\"\",VLOOKUP(E68,DropDowns!B:D,3,0)))","v":""},null,null,null,null,"No"]
[null,68,"3.2 Tathmini ya Kimazingira & Kijamii (ESIA)",{"$f":"IF(OR(E69=\"\",E69=\"(select option)\"),\"\",IF(VLOOKUP(E69,DropDowns!B:D,3,0)=0,\"\",VLOOKUP(E69,DropDowns!B:D,3,0)))","v":""},null,null,null,null,"No"]
[null,69,"3.2.1  Je, kampuni ilifanya tathmini ya athari za kimazingira na kijamii za uwekezaji wa muda mfupi na muda mrefu, na zile za moja kwa moja na zisizo za moja kwa moja?",{"$f":"IF(OR(E70=\"\",E70=\"(select option)\"),\"\",IF(VLOOKUP(E70,DropDowns!B:D,3,0)=0,\"\",VLOOKUP(E70,DropDowns!B:D,3,0)))","v":""},"(chagua uchaguzi)",null,"(chagua kiwango)",null,"No",3]
[null,70,"3.2.2 Je, kampuni hiyo ilitengeneza mpango wa upunguzaji ili kupunguza au kuepuka athari za kimazingira na kijamii?",{"$f":"IF(OR(E71=\"\",E71=\"(select option)\"),\"\",IF(VLOOKUP(E71,DropDowns!B:D,3,0)=0,\"\",VLOOKUP(E71,DropDowns!B:D,3,0)))","v":""},"(chagua uchaguzi)",null,"(chagua kiwango)",null,"No",3]
[null,71,"3.2.3  Kama sehemu ya ESIA, kampuni ilitathmini athari za muda mfupi na muda mrefu na zile za moja kwa moja na zisizo za moja kwa moja katika usalama wa chakula ndani ya jamii zilizoathiriwa na uwekezaji?",{"$f":"IF(OR(E72=\"\",E72=\"(select option)\"),\"\",IF(VLOOKUP(E72,DropDowns!B:D,3,0)=0,\"\",VLOOKUP(E72,DropDowns!B:D,3,0)))","v":""},"(chagua uchaguzi)",null,"(chagua kiwango)",null,"No",3]
[null,72,"3.2.4 Je, kampuni imetengeneza mpango wa upunguzaji ili kupunguza au kuepuka hatari za usalama wa chakula?",{"$f":"IF(OR(E73=\"\",E73=\"(select option)\"),\"\",IF(VLOOKUP(E73,DropDowns!B:D,3,0)=0,\"\",VLOOKUP(E73,DropDowns!B:D,3,0)))","v":""},"(chagua uchaguzi)",null,"(chagua kiwango)",null,"No",3]
[null,73,"3.2.5  Je, kampuni imezingatia njia za kuboresha usalama wa chakula? ",{"$f":"IF(OR(E74=\"\",E74=\"(select option)\"),\"\",IF(VLOOKUP(E74,DropDowns!B:D,3,0)=0,\"\",VLOOKUP(E74,DropDowns!B:D,3,0)))","v":""},"(chagua uchaguzi)",null,"(chagua kiwango)",null,"No",3]
[null,74,"3.2.6 Kama sehemu ya ESIA, kampuni ilitathmini athari za haki za binadamu zitokanazo na uwekezaji? ",{"$f":"IF(OR(E75=\"\",E75=\"(select option)\"),\"\",IF(VLOOKUP(E75,DropDowns!B:D,3,0)=0,\"\",VLOOKUP(E75,DropDowns!B:D,3,0)))","v":""},"(chagua uchaguzi)",null,"(chagua kiwango)",null,"No",3]
[null,75,"3.2.7 Je, kampuni ilitengeneza mpango wa upunguzaji ili kupunguza athari kwenye haki za binadamu? ",{"$f":"IF(OR(E76=\"\",E76=\"(select option)\"),\"\",IF(VLOOKUP(E76,DropDowns!B:D,3,0)=0,\"\",VLOOKUP(E76,DropDowns!B:D,3,0)))","v":""},"(chagua uchaguzi)",null,"(chagua kiwango)",null,"No",3]
[null,76,"3.2.8 Je, kampuni ina taratibu zilizowekwa ili kusimamia na kupunguza athari katika kipindi chote cha maisha ya mradi? ",{"$f":"IF(OR(E77=\"\",E77=\"(select option)\"),\"\",IF(VLOOKUP(E77,DropDowns!B:D,3,0)=0,\"\",VLOOKUP(E77,DropDowns!B:D,3,0)))","v":""},"(chagua uchaguzi)",null,"(chagua kiwango)",null,"No",3]
[null,77,null,{"$f":"IF(OR(E78=\"\",E78=\"(select option)\"),\"\",VLOOKUP(E78,DropDowns!C:D,2,0))","v":""}]
[null,78,null,{"$f":"IF(OR(E79=\"\",E79=\"(select option)\"),\"\",VLOOKUP(E79,DropDowns!C:D,2,0))","v":""}]
[null,79,"IV. Mashauriano na Ushirikiano ",{"$f":"IF(COUNT(D81:D91)=0,\"\",ROUND(SUM(D81:D91)/COUNT(D81:D91),0))","v":""},null,null,{"$f":"IFERROR(ROUND(SUM(G81:G91)/COUNT(G81:G91),0),\"\")","v":""}]
[null,80,null,{"$f":"IF(OR(E81=\"\",E81=\"(select option)\"),\"\",VLOOKUP(E81,DropDowns!C:D,2,0))","v":""}]
[null,81,"4.1 Mashauriano & Ushirikiano  ",{"$f":"IF(OR(E82=\"\",E82=\"(select option)\"),\"\",VLOOKUP(E82,DropDowns!C:D,2,0))","v":""}]
[null,82,"4.1.1 Je, kampuni inahakikisha taarifa zote muhimu kuhusiana na uendeshaji wa sasa na / au mradi uliopendekezwa (ikiwa ni pamoja na madhumuni, upeo, athari, muda na kiunzi cha biashara na hatari za mradi, matokeo ya ESIA, taarifa za mikataba) zinashirikishwa kwa wamiliki na watumiaji wa haki za ardhi walioathiriwa?   ",{"$f":"IF(OR(E83=\"\",E83=\"(select option)\"),\"\",IF(VLOOKUP(E83,DropDowns!B:D,3,0)=0,\"\",VLOOKUP(E83,DropDowns!B:D,3,0)))","v":""},"(chagua uchaguzi)",null,"(chagua kiwango)",null,{"$f":"IF(OR(AND(D83<3,E83<>\"N/A\" ),AND(G83>1,G83<>\"(chagua kiwango)\",E83<>\"N/A\")),\"Yes\",\"No\")","v":"No"},4]
[null,83,"4.1.2 Je, taarifa zote muhimu zilishirikishwa kwa njia inayofikia inayofaa (kwa mfano, katika lugha za kijamii, kwa wakati unaofaa, kwa uwazi, wakati na mahali zinapoweza kupatikana, katika ukumbi sahihi/unafaa nk)?  ",{"$f":"IF(OR(E84=\"\",E84=\"(select option)\"),\"\",IF(VLOOKUP(E84,DropDowns!B:D,3,0)=0,\"\",VLOOKUP(E84,DropDowns!B:D,3,0)))","v":""},"(chagua uchaguzi)",null,"(chagua kiwango)",null,"No",4]
[null,84,"4.1.3 Je, kampuni imechukua hatua za kuzisaidia jamii na wadau wengine kutengeneza uwezo unaoridhisha katika kushiriki kwenye mashauriano na makubaliano yenye maana na ya haki?",{"$f":"IF(OR(E85=\"\",E85=\"(select option)\"),\"\",IF(VLOOKUP(E85,DropDowns!B:D,3,0)=0,\"\",VLOOKUP(E85,DropDowns!B:D,3,0)))","v":""},"(chagua uchaguzi)",null,"(chagua kiwango)",null,"No",4]
[null,85,"4.1.4 Je, kampuni ilitengeneza mpango wa ushirikishaji wa wadau ambao unajumuisha kushirikiana na jamii katika ngazi zote ikiwa ni pamoja na wanawake na makundi mengine yanayoishi katika mazingira hatarishi (kwa mfano, wafugaji, watu wa asili, nk)? ",{"$f":"IF(OR(E86=\"\",E86=\"(select option)\"),\"\",IF(VLOOKUP(E86,DropDowns!B:D,3,0)=0,\"\",VLOOKUP(E86,DropDowns!B:D,3,0)))","v":""},"(chagua uchaguzi)",null,"(chagua kiwango)",null,"No",4]
[null,86,"4.1.5 Je, kampuni ilifanya mashauriano na wamiliki na watumiaji wa haki za ardhi walioathiriwa katika awamu muhimu za uhamishaji wa ardhi au utekelezaji wa mradi ambao unaathiri maslahi ya ardhi (kwa mfano, baada ya matokeo ya ESIA kusambazwa, kabla majadiliano hayajafanyika, nk)? ",{"$f":"IF(OR(E87=\"\",E87=\"(select option)\"),\"\",IF(VLOOKUP(E87,DropDowns!B:D,3,0)=0,\"\",VLOOKUP(E87,DropDowns!B:D,3,0)))","v":""},"(chagua uchaguzi)",null,"(chagua kiwango)",null,"No",4]
[null,87,"4.1.6 Je, kuna taratibu (kwa mfano, kamati ya usimamizi yenye mamlaka na raslimali za kutosha ambayo inajumuisha wawakilishi wa wadau) uliowekwa ili kuwezesha mawasiliano ya pande mbili baina ya jamii, kampuni na serikali? ",{"$f":"IF(OR(E88=\"\",E88=\"(select option)\"),\"\",IF(VLOOKUP(E88,DropDowns!B:D,3,0)=0,\"\",VLOOKUP(E88,DropDowns!B:D,3,0)))","v":""},"(chagua uchaguzi)",null,"(chagua kiwango)",null,"No",4]
[null,88,"4.1.7 Orodhesha / Elezea taratibu hizi  ",{"$f":"IF(OR(E89=\"\",E89=\"(select option)\"),\"\",IF(VLOOKUP(E89,DropDowns!B:D,3,0)=0,\"\",VLOOKUP(E89,DropDowns!B:D,3,0)))","v":""},"(chagua uchaguzi)",null,"(chagua kiwango)",null,"No",4]
[null,89,"4.1.8  Je, kampuni inatoa uwezo wa upatikanaji wa taarifa zote muhimu ambazo kisheria siyo za siri kwa wadau walioathirika na kwa umma katika hatua zote za mradi, ikiwa ni pamoja na taarifa za kimkataba? ",{"$f":"IF(OR(E90=\"\",E90=\"(select option)\"),\"\",IF(VLOOKUP(E90,DropDowns!B:D,3,0)=0,\"\",VLOOKUP(E90,DropDowns!B:D,3,0)))","v":""},"(chagua uchaguzi)",null,"(chagua kiwango)",null,"No",4]
[null,90,null,{"$f":"IF(OR(E91=\"\",E91=\"(select option)\"),\"\",VLOOKUP(E91,DropDowns!C:D,2,0))","v":""}]
[null,91,null,{"$f":"IF(OR(E92=\"\",E92=\"(select option)\"),\"\",VLOOKUP(E92,DropDowns!C:D,2,0))","v":""}]
[null,92,"V. Uingiaji Mkataba na Makubaliano  ",{"$f":"IF(COUNT(D94:D115)=0,\"\",ROUND(SUM(D94:D115)/COUNT(D94:D115),0))","v":""},null,null,{"$f":"IFERROR(ROUND(SUM(G94:G115)/COUNT(G94:G115),0),\"\")","v":""}]
[null,93,null,{"$f":"IF(OR(E94=\"\",E94=\"(select option)\"),\"\",VLOOKUP(E94,DropDowns!C:D,2,0))","v":""}]
[null,null,"5.1 Uingiaji wa Mkataba na Makubaliano  "]
[null,94,"5.1.1 Je makubaliano kati ya pande zinazohusika ( kwa mfano kampuni, mihimili ya wakulima wa nje, wakulima nk) yanaelezea vema makubaliano yote na mgawanyo wa majukumu kuhusiana na wajibu wa kijamii na kimazingira ili kushughulikia matokeo ya ESIA  na ushiriki wake wa baadaye? ",{"$f":"IF(OR(E96=\"\",E96=\"(select option)\"),\"\",IF(VLOOKUP(E96,DropDowns!B:D,3,0)=0,\"\",VLOOKUP(E96,DropDowns!B:D,3,0)))","v":""},"(chagua uchaguzi)",null,"(chagua kiwango)",null,{"$f":"IF(OR(AND(D96<3,E96<>\"N/A\" ),AND(G96>1,G96<>\"(chagua kiwango)\",E96<>\"N/A\")),\"Yes\",\"No\")","v":"No"},5]
[null,95,"5.1.2  Je mkataba unajumuisha utoaji wa taarifa juu ya utekelezaji wa mpango wa upunguzaji wa athari?  ",{"$f":"IF(OR(E97=\"\",E97=\"(select option)\"),\"\",IF(VLOOKUP(E97,DropDowns!B:D,3,0)=0,\"\",VLOOKUP(E97,DropDowns!B:D,3,0)))","v":""},"(chagua uchaguzi)",null,"(chagua kiwango)",null,"No",5]
[null,96,"5.1.3 Kama jibu ni ndiyo, je ripoti hizi zinafanywa kuwa za umma au zinapatikana kwa jamii zilizoathiriwa?  ",{"$f":"IF(OR(E98=\"\",E98=\"(select option)\"),\"\",IF(VLOOKUP(E98,DropDowns!B:D,3,0)=0,\"\",VLOOKUP(E98,DropDowns!B:D,3,0)))","v":""},"(chagua uchaguzi)",null,"(chagua kiwango)",null,"No",5]
[null,97,"5.1.4 Je, mikataba husika inasawiri muafaka wa makubaliano yaliyofikiwa kupitia majadiliano na mashauriano na wamiliki wa haki?  ",{"$f":"IF(OR(E99=\"\",E99=\"(select option)\"),\"\",IF(VLOOKUP(E99,DropDowns!B:D,3,0)=0,\"\",VLOOKUP(E99,DropDowns!B:D,3,0)))","v":""},"(chagua uchaguzi)",null,"(chagua kiwango)",null,"No",5]
[null,98,"5.1.5 Je mkataba husika unajumuisha ibara inayolinda matumizi bora na endelevu ya rasilimali za asili, hususan maji? ",{"$f":"IF(OR(E100=\"\",E100=\"(select option)\"),\"\",IF(VLOOKUP(E100,DropDowns!B:D,3,0)=0,\"\",VLOOKUP(E100,DropDowns!B:D,3,0)))","v":""},"(chagua uchaguzi)",null,"(chagua kiwango)",null,"No",5]
[null,99,"5.1.6 Je, kampuni inachukua hatua sahihi ili kuamua endapo wale wanaowakilisha jamii katika majadiliano na mashauriano wanalenga kulinda maslahi bora ya jamii nzima?  ",{"$f":"IF(OR(E101=\"\",E101=\"(select option)\"),\"\",IF(VLOOKUP(E101,DropDowns!B:D,3,0)=0,\"\",VLOOKUP(E101,DropDowns!B:D,3,0)))","v":""},"(chagua uchaguzi)",null,"(chagua kiwango)",null,"No",5]
[null,100,"5.1.7  Je, kampuni hufanya majadiliano na mashauriano na wamiliki na watumiaji wa haki za ardhi waliobainishwa kabla ya kuingia mkataba? ",{"$f":"IF(OR(E102=\"\",E102=\"(select option)\"),\"\",IF(VLOOKUP(E102,DropDowns!B:D,3,0)=0,\"\",VLOOKUP(E102,DropDowns!B:D,3,0)))","v":""},"(chagua uchaguzi)",null,"(chagua kiwango)",null,"No",5]
[null,101,"5.1.8 Je, majadiliano na mashaurinao yalishughulikia maslahi na haki za wanawake na makundi mengine yanayoishi katika mazingira hatarishi? ",{"$f":"IF(OR(E103=\"\",E103=\"(select option)\"),\"\",IF(VLOOKUP(E103,DropDowns!B:D,3,0)=0,\"\",VLOOKUP(E103,DropDowns!B:D,3,0)))","v":""},"(chagua uchaguzi)",null,"(chagua kiwango)",null,"No",5]
[null,102,"5.1.9 Je, majadiliano yanatokea baada ya taarifa muhimu zinazohusiana na maendeleo ya mpango wa kilimo cha mkataba zimeshirikishwa na wamiliki wa haki za ardhi? ",{"$f":"IF(OR(E104=\"\",E104=\"(select option)\"),\"\",IF(VLOOKUP(E104,DropDowns!B:D,3,0)=0,\"\",VLOOKUP(E104,DropDowns!B:D,3,0)))","v":""},"(chagua uchaguzi)",null,"(chagua kiwango)",null,"No",5]
[null,103,"5.1.10  Je, kampuni au chombo cha kilimo cha mkataba (kwa mfano, vyama vya kilimo cha mkataba, wadhamini au mashirika) kinasaidia jamii kupata uwezo wa kutosha kushiriki katika majadiliano yenye haki? ",{"$f":"IF(OR(E105=\"\",E105=\"(select option)\"),\"\",IF(VLOOKUP(E105,DropDowns!B:D,3,0)=0,\"\",VLOOKUP(E105,DropDowns!B:D,3,0)))","v":""},"(chagua uchaguzi)",null,"(chagua kiwango)",null,"No",5]
[null,104,"5.1.11 Je, kampuni au mihimili ya kilimo cha mkataba (kwa mfano, vyama vya kilimo cha mkataba, wadhamini au mashirika) imeanzisha taratibu za ufuatiliaji na tathmini kwa ajili ya kubainisha vitendo vya kutotii masharti ya mkataba",{"$f":"IF(OR(E106=\"\",E106=\"(select option)\"),\"\",IF(VLOOKUP(E106,DropDowns!B:D,3,0)=0,\"\",VLOOKUP(E106,DropDowns!B:D,3,0)))","v":""},"(chagua uchaguzi)",null,"(chagua kiwango)",null,"No",5]
[null,105,"5.1.12 Je, pande zinazoingia mkataba zilipewa muda na rasilimali za kutosha ili kuupitia mkataba kabla ya kuusaini? Wakati na rasilimali za kutosha zinajumuisha muda na njia za kuwasiliana na wataalam wa nje?  ",{"$f":"IF(OR(E107=\"\",E107=\"(select option)\"),\"\",IF(VLOOKUP(E107,DropDowns!B:D,3,0)=0,\"\",VLOOKUP(E107,DropDowns!B:D,3,0)))","v":""},"(chagua uchaguzi)",null,"(chagua kiwango)",null,"No",5]
[null,106,"5.1.13 Je, wamiliki wa haki za ardhi na watumiaji wana uhuru wa kusema \"ndiyo\" wanakubaliana au \"hapana\" hawakubaliani na masharti ya mpango wa kilimo cha mkataba? ",{"$f":"IF(OR(E108=\"\",E108=\"(select option)\"),\"\",IF(VLOOKUP(E108,DropDowns!B:D,3,0)=0,\"\",VLOOKUP(E108,DropDowns!B:D,3,0)))","v":""},"(chagua uchaguzi)",null,"(chagua kiwango)",null,"No",5]
[null,107,"5.1.14 Je, kampuni au mhimili wa kilimo cha mkataba ( kwa mfano, vyama vya kilimo cha mkataba, wadhamini, au mashirika) ilipata Hati ya maridhiano ya Faragha, Kabla, na Taarifa (FPIC) kutoka kwa wenyeji walioathirika? ",{"$f":"IF(OR(E109=\"\",E109=\"(select option)\"),\"\",IF(VLOOKUP(E109,DropDowns!B:D,3,0)=0,\"\",VLOOKUP(E109,DropDowns!B:D,3,0)))","v":""},"(chagua uchaguzi)",null,"(chagua kiwango)",null,"No",5]
[null,108,"5.1.15 Je, wakulima wa kilimo cha mkataba na wadau wengine wanaweza kupata mkataba wa mwisho (kwa mfano, mikataba inayohusiana na kuanzishwa kwa mpango wa kilimo cha mkataba, mikataba ya usambazaji wa miwa, nk)",{"$f":"IF(OR(E110=\"\",E110=\"(select option)\"),\"\",IF(VLOOKUP(E110,DropDowns!B:D,3,0)=0,\"\",VLOOKUP(E110,DropDowns!B:D,3,0)))","v":""},"(chagua uchaguzi)",null,"(chagua kiwango)",null,"No",5]
[null,109,"5.1.16  Je, kampuni hiyo inachukua muafaka ili kuhakikisha kwamba wakulima wa kilimo cha mkataba na vyama vingine husika wanafahamu na kuelewa masharti ya mkataba wa mwisho?",{"$f":"IF(OR(E111=\"\",E111=\"(select option)\"),\"\",IF(VLOOKUP(E111,DropDowns!B:D,3,0)=0,\"\",VLOOKUP(E111,DropDowns!B:D,3,0)))","v":""},"(chagua uchaguzi)",null,"(chagua kiwango)",null,"No",5]
[null,110,"5.1.17  Chini ya sheria na sheria za kimila, je watia saini wa mkataba wana mamlaka ya kusaini mikataba?",{"$f":"IF(OR(E112=\"\",E112=\"(select option)\"),\"\",IF(VLOOKUP(E112,DropDowns!B:D,3,0)=0,\"\",VLOOKUP(E112,DropDowns!B:D,3,0)))","v":""},"(chagua uchaguzi)",null,"(chagua kiwango)",null,"No",5]
[null,111,"5.1.18 Je, kuna migogoro iliyopo ambayo inahusiana na mamlaka ya watia saini ya mkataba na / au uwezo wa kuwakilisha haki za ardhi na maslahi ya wale walioathirika na mpango wa kilimo cha mkataba?",{"$f":"IF(OR(E113=\"\",E113=\"(select option)\"),\"\",IF(VLOOKUP(E113,DropDowns!B:D,3,0)=0,\"\",VLOOKUP(E113,DropDowns!B:D,3,0)))","v":""},"(chagua uchaguzi)",null,"(chagua kiwango)",null,"No",5]
[null,112,"5.1.19 Je mkataba hutoa mchakato msingi wa kampuni kwa ajili ya wanajamii kutoa malalamiko na kuhakikisha madai hayo yanashughulikiwa?  Tazama Uhakiki wa orodha ya \"Utaratibu wa Malalamiko\" kwa ajili ya mwongozo wa ziada  ",{"$f":"IF(OR(E114=\"\",E114=\"(select option)\"),\"\",IF(VLOOKUP(E114,DropDowns!B:D,3,0)=0,\"\",VLOOKUP(E114,DropDowns!B:D,3,0)))","v":""},"(chagua uchaguzi)",null,"(chagua kiwango)",null,"No",5]
[null,113,null,{"$f":"IF(OR(E115=\"\",E115=\"(select option)\"),\"\",VLOOKUP(E115,DropDowns!C:D,2,0))","v":""}]
[null,114,null,{"$f":"IF(OR(E116=\"\",E116=\"(select option)\"),\"\",VLOOKUP(E116,DropDowns!C:D,2,0))","v":""}]
[null,115,"VI. Malalamiko & Mrejesho ",{"$f":"IF(COUNT(D118:D140)=0,\"\",ROUND(SUM(D118:D140)/COUNT(D118:D140),0))","v":""},null,null,{"$f":"IFERROR(ROUND(SUM(G118:G140)/COUNT(G118:G140),0),\"\")","v":""}]
[null,116,null,{"$f":"IF(OR(E118=\"\",E118=\"(select option)\"),\"\",VLOOKUP(E118,DropDowns!C:D,2,0))","v":""}]
[null,117,"6.1 Utaratibu wa Usanifu na Utekelezaji wa  Malalamiko  ",{"$f":"IF(OR(E119=\"\",E119=\"(select option)\"),\"\",VLOOKUP(E119,DropDowns!C:D,2,0))","v":""}]
[null,118,"6.1.1 Je, kampuni au mhimili husika wa kilimo cha mkataba (kwa mfano, vyama vya kilimo cha mkataba, wadhamini, au shirika) ina utaratibu wa uwasilishaji wa malalamiko kwa ajili ya malalamiko yanayohusiana na uanzishaji na usimamizi wa mpango wa kilimo cha mkataba?  ",{"$f":"IF(OR(E120=\"\",E120=\"(select option)\"),\"\",IF(VLOOKUP(E120,DropDowns!B:D,3,0)=0,\"\",VLOOKUP(E120,DropDowns!B:D,3,0)))","v":""},"(chagua uchaguzi)",null,"(chagua kiwango)",null,{"$f":"IF(OR(AND(D120<3,E120<>\"N/A\" ),AND(G120>1,G120<>\"(chagua kiwango)\",E120<>\"N/A\")),\"Yes\",\"No\")","v":"No"},6]
[null,119,"6.1.2 Je, kampuni au mhimili husika wa kilimo cha mkataba (kwa mfano, vyama vya kilimo cha mkataba, wadhamini, au shirika) inawapa wafanyakazi wanaofaa rasilimali za kutosha ili kusanifu, kutekeleza na kusimamia wa utaratibu wake wa malalamiko?  ",{"$f":"IF(OR(E121=\"\",E121=\"(select option)\"),\"\",IF(VLOOKUP(E121,DropDowns!B:D,3,0)=0,\"\",VLOOKUP(E121,DropDowns!B:D,3,0)))","v":""},"(chagua uchaguzi)",null,"(chagua kiwango)",null,"No",6]
[null,120,"6.1.3 Je, kampuni au mhimili husika wa kilimo cha mkataba (kwa mfano, vyama vya kilimo cha mkataba, wadhamini, au shirika) iliwahamasisha wafanyakazi wake juu ya umuhimu wa kuzitambua na kuziheshimu haki rasmi za ardhi na haki za ardhi kimila, pamoja na uwezekano wa kuzifanyia marekebisho?  ",{"$f":"IF(OR(E122=\"\",E122=\"(select option)\"),\"\",IF(VLOOKUP(E122,DropDowns!B:D,3,0)=0,\"\",VLOOKUP(E122,DropDowns!B:D,3,0)))","v":""},"(chagua uchaguzi)",null,"(chagua kiwango)",null,"No",6]
[null,121,"6.1.4 Je, kampuni au mhimili husika wa kilimo cha mkataba (kwa mfano, vyama vya kilimo cha mkataba, wadhamini, au shirika) walishauriana na wadau wakuu (kwa mfano, viongozi wa jamii, serikali nk) ili kuhakikisha kwamba utaratibu wa malalamiko unaaminika na unazingatia utamaduni wa taratibu za ufumbuzi wa mgogoro?  ",{"$f":"IF(OR(E123=\"\",E123=\"(select option)\"),\"\",IF(VLOOKUP(E123,DropDowns!B:D,3,0)=0,\"\",VLOOKUP(E123,DropDowns!B:D,3,0)))","v":""},"(chagua uchaguzi)",null,"(chagua kiwango)",null,"No",6]
[null,122,"6.1.5 Je, kampuni inafasili wazi mipaka ya utaratibu wa malalamiko (kwa mfano, aina ya malalamiko na walalamikaji)? ",{"$f":"IF(OR(E124=\"\",E124=\"(select option)\"),\"\",IF(VLOOKUP(E124,DropDowns!B:D,3,0)=0,\"\",VLOOKUP(E124,DropDowns!B:D,3,0)))","v":""},"(chagua uchaguzi)",null,"(chagua kiwango)",null,"No",6]
[null,123,"6.1.6  Je, mipaka ya utaratibu wa malalamiko unajumuisha  malalamiko kutoka kwa wakulima wa kilimo cha mkataba au vyama dhidi ya kampuni?  ",{"$f":"IF(OR(E125=\"\",E125=\"(select option)\"),\"\",IF(VLOOKUP(E125,DropDowns!B:D,3,0)=0,\"\",VLOOKUP(E125,DropDowns!B:D,3,0)))","v":""},"(chagua uchaguzi)",null,"(chagua kiwango)",null,"No",6]
[null,124,"6.1.7 Je, mipaka ya utaratibu wa malalamiko unajumuisha  malalamiko kutoka kwa wakulima wa kilimo cha mkataba dhidi ya vyama vya kilimo cha mkataba au wakulima wengine wa kilimo cha mkataba? ",{"$f":"IF(OR(E126=\"\",E126=\"(select option)\"),\"\",IF(VLOOKUP(E126,DropDowns!B:D,3,0)=0,\"\",VLOOKUP(E126,DropDowns!B:D,3,0)))","v":""},"(chagua uchaguzi)",null,"(chagua kiwango)",null,"No",6]
[null,125,"6.1.8 Je, utaratibu wa malalamiko unazingatia vigezo vya UNGP kwa ajili ya michakato isiyo ya kiserikali ya utatuzi wa migogoro (sheria za nchi, inayopatikana, inayotabirika, yenye usawa, ya wazi, inayoendana na haki, chanzo cha ujifunzaji endelevu, iliyojikita katika mazungumzo na ushirikiano)?  ",{"$f":"IF(OR(E127=\"\",E127=\"(select option)\"),\"\",IF(VLOOKUP(E127,DropDowns!B:D,3,0)=0,\"\",VLOOKUP(E127,DropDowns!B:D,3,0)))","v":""},"(chagua uchaguzi)",null,"(chagua kiwango)",null,"No",6]
[null,126,"6.1.9 Je, kampuni au mhimili wa kilimo cha mkataba unaohusika (kwa mfano, vyama vya kilimo cha mkataba, wadhamini au shirika) imewataarifu watumiaji lengwa wengine  wa utaratibu wa malalamiko? ",{"$f":"IF(OR(E128=\"\",E128=\"(select option)\"),\"\",IF(VLOOKUP(E128,DropDowns!B:D,3,0)=0,\"\",VLOOKUP(E128,DropDowns!B:D,3,0)))","v":""},"(chagua uchaguzi)",null,"(chagua kiwango)",null,"No",6]
[null,127,null,{"$f":"IF(OR(E129=\"\",E129=\"(select option)\"),\"\",VLOOKUP(E129,DropDowns!C:D,2,0))","v":""},null,null,null,null,"No",6]
[null,128,null,{"$f":"IF(OR(E130=\"\",E130=\"(select option)\"),\"\",VLOOKUP(E130,DropDowns!C:D,2,0))","v":""},null,null,null,null,"No",6]
[null,129,"6.2 Hatua za kupokea, kuchakata na kushughulikia malalamiko  ",{"$f":"IF(OR(E131=\"\",E131=\"(select option)\"),\"\",VLOOKUP(E131,DropDowns!C:D,2,0))","v":""},null,null,null,null,"No",6]
[null,130,"6.2.1 Je, utaratibu wa malalamiko umeweka taratibu zinazoeleweka kwa ajili ya kupokea malalamiko?",{"$f":"IF(OR(E132=\"\",E132=\"(select option)\"),\"\",IF(VLOOKUP(E132,DropDowns!B:D,3,0)=0,\"\",VLOOKUP(E132,DropDowns!B:D,3,0)))","v":""},"(chagua uchaguzi)",null,"(chagua kiwango)",null,"No",6]
[null,131,"6.2.2 Je, utaratibu wa malalamiko umeweka taratibu zinazoeleweka kwa ajili ya uchakataji wa malalamiko? ",{"$f":"IF(OR(E133=\"\",E133=\"(select option)\"),\"\",IF(VLOOKUP(E133,DropDowns!B:D,3,0)=0,\"\",VLOOKUP(E133,DropDowns!B:D,3,0)))","v":""},"(chagua uchaguzi)",null,"(chagua kiwango)",null,"No",6]
[null,132,"6.2.3 Je, utaratibu wa malalamiko umeweka taratibu zinazoeleweka kwa ajili ya kufanya uamuzi wa mwisho kuhusu malalamiko? ",{"$f":"IF(OR(E134=\"\",E134=\"(select option)\"),\"\",IF(VLOOKUP(E134,DropDowns!B:D,3,0)=0,\"\",VLOOKUP(E134,DropDowns!B:D,3,0)))","v":""},"(chagua uchaguzi)",null,"(chagua kiwango)",null,"No",6]
[null,133,null,{"$f":"IF(OR(E135=\"\",E135=\"(select option)\"),\"\",VLOOKUP(E135,DropDowns!C:D,2,0))","v":""},null,null,null,null,"No",6]
[null,134,null,{"$f":"IF(OR(E136=\"\",E136=\"(select option)\"),\"\",VLOOKUP(E136,DropDowns!C:D,2,0))","v":""},null,null,null,null,"No",6]
[null,135,"6.3 Hatua za Kufatilia na Kutathmini Taratibu za Malalamiko ",{"$f":"IF(OR(E137=\"\",E137=\"(select option)\"),\"\",VLOOKUP(E137,DropDowns!C:D,2,0))","v":""},null,null,null,null,"No",6]
[null,136,"6.3.1  Je, kampuni au Mhimili wa kilimo cha mkataba (kwa mfano, vyama vya kilimo cha mkataba, wadhamini, au ushirika) ina taratibu zinazoeleweka na viashiria vilivyowekwa kwa ajili ya kufuatilia na kutathmini utaratibu wa malalamiko (kwa mfano, idadi na aina ya malalamiko, wastani wa muda utakaochukuliwa katika kushughulikia malalamiko na kutoa uamuzi wa mwisho, kiwango cha utatuzi, nk)?  ",{"$f":"IF(OR(E138=\"\",E138=\"(select option)\"),\"\",IF(VLOOKUP(E138,DropDowns!B:D,3,0)=0,\"\",VLOOKUP(E138,DropDowns!B:D,3,0)))","v":""},"(chagua uchaguzi)",null,"(chagua kiwango)",null,"No",6]
[null,137,"6.3.2 Je, Kampuni au mhimili wa kilimo cha mkataba (kwa mfano, chama cha kilimo cha mkataba, wadhamini, au shirika) inashirikisha matokeo ya ufuatiliaji na tathmini ili kuboresha utaratibu wa malalamiko?  ",{"$f":"IF(OR(E139=\"\",E139=\"(select option)\"),\"\",IF(VLOOKUP(E139,DropDowns!B:D,3,0)=0,\"\",VLOOKUP(E139,DropDowns!B:D,3,0)))","v":""},"(chagua uchaguzi)",null,"(chagua kiwango)",null,"No",6]
[null,138,null,{"$f":"IF(OR(E140=\"\",E140=\"(select option)\"),\"\",VLOOKUP(E140,DropDowns!C:D,2,0))","v":""}]
[null,139,null,{"$f":"IF(OR(E141=\"\",E141=\"(select option)\"),\"\",VLOOKUP(E141,DropDowns!C:D,2,0))","v":""}]
[null,140]
[null,141]
[null,142]
[null,143]
[null,144]
[null,145]
[null,146]
[null,147]
[null,148]
[null,149]
[null,150]
[null,151]
[null,152]
[null,153]
[null,154]
[null,155]
[null,156]
[null,157]
[null,158]
[null,159]
[null,160]
[null,161]
[null,162]
[null,163]
[null,164]
[null,165]
[null,166]
[null,167]
[null,168]
[null,169]
[null,170]
[null,171]
[null,172]
[null,173]
[null,174]
[null,175]
[null,176]
[null,177]
[null,178]
[null,179]
[null,180]
[null,181]
[null,182]
[null,183]
[null,184]
[null,185]
[null,186]
[null,187]
[null,188]
[null,189]
[null,190]
[null,191]
[null,192]
[null,193]
[null,194]
[null,195]
[null,196]
[null,197]
[null,198]
[null,199]
[null,200]
[null,201]
[null,202]
[null,203]
[null,204]
[null,205]
[null,206]
[null,207]
[null,208]
[null,209]
[null,210]
[null,211]
[null,212]
[null,213]
[null,214]
[null,215]
[null,216]
[null,217]
[null,218]
[null,219]
[null,220]
[null,221]
[null,222]
[null,223]
[null,224]
[null,225]
[null,226]
[null,227]
[null,228]
[null,229]
[null,230]
[null,231]
[null,232]
[null,233]
[null,234]
[null,235]
[null,236]
[null,237]
[null,238]
[null,239]
[null,240]
[null,241]
[null,242]
[null,243]
[null,244]
[null,245]
[null,246]
[null,247]
[null,248]
[null,249]
[null,250]
[null,251]
[null,252]
[null,253]
[null,254]
[null,255]
[null,256]
[null,257]
[null,258]
[null,259]
[null,260]
[null,261]
[null,262]
[null,263]
[null,264]
[null,265]
[null,266]
[null,267]
[null,268]
[null,269]
[null,270]
[null,271]
[null,272]
[null,273]
[null,274]
[null,275]
[null,276]
[null,277]
[null,278]
[null,279]
[null,280]
[null,281]
[null,282]
[null,283]
[null,284]
[null,285]
[null,286]
[null,287]
[null,288]
[null,289]
[null,290]
[null,291]
[null,292]
[null,293]
[null,294]
[null,295]
[null,296]
[null,297]
[null,298]
[null,299]
[null,300]
[null,301]
[null,302]
[null,303]
[null,304]
[null,305]
[null,306]
[null,307]
[null,308]
[null,309]
[null,310]
[null,311]
[null,312]
[null,313]
[null,314]
[null,315]
[null,316]
[null,317]
[null,318]
[null,319]
[null,320]
[null,321]
[null,322]
[null,323]
[null,324]

{"sheet":"Ripoti ya kilimo cha mkataba","index":5,"n_rows":200,"n_cols":12,"rows_kept":200,"cut":false,"hidden":false,"merged":[[1,1,1,11],[3,7,3,10]]}
[]
[null,"Ripoti ya kilimo cha mkataba"]
[]
[null,"Checklist Row","Kipengee cha orodha ya uhakiki","Sehemu  (mada kuu ya orodha ya uhakiki)","Hali","Vihatarishi (1=hya chini; 3=ya juu )","Muhtasari wa mpango kazi  ","Uwezo (Ni nani atakayefanya shughuli za mpango kazi)",null,null,null,"Ratiba/ mpango kazi  "]
[null,{"$f":"IFERROR(INDEX(OUKIM!$B$1:$B$396, SMALL(INDEX((OUKIM!$I$1:$I$396=\"Yes\")*(MATCH(ROW(OUKIM!$I$1:$I$396), ROW(OUKIM!$I$1:$I$396)))+(OUKIM!$I$1:$I$396<>\"Yes\")*1048577, 0, 0), ROW(A1))),\"\")","v":""},{"$f":"IFERROR(VLOOKUP(B5,OUKIM!B:C,2,0),\"\")","v":""},{"$f":"IFERROR(VLOOKUP(VLOOKUP(B5,OUKIM!B:J,9,0),DropDowns!G:I,3,0),\"\")","v":""},{"$f":"IFERROR(VLOOKUP(B5,OUKIM!B:E,4,0),\"\")","v":""},{"$f":"IFERROR(VLOOKUP(B5,OUKIM!B:G,6,0),\"\")","v":""},null,{"$f":"IF(B5<>\"\",\"Ya ndani:\",\"\")","v":""},null,{"$f":"IF(B5<>\"\",\"Ya nje:\",\"\")","v":""}]
[null,{"$f":"IFERROR(INDEX(OUKIM!$B$1:$B$396, SMALL(INDEX((OUKIM!$I$1:$I$396=\"Yes\")*(MATCH(ROW(OUKIM!$I$1:$I$396), ROW(OUKIM!$I$1:$I$396)))+(OUKIM!$I$1:$I$396<>\"Yes\")*1048577, 0, 0), ROW(A2))),\"\")","v":""},{"$f":"IFERROR(VLOOKUP(B6,OUKIM!B:C,2,0),\"\")","v":""},{"$f":"IFERROR(VLOOKUP(VLOOKUP(B6,OUKIM!B:J,9,0),DropDowns!G:I,3,0),\"\")","v":""},{"$f":"IFERROR(VLOOKUP(B6,OUKIM!B:E,4,0),\"\")","v":""},{"$f":"IFERROR(VLOOKUP(B6,OUKIM!B:G,6,0),\"\")","v":""},null,{"$f":"IF(B6<>\"\",\"Ya ndani:\",\"\")","v":""},null,{"$f":"IF(B6<>\"\",\"Ya nje:\",\"\")","v":""}]
[null,{"$f":"IFERROR(INDEX(OUKIM!$B$1:$B$396, SMALL(INDEX((OUKIM!$I$1:$I$396=\"Yes\")*(MATCH(ROW(OUKIM!$I$1:$I$396), ROW(OUKIM!$I$1:$I$396)))+(OUKIM!$I$1:$I$396<>\"Yes\")*1048577, 0, 0), ROW(A3))),\"\")","v":""},{"$f":"IFERROR(VLOOKUP(B7,OUKIM!B:C,2,0),\"\")","v":""},{"$f":"IFERROR(VLOOKUP(VLOOKUP(B7,OUKIM!B:J,9,0),DropDowns!G:I,3,0),\"\")","v":""},{"$f":"IFERROR(VLOOKUP(B7,OUKIM!B:E,4,0),\"\")","v":""},{"$f":"IFERROR(VLOOKUP(B7,OUKIM!B:G,6,0),\"\")","v":""},null,"",null,""]
[null,{"$f":"IFERROR(INDEX(OUKIM!$B$1:$B$396, SMALL(INDEX((OUKIM!$I$1:$I$396=\"Yes\")*(MATCH(ROW(OUKIM!$I$1:$I$396), ROW(OUKIM!$I$1:$I$396)))+(OUKIM!$I$1:$I$396<>\"Yes\")*1048577, 0, 0), ROW(A4))),\"\")","v":""},{"$f":"IFERROR(VLOOKUP(B8,OUKIM!B:C,2,0),\"\")","v":""},{"$f":"IFERROR(VLOOKUP(VLOOKUP(B8,OUKIM!B:J,9,0),DropDowns!G:I,3,0),\"\")","v":""},{"$f":"IFERROR(VLOOKUP(B8,OUKIM!B:E,4,0),\"\")","v":""},{"$f":"IFERROR(VLOOKUP(B8,OUKIM!B:G,6,0),\"\")","v":""},null,"",null,""]
[null,{"$f":"IFERROR(INDEX(OUKIM!$B$1:$B$396, SMALL(INDEX((OUKIM!$I$1:$I$396=\"Yes\")*(MATCH(ROW(OUKIM!$I$1:$I$396), ROW(OUKIM!$I$1:$I$396)))+(OUKIM!$I$1:$I$396<>\"Yes\")*1048577, 0, 0), ROW(A5))),\"\")","v":""},{"$f":"IFERROR(VLOOKUP(B9,OUKIM!B:C,2,0),\"\")","v":""},{"$f":"IFERROR(VLOOKUP(VLOOKUP(B9,OUKIM!B:J,9,0),DropDowns!G:I,3,0),\"\")","v":""},{"$f":"IFERROR(VLOOKUP(B9,OUKIM!B:E,4,0),\"\")","v":""},{"$f":"IFERROR(VLOOKUP(B9,OUKIM!B:G,6,0),\"\")","v":""},null,"",null,""]
[null,{"$f":"IFERROR(INDEX(OUKIM!$B$1:$B$396, SMALL(INDEX((OUKIM!$I$1:$I$396=\"Yes\")*(MATCH(ROW(OUKIM!$I$1:$I$396), ROW(OUKIM!$I$1:$I$396)))+(OUKIM!$I$1:$I$396<>\"Yes\")*1048577, 0, 0), ROW(A6))),\"\")","v":""},{"$f":"IFERROR(VLOOKUP(B10,OUKIM!B:C,2,0),\"\")","v":""},{"$f":"IFERROR(VLOOKUP(VLOOKUP(B10,OUKIM!B:J,9,0),DropDowns!G:I,3,0),\"\")","v":""},{"$f":"IFERROR(VLOOKUP(B10,OUKIM!B:E,4,0),\"\")","v":""},{"$f":"IFERROR(VLOOKUP(B10,OUKIM!B:G,6,0),\"\")","v":""},null,"",null,""]
[null,{"$f":"IFERROR(INDEX(OUKIM!$B$1:$B$396, SMALL(INDEX((OUKIM!$I$1:$I$396=\"Yes\")*(MATCH(ROW(OUKIM!$I$1:$I$396), ROW(OUKIM!$I$1:$I$396)))+(OUKIM!$I$1:$I$396<>\"Yes\")*1048577, 0, 0), ROW(A7))),\"\")","v":""},{"$f":"IFERROR(VLOOKUP(B11,OUKIM!B:C,2,0),\"\")","v":""},{"$f":"IFERROR(VLOOKUP(VLOOKUP(B11,OUKIM!B:J,9,0),DropDowns!G:I,3,0),\"\")","v":""},{"$f":"IFERROR(VLOOKUP(B11,OUKIM!B:E,4,0),\"\")","v":""},{"$f":"IFERROR(VLOOKUP(B11,OUKIM!B:G,6,0),\"\")","v":""},null,"",null,""]
[null,{"$f":"IFERROR(INDEX(OUKIM!$B$1:$B$396, SMALL(INDEX((OUKIM!$I$1:$I$396=\"Yes\")*(MATCH(ROW(OUKIM!$I$1:$I$396), ROW(OUKIM!$I$1:$I$396)))+(OUKIM!$I$1:$I$396<>\"Yes\")*1048577, 0, 0), ROW(A8))),\"\")","v":""},{"$f":"IFERROR(VLOOKUP(B12,OUKIM!B:C,2,0),\"\")","v":""},{"$f":"IFERROR(VLOOKUP(VLOOKUP(B12,OUKIM!B:J,9,0),DropDowns!G:I,3,0),\"\")","v":""},{"$f":"IFERROR(VLOOKUP(B12,OUKIM!B:E,4,0),\"\")","v":""},{"$f":"IFERROR(VLOOKUP(B12,OUKIM!B:G,6,0),\"\")","v":""},null,"",null,""]
[null,{"$f":"IFERROR(INDEX(OUKIM!$B$1:$B$396, SMALL(INDEX((OUKIM!$I$1:$I$396=\"Yes\")*(MATCH(ROW(OUKIM!$I$1:$I$396), ROW(OUKIM!$I$1:$I$396)))+(OUKIM!$I$1:$I$396<>\"Yes\")*1048577, 0, 0), ROW(A9))),\"\")","v":""},{"$f":"IFERROR(VLOOKUP(B13,OUKIM!B:C,2,0),\"\")","v":""},{"$f":"IFERROR(VLOOKUP(VLOOKUP(B13,OUKIM!B:J,9,0),DropDowns!G:I,3,0),\"\")","v":""},{"$f":"IFERROR(VLOOKUP(B13,OUKIM!B:E,4,0),\"\")","v":""},{"$f":"IFERROR(VLOOKUP(B13,OUKIM!B:G,6,0),\"\")","v":""},null,"",null,""]
[null,{"$f":"IFERROR(INDEX(OUKIM!$B$1:$B$396, SMALL(INDEX((OUKIM!$I$1:$I$396=\"Yes\")*(MATCH(ROW(OUKIM!$I$1:$I$396), ROW(OUKIM!$I$1:$I$396)))+(OUKIM!$I$1:$I$396<>\"Yes\")*1048577, 0, 0), ROW(A10))),\"\")","v":""},{"$f":"IFERROR(VLOOKUP(B14,OUKIM!B:C,2,0),\"\")","v":""},{"$f":"IFERROR(VLOOKUP(VLOOKUP(B14,OUKIM!B:J,9,0),DropDowns!G:I,3,0),\"\")","v":""},{"$f":"IFERROR(VLOOKUP(B14,OUKIM!B:E,4,0),\"\")","v":""},{"$f":"IFERROR(VLOOKUP(B14,OUKIM!B:G,6,0),\"\")","v":""},null,"",null,""]
[null,{"$f":"IFERROR(INDEX(OUKIM!$B$1:$B$396, SMALL(INDEX((OUKIM!$I$1:$I$396=\"Yes\")*(MATCH(ROW(OUKIM!$I$1:$I$396), ROW(OUKIM!$I$1:$I$396)))+(OUKIM!$I$1:$I$396<>\"Yes\")*1048577, 0, 0), ROW(A11))),\"\")","v":""},{"$f":"IFERROR(VLOOKUP(B15,OUKIM!B:C,2,0),\"\")","v":""},{"$f":"IFERROR(VLOOKUP(VLOOKUP(B15,OUKIM!B:J,9,0),DropDowns!G:I,3,0),\"\")","v":""},{"$f":"IFERROR(VLOOKUP(B15,OUKIM!B:E,4,0),\"\")","v":""},{"$f":"IFERROR(VLOOKUP(B15,OUKIM!B:G,6,0),\"\")","v":""},null,"",null,""]
[null,{"$f":"IFERROR(INDEX(OUKIM!$B$1:$B$396, SMALL(INDEX((OUKIM!$I$1:$I$396=\"Yes\")*(MATCH(ROW(OUKIM!$I$1:$I$396), ROW(OUKIM!$I$1:$I$396)))+(OUKIM!$I$1:$I$396<>\"Yes\")*1048577, 0, 0), ROW(A12))),\"\")","v":""},{"$f":"IFERROR(VLOOKUP(B16,OUKIM!B:C,2,0),\"\")","v":""},{"$f":"IFERROR(VLOOKUP(VLOOKUP(B16,OUKIM!B:J,9,0),DropDowns!G:I,3,0),\"\")","v":""},{"$f":"IFERROR(VLOOKUP(B16,OUKIM!B:E,4,0),\"\")","v":""},{"$f":"IFERROR(VLOOKUP(B16,OUKIM!B:G,6,0),\"\")","v":""},null,"",null,""]
[null,{"$f":"IFERROR(INDEX(OUKIM!$B$1:$B$396, SMALL(INDEX((OUKIM!$I$1:$I$396=\"Yes\")*(MATCH(ROW(OUKIM!$I$1:$I$396), ROW(OUKIM!$I$1:$I$396)))+(OUKIM!$I$1:$I$396<>\"Yes\")*1048577, 0, 0), ROW(A13))),\"\")","v":""},{"$f":"IFERROR(VLOOKUP(B17,OUKIM!B:C,2,0),\"\")","v":""},{"$f":"IFERROR(VLOOKUP(VLOOKUP(B17,OUKIM!B:J,9,0),DropDowns!G:I,3,0),\"\")","v":""},{"$f":"IFERROR(VLOOKUP(B17,OUKIM!B:E,4,0),\"\")","v":""},{"$f":"IFERROR(VLOOKUP(B17,OUKIM!B:G,6,0),\"\")","v":""},null,"",null,""]
[null,{"$f":"IFERROR(INDEX(OUKIM!$B$1:$B$396, SMALL(INDEX((OUKIM!$I$1:$I$396=\"Yes\")*(MATCH(ROW(OUKIM!$I$1:$I$396), ROW(OUKIM!$I$1:$I$396)))+(OUKIM!$I$1:$I$396<>\"Yes\")*1048577, 0, 0), ROW(A14))),\"\")","v":""},{"$f":"IFERROR(VLOOKUP(B18,OUKIM!B:C,2,0),\"\")","v":""},{"$f":"IFERROR(VLOOKUP(VLOOKUP(B18,OUKIM!B:J,9,0),DropDowns!G:I,3,0),\"\")","v":""},{"$f":"IFERROR(VLOOKUP(B18,OUKIM!B:E,4,0),\"\")","v":""},{"$f":"IFERROR(VLOOKUP(B18,OUKIM!B:G,6,0),\"\")","v":""},null,"",null,""]
[null,{"$f":"IFERROR(INDEX(OUKIM!$B$1:$B$396, SMALL(INDEX((OUKIM!$I$1:$I$396=\"Yes\")*(MATCH(ROW(OUKIM!$I$1:$I$396), ROW(OUKIM!$I$1:$I$396)))+(OUKIM!$I$1:$I$396<>\"Yes\")*1048577, 0, 0), ROW(A15))),\"\")","v":""},{"$f":"IFERROR(VLOOKUP(B19,OUKIM!B:C,2,0),\"\")","v":""},{"$f":"IFERROR(VLOOKUP(VLOOKUP(B19,OUKIM!B:J,9,0),DropDowns!G:I,3,0),\"\")","v":""},{"$f":"IFERROR(VLOOKUP(B19,OUKIM!B:E,4,0),\"\")","v":""},{"$f":"IFERROR(VLOOKUP(B19,OUKIM!B:G,6,0),\"\")","v":""},null,"",null,""]
[null,{"$f":"IFERROR(INDEX(OUKIM!$B$1:$B$396, SMALL(INDEX((OUKIM!$I$1:$I$396=\"Yes\")*(MATCH(ROW(OUKIM!$I$1:$I$396), ROW(OUKIM!$I$1:$I$396)))+(OUKIM!$I$1:$I$396<>\"Yes\")*1048577, 0, 0), ROW(A16))),\"\")","v":""},{"$f":"IFERROR(VLOOKUP(B20,OUKIM!B:C,2,0),\"\")","v":""},{"$f":"IFERROR(VLOOKUP(VLOOKUP(B20,OUKIM!B:J,9,0),DropDowns!G:I,3,0),\"\")","v":""},{"$f":"IFERROR(VLOOKUP(B20,OUKIM!B:E,4,0),\"\")","v":""},{"$f":"IFERROR(VLOOKUP(B20,OUKIM!B:G,6,0),\"\")","v":""},null,"",null,""]
[null,{"$f":"IFERROR(INDEX(OUKIM!$B$1:$B$396, SMALL(INDEX((OUKIM!$I$1:$I$396=\"Yes\")*(MATCH(ROW(OUKIM!$I$1:$I$396), ROW(OUKIM!$I$1:$I$396)))+(OUKIM!$I$1:$I$396<>\"Yes\")*1048577, 0, 0), ROW(A17))),\"\")","v":""},{"$f":"IFERROR(VLOOKUP(B21,OUKIM!B:C,2,0),\"\")","v":""},{"$f":"IFERROR(VLOOKUP(VLOOKUP(B21,OUKIM!B:J,9,0),DropDowns!G:I,3,0),\"\")","v":""},{"$f":"IFERROR(VLOOKUP(B21,OUKIM!B:E,4,0),\"\")","v":""},{"$f":"IFERROR(VLOOKUP(B21,OUKIM!B:G,6,0),\"\")","v":""},null,"",null,""]
[null,{"$f":"IFERROR(INDEX(OUKIM!$B$1:$B$396, SMALL(INDEX((OUKIM!$I$1:$I$396=\"Yes\")*(MATCH(ROW(OUKIM!$I$1:$I$396), ROW(OUKIM!$I$1:$I$396)))+(OUKIM!$I$1:$I$396<>\"Yes\")*1048577, 0, 0), ROW(A18))),\"\")","v":""},{"$f":"IFERROR(VLOOKUP(B22,OUKIM!B:C,2,0),\"\")","v":""},{"$f":"IFERROR(VLOOKUP(VLOOKUP(B22,OUKIM!B:J,9,0),DropDowns!G:I,3,0),\"\")","v":""},{"$f":"IFERROR(VLOOKUP(B22,OUKIM!B:E,4,0),\"\")","v":""},{"$f":"IFERROR(VLOOKUP(B22,OUKIM!B:G,6,0),\"\")","v":""},null,"",null,""]
[null,{"$f":"IFERROR(INDEX(OUKIM!$B$1:$B$396, SMALL(INDEX((OUKIM!$I$1:$I$396=\"Yes\")*(MATCH(ROW(OUKIM!$I$1:$I$396), ROW(OUKIM!$I$1:$I$396)))+(OUKIM!$I$1:$I$396<>\"Yes\")*1048577, 0, 0), ROW(A19))),\"\")","v":""},{"$f":"IFERROR(VLOOKUP(B23,OUKIM!B:C,2,0),\"\")","v":""},{"$f":"IFERROR(VLOOKUP(VLOOKUP(B23,OUKIM!B:J,9,0),DropDowns!G:I,3,0),\"\")","v":""},{"$f":"IFERROR(VLOOKUP(B23,OUKIM!B:E,4,0),\"\")","v":""},{"$f":"IFERROR(VLOOKUP(B23,OUKIM!B:G,6,0),\"\")","v":""},null,"",null,""]
[null,{"$f":"IFERROR(INDEX(OUKIM!$B$1:$B$396, SMALL(INDEX((OUKIM!$I$1:$I$396=\"Yes\")*(MATCH(ROW(OUKIM!$I$1:$I$396), ROW(OUKIM!$I$1:$I$396)))+(OUKIM!$I$1:$I$396<>\"Yes\")*1048577, 0, 0), ROW(A20))),\"\")","v":""},{"$f":"IFERROR(VLOOKUP(B24,OUKIM!B:C,2,0),\"\")","v":""},{"$f":"IFERROR(VLOOKUP(VLOOKUP(B24,OUKIM!B:J,9,0),DropDowns!G:I,3,0),\"\")","v":""},{"$f":"IFERROR(VLOOKUP(B24,OUKIM!B:E,4,0),\"\")","v":""},{"$f":"IFERROR(VLOOKUP(B24,OUKIM!B:G,6,0),\"\")","v":""},null,"",null,""]
[null,{"$f":"IFERROR(INDEX(OUKIM!$B$1:$B$396, SMALL(INDEX((OUKIM!$I$1:$I$396=\"Yes\")*(MATCH(ROW(OUKIM!$I$1:$I$396), ROW(OUKIM!$I$1:$I$396)))+(OUKIM!$I$1:$I$396<>\"Yes\")*1048577, 0, 0), ROW(A21))),\"\")","v":""},{"$f":"IFERROR(VLOOKUP(B25,OUKIM!B:C,2,0),\"\")","v":""},{"$f":"IFERROR(VLOOKUP(VLOOKUP(B25,OUKIM!B:J,9,0),DropDowns!G:I,3,0),\"\")","v":""},{"$f":"IFERROR(VLOOKUP(B25,OUKIM!B:E,4,0),\"\")","v":""},{"$f":"IFERROR(VLOOKUP(B25,OUKIM!B:G,6,0),\"\")","v":""},null,"",null,""]
[null,{"$f":"IFERROR(INDEX(OUKIM!$B$1:$B$396, SMALL(INDEX((OUKIM!$I$1:$I$396=\"Yes\")*(MATCH(ROW(OUKIM!$I$1:$I$396), ROW(OUKIM!$I$1:$I$396)))+(OUKIM!$I$1:$I$396<>\"Yes\")*1048577, 0, 0), ROW(A22))),\"\")","v":""},{"$f":"IFERROR(VLOOKUP(B26,OUKIM!B:C,2,0),\"\")","v":""},{"$f":"IFERROR(VLOOKUP(VLOOKUP(B26,OUKIM!B:J,9,0),DropDowns!G:I,3,0),\"\")","v":""},{"$f":"IFERROR(VLOOKUP(B26,OUKIM!B:E,4,0),\"\")","v":""},{"$f":"IFERROR(VLOOKUP(B26,OUKIM!B:G,6,0),\"\")","v":""},null,"",null,""]
[null,{"$f":"IFERROR(INDEX(OUKIM!$B$1:$B$396, SMALL(INDEX((OUKIM!$I$1:$I$396=\"Yes\")*(MATCH(ROW(OUKIM!$I$1:$I$396), ROW(OUKIM!$I$1:$I$396)))+(OUKIM!$I$1:$I$396<>\"Yes\")*1048577, 0, 0), ROW(A23))),\"\")","v":""},{"$f":"IFERROR(VLOOKUP(B27,OUKIM!B:C,2,0),\"\")","v":""},{"$f":"IFERROR(VLOOKUP(VLOOKUP(B27,OUKIM!B:J,9,0),DropDowns!G:I,3,0),\"\")","v":""},{"$f":"IFERROR(VLOOKUP(B27,OUKIM!B:E,4,0),\"\")","v":""},{"$f":"IFERROR(VLOOKUP(B27,OUKIM!B:G,6,0),\"\")","v":""},null,"",null,""]
[null,{"$f":"IFERROR(INDEX(OUKIM!$B$1:$B$396, SMALL(INDEX((OUKIM!$I$1:$I$396=\"Yes\")*(MATCH(ROW(OUKIM!$I$1:$I$396), ROW(OUKIM!$I$1:$I$396)))+(OUKIM!$I$1:$I$396<>\"Yes\")*1048577, 0, 0), ROW(A24))),\"\")","v":""},{"$f":"IFERROR(VLOOKUP(B28,OUKIM!B:C,2,0),\"\")","v":""},{"$f":"IFERROR(VLOOKUP(VLOOKUP(B28,OUKIM!B:J,9,0),DropDowns!G:I,3,0),\"\")","v":""},{"$f":"IFERROR(VLOOKUP(B28,OUKIM!B:E,4,0),\"\")","v":""},{"$f":"IFERROR(VLOOKUP(B28,OUKIM!B:G,6,0),\"\")","v":""},null,"",null,""]
[null,{"$f":"IFERROR(INDEX(OUKIM!$B$1:$B$396, SMALL(INDEX((OUKIM!$I$1:$I$396=\"Yes\")*(MATCH(ROW(OUKIM!$I$1:$I$396), ROW(OUKIM!$I$1:$I$396)))+(OUKIM!$I$1:$I$396<>\"Yes\")*1048577, 0, 0), ROW(A25))),\"\")","v":""},{"$f":"IFERROR(VLOOKUP(B29,OUKIM!B:C,2,0),\"\")","v":""},{"$f":"IFERROR(VLOOKUP(VLOOKUP(B29,OUKIM!B:J,9,0),DropDowns!G:I,3,0),\"\")","v":""},{"$f":"IFERROR(VLOOKUP(B29,OUKIM!B:E,4,0),\"\")","v":""},{"$f":"IFERROR(VLOOKUP(B29,OUKIM!B:G,6,0),\"\")","v":""},null,"",null,""]
[null,{"$f":"IFERROR(INDEX(OUKIM!$B$1:$B$396, SMALL(INDEX((OUKIM!$I$1:$I$396=\"Yes\")*(MATCH(ROW(OUKIM!$I$1:$I$396), ROW(OUKIM!$I$1:$I$396)))+(OUKIM!$I$1:$I$396<>\"Yes\")*1048577, 0, 0), ROW(A26))),\"\")","v":""},{"$f":"IFERROR(VLOOKUP(B30,OUKIM!B:C,2,0),\"\")","v":""},{"$f":"IFERROR(VLOOKUP(VLOOKUP(B30,OUKIM!B:J,9,0),DropDowns!G:I,3,0),\"\")","v":""},{"$f":"IFERROR(VLOOKUP(B30,OUKIM!B:E,4,0),\"\")","v":""},{"$f":"IFERROR(VLOOKUP(B30,OUKIM!B:G,6,0),\"\")","v":""},null,"",null,""]
[null,{"$f":"IFERROR(INDEX(OUKIM!$B$1:$B$396, SMALL(INDEX((OUKIM!$I$1:$I$396=\"Yes\")*(MATCH(ROW(OUKIM!$I$1:$I$396), ROW(OUKIM!$I$1:$I$396)))+(OUKIM!$I$1:$I$396<>\"Yes\")*1048577, 0, 0), ROW(A27))),\"\")","v":""},{"$f":"IFERROR(VLOOKUP(B31,OUKIM!B:C,2,0),\"\")","v":""},{"$f":"IFERROR(VLOOKUP(VLOOKUP(B31,OUKIM!B:J,9,0),DropDowns!G:I,3,0),\"\")","v":""},{"$f":"IFERROR(VLOOKUP(B31,OUKIM!B:E,4,0),\"\")","v":""},{"$f":"IFERROR(VLOOKUP(B31,OUKIM!B:G,6,0),\"\")","v":""},null,"",null,""]
[null,{"$f":"IFERROR(INDEX(OUKIM!$B$1:$B$396, SMALL(INDEX((OUKIM!$I$1:$I$396=\"Yes\")*(MATCH(ROW(OUKIM!$I$1:$I$396), ROW(OUKIM!$I$1:$I$396)))+(OUKIM!$I$1:$I$396<>\"Yes\")*1048577, 0, 0), ROW(A28))),\"\")","v":""},{"$f":"IFERROR(VLOOKUP(B32,OUKIM!B:C,2,0),\"\")","v":""},{"$f":"IFERROR(VLOOKUP(VLOOKUP(B32,OUKIM!B:J,9,0),DropDowns!G:I,3,0),\"\")","v":""},{"$f":"IFERROR(VLOOKUP(B32,OUKIM!B:E,4,0),\"\")","v":""},{"$f":"IFERROR(VLOOKUP(B32,OUKIM!B:G,6,0),\"\")","v":""},null,"",null,""]
[null,{"$f":"IFERROR(INDEX(OUKIM!$B$1:$B$396, SMALL(INDEX((OUKIM!$I$1:$I$396=\"Yes\")*(MATCH(ROW(OUKIM!$I$1:$I$396), ROW(OUKIM!$I$1:$I$396)))+(OUKIM!$I$1:$I$396<>\"Yes\")*1048577, 0, 0), ROW(A29))),\"\")","v":""},{"$f":"IFERROR(VLOOKUP(B33,OUKIM!B:C,2,0),\"\")","v":""},{"$f":"IFERROR(VLOOKUP(VLOOKUP(B33,OUKIM!B:J,9,0),DropDowns!G:I,3,0),\"\")","v":""},{"$f":"IFERROR(VLOOKUP(B33,OUKIM!B:E,4,0),\"\")","v":""},{"$f":"IFERROR(VLOOKUP(B33,OUKIM!B:G,6,0),\"\")","v":""},null,"",null,""]
[null,{"$f":"IFERROR(INDEX(OUKIM!$B$1:$B$396, SMALL(INDEX((OUKIM!$I$1:$I$396=\"Yes\")*(MATCH(ROW(OUKIM!$I$1:$I$396), ROW(OUKIM!$I$1:$I$396)))+(OUKIM!$I$1:$I$396<>\"Yes\")*1048577, 0, 0), ROW(A30))),\"\")","v":""},{"$f":"IFERROR(VLOOKUP(B34,OUKIM!B:C,2,0),\"\")","v":""},{"$f":"IFERROR(VLOOKUP(VLOOKUP(B34,OUKIM!B:J,9,0),DropDowns!G:I,3,0),\"\")","v":""},{"$f":"IFERROR(VLOOKUP(B34,OUKIM!B:E,4,0),\"\")","v":""},{"$f":"IFERROR(VLOOKUP(B34,OUKIM!B:G,6,0),\"\")","v":""},null,"",null,""]
[null,{"$f":"IFERROR(INDEX(OUKIM!$B$1:$B$396, SMALL(INDEX((OUKIM!$I$1:$I$396=\"Yes\")*(MATCH(ROW(OUKIM!$I$1:$I$396), ROW(OUKIM!$I$1:$I$396)))+(OUKIM!$I$1:$I$396<>\"Yes\")*1048577, 0, 0), ROW(A31))),\"\")","v":""},{"$f":"IFERROR(VLOOKUP(B35,OUKIM!B:C,2,0),\"\")","v":""},{"$f":"IFERROR(VLOOKUP(VLOOKUP(B35,OUKIM!B:J,9,0),DropDowns!G:I,3,0),\"\")","v":""},{"$f":"IFERROR(VLOOKUP(B35,OUKIM!B:E,4,0),\"\")","v":""},{"$f":"IFERROR(VLOOKUP(B35,OUKIM!B:G,6,0),\"\")","v":""},null,"",null,""]
[null,{"$f":"IFERROR(INDEX(OUKIM!$B$1:$B$396, SMALL(INDEX((OUKIM!$I$1:$I$396=\"Yes\")*(MATCH(ROW(OUKIM!$I$1:$I$396), ROW(OUKIM!$I$1:$I$396)))+(OUKIM!$I$1:$I$396<>\"Yes\")*1048577, 0, 0), ROW(A32))),\"\")","v":""},{"$f":"IFERROR(VLOOKUP(B36,OUKIM!B:C,2,0),\"\")","v":""},{"$f":"IFERROR(VLOOKUP(VLOOKUP(B36,OUKIM!B:J,9,0),DropDowns!G:I,3,0),\"\")","v":""},{"$f":"IFERROR(VLOOKUP(B36,OUKIM!B:E,4,0),\"\")","v":""},{"$f":"IFERROR(VLOOKUP(B36,OUKIM!B:G,6,0),\"\")","v":""},null,"",null,""]
[null,{"$f":"IFERROR(INDEX(OUKIM!$B$1:$B$396, SMALL(INDEX((OUKIM!$I$1:$I$396=\"Yes\")*(MATCH(ROW(OUKIM!$I$1:$I$396), ROW(OUKIM!$I$1:$I$396)))+(OUKIM!$I$1:$I$396<>\"Yes\")*1048577, 0, 0), ROW(A33))),\"\")","v":""},{"$f":"IFERROR(VLOOKUP(B37,OUKIM!B:C,2,0),\"\")","v":""},{"$f":"IFERROR(VLOOKUP(VLOOKUP(B37,OUKIM!B:J,9,0),DropDowns!G:I,3,0),\"\")","v":""},{"$f":"IFERROR(VLOOKUP(B37,OUKIM!B:E,4,0),\"\")","v":""},{"$f":"IFERROR(VLOOKUP(B37,OUKIM!B:G,6,0),\"\")","v":""},null,"",null,""]
[null,{"$f":"IFERROR(INDEX(OUKIM!$B$1:$B$396, SMALL(INDEX((OUKIM!$I$1:$I$396=\"Yes\")*(MATCH(ROW(OUKIM!$I$1:$I$396), ROW(OUKIM!$I$1:$I$396)))+(OUKIM!$I$1:$I$396<>\"Yes\")*1048577, 0, 0), ROW(A34))),\"\")","v":""},{"$f":"IFERROR(VLOOKUP(B38,OUKIM!B:C,2,0),\"\")","v":""},{"$f":"IFERROR(VLOOKUP(VLOOKUP(B38,OUKIM!B:J,9,0),DropDowns!G:I,3,0),\"\")","v":""},{"$f":"IFERROR(VLOOKUP(B38,OUKIM!B:E,4,0),\"\")","v":""},{"$f":"IFERROR(VLOOKUP(B38,OUKIM!B:G,6,0),\"\")","v":""},null,"",null,""]
[null,{"$f":"IFERROR(INDEX(OUKIM!$B$1:$B$396, SMALL(INDEX((OUKIM!$I$1:$I$396=\"Yes\")*(MATCH(ROW(OUKIM!$I$1:$I$396), ROW(OUKIM!$I$1:$I$396)))+(OUKIM!$I$1:$I$396<>\"Yes\")*1048577, 0, 0), ROW(A35))),\"\")","v":""},{"$f":"IFERROR(VLOOKUP(B39,OUKIM!B:C,2,0),\"\")","v":""},{"$f":"IFERROR(VLOOKUP(VLOOKUP(B39,OUKIM!B:J,9,0),DropDowns!G:I,3,0),\"\")","v":""},{"$f":"IFERROR(VLOOKUP(B39,OUKIM!B:E,4,0),\"\")","v":""},{"$f":"IFERROR(VLOOKUP(B39,OUKIM!B:G,6,0),\"\")","v":""},null,"",null,""]
[null,{"$f":"IFERROR(INDEX(OUKIM!$B$1:$B$396, SMALL(INDEX((OUKIM!$I$1:$I$396=\"Yes\")*(MATCH(ROW(OUKIM!$I$1:$I$396), ROW(OUKIM!$I$1:$I$396)))+(OUKIM!$I$1:$I$396<>\"Yes\")*1048577, 0, 0), ROW(A36))),\"\")","v":""},{"$f":"IFERROR(VLOOKUP(B40,OUKIM!B:C,2,0),\"\")","v":""},{"$f":"IFERROR(VLOOKUP(VLOOKUP(B40,OUKIM!B:J,9,0),DropDowns!G:I,3,0),\"\")","v":""},{"$f":"IFERROR(VLOOKUP(B40,OUKIM!B:E,4,0),\"\")","v":""},{"$f":"IFERROR(VLOOKUP(B40,OUKIM!B:G,6,0),\"\")","v":""},null,"",null,""]
[null,{"$f":"IFERROR(INDEX(OUKIM!$B$1:$B$396, SMALL(INDEX((OUKIM!$I$1:$I$396=\"Yes\")*(MATCH(ROW(OUKIM!$I$1:$I$396), ROW(OUKIM!$I$1:$I$396)))+(OUKIM!$I$1:$I$396<>\"Yes\")*1048577, 0, 0), ROW(A37))),\"\")","v":""},{"$f":"IFERROR(VLOOKUP(B41,OUKIM!B:C,2,0),\"\")","v":""},{"$f":"IFERROR(VLOOKUP(VLOOKUP(B41,OUKIM!B:J,9,0),DropDowns!G:I,3,0),\"\")","v":""},{"$f":"IFERROR(VLOOKUP(B41,OUKIM!B:E,4,0),\"\")","v":""},{"$f":"IFERROR(VLOOKUP(B41,OUKIM!B:G,6,0),\"\")","v":""},null,"",null,""]
[null,{"$f":"IFERROR(INDEX(OUKIM!$B$1:$B$396, SMALL(INDEX((OUKIM!$I$1:$I$396=\"Yes\")*(MATCH(ROW(OUKIM!$I$1:$I$396), ROW(OUKIM!$I$1:$I$396)))+(OUKIM!$I$1:$I$396<>\"Yes\")*1048577, 0, 0), ROW(A38))),\"\")","v":""},{"$f":"IFERROR(VLOOKUP(B42,OUKIM!B:C,2,0),\"\")","v":""},{"$f":"IFERROR(VLOOKUP(VLOOKUP(B42,OUKIM!B:J,9,0),DropDowns!G:I,3,0),\"\")","v":""},{"$f":"IFERROR(VLOOKUP(B42,OUKIM!B:E,4,0),\"\")","v":""},{"$f":"IFERROR(VLOOKUP(B42,OUKIM!B:G,6,0),\"\")","v":""},null,"",null,""]
[null,{"$f":"IFERROR(INDEX(OUKIM!$B$1:$B$396, SMALL(INDEX((OUKIM!$I$1:$I$396=\"Yes\")*(MATCH(ROW(OUKIM!$I$1:$I$396), ROW(OUKIM!$I$1:$I$396)))+(OUKIM!$I$1:$I$396<>\"Yes\")*1048577, 0, 0), ROW(A39))),\"\")","v":""},{"$f":"IFERROR(VLOOKUP(B43,OUKIM!B:C,2,0),\"\")","v":""},{"$f":"IFERROR(VLOOKUP(VLOOKUP(B43,OUKIM!B:J,9,0),DropDowns!G:I,3,0),\"\")","v":""},{"$f":"IFERROR(VLOOKUP(B43,OUKIM!B:E,4,0),\"\")","v":""},{"$f":"IFERROR(VLOOKUP(B43,OUKIM!B:G,6,0),\"\")","v":""},null,"",null,""]
[null,{"$f":"IFERROR(INDEX(OUKIM!$B$1:$B$396, SMALL(INDEX((OUKIM!$I$1:$I$396=\"Yes\")*(MATCH(ROW(OUKIM!$I$1:$I$396), ROW(OUKIM!$I$1:$I$396)))+(OUKIM!$I$1:$I$396<>\"Yes\")*1048577, 0, 0), ROW(A40))),\"\")","v":""},{"$f":"IFERROR(VLOOKUP(B44,OUKIM!B:C,2,0),\"\")","v":""},{"$f":"IFERROR(VLOOKUP(VLOOKUP(B44,OUKIM!B:J,9,0),DropDowns!G:I,3,0),\"\")","v":""},{"$f":"IFERROR(VLOOKUP(B44,OUKIM!B:E,4,0),\"\")","v":""},{"$f":"IFERROR(VLOOKUP(B44,OUKIM!B:G,6,0),\"\")","v":""},null,"",null,""]
[null,{"$f":"IFERROR(INDEX(OUKIM!$B$1:$B$396, SMALL(INDEX((OUKIM!$I$1:$I$396=\"Yes\")*(MATCH(ROW(OUKIM!$I$1:$I$396), ROW(OUKIM!$I$1:$I$396)))+(OUKIM!$I$1:$I$396<>\"Yes\")*1048577, 0, 0), ROW(A41))),\"\")","v":""},{"$f":"IFERROR(VLOOKUP(B45,OUKIM!B:C,2,0),\"\")","v":""},{"$f":"IFERROR(VLOOKUP(VLOOKUP(B45,OUKIM!B:J,9,0),DropDowns!G:I,3,0),\"\")","v":""},{"$f":"IFERROR(VLOOKUP(B45,OUKIM!B:E,4,0),\"\")","v":""},{"$f":"IFERROR(VLOOKUP(B45,OUKIM!B:G,6,0),\"\")","v":""},null,"",null,""]
[null,{"$f":"IFERROR(INDEX(OUKIM!$B$1:$B$396, SMALL(INDEX((OUKIM!$I$1:$I$396=\"Yes\")*(MATCH(ROW(OUKIM!$I$1:$I$396), ROW(OUKIM!$I$1:$I$396)))+(OUKIM!$I$1:$I$396<>\"Yes\")*1048577, 0, 0), ROW(A42))),\"\")","v":""},{"$f":"IFERROR(VLOOKUP(B46,OUKIM!B:C,2,0),\"\")","v":""},{"$f":"IFERROR(VLOOKUP(VLOOKUP(B46,OUKIM!B:J,9,0),DropDowns!G:I,3,0),\"\")","v":""},{"$f":"IFERROR(VLOOKUP(B46,OUKIM!B:E,4,0),\"\")","v":""},{"$f":"IFERROR(VLOOKUP(B46,OUKIM!B:G,6,0),\"\")","v":""},null,"",null,""]
[null,{"$f":"IFERROR(INDEX(OUKIM!$B$1:$B$396, SMALL(INDEX((OUKIM!$I$1:$I$396=\"Yes\")*(MATCH(ROW(OUKIM!$I$1:$I$396), ROW(OUKIM!$I$1:$I$396)))+(OUKIM!$I$1:$I$396<>\"Yes\")*1048577, 0, 0), ROW(A43))),\"\")","v":""},{"$f":"IFERROR(VLOOKUP(B47,OUKIM!B:C,2,0),\"\")","v":""},{"$f":"IFERROR(VLOOKUP(VLOOKUP(B47,OUKIM!B:J,9,0),DropDowns!G:I,3,0),\"\")","v":""},{"$f":"IFERROR(VLOOKUP(B47,OUKIM!B:E,4,0),\"\")","v":""},{"$f":"IFERROR(VLOOKUP(B47,OUKIM!B:G,6,0),\"\")","v":""},null,"",null,""]
[null,{"$f":"IFERROR(INDEX(OUKIM!$B$1:$B$396, SMALL(INDEX((OUKIM!$I$1:$I$396=\"Yes\")*(MATCH(ROW(OUKIM!$I$1:$I$396), ROW(OUKIM!$I$1:$I$396)))+(OUKIM!$I$1:$I$396<>\"Yes\")*1048577, 0, 0), ROW(A44))),\"\")","v":""},{"$f":"IFERROR(VLOOKUP(B48,OUKIM!B:C,2,0),\"\")","v":""},{"$f":"IFERROR(VLOOKUP(VLOOKUP(B48,OUKIM!B:J,9,0),DropDowns!G:I,3,0),\"\")","v":""},{"$f":"IFERROR(VLOOKUP(B48,OUKIM!B:E,4,0),\"\")","v":""},{"$f":"IFERROR(VLOOKUP(B48,OUKIM!B:G,6,0),\"\")","v":""},null,"",null,""]
[null,{"$f":"IFERROR(INDEX(OUKIM!$B$1:$B$396, SMALL(INDEX((OUKIM!$I$1:$I$396=\"Yes\")*(MATCH(ROW(OUKIM!$I$1:$I$396), ROW(OUKIM!$I$1:$I$396)))+(OUKIM!$I$1:$I$396<>\"Yes\")*1048577, 0, 0), ROW(A45))),\"\")","v":""},{"$f":"IFERROR(VLOOKUP(B49,OUKIM!B:C,2,0),\"\")","v":""},{"$f":"IFERROR(VLOOKUP(VLOOKUP(B49,OUKIM!B:J,9,0),DropDowns!G:I,3,0),\"\")","v":""},{"$f":"IFERROR(VLOOKUP(B49,OUKIM!B:E,4,0),\"\")","v":""},{"$f":"IFERROR(VLOOKUP(B49,OUKIM!B:G,6,0),\"\")","v":""},null,"",null,""]
[null,{"$f":"IFERROR(INDEX(OUKIM!$B$1:$B$396, SMALL(INDEX((OUKIM!$I$1:$I$396=\"Yes\")*(MATCH(ROW(OUKIM!$I$1:$I$396), ROW(OUKIM!$I$1:$I$396)))+(OUKIM!$I$1:$I$396<>\"Yes\")*1048577, 0, 0), ROW(A46))),\"\")","v":""},{"$f":"IFERROR(VLOOKUP(B50,OUKIM!B:C,2,0),\"\")","v":""},{"$f":"IFERROR(VLOOKUP(VLOOKUP(B50,OUKIM!B:J,9,0),DropDowns!G:I,3,0),\"\")","v":""},{"$f":"IFERROR(VLOOKUP(B50,OUKIM!B:E,4,0),\"\")","v":""},{"$f":"IFERROR(VLOOKUP(B50,OUKIM!B:G,6,0),\"\")","v":""},null,"",null,""]
[null,{"$f":"IFERROR(INDEX(OUKIM!$B$1:$B$396, SMALL(INDEX((OUKIM!$I$1:$I$396=\"Yes\")*(MATCH(ROW(OUKIM!$I$1:$I$396), ROW(OUKIM!$I$1:$I$396)))+(OUKIM!$I$1:$I$396<>\"Yes\")*1048577, 0, 0), ROW(A47))),\"\")","v":""},{"$f":"IFERROR(VLOOKUP(B51,OUKIM!B:C,2,0),\"\")","v":""},{"$f":"IFERROR(VLOOKUP(VLOOKUP(B51,OUKIM!B:J,9,0),DropDowns!G:I,3,0),\"\")","v":""},{"$f":"IFERROR(VLOOKUP(B51,OUKIM!B:E,4,0),\"\")","v":""},{"$f":"IFERROR(VLOOKUP(B51,OUKIM!B:G,6,0),\"\")","v":""},null,"",null,""]
[null,{"$f":"IFERROR(INDEX(OUKIM!$B$1:$B$396, SMALL(INDEX((OUKIM!$I$1:$I$396=\"Yes\")*(MATCH(ROW(OUKIM!$I$1:$I$396), ROW(OUKIM!$I$1:$I$396)))+(OUKIM!$I$1:$I$396<>\"Yes\")*1048577, 0, 0), ROW(A48))),\"\")","v":""},{"$f":"IFERROR(VLOOKUP(B52,OUKIM!B:C,2,0),\"\")","v":""},{"$f":"IFERROR(VLOOKUP(VLOOKUP(B52,OUKIM!B:J,9,0),DropDowns!G:I,3,0),\"\")","v":""},{"$f":"IFERROR(VLOOKUP(B52,OUKIM!B:E,4,0),\"\")","v":""},{"$f":"IFERROR(VLOOKUP(B52,OUKIM!B:G,6,0),\"\")","v":""},null,"",null,""]
[null,{"$f":"IFERROR(INDEX(OUKIM!$B$1:$B$396, SMALL(INDEX((OUKIM!$I$1:$I$396=\"Yes\")*(MATCH(ROW(OUKIM!$I$1:$I$396), ROW(OUKIM!$I$1:$I$396)))+(OUKIM!$I$1:$I$396<>\"Yes\")*1048577, 0, 0), ROW(A49))),\"\")","v":""},{"$f":"IFERROR(VLOOKUP(B53,OUKIM!B:C,2,0),\"\")","v":""},{"$f":"IFERROR(VLOOKUP(VLOOKUP(B53,OUKIM!B:J,9,0),DropDowns!G:I,3,0),\"\")","v":""},{"$f":"IFERROR(VLOOKUP(B53,OUKIM!B:E,4,0),\"\")","v":""},{"$f":"IFERROR(VLOOKUP(B53,OUKIM!B:G,6,0),\"\")","v":""},null,"",null,""]
[null,{"$f":"IFERROR(INDEX(OUKIM!$B$1:$B$396, SMALL(INDEX((OUKIM!$I$1:$I$396=\"Yes\")*(MATCH(ROW(OUKIM!$I$1:$I$396), ROW(OUKIM!$I$1:$I$396)))+(OUKIM!$I$1:$I$396<>\"Yes\")*1048577, 0, 0), ROW(A50))),\"\")","v":""},{"$f":"IFERROR(VLOOKUP(B54,OUKIM!B:C,2,0),\"\")","v":""},{"$f":"IFERROR(VLOOKUP(VLOOKUP(B54,OUKIM!B:J,9,0),DropDowns!G:I,3,0),\"\")","v":""},{"$f":"IFERROR(VLOOKUP(B54,OUKIM!B:E,4,0),\"\")","v":""},{"$f":"IFERROR(VLOOKUP(B54,OUKIM!B:G,6,0),\"\")","v":""},null,"",null,""]
[null,{"$f":"IFERROR(INDEX(OUKIM!$B$1:$B$396, SMALL(INDEX((OUKIM!$I$1:$I$396=\"Yes\")*(MATCH(ROW(OUKIM!$I$1:$I$396), ROW(OUKIM!$I$1:$I$396)))+(OUKIM!$I$1:$I$396<>\"Yes\")*1048577, 0, 0), ROW(A51))),\"\")","v":""},{"$f":"IFERROR(VLOOKUP(B55,OUKIM!B:C,2,0),\"\")","v":""},{"$f":"IFERROR(VLOOKUP(VLOOKUP(B55,OUKIM!B:J,9,0),DropDowns!G:I,3,0),\"\")","v":""},{"$f":"IFERROR(VLOOKUP(B55,OUKIM!B:E,4,0),\"\")","v":""},{"$f":"IFERROR(VLOOKUP(B55,OUKIM!B:G,6,0),\"\")","v":""},null,"",null,""]
[null,{"$f":"IFERROR(INDEX(OUKIM!$B$1:$B$396, SMALL(INDEX((OUKIM!$I$1:$I$396=\"Yes\")*(MATCH(ROW(OUKIM!$I$1:$I$396), ROW(OUKIM!$I$1:$I$396)))+(OUKIM!$I$1:$I$396<>\"Yes\")*1048577, 0, 0), ROW(A52))),\"\")","v":""},{"$f":"IFERROR(VLOOKUP(B56,OUKIM!B:C,2,0),\"\")","v":""},{"$f":"IFERROR(VLOOKUP(VLOOKUP(B56,OUKIM!B:J,9,0),DropDowns!G:I,3,0),\"\")","v":""},{"$f":"IFERROR(VLOOKUP(B56,OUKIM!B:E,4,0),\"\")","v":""},{"$f":"IFERROR(VLOOKUP(B56,OUKIM!B:G,6,0),\"\")","v":""},null,"",null,""]
[null,{"$f":"IFERROR(INDEX(OUKIM!$B$1:$B$396, SMALL(INDEX((OUKIM!$I$1:$I$396=\"Yes\")*(MATCH(ROW(OUKIM!$I$1:$I$396), ROW(OUKIM!$I$1:$I$396)))+(OUKIM!$I$1:$I$396<>\"Yes\")*1048577, 0, 0), ROW(A53))),\"\")","v":""},{"$f":"IFERROR(VLOOKUP(B57,OUKIM!B:C,2,0),\"\")","v":""},{"$f":"IFERROR(VLOOKUP(VLOOKUP(B57,OUKIM!B:J,9,0),DropDowns!G:I,3,0),\"\")","v":""},{"$f":"IFERROR(VLOOKUP(B57,OUKIM!B:E,4,0),\"\")","v":""},{"$f":"IFERROR(VLOOKUP(B57,OUKIM!B:G,6,0),\"\")","v":""},null,"",null,""]
[null,{"$f":"IFERROR(INDEX(OUKIM!$B$1:$B$396, SMALL(INDEX((OUKIM!$I$1:$I$396=\"Yes\")*(MATCH(ROW(OUKIM!$I$1:$I$396), ROW(OUKIM!$I$1:$I$396)))+(OUKIM!$I$1:$I$396<>\"Yes\")*1048577, 0, 0), ROW(A54))),\"\")","v":""},{"$f":"IFERROR(VLOOKUP(B58,OUKIM!B:C,2,0),\"\")","v":""},{"$f":"IFERROR(VLOOKUP(VLOOKUP(B58,OUKIM!B:J,9,0),DropDowns!G:I,3,0),\"\")","v":""},{"$f":"IFERROR(VLOOKUP(B58,OUKIM!B:E,4,0),\"\")","v":""},{"$f":"IFERROR(VLOOKUP(B58,OUKIM!B:G,6,0),\"\")","v":""},null,"",null,""]
[null,{"$f":"IFERROR(INDEX(OUKIM!$B$1:$B$396, SMALL(INDEX((OUKIM!$I$1:$I$396=\"Yes\")*(MATCH(ROW(OUKIM!$I$1:$I$396), ROW(OUKIM!$I$1:$I$396)))+(OUKIM!$I$1:$I$396<>\"Yes\")*1048577, 0, 0), ROW(A55))),\"\")","v":""},{"$f":"IFERROR(VLOOKUP(B59,OUKIM!B:C,2,0),\"\")","v":""},{"$f":"IFERROR(VLOOKUP(VLOOKUP(B59,OUKIM!B:J,9,0),DropDowns!G:I,3,0),\"\")","v":""},{"$f":"IFERROR(VLOOKUP(B59,OUKIM!B:E,4,0),\"\")","v":""},{"$f":"IFERROR(VLOOKUP(B59,OUKIM!B:G,6,0),\"\")","v":""},null,"",null,""]
[null,{"$f":"IFERROR(INDEX(OUKIM!$B$1:$B$396, SMALL(INDEX((OUKIM!$I$1:$I$396=\"Yes\")*(MATCH(ROW(OUKIM!$I$1:$I$396), ROW(OUKIM!$I$1:$I$396)))+(OUKIM!$I$1:$I$396<>\"Yes\")*1048577, 0, 0), ROW(A56))),\"\")","v":""},{"$f":"IFERROR(VLOOKUP(B60,OUKIM!B:C,2,0),\"\")","v":""},{"$f":"IFERROR(VLOOKUP(VLOOKUP(B60,OUKIM!B:J,9,0),DropDowns!G:I,3,0),\"\")","v":""},{"$f":"IFERROR(VLOOKUP(B60,OUKIM!B:E,4,0),\"\")","v":""},{"$f":"IFERROR(VLOOKUP(B60,OUKIM!B:G,6,0),\"\")","v":""},null,"",null,""]
[null,{"$f":"IFERROR(INDEX(OUKIM!$B$1:$B$396, SMALL(INDEX((OUKIM!$I$1:$I$396=\"Yes\")*(MATCH(ROW(OUKIM!$I$1:$I$396), ROW(OUKIM!$I$1:$I$396)))+(OUKIM!$I$1:$I$396<>\"Yes\")*1048577, 0, 0), ROW(A57))),\"\")","v":""},{"$f":"IFERROR(VLOOKUP(B61,OUKIM!B:C,2,0),\"\")","v":""},{"$f":"IFERROR(VLOOKUP(VLOOKUP(B61,OUKIM!B:J,9,0),DropDowns!G:I,3,0),\"\")","v":""},{"$f":"IFERROR(VLOOKUP(B61,OUKIM!B:E,4,0),\"\")","v":""},{"$f":"IFERROR(VLOOKUP(B61,OUKIM!B:G,6,0),\"\")","v":""},null,"",null,""]
[null,{"$f":"IFERROR(INDEX(OUKIM!$B$1:$B$396, SMALL(INDEX((OUKIM!$I$1:$I$396=\"Yes\")*(MATCH(ROW(OUKIM!$I$1:$I$396), ROW(OUKIM!$I$1:$I$396)))+(OUKIM!$I$1:$I$396<>\"Yes\")*1048577, 0, 0), ROW(A58))),\"\")","v":""},{"$f":"IFERROR(VLOOKUP(B62,OUKIM!B:C,2,0),\"\")","v":""},{"$f":"IFERROR(VLOOKUP(VLOOKUP(B62,OUKIM!B:J,9,0),DropDowns!G:I,3,0),\"\")","v":""},{"$f":"IFERROR(VLOOKUP(B62,OUKIM!B:E,4,0),\"\")","v":""},{"$f":"IFERROR(VLOOKUP(B62,OUKIM!B:G,6,0),\"\")","v":""},null,"",null,""]
[null,{"$f":"IFERROR(INDEX(OUKIM!$B$1:$B$396, SMALL(INDEX((OUKIM!$I$1:$I$396=\"Yes\")*(MATCH(ROW(OUKIM!$I$1:$I$396), ROW(OUKIM!$I$1:$I$396)))+(OUKIM!$I$1:$I$396<>\"Yes\")*1048577, 0, 0), ROW(A59))),\"\")","v":""},{"$f":"IFERROR(VLOOKUP(B63,OUKIM!B:C,2,0),\"\")","v":""},{"$f":"IFERROR(VLOOKUP(VLOOKUP(B63,OUKIM!B:J,9,0),DropDowns!G:I,3,0),\"\")","v":""},{"$f":"IFERROR(VLOOKUP(B63,OUKIM!B:E,4,0),\"\")","v":""},{"$f":"IFERROR(VLOOKUP(B63,OUKIM!B:G,6,0),\"\")","v":""},null,"",null,""]
[null,{"$f":"IFERROR(INDEX(OUKIM!$B$1:$B$396, SMALL(INDEX((OUKIM!$I$1:$I$396=\"Yes\")*(MATCH(ROW(OUKIM!$I$1:$I$396), ROW(OUKIM!$I$1:$I$396)))+(OUKIM!$I$1:$I$396<>\"Yes\")*1048577, 0, 0), ROW(A60))),\"\")","v":""},{"$f":"IFERROR(VLOOKUP(B64,OUKIM!B:C,2,0),\"\")","v":""},{"$f":"IFERROR(VLOOKUP(VLOOKUP(B64,OUKIM!B:J,9,0),DropDowns!G:I,3,0),\"\")","v":""},{"$f":"IFERROR(VLOOKUP(B64,OUKIM!B:E,4,0),\"\")","v":""},{"$f":"IFERROR(VLOOKUP(B64,OUKIM!B:G,6,0),\"\")","v":""},null,"",null,""]
[null,{"$f":"IFERROR(INDEX(OUKIM!$B$1:$B$396, SMALL(INDEX((OUKIM!$I$1:$I$396=\"Yes\")*(MATCH(ROW(OUKIM!$I$1:$I$396), ROW(OUKIM!$I$1:$I$396)))+(OUKIM!$I$1:$I$396<>\"Yes\")*1048577, 0, 0), ROW(A61))),\"\")","v":""},{"$f":"IFERROR(VLOOKUP(B65,OUKIM!B:C,2,0),\"\")","v":""},{"$f":"IFERROR(VLOOKUP(VLOOKUP(B65,OUKIM!B:J,9,0),DropDowns!G:I,3,0),\"\")","v":""},{"$f":"IFERROR(VLOOKUP(B65,OUKIM!B:E,4,0),\"\")","v":""},{"$f":"IFERROR(VLOOKUP(B65,OUKIM!B:G,6,0),\"\")","v":""},null,"",null,""]
[null,{"$f":"IFERROR(INDEX(OUKIM!$B$1:$B$396, SMALL(INDEX((OUKIM!$I$1:$I$396=\"Yes\")*(MATCH(ROW(OUKIM!$I$1:$I$396), ROW(OUKIM!$I$1:$I$396)))+(OUKIM!$I$1:$I$396<>\"Yes\")*1048577, 0, 0), ROW(A62))),\"\")","v":""},{"$f":"IFERROR(VLOOKUP(B66,OUKIM!B:C,2,0),\"\")","v":""},{"$f":"IFERROR(VLOOKUP(VLOOKUP(B66,OUKIM!B:J,9,0),DropDowns!G:I,3,0),\"\")","v":""},{"$f":"IFERROR(VLOOKUP(B66,OUKIM!B:E,4,0),\"\")","v":""},{"$f":"IFERROR(VLOOKUP(B66,OUKIM!B:G,6,0),\"\")","v":""},null,"",null,""]
[null,{"$f":"IFERROR(INDEX(OUKIM!$B$1:$B$396, SMALL(INDEX((OUKIM!$I$1:$I$396=\"Yes\")*(MATCH(ROW(OUKIM!$I$1:$I$396), ROW(OUKIM!$I$1:$I$396)))+(OUKIM!$I$1:$I$396<>\"Yes\")*1048577, 0, 0), ROW(A63))),\"\")","v":""},{"$f":"IFERROR(VLOOKUP(B67,OUKIM!B:C,2,0),\"\")","v":""},{"$f":"IFERROR(VLOOKUP(VLOOKUP(B67,OUKIM!B:J,9,0),DropDowns!G:I,3,0),\"\")","v":""},{"$f":"IFERROR(VLOOKUP(B67,OUKIM!B:E,4,0),\"\")","v":""},{"$f":"IFERROR(VLOOKUP(B67,OUKIM!B:G,6,0),\"\")","v":""},null,"",null,""]
[null,{"$f":"IFERROR(INDEX(OUKIM!$B$1:$B$396, SMALL(INDEX((OUKIM!$I$1:$I$396=\"Yes\")*(MATCH(ROW(OUKIM!$I$1:$I$396), ROW(OUKIM!$I$1:$I$396)))+(OUKIM!$I$1:$I$396<>\"Yes\")*1048577, 0, 0), ROW(A64))),\"\")","v":""},{"$f":"IFERROR(VLOOKUP(B68,OUKIM!B:C,2,0),\"\")","v":""},{"$f":"IFERROR(VLOOKUP(VLOOKUP(B68,OUKIM!B:J,9,0),DropDowns!G:I,3,0),\"\")","v":""},{"$f":"IFERROR(VLOOKUP(B68,OUKIM!B:E,4,0),\"\")","v":""},{"$f":"IFERROR(VLOOKUP(B68,OUKIM!B:G,6,0),\"\")","v":""},null,"",null,""]
[null,{"$f":"IFERROR(INDEX(OUKIM!$B$1:$B$396, SMALL(INDEX((OUKIM!$I$1:$I$396=\"Yes\")*(MATCH(ROW(OUKIM!$I$1:$I$396), ROW(OUKIM!$I$1:$I$396)))+(OUKIM!$I$1:$I$396<>\"Yes\")*1048577, 0, 0), ROW(A65))),\"\")","v":""},{"$f":"IFERROR(VLOOKUP(B69,OUKIM!B:C,2,0),\"\")","v":""},{"$f":"IFERROR(VLOOKUP(VLOOKUP(B69,OUKIM!B:J,9,0),DropDowns!G:I,3,0),\"\")","v":""},{"$f":"IFERROR(VLOOKUP(B69,OUKIM!B:E,4,0),\"\")","v":""},{"$f":"IFERROR(VLOOKUP(B69,OUKIM!B:G,6,0),\"\")","v":""},null,"",null,""]
[null,{"$f":"IFERROR(INDEX(OUKIM!$B$1:$B$396, SMALL(INDEX((OUKIM!$I$1:$I$396=\"Yes\")*(MATCH(ROW(OUKIM!$I$1:$I$396), ROW(OUKIM!$I$1:$I$396)))+(OUKIM!$I$1:$I$396<>\"Yes\")*1048577, 0, 0), ROW(A66))),\"\")","v":""},{"$f":"IFERROR(VLOOKUP(B70,OUKIM!B:C,2,0),\"\")","v":""},{"$f":"IFERROR(VLOOKUP(VLOOKUP(B70,OUKIM!B:J,9,0),DropDowns!G:I,3,0),\"\")","v":""},{"$f":"IFERROR(VLOOKUP(B70,OUKIM!B:E,4,0),\"\")","v":""},{"$f":"IFERROR(VLOOKUP(B70,OUKIM!B:G,6,0),\"\")","v":""},null,{"$f":"IF(B70<>\"\",\"Ya ndani:\",\"\")","v":""},null,{"$f":"IF(B70<>\"\",\"Ya nje:\",\"\")","v":""}]
[null,{"$f":"IFERROR(INDEX(OUKIM!$B$1:$B$396, SMALL(INDEX((OUKIM!$I$1:$I$396=\"Yes\")*(MATCH(ROW(OUKIM!$I$1:$I$396), ROW(OUKIM!$I$1:$I$396)))+(OUKIM!$I$1:$I$396<>\"Yes\")*1048577, 0, 0), ROW(A67))),\"\")","v":""},{"$f":"IFERROR(VLOOKUP(B71,OUKIM!B:C,2,0),\"\")","v":""},{"$f":"IFERROR(VLOOKUP(VLOOKUP(B71,OUKIM!B:J,9,0),DropDowns!G:I,3,0),\"\")","v":""},{"$f":"IFERROR(VLOOKUP(B71,OUKIM!B:E,4,0),\"\")","v":""},{"$f":"IFERROR(VLOOKUP(B71,OUKIM!B:G,6,0),\"\")","v":""},null,"",null,""]
[null,{"$f":"IFERROR(INDEX(OUKIM!$B$1:$B$396, SMALL(INDEX((OUKIM!$I$1:$I$396=\"Yes\")*(MATCH(ROW(OUKIM!$I$1:$I$396), ROW(OUKIM!$I$1:$I$396)))+(OUKIM!$I$1:$I$396<>\"Yes\")*1048577, 0, 0), ROW(A68))),\"\")","v":""},{"$f":"IFERROR(VLOOKUP(B72,OUKIM!B:C,2,0),\"\")","v":""},{"$f":"IFERROR(VLOOKUP(VLOOKUP(B72,OUKIM!B:J,9,0),DropDowns!G:I,3,0),\"\")","v":""},{"$f":"IFERROR(VLOOKUP(B72,OUKIM!B:E,4,0),\"\")","v":""},{"$f":"IFERROR(VLOOKUP(B72,OUKIM!B:G,6,0),\"\")","v":""},null,"",null,""]
[null,{"$f":"IFERROR(INDEX(OUKIM!$B$1:$B$396, SMALL(INDEX((OUKIM!$I$1:$I$396=\"Yes\")*(MATCH(ROW(OUKIM!$I$1:$I$396), ROW(OUKIM!$I$1:$I$396)))+(OUKIM!$I$1:$I$396<>\"Yes\")*1048577, 0, 0), ROW(A69))),\"\")","v":""},{"$f":"IFERROR(VLOOKUP(B73,OUKIM!B:C,2,0),\"\")","v":""},{"$f":"IFERROR(VLOOKUP(VLOOKUP(B73,OUKIM!B:J,9,0),DropDowns!G:I,3,0),\"\")","v":""},{"$f":"IFERROR(VLOOKUP(B73,OUKIM!B:E,4,0),\"\")","v":""},{"$f":"IFERROR(VLOOKUP(B73,OUKIM!B:G,6,0),\"\")","v":""},null,"",null,""]
[null,{"$f":"IFERROR(INDEX(OUKIM!$B$1:$B$396, SMALL(INDEX((OUKIM!$I$1:$I$396=\"Yes\")*(MATCH(ROW(OUKIM!$I$1:$I$396), ROW(OUKIM!$I$1:$I$396)))+(OUKIM!$I$1:$I$396<>\"Yes\")*1048577, 0, 0), ROW(A70))),\"\")","v":""},{"$f":"IFERROR(VLOOKUP(B74,OUKIM!B:C,2,0),\"\")","v":""},{"$f":"IFERROR(VLOOKUP(VLOOKUP(B74,OUKIM!B:J,9,0),DropDowns!G:I,3,0),\"\")","v":""},{"$f":"IFERROR(VLOOKUP(B74,OUKIM!B:E,4,0),\"\")","v":""},{"$f":"IFERROR(VLOOKUP(B74,OUKIM!B:G,6,0),\"\")","v":""},null,"",null,""]
[null,{"$f":"IFERROR(INDEX(OUKIM!$B$1:$B$396, SMALL(INDEX((OUKIM!$I$1:$I$396=\"Yes\")*(MATCH(ROW(OUKIM!$I$1:$I$396), ROW(OUKIM!$I$1:$I$396)))+(OUKIM!$I$1:$I$396<>\"Yes\")*1048577, 0, 0), ROW(A71))),\"\")","v":""},{"$f":"IFERROR(VLOOKUP(B75,OUKIM!B:C,2,0),\"\")","v":""},{"$f":"IFERROR(VLOOKUP(VLOOKUP(B75,OUKIM!B:J,9,0),DropDowns!G:I,3,0),\"\")","v":""},{"$f":"IFERROR(VLOOKUP(B75,OUKIM!B:E,4,0),\"\")","v":""},{"$f":"IFERROR(VLOOKUP(B75,OUKIM!B:G,6,0),\"\")","v":""},null,"",null,""]
[null,{"$f":"IFERROR(INDEX(OUKIM!$B$1:$B$396, SMALL(INDEX((OUKIM!$I$1:$I$396=\"Yes\")*(MATCH(ROW(OUKIM!$I$1:$I$396), ROW(OUKIM!$I$1:$I$396)))+(OUKIM!$I$1:$I$396<>\"Yes\")*1048577, 0, 0), ROW(A72))),\"\")","v":""},{"$f":"IFERROR(VLOOKUP(B76,OUKIM!B:C,2,0),\"\")","v":""},{"$f":"IFERROR(VLOOKUP(VLOOKUP(B76,OUKIM!B:J,9,0),DropDowns!G:I,3,0),\"\")","v":""},{"$f":"IFERROR(VLOOKUP(B76,OUKIM!B:E,4,0),\"\")","v":""},{"$f":"IFERROR(VLOOKUP(B76,OUKIM!B:G,6,0),\"\")","v":""},null,"",null,""]
[null,{"$f":"IFERROR(INDEX(OUKIM!$B$1:$B$396, SMALL(INDEX((OUKIM!$I$1:$I$396=\"Yes\")*(MATCH(ROW(OUKIM!$I$1:$I$396), ROW(OUKIM!$I$1:$I$396)))+(OUKIM!$I$1:$I$396<>\"Yes\")*1048577, 0, 0), ROW(A73))),\"\")","v":""},{"$f":"IFERROR(VLOOKUP(B77,OUKIM!B:C,2,0),\"\")","v":""},{"$f":"IFERROR(VLOOKUP(VLOOKUP(B77,OUKIM!B:J,9,0),DropDowns!G:I,3,0),\"\")","v":""},{"$f":"IFERROR(VLOOKUP(B77,OUKIM!B:E,4,0),\"\")","v":""},{"$f":"IFERROR(VLOOKUP(B77,OUKIM!B:G,6,0),\"\")","v":""},null,"",null,""]
[null,{"$f":"IFERROR(INDEX(OUKIM!$B$1:$B$396, SMALL(INDEX((OUKIM!$I$1:$I$396=\"Yes\")*(MATCH(ROW(OUKIM!$I$1:$I$396), ROW(OUKIM!$I$1:$I$396)))+(OUKIM!$I$1:$I$396<>\"Yes\")*1048577, 0, 0), ROW(A74))),\"\")","v":""},{"$f":"IFERROR(VLOOKUP(B78,OUKIM!B:C,2,0),\"\")","v":""},{"$f":"IFERROR(VLOOKUP(VLOOKUP(B78,OUKIM!B:J,9,0),DropDowns!G:I,3,0),\"\")","v":""},{"$f":"IFERROR(VLOOKUP(B78,OUKIM!B:E,4,0),\"\")","v":""},{"$f":"IFERROR(VLOOKUP(B78,OUKIM!B:G,6,0),\"\")","v":""},null,"",null,""]
[null,{"$f":"IFERROR(INDEX(OUKIM!$B$1:$B$396, SMALL(INDEX((OUKIM!$I$1:$I$396=\"Yes\")*(MATCH(ROW(OUKIM!$I$1:$I$396), ROW(OUKIM!$I$1:$I$396)))+(OUKIM!$I$1:$I$396<>\"Yes\")*1048577, 0, 0), ROW(A75))),\"\")","v":""},{"$f":"IFERROR(VLOOKUP(B79,OUKIM!B:C,2,0),\"\")","v":""},{"$f":"IFERROR(VLOOKUP(VLOOKUP(B79,OUKIM!B:J,9,0),DropDowns!G:I,3,0),\"\")","v":""},{"$f":"IFERROR(VLOOKUP(B79,OUKIM!B:E,4,0),\"\")","v":""},{"$f":"IFERROR(VLOOKUP(B79,OUKIM!B:G,6,0),\"\")","v":""},null,"",null,""]
[null,{"$f":"IFERROR(INDEX(OUKIM!$B$1:$B$396, SMALL(INDEX((OUKIM!$I$1:$I$396=\"Yes\")*(MATCH(ROW(OUKIM!$I$1:$I$396), ROW(OUKIM!$I$1:$I$396)))+(OUKIM!$I$1:$I$396<>\"Yes\")*1048577, 0, 0), ROW(A76))),\"\")","v":""},{"$f":"IFERROR(VLOOKUP(B80,OUKIM!B:C,2,0),\"\")","v":""},{"$f":"IFERROR(VLOOKUP(VLOOKUP(B80,OUKIM!B:J,9,0),DropDowns!G:I,3,0),\"\")","v":""},{"$f":"IFERROR(VLOOKUP(B80,OUKIM!B:E,4,0),\"\")","v":""},{"$f":"IFERROR(VLOOKUP(B80,OUKIM!B:G,6,0),\"\")","v":""},null,"",null,""]
[null,{"$f":"IFERROR(INDEX(OUKIM!$B$1:$B$396, SMALL(INDEX((OUKIM!$I$1:$I$396=\"Yes\")*(MATCH(ROW(OUKIM!$I$1:$I$396), ROW(OUKIM!$I$1:$I$396)))+(OUKIM!$I$1:$I$396<>\"Yes\")*1048577, 0, 0), ROW(A77))),\"\")","v":""},{"$f":"IFERROR(VLOOKUP(B81,OUKIM!B:C,2,0),\"\")","v":""},{"$f":"IFERROR(VLOOKUP(VLOOKUP(B81,OUKIM!B:J,9,0),DropDowns!G:I,3,0),\"\")","v":""},{"$f":"IFERROR(VLOOKUP(B81,OUKIM!B:E,4,0),\"\")","v":""},{"$f":"IFERROR(VLOOKUP(B81,OUKIM!B:G,6,0),\"\")","v":""},null,"",null,""]
[null,{"$f":"IFERROR(INDEX(OUKIM!$B$1:$B$396, SMALL(INDEX((OUKIM!$I$1:$I$396=\"Yes\")*(MATCH(ROW(OUKIM!$I$1:$I$396), ROW(OUKIM!$I$1:$I$396)))+(OUKIM!$I$1:$I$396<>\"Yes\")*1048577, 0, 0), ROW(A78))),\"\")","v":""},{"$f":"IFERROR(VLOOKUP(B82,OUKIM!B:C,2,0),\"\")","v":""},{"$f":"IFERROR(VLOOKUP(VLOOKUP(B82,OUKIM!B:J,9,0),DropDowns!G:I,3,0),\"\")","v":""},{"$f":"IFERROR(VLOOKUP(B82,OUKIM!B:E,4,0),\"\")","v":""},{"$f":"IFERROR(VLOOKUP(B82,OUKIM!B:G,6,0),\"\")","v":""},null,"",null,""]
[null,{"$f":"IFERROR(INDEX(OUKIM!$B$1:$B$396, SMALL(INDEX((OUKIM!$I$1:$I$396=\"Yes\")*(MATCH(ROW(OUKIM!$I$1:$I$396), ROW(OUKIM!$I$1:$I$396)))+(OUKIM!$I$1:$I$396<>\"Yes\")*1048577, 0, 0), ROW(A79))),\"\")","v":""},{"$f":"IFERROR(VLOOKUP(B83,OUKIM!B:C,2,0),\"\")","v":""},{"$f":"IFERROR(VLOOKUP(VLOOKUP(B83,OUKIM!B:J,9,0),DropDowns!G:I,3,0),\"\")","v":""},{"$f":"IFERROR(VLOOKUP(B83,OUKIM!B:E,4,0),\"\")","v":""},{"$f":"IFERROR(VLOOKUP(B83,OUKIM!B:G,6,0),\"\")","v":""},null,"",null,""]
[null,{"$f":"IFERROR(INDEX(OUKIM!$B$1:$B$396, SMALL(INDEX((OUKIM!$I$1:$I$396=\"Yes\")*(MATCH(ROW(OUKIM!$I$1:$I$396), ROW(OUKIM!$I$1:$I$396)))+(OUKIM!$I$1:$I$396<>\"Yes\")*1048577, 0, 0), ROW(A80))),\"\")","v":""},{"$f":"IFERROR(VLOOKUP(B84,OUKIM!B:C,2,0),\"\")","v":""},{"$f":"IFERROR(VLOOKUP(VLOOKUP(B84,OUKIM!B:J,9,0),DropDowns!G:I,3,0),\"\")","v":""},{"$f":"IFERROR(VLOOKUP(B84,OUKIM!B:E,4,0),\"\")","v":""},{"$f":"IFERROR(VLOOKUP(B84,OUKIM!B:G,6,0),\"\")","v":""},null,"",null,""]
[null,{"$f":"IFERROR(INDEX(OUKIM!$B$1:$B$396, SMALL(INDEX((OUKIM!$I$1:$I$396=\"Yes\")*(MATCH(ROW(OUKIM!$I$1:$I$396), ROW(OUKIM!$I$1:$I$396)))+(OUKIM!$I$1:$I$396<>\"Yes\")*1048577, 0, 0), ROW(A81))),\"\")","v":""},{"$f":"IFERROR(VLOOKUP(B85,OUKIM!B:C,2,0),\"\")","v":""},{"$f":"IFERROR(VLOOKUP(VLOOKUP(B85,OUKIM!B:J,9,0),DropDowns!G:I,3,0),\"\")","v":""},{"$f":"IFERROR(VLOOKUP(B85,OUKIM!B:E,4,0),\"\")","v":""},{"$f":"IFERROR(VLOOKUP(B85,OUKIM!B:G,6,0),\"\")","v":""},null,"",null,""]
[null,{"$f":"IFERROR(INDEX(OUKIM!$B$1:$B$396, SMALL(INDEX((OUKIM!$I$1:$I$396=\"Yes\")*(MATCH(ROW(OUKIM!$I$1:$I$396), ROW(OUKIM!$I$1:$I$396)))+(OUKIM!$I$1:$I$396<>\"Yes\")*1048577, 0, 0), ROW(A82))),\"\")","v":""},{"$f":"IFERROR(VLOOKUP(B86,OUKIM!B:C,2,0),\"\")","v":""},{"$f":"IFERROR(VLOOKUP(VLOOKUP(B86,OUKIM!B:J,9,0),DropDowns!G:I,3,0),\"\")","v":""},{"$f":"IFERROR(VLOOKUP(B86,OUKIM!B:E,4,0),\"\")","v":""},{"$f":"IFERROR(VLOOKUP(B86,OUKIM!B:G,6,0),\"\")","v":""},null,"",null,""]
[null,{"$f":"IFERROR(INDEX(OUKIM!$B$1:$B$396, SMALL(INDEX((OUKIM!$I$1:$I$396=\"Yes\")*(MATCH(ROW(OUKIM!$I$1:$I$396), ROW(OUKIM!$I$1:$I$396)))+(OUKIM!$I$1:$I$396<>\"Yes\")*1048577, 0, 0), ROW(A83))),\"\")","v":""},{"$f":"IFERROR(VLOOKUP(B87,OUKIM!B:C,2,0),\"\")","v":""},{"$f":"IFERROR(VLOOKUP(VLOOKUP(B87,OUKIM!B:J,9,0),DropDowns!G:I,3,0),\"\")","v":""},{"$f":"IFERROR(VLOOKUP(B87,OUKIM!B:E,4,0),\"\")","v":""},{"$f":"IFERROR(VLOOKUP(B87,OUKIM!B:G,6,0),\"\")","v":""},null,"",null,""]
[null,{"$f":"IFERROR(INDEX(OUKIM!$B$1:$B$396, SMALL(INDEX((OUKIM!$I$1:$I$396=\"Yes\")*(MATCH(ROW(OUKIM!$I$1:$I$396), ROW(OUKIM!$I$1:$I$396)))+(OUKIM!$I$1:$I$396<>\"Yes\")*1048577, 0, 0), ROW(A84))),\"\")","v":""},{"$f":"IFERROR(VLOOKUP(B88,OUKIM!B:C,2,0),\"\")","v":""},{"$f":"IFERROR(VLOOKUP(VLOOKUP(B88,OUKIM!B:J,9,0),DropDowns!G:I,3,0),\"\")","v":""},{"$f":"IFERROR(VLOOKUP(B88,OUKIM!B:E,4,0),\"\")","v":""},{"$f":"IFERROR(VLOOKUP(B88,OUKIM!B:G,6,0),\"\")","v":""},null,"",null,""]
[null,{"$f":"IFERROR(INDEX(OUKIM!$B$1:$B$396, SMALL(INDEX((OUKIM!$I$1:$I$396=\"Yes\")*(MATCH(ROW(OUKIM!$I$1:$I$396), ROW(OUKIM!$I$1:$I$396)))+(OUKIM!$I$1:$I$396<>\"Yes\")*1048577, 0, 0), ROW(A85))),\"\")","v":""},{"$f":"IFERROR(VLOOKUP(B89,OUKIM!B:C,2,0),\"\")","v":""},{"$f":"IFERROR(VLOOKUP(VLOOKUP(B89,OUKIM!B:J,9,0),DropDowns!G:I,3,0),\"\")","v":""},{"$f":"IFERROR(VLOOKUP(B89,OUKIM!B:E,4,0),\"\")","v":""},{"$f":"IFERROR(VLOOKUP(B89,OUKIM!B:G,6,0),\"\")","v":""},null,"",null,""]
[null,{"$f":"IFERROR(INDEX(OUKIM!$B$1:$B$396, SMALL(INDEX((OUKIM!$I$1:$I$396=\"Yes\")*(MATCH(ROW(OUKIM!$I$1:$I$396), ROW(OUKIM!$I$1:$I$396)))+(OUKIM!$I$1:$I$396<>\"Yes\")*1048577, 0, 0), ROW(A86))),\"\")","v":""},{"$f":"IFERROR(VLOOKUP(B90,OUKIM!B:C,2,0),\"\")","v":""},{"$f":"IFERROR(VLOOKUP(VLOOKUP(B90,OUKIM!B:J,9,0),DropDowns!G:I,3,0),\"\")","v":""},{"$f":"IFERROR(VLOOKUP(B90,OUKIM!B:E,4,0),\"\")","v":""},{"$f":"IFERROR(VLOOKUP(B90,OUKIM!B:G,6,0),\"\")","v":""},null,"",null,""]
[null,{"$f":"IFERROR(INDEX(OUKIM!$B$1:$B$396, SMALL(INDEX((OUKIM!$I$1:$I$396=\"Yes\")*(MATCH(ROW(OUKIM!$I$1:$I$396), ROW(OUKIM!$I$1:$I$396)))+(OUKIM!$I$1:$I$396<>\"Yes\")*1048577, 0, 0), ROW(A87))),\"\")","v":""},{"$f":"IFERROR(VLOOKUP(B91,OUKIM!B:C,2,0),\"\")","v":""},{"$f":"IFERROR(VLOOKUP(VLOOKUP(B91,OUKIM!B:J,9,0),DropDowns!G:I,3,0),\"\")","v":""},{"$f":"IFERROR(VLOOKUP(B91,OUKIM!B:E,4,0),\"\")","v":""},{"$f":"IFERROR(VLOOKUP(B91,OUKIM!B:G,6,0),\"\")","v":""},null,"",null,""]
[null,{"$f":"IFERROR(INDEX(OUKIM!$B$1:$B$396, SMALL(INDEX((OUKIM!$I$1:$I$396=\"Yes\")*(MATCH(ROW(OUKIM!$I$1:$I$396), ROW(OUKIM!$I$1:$I$396)))+(OUKIM!$I$1:$I$396<>\"Yes\")*1048577, 0, 0), ROW(A88))),\"\")","v":""},{"$f":"IFERROR(VLOOKUP(B92,OUKIM!B:C,2,0),\"\")","v":""},{"$f":"IFERROR(VLOOKUP(VLOOKUP(B92,OUKIM!B:J,9,0),DropDowns!G:I,3,0),\"\")","v":""},{"$f":"IFERROR(VLOOKUP(B92,OUKIM!B:E,4,0),\"\")","v":""},{"$f":"IFERROR(VLOOKUP(B92,OUKIM!B:G,6,0),\"\")","v":""},null,"",null,""]
[null,{"$f":"IFERROR(INDEX(OUKIM!$B$1:$B$396, SMALL(INDEX((OUKIM!$I$1:$I$396=\"Yes\")*(MATCH(ROW(OUKIM!$I$1:$I$396), ROW(OUKIM!$I$1:$I$396)))+(OUKIM!$I$1:$I$396<>\"Yes\")*1048577, 0, 0), ROW(A89))),\"\")","v":""},{"$f":"IFERROR(VLOOKUP(B93,OUKIM!B:C,2,0),\"\")","v":""},{"$f":"IFERROR(VLOOKUP(VLOOKUP(B93,OUKIM!B:J,9,0),DropDowns!G:I,3,0),\"\")","v":""},{"$f":"IFERROR(VLOOKUP(B93,OUKIM!B:E,4,0),\"\")","v":""},{"$f":"IFERROR(VLOOKUP(B93,OUKIM!B:G,6,0),\"\")","v":""},null,"",null,""]
[null,{"$f":"IFERROR(INDEX(OUKIM!$B$1:$B$396, SMALL(INDEX((OUKIM!$I$1:$I$396=\"Yes\")*(MATCH(ROW(OUKIM!$I$1:$I$396), ROW(OUKIM!$I$1:$I$396)))+(OUKIM!$I$1:$I$396<>\"Yes\")*1048577, 0, 0), ROW(A90))),\"\")","v":""},{"$f":"IFERROR(VLOOKUP(B94,OUKIM!B:C,2,0),\"\")","v":""},{"$f":"IFERROR(VLOOKUP(VLOOKUP(B94,OUKIM!B:J,9,0),DropDowns!G:I,3,0),\"\")","v":""},{"$f":"IFERROR(VLOOKUP(B94,OUKIM!B:E,4,0),\"\")","v":""},{"$f":"IFERROR(VLOOKUP(B94,OUKIM!B:G,6,0),\"\")","v":""},null,"",null,""]
[null,{"$f":"IFERROR(INDEX(OUKIM!$B$1:$B$396, SMALL(INDEX((OUKIM!$I$1:$I$396=\"Yes\")*(MATCH(ROW(OUKIM!$I$1:$I$396), ROW(OUKIM!$I$1:$I$396)))+(OUKIM!$I$1:$I$396<>\"Yes\")*1048577, 0, 0), ROW(A91))),\"\")","v":""},{"$f":"IFERROR(VLOOKUP(B95,OUKIM!B:C,2,0),\"\")","v":""},{"$f":"IFERROR(VLOOKUP(VLOOKUP(B95,OUKIM!B:J,9,0),DropDowns!G:I,3,0),\"\")","v":""},{"$f":"IFERROR(VLOOKUP(B95,OUKIM!B:E,4,0),\"\")","v":""},{"$f":"IFERROR(VLOOKUP(B95,OUKIM!B:G,6,0),\"\")","v":""},null,"",null,""]
[null,{"$f":"IFERROR(INDEX(OUKIM!$B$1:$B$396, SMALL(INDEX((OUKIM!$I$1:$I$396=\"Yes\")*(MATCH(ROW(OUKIM!$I$1:$I$396), ROW(OUKIM!$I$1:$I$396)))+(OUKIM!$I$1:$I$396<>\"Yes\")*1048577, 0, 0), ROW(A92))),\"\")","v":""},{"$f":"IFERROR(VLOOKUP(B96,OUKIM!B:C,2,0),\"\")","v":""},{"$f":"IFERROR(VLOOKUP(VLOOKUP(B96,OUKIM!B:J,9,0),DropDowns!G:I,3,0),\"\")","v":""},{"$f":"IFERROR(VLOOKUP(B96,OUKIM!B:E,4,0),\"\")","v":""},{"$f":"IFERROR(VLOOKUP(B96,OUKIM!B:G,6,0),\"\")","v":""},null,"",null,""]
[null,{"$f":"IFERROR(INDEX(OUKIM!$B$1:$B$396, SMALL(INDEX((OUKIM!$I$1:$I$396=\"Yes\")*(MATCH(ROW(OUKIM!$I$1:$I$396), ROW(OUKIM!$I$1:$I$396)))+(OUKIM!$I$1:$I$396<>\"Yes\")*1048577, 0, 0), ROW(A93))),\"\")","v":""},{"$f":"IFERROR(VLOOKUP(B97,OUKIM!B:C,2,0),\"\")","v":""},{"$f":"IFERROR(VLOOKUP(VLOOKUP(B97,OUKIM!B:J,9,0),DropDowns!G:I,3,0),\"\")","v":""},{"$f":"IFERROR(VLOOKUP(B97,OUKIM!B:E,4,0),\"\")","v":""},{"$f":"IFERROR(VLOOKUP(B97,OUKIM!B:G,6,0),\"\")","v":""},null,"",null,""]
[null,{"$f":"IFERROR(INDEX(OUKIM!$B$1:$B$396, SMALL(INDEX((OUKIM!$I$1:$I$396=\"Yes\")*(MATCH(ROW(OUKIM!$I$1:$I$396), ROW(OUKIM!$I$1:$I$396)))+(OUKIM!$I$1:$I$396<>\"Yes\")*1048577, 0, 0), ROW(A94))),\"\")","v":""},{"$f":"IFERROR(VLOOKUP(B98,OUKIM!B:C,2,0),\"\")","v":""},{"$f":"IFERROR(VLOOKUP(VLOOKUP(B98,OUKIM!B:J,9,0),DropDowns!G:I,3,0),\"\")","v":""},{"$f":"IFERROR(VLOOKUP(B98,OUKIM!B:E,4,0),\"\")","v":""},{"$f":"IFERROR(VLOOKUP(B98,OUKIM!B:G,6,0),\"\")","v":""},null,"",null,""]
[null,{"$f":"IFERROR(INDEX(OUKIM!$B$1:$B$396, SMALL(INDEX((OUKIM!$I$1:$I$396=\"Yes\")*(MATCH(ROW(OUKIM!$I$1:$I$396), ROW(OUKIM!$I$1:$I$396)))+(OUKIM!$I$1:$I$396<>\"Yes\")*1048577, 0, 0), ROW(A95))),\"\")","v":""},{"$f":"IFERROR(VLOOKUP(B99,OUKIM!B:C,2,0),\"\")","v":""},{"$f":"IFERROR(VLOOKUP(VLOOKUP(B99,OUKIM!B:J,9,0),DropDowns!G:I,3,0),\"\")","v":""},{"$f":"IFERROR(VLOOKUP(B99,OUKIM!B:E,4,0),\"\")","v":""},{"$f":"IFERROR(VLOOKUP(B99,OUKIM!B:G,6,0),\"\")","v":""},null,"",null,""]
[null,{"$f":"IFERROR(INDEX(OUKIM!$B$1:$B$396, SMALL(INDEX((OUKIM!$I$1:$I$396=\"Yes\")*(MATCH(ROW(OUKIM!$I$1:$I$396), ROW(OUKIM!$I$1:$I$396)))+(OUKIM!$I$1:$I$396<>\"Yes\")*1048577, 0, 0), ROW(A96))),\"\")","v":""},{"$f":"IFERROR(VLOOKUP(B100,OUKIM!B:C,2,0),\"\")","v":""},{"$f":"IFERROR(VLOOKUP(VLOOKUP(B100,OUKIM!B:J,9,0),DropDowns!G:I,3,0),\"\")","v":""},{"$f":"IFERROR(VLOOKUP(B100,OUKIM!B:E,4,0),\"\")","v":""},{"$f":"IFERROR(VLOOKUP(B100,OUKIM!B:G,6,0),\"\")","v":""},null,"",null,""]
[null,{"$f":"IFERROR(INDEX(OUKIM!$B$1:$B$396, SMALL(INDEX((OUKIM!$I$1:$I$396=\"Yes\")*(MATCH(ROW(OUKIM!$I$1:$I$396), ROW(OUKIM!$I$1:$I$396)))+(OUKIM!$I$1:$I$396<>\"Yes\")*1048577, 0, 0), ROW(A97))),\"\")","v":""},{"$f":"IFERROR(VLOOKUP(B101,OUKIM!B:C,2,0),\"\")","v":""},{"$f":"IFERROR(VLOOKUP(VLOOKUP(B101,OUKIM!B:J,9,0),DropDowns!G:I,3,0),\"\")","v":""},{"$f":"IFERROR(VLOOKUP(B101,OUKIM!B:E,4,0),\"\")","v":""},{"$f":"IFERROR(VLOOKUP(B101,OUKIM!B:G,6,0),\"\")","v":""},null,"",null,""]
[null,{"$f":"IFERROR(INDEX(OUKIM!$B$1:$B$396, SMALL(INDEX((OUKIM!$I$1:$I$396=\"Yes\")*(MATCH(ROW(OUKIM!$I$1:$I$396), ROW(OUKIM!$I$1:$I$396)))+(OUKIM!$I$1:$I$396<>\"Yes\")*1048577, 0, 0), ROW(A98))),\"\")","v":""},{"$f":"IFERROR(VLOOKUP(B102,OUKIM!B:C,2,0),\"\")","v":""},{"$f":"IFERROR(VLOOKUP(VLOOKUP(B102,OUKIM!B:J,9,0),DropDowns!G:I,3,0),\"\")","v":""},{"$f":"IFERROR(VLOOKUP(B102,OUKIM!B:E,4,0),\"\")","v":""},{"$f":"IFERROR(VLOOKUP(B102,OUKIM!B:G,6,0),\"\")","v":""},null,"",null,""]
[null,{"$f":"IFERROR(INDEX(OUKIM!$B$1:$B$396, SMALL(INDEX((OUKIM!$I$1:$I$396=\"Yes\")*(MATCH(ROW(OUKIM!$I$1:$I$396), ROW(OUKIM!$I$1:$I$396)))+(OUKIM!$I$1:$I$396<>\"Yes\")*1048577, 0, 0), ROW(A99))),\"\")","v":""},{"$f":"IFERROR(VLOOKUP(B103,OUKIM!B:C,2,0),\"\")","v":""},{"$f":"IFERROR(VLOOKUP(VLOOKUP(B103,OUKIM!B:J,9,0),DropDowns!G:I,3,0),\"\")","v":""},{"$f":"IFERROR(VLOOKUP(B103,OUKIM!B:E,4,0),\"\")","v":""},{"$f":"IFERROR(VLOOKUP(B103,OUKIM!B:G,6,0),\"\")","v":""},null,"",null,""]
[null,{"$f":"IFERROR(INDEX(OUKIM!$B$1:$B$396, SMALL(INDEX((OUKIM!$I$1:$I$396=\"Yes\")*(MATCH(ROW(OUKIM!$I$1:$I$396), ROW(OUKIM!$I$1:$I$396)))+(OUKIM!$I$1:$I$396<>\"Yes\")*1048577, 0, 0), ROW(A100))),\"\")","v":""},{"$f":"IFERROR(VLOOKUP(B104,OUKIM!B:C,2,0),\"\")","v":""},{"$f":"IFERROR(VLOOKUP(VLOOKUP(B104,OUKIM!B:J,9,0),DropDowns!G:I,3,0),\"\")","v":""},{"$f":"IFERROR(VLOOKUP(B104,OUKIM!B:E,4,0),\"\")","v":""},{"$f":"IFERROR(VLOOKUP(B104,OUKIM!B:G,6,0),\"\")","v":""},null,"",null,""]
[null,{"$f":"IFERROR(INDEX(OUKIM!$B$1:$B$396, SMALL(INDEX((OUKIM!$I$1:$I$396=\"Yes\")*(MATCH(ROW(OUKIM!$I$1:$I$396), ROW(OUKIM!$I$1:$I$396)))+(OUKIM!$I$1:$I$396<>\"Yes\")*1048577, 0, 0), ROW(A101))),\"\")","v":""},{"$f":"IFERROR(VLOOKUP(B105,OUKIM!B:C,2,0),\"\")","v":""},{"$f":"IFERROR(VLOOKUP(VLOOKUP(B105,OUKIM!B:J,9,0),DropDowns!G:I,3,0),\"\")","v":""},{"$f":"IFERROR(VLOOKUP(B105,OUKIM!B:E,4,0),\"\")","v":""},{"$f":"IFERROR(VLOOKUP(B105,OUKIM!B:G,6,0),\"\")","v":""},null,"",null,""]
[null,{"$f":"IFERROR(INDEX(OUKIM!$B$1:$B$396, SMALL(INDEX((OUKIM!$I$1:$I$396=\"Yes\")*(MATCH(ROW(OUKIM!$I$1:$I$396), ROW(OUKIM!$I$1:$I$396)))+(OUKIM!$I$1:$I$396<>\"Yes\")*1048577, 0, 0), ROW(A102))),\"\")","v":""},{"$f":"IFERROR(VLOOKUP(B106,OUKIM!B:C,2,0),\"\")","v":""},{"$f":"IFERROR(VLOOKUP(VLOOKUP(B106,OUKIM!B:J,9,0),DropDowns!G:I,3,0),\"\")","v":""},{"$f":"IFERROR(VLOOKUP(B106,OUKIM!B:E,4,0),\"\")","v":""},{"$f":"IFERROR(VLOOKUP(B106,OUKIM!B:G,6,0),\"\")","v":""},null,"",null,""]
[null,{"$f":"IFERROR(INDEX(OUKIM!$B$1:$B$396, SMALL(INDEX((OUKIM!$I$1:$I$396=\"Yes\")*(MATCH(ROW(OUKIM!$I$1:$I$396), ROW(OUKIM!$I$1:$I$396)))+(OUKIM!$I$1:$I$396<>\"Yes\")*1048577, 0, 0), ROW(A103))),\"\")","v":""},{"$f":"IFERROR(VLOOKUP(B107,OUKIM!B:C,2,0),\"\")","v":""},{"$f":"IFERROR(VLOOKUP(VLOOKUP(B107,OUKIM!B:J,9,0),DropDowns!G:I,3,0),\"\")","v":""},{"$f":"IFERROR(VLOOKUP(B107,OUKIM!B:E,4,0),\"\")","v":""},{"$f":"IFERROR(VLOOKUP(B107,OUKIM!B:G,6,0),\"\")","v":""},null,"",null,""]
[null,{"$f":"IFERROR(INDEX(OUKIM!$B$1:$B$396, SMALL(INDEX((OUKIM!$I$1:$I$396=\"Yes\")*(MATCH(ROW(OUKIM!$I$1:$I$396), ROW(OUKIM!$I$1:$I$396)))+(OUKIM!$I$1:$I$396<>\"Yes\")*1048577, 0, 0), ROW(A104))),\"\")","v":""},{"$f":"IFERROR(VLOOKUP(B108,OUKIM!B:C,2,0),\"\")","v":""},{"$f":"IFERROR(VLOOKUP(VLOOKUP(B108,OUKIM!B:J,9,0),DropDowns!G:I,3,0),\"\")","v":""},{"$f":"IFERROR(VLOOKUP(B108,OUKIM!B:E,4,0),\"\")","v":""},{"$f":"IFERROR(VLOOKUP(B108,OUKIM!B:G,6,0),\"\")","v":""},null,"",null,""]
[null,{"$f":"IFERROR(INDEX(OUKIM!$B$1:$B$396, SMALL(INDEX((OUKIM!$I$1:$I$396=\"Yes\")*(MATCH(ROW(OUKIM!$I$1:$I$396), ROW(OUKIM!$I$1:$I$396)))+(OUKIM!$I$1:$I$396<>\"Yes\")*1048577, 0, 0), ROW(A105))),\"\")","v":""},{"$f":"IFERROR(VLOOKUP(B109,OUKIM!B:C,2,0),\"\")","v":""},{"$f":"IFERROR(VLOOKUP(VLOOKUP(B109,OUKIM!B:J,9,0),DropDowns!G:I,3,0),\"\")","v":""},{"$f":"IFERROR(VLOOKUP(B109,OUKIM!B:E,4,0),\"\")","v":""},{"$f":"IFERROR(VLOOKUP(B109,OUKIM!B:G,6,0),\"\")","v":""},null,"",null,""]
[null,{"$f":"IFERROR(INDEX(OUKIM!$B$1:$B$396, SMALL(INDEX((OUKIM!$I$1:$I$396=\"Yes\")*(MATCH(ROW(OUKIM!$I$1:$I$396), ROW(OUKIM!$I$1:$I$396)))+(OUKIM!$I$1:$I$396<>\"Yes\")*1048577, 0, 0), ROW(A106))),\"\")","v":""},{"$f":"IFERROR(VLOOKUP(B110,OUKIM!B:C,2,0),\"\")","v":""},{"$f":"IFERROR(VLOOKUP(VLOOKUP(B110,OUKIM!B:J,9,0),DropDowns!G:I,3,0),\"\")","v":""},{"$f":"IFERROR(VLOOKUP(B110,OUKIM!B:E,4,0),\"\")","v":""},{"$f":"IFERROR(VLOOKUP(B110,OUKIM!B:G,6,0),\"\")","v":""},null,"",null,""]
[null,{"$f":"IFERROR(INDEX(OUKIM!$B$1:$B$396, SMALL(INDEX((OUKIM!$I$1:$I$396=\"Yes\")*(MATCH(ROW(OUKIM!$I$1:$I$396), ROW(OUKIM!$I$1:$I$396)))+(OUKIM!$I$1:$I$396<>\"Yes\")*1048577, 0, 0), ROW(A107))),\"\")","v":""},{"$f":"IFERROR(VLOOKUP(B111,OUKIM!B:C,2,0),\"\")","v":""},{"$f":"IFERROR(VLOOKUP(VLOOKUP(B111,OUKIM!B:J,9,0),DropDowns!G:I,3,0),\"\")","v":""},{"$f":"IFERROR(VLOOKUP(B111,OUKIM!B:E,4,0),\"\")","v":""},{"$f":"IFERROR(VLOOKUP(B111,OUKIM!B:G,6,0),\"\")","v":""},null,"",null,""]
[null,{"$f":"IFERROR(INDEX(OUKIM!$B$1:$B$396, SMALL(INDEX((OUKIM!$I$1:$I$396=\"Yes\")*(MATCH(ROW(OUKIM!$I$1:$I$396), ROW(OUKIM!$I$1:$I$396)))+(OUKIM!$I$1:$I$396<>\"Yes\")*1048577, 0, 0), ROW(A108))),\"\")","v":""},{"$f":"IFERROR(VLOOKUP(B112,OUKIM!B:C,2,0),\"\")","v":""},{"$f":"IFERROR(VLOOKUP(VLOOKUP(B112,OUKIM!B:J,9,0),DropDowns!G:I,3,0),\"\")","v":""},{"$f":"IFERROR(VLOOKUP(B112,OUKIM!B:E,4,0),\"\")","v":""},{"$f":"IFERROR(VLOOKUP(B112,OUKIM!B:G,6,0),\"\")","v":""},null,"",null,""]
[null,{"$f":"IFERROR(INDEX(OUKIM!$B$1:$B$396, SMALL(INDEX((OUKIM!$I$1:$I$396=\"Yes\")*(MATCH(ROW(OUKIM!$I$1:$I$396), ROW(OUKIM!$I$1:$I$396)))+(OUKIM!$I$1:$I$396<>\"Yes\")*1048577, 0, 0), ROW(A109))),\"\")","v":""},{"$f":"IFERROR(VLOOKUP(B113,OUKIM!B:C,2,0),\"\")","v":""},{"$f":"IFERROR(VLOOKUP(VLOOKUP(B113,OUKIM!B:J,9,0),DropDowns!G:I,3,0),\"\")","v":""},{"$f":"IFERROR(VLOOKUP(B113,OUKIM!B:E,4,0),\"\")","v":""},{"$f":"IFERROR(VLOOKUP(B113,OUKIM!B:G,6,0),\"\")","v":""},null,"",null,""]
[null,{"$f":"IFERROR(INDEX(OUKIM!$B$1:$B$396, SMALL(INDEX((OUKIM!$I$1:$I$396=\"Yes\")*(MATCH(ROW(OUKIM!$I$1:$I$396), ROW(OUKIM!$I$1:$I$396)))+(OUKIM!$I$1:$I$396<>\"Yes\")*1048577, 0, 0), ROW(A110))),\"\")","v":""},{"$f":"IFERROR(VLOOKUP(B114,OUKIM!B:C,2,0),\"\")","v":""},{"$f":"IFERROR(VLOOKUP(VLOOKUP(B114,OUKIM!B:J,9,0),DropDowns!G:I,3,0),\"\")","v":""},{"$f":"IFERROR(VLOOKUP(B114,OUKIM!B:E,4,0),\"\")","v":""},{"$f":"IFERROR(VLOOKUP(B114,OUKIM!B:G,6,0),\"\")","v":""},null,"",null,""]
[null,{"$f":"IFERROR(INDEX(OUKIM!$B$1:$B$396, SMALL(INDEX((OUKIM!$I$1:$I$396=\"Yes\")*(MATCH(ROW(OUKIM!$I$1:$I$396), ROW(OUKIM!$I$1:$I$396)))+(OUKIM!$I$1:$I$396<>\"Yes\")*1048577, 0, 0), ROW(A111))),\"\")","v":""},{"$f":"IFERROR(VLOOKUP(B115,OUKIM!B:C,2,0),\"\")","v":""},{"$f":"IFERROR(VLOOKUP(VLOOKUP(B115,OUKIM!B:J,9,0),DropDowns!G:I,3,0),\"\")","v":""},{"$f":"IFERROR(VLOOKUP(B115,OUKIM!B:E,4,0),\"\")","v":""},{"$f":"IFERROR(VLOOKUP(B115,OUKIM!B:G,6,0),\"\")","v":""},null,"",null,""]
[null,{"$f":"IFERROR(INDEX(OUKIM!$B$1:$B$396, SMALL(INDEX((OUKIM!$I$1:$I$396=\"Yes\")*(MATCH(ROW(OUKIM!$I$1:$I$396), ROW(OUKIM!$I$1:$I$396)))+(OUKIM!$I$1:$I$396<>\"Yes\")*1048577, 0, 0), ROW(A112))),\"\")","v":""},{"$f":"IFERROR(VLOOKUP(B116,OUKIM!B:C,2,0),\"\")","v":""},{"$f":"IFERROR(VLOOKUP(VLOOKUP(B116,OUKIM!B:J,9,0),DropDowns!G:I,3,0),\"\")","v":""},{"$f":"IFERROR(VLOOKUP(B116,OUKIM!B:E,4,0),\"\")","v":""},{"$f":"IFERROR(VLOOKUP(B116,OUKIM!B:G,6,0),\"\")","v":""},null,"",null,""]
[null,{"$f":"IFERROR(INDEX(OUKIM!$B$1:$B$396, SMALL(INDEX((OUKIM!$I$1:$I$396=\"Yes\")*(MATCH(ROW(OUKIM!$I$1:$I$396), ROW(OUKIM!$I$1:$I$396)))+(OUKIM!$I$1:$I$396<>\"Yes\")*1048577, 0, 0), ROW(A113))),\"\")","v":""},{"$f":"IFERROR(VLOOKUP(B117,OUKIM!B:C,2,0),\"\")","v":""},{"$f":"IFERROR(VLOOKUP(VLOOKUP(B117,OUKIM!B:J,9,0),DropDowns!G:I,3,0),\"\")","v":""},{"$f":"IFERROR(VLOOKUP(B117,OUKIM!B:E,4,0),\"\")","v":""},{"$f":"IFERROR(VLOOKUP(B117,OUKIM!B:G,6,0),\"\")","v":""},null,"",null,""]
[null,{"$f":"IFERROR(INDEX(OUKIM!$B$1:$B$396, SMALL(INDEX((OUKIM!$I$1:$I$396=\"Yes\")*(MATCH(ROW(OUKIM!$I$1:$I$396), ROW(OUKIM!$I$1:$I$396)))+(OUKIM!$I$1:$I$396<>\"Yes\")*1048577, 0, 0), ROW(A114))),\"\")","v":""},{"$f":"IFERROR(VLOOKUP(B118,OUKIM!B:C,2,0),\"\")","v":""},{"$f":"IFERROR(VLOOKUP(VLOOKUP(B118,OUKIM!B:J,9,0),DropDowns!G:I,3,0),\"\")","v":""},{"$f":"IFERROR(VLOOKUP(B118,OUKIM!B:E,4,0),\"\")","v":""},{"$f":"IFERROR(VLOOKUP(B118,OUKIM!B:G,6,0),\"\")","v":""},null,"",null,""]
[null,{"$f":"IFERROR(INDEX(OUKIM!$B$1:$B$396, SMALL(INDEX((OUKIM!$I$1:$I$396=\"Yes\")*(MATCH(ROW(OUKIM!$I$1:$I$396), ROW(OUKIM!$I$1:$I$396)))+(OUKIM!$I$1:$I$396<>\"Yes\")*1048577, 0, 0), ROW(A115))),\"\")","v":""},{"$f":"IFERROR(VLOOKUP(B119,OUKIM!B:C,2,0),\"\")","v":""},{"$f":"IFERROR(VLOOKUP(VLOOKUP(B119,OUKIM!B:J,9,0),DropDowns!G:I,3,0),\"\")","v":""},{"$f":"IFERROR(VLOOKUP(B119,OUKIM!B:E,4,0),\"\")","v":""},{"$f":"IFERROR(VLOOKUP(B119,OUKIM!B:G,6,0),\"\")","v":""},null,"",null,""]
[null,{"$f":"IFERROR(INDEX(OUKIM!$B$1:$B$396, SMALL(INDEX((OUKIM!$I$1:$I$396=\"Yes\")*(MATCH(ROW(OUKIM!$I$1:$I$396), ROW(OUKIM!$I$1:$I$396)))+(OUKIM!$I$1:$I$396<>\"Yes\")*1048577, 0, 0), ROW(A116))),\"\")","v":""},{"$f":"IFERROR(VLOOKUP(B120,OUKIM!B:C,2,0),\"\")","v":""},{"$f":"IFERROR(VLOOKUP(VLOOKUP(B120,OUKIM!B:J,9,0),DropDowns!G:I,3,0),\"\")","v":""},{"$f":"IFERROR(VLOOKUP(B120,OUKIM!B:E,4,0),\"\")","v":""},{"$f":"IFERROR(VLOOKUP(B120,OUKIM!B:G,6,0),\"\")","v":""},null,"",null,""]
[null,{"$f":"IFERROR(INDEX(OUKIM!$B$1:$B$396, SMALL(INDEX((OUKIM!$I$1:$I$396=\"Yes\")*(MATCH(ROW(OUKIM!$I$1:$I$396), ROW(OUKIM!$I$1:$I$396)))+(OUKIM!$I$1:$I$396<>\"Yes\")*1048577, 0, 0), ROW(A117))),\"\")","v":""},{"$f":"IFERROR(VLOOKUP(B121,OUKIM!B:C,2,0),\"\")","v":""},{"$f":"IFERROR(VLOOKUP(VLOOKUP(B121,OUKIM!B:J,9,0),DropDowns!G:I,3,0),\"\")","v":""},{"$f":"IFERROR(VLOOKUP(B121,OUKIM!B:E,4,0),\"\")","v":""},{"$f":"IFERROR(VLOOKUP(B121,OUKIM!B:G,6,0),\"\")","v":""},null,"",null,""]
[null,{"$f":"IFERROR(INDEX(OUKIM!$B$1:$B$396, SMALL(INDEX((OUKIM!$I$1:$I$396=\"Yes\")*(MATCH(ROW(OUKIM!$I$1:$I$396), ROW(OUKIM!$I$1:$I$396)))+(OUKIM!$I$1:$I$396<>\"Yes\")*1048577, 0, 0), ROW(A118))),\"\")","v":""},{"$f":"IFERROR(VLOOKUP(B122,OUKIM!B:C,2,0),\"\")","v":""},{"$f":"IFERROR(VLOOKUP(VLOOKUP(B122,OUKIM!B:J,9,0),DropDowns!G:I,3,0),\"\")","v":""},{"$f":"IFERROR(VLOOKUP(B122,OUKIM!B:E,4,0),\"\")","v":""},{"$f":"IFERROR(VLOOKUP(B122,OUKIM!B:G,6,0),\"\")","v":""},null,"",null,""]
[null,{"$f":"IFERROR(INDEX(OUKIM!$B$1:$B$396, SMALL(INDEX((OUKIM!$I$1:$I$396=\"Yes\")*(MATCH(ROW(OUKIM!$I$1:$I$396), ROW(OUKIM!$I$1:$I$396)))+(OUKIM!$I$1:$I$396<>\"Yes\")*1048577, 0, 0), ROW(A119))),\"\")","v":""},{"$f":"IFERROR(VLOOKUP(B123,OUKIM!B:C,2,0),\"\")","v":""},{"$f":"IFERROR(VLOOKUP(VLOOKUP(B123,OUKIM!B:J,9,0),DropDowns!G:I,3,0),\"\")","v":""},{"$f":"IFERROR(VLOOKUP(B123,OUKIM!B:E,4,0),\"\")","v":""},{"$f":"IFERROR(VLOOKUP(B123,OUKIM!B:G,6,0),\"\")","v":""},null,"",null,""]
[null,{"$f":"IFERROR(INDEX(OUKIM!$B$1:$B$396, SMALL(INDEX((OUKIM!$I$1:$I$396=\"Yes\")*(MATCH(ROW(OUKIM!$I$1:$I$396), ROW(OUKIM!$I$1:$I$396)))+(OUKIM!$I$1:$I$396<>\"Yes\")*1048577, 0, 0), ROW(A120))),\"\")","v":""},{"$f":"IFERROR(VLOOKUP(B124,OUKIM!B:C,2,0),\"\")","v":""},{"$f":"IFERROR(VLOOKUP(VLOOKUP(B124,OUKIM!B:J,9,0),DropDowns!G:I,3,0),\"\")","v":""},{"$f":"IFERROR(VLOOKUP(B124,OUKIM!B:E,4,0),\"\")","v":""},{"$f":"IFERROR(VLOOKUP(B124,OUKIM!B:G,6,0),\"\")","v":""},null,"",null,""]
[null,{"$f":"IFERROR(INDEX(OUKIM!$B$1:$B$396, SMALL(INDEX((OUKIM!$I$1:$I$396=\"Yes\")*(MATCH(ROW(OUKIM!$I$1:$I$396), ROW(OUKIM!$I$1:$I$396)))+(OUKIM!$I$1:$I$396<>\"Yes\")*1048577, 0, 0), ROW(A121))),\"\")","v":""},{"$f":"IFERROR(VLOOKUP(B125,OUKIM!B:C,2,0),\"\")","v":""},{"$f":"IFERROR(VLOOKUP(VLOOKUP(B125,OUKIM!B:J,9,0),DropDowns!G:I,3,0),\"\")","v":""},{"$f":"IFERROR(VLOOKUP(B125,OUKIM!B:E,4,0),\"\")","v":""},{"$f":"IFERROR(VLOOKUP(B125,OUKIM!B:G,6,0),\"\")","v":""},null,"",null,""]
[null,{"$f":"IFERROR(INDEX(OUKIM!$B$1:$B$396, SMALL(INDEX((OUKIM!$I$1:$I$396=\"Yes\")*(MATCH(ROW(OUKIM!$I$1:$I$396), ROW(OUKIM!$I$1:$I$396)))+(OUKIM!$I$1:$I$396<>\"Yes\")*1048577, 0, 0), ROW(A122))),\"\")","v":""},{"$f":"IFERROR(VLOOKUP(B126,OUKIM!B:C,2,0),\"\")","v":""},{"$f":"IFERROR(VLOOKUP(VLOOKUP(B126,OUKIM!B:J,9,0),DropDowns!G:I,3,0),\"\")","v":""},{"$f":"IFERROR(VLOOKUP(B126,OUKIM!B:E,4,0),\"\")","v":""},{"$f":"IFERROR(VLOOKUP(B126,OUKIM!B:G,6,0),\"\")","v":""},null,"",null,""]
[null,{"$f":"IFERROR(INDEX(OUKIM!$B$1:$B$396, SMALL(INDEX((OUKIM!$I$1:$I$396=\"Yes\")*(MATCH(ROW(OUKIM!$I$1:$I$396), ROW(OUKIM!$I$1:$I$396)))+(OUKIM!$I$1:$I$396<>\"Yes\")*1048577, 0, 0), ROW(A123))),\"\")","v":""},{"$f":"IFERROR(VLOOKUP(B127,OUKIM!B:C,2,0),\"\")","v":""},{"$f":"IFERROR(VLOOKUP(VLOOKUP(B127,OUKIM!B:J,9,0),DropDowns!G:I,3,0),\"\")","v":""},{"$f":"IFERROR(VLOOKUP(B127,OUKIM!B:E,4,0),\"\")","v":""},{"$f":"IFERROR(VLOOKUP(B127,OUKIM!B:G,6,0),\"\")","v":""},null,"",null,""]
[null,{"$f":"IFERROR(INDEX(OUKIM!$B$1:$B$396, SMALL(INDEX((OUKIM!$I$1:$I$396=\"Yes\")*(MATCH(ROW(OUKIM!$I$1:$I$396), ROW(OUKIM!$I$1:$I$396)))+(OUKIM!$I$1:$I$396<>\"Yes\")*1048577, 0, 0), ROW(A124))),\"\")","v":""},{"$f":"IFERROR(VLOOKUP(B128,OUKIM!B:C,2,0),\"\")","v":""},{"$f":"IFERROR(VLOOKUP(VLOOKUP(B128,OUKIM!B:J,9,0),DropDowns!G:I,3,0),\"\")","v":""},{"$f":"IFERROR(VLOOKUP(B128,OUKIM!B:E,4,0),\"\")","v":""},{"$f":"IFERROR(VLOOKUP(B128,OUKIM!B:G,6,0),\"\")","v":""},null,"",null,""]
[null,{"$f":"IFERROR(INDEX(OUKIM!$B$1:$B$396, SMALL(INDEX((OUKIM!$I$1:$I$396=\"Yes\")*(MATCH(ROW(OUKIM!$I$1:$I$396), ROW(OUKIM!$I$1:$I$396)))+(OUKIM!$I$1:$I$396<>\"Yes\")*1048577, 0, 0), ROW(A125))),\"\")","v":""},{"$f":"IFERROR(VLOOKUP(B129,OUKIM!B:C,2,0),\"\")","v":""},{"$f":"IFERROR(VLOOKUP(VLOOKUP(B129,OUKIM!B:J,9,0),DropDowns!G:I,3,0),\"\")","v":""},{"$f":"IFERROR(VLOOKUP(B129,OUKIM!B:E,4,0),\"\")","v":""},{"$f":"IFERROR(VLOOKUP(B129,OUKIM!B:G,6,0),\"\")","v":""},null,"",null,""]
[null,{"$f":"IFERROR(INDEX(OUKIM!$B$1:$B$396, SMALL(INDEX((OUKIM!$I$1:$I$396=\"Yes\")*(MATCH(ROW(OUKIM!$I$1:$I$396), ROW(OUKIM!$I$1:$I$396)))+(OUKIM!$I$1:$I$396<>\"Yes\")*1048577, 0, 0), ROW(A126))),\"\")","v":""},{"$f":"IFERROR(VLOOKUP(B130,OUKIM!B:C,2,0),\"\")","v":""},{"$f":"IFERROR(VLOOKUP(VLOOKUP(B130,OUKIM!B:J,9,0),DropDowns!G:I,3,0),\"\")","v":""},{"$f":"IFERROR(VLOOKUP(B130,OUKIM!B:E,4,0),\"\")","v":""},{"$f":"IFERROR(VLOOKUP(B130,OUKIM!B:G,6,0),\"\")","v":""},null,"",null,""]
[null,{"$f":"IFERROR(INDEX(OUKIM!$B$1:$B$396, SMALL(INDEX((OUKIM!$I$1:$I$396=\"Yes\")*(MATCH(ROW(OUKIM!$I$1:$I$396), ROW(OUKIM!$I$1:$I$396)))+(OUKIM!$I$1:$I$396<>\"Yes\")*1048577, 0, 0), ROW(A127))),\"\")","v":""},{"$f":"IFERROR(VLOOKUP(B131,OUKIM!B:C,2,0),\"\")","v":""},{"$f":"IFERROR(VLOOKUP(VLOOKUP(B131,OUKIM!B:J,9,0),DropDowns!G:I,3,0),\"\")","v":""},{"$f":"IFERROR(VLOOKUP(B131,OUKIM!B:E,4,0),\"\")","v":""},{"$f":"IFERROR(VLOOKUP(B131,OUKIM!B:G,6,0),\"\")","v":""},null,"",null,""]
[null,{"$f":"IFERROR(INDEX(OUKIM!$B$1:$B$396, SMALL(INDEX((OUKIM!$I$1:$I$396=\"Yes\")*(MATCH(ROW(OUKIM!$I$1:$I$396), ROW(OUKIM!$I$1:$I$396)))+(OUKIM!$I$1:$I$396<>\"Yes\")*1048577, 0, 0), ROW(A128))),\"\")","v":""},{"$f":"IFERROR(VLOOKUP(B132,OUKIM!B:C,2,0),\"\")","v":""},{"$f":"IFERROR(VLOOKUP(VLOOKUP(B132,OUKIM!B:J,9,0),DropDowns!G:I,3,0),\"\")","v":""},{"$f":"IFERROR(VLOOKUP(B132,OUKIM!B:E,4,0),\"\")","v":""},{"$f":"IFERROR(VLOOKUP(B132,OUKIM!B:G,6,0),\"\")","v":""},null,"",null,""]
[null,{"$f":"IFERROR(INDEX(OUKIM!$B$1:$B$396, SMALL(INDEX((OUKIM!$I$1:$I$396=\"Yes\")*(MATCH(ROW(OUKIM!$I$1:$I$396), ROW(OUKIM!$I$1:$I$396)))+(OUKIM!$I$1:$I$396<>\"Yes\")*1048577, 0, 0), ROW(A129))),\"\")","v":""},{"$f":"IFERROR(VLOOKUP(B133,OUKIM!B:C,2,0),\"\")","v":""},{"$f":"IFERROR(VLOOKUP(VLOOKUP(B133,OUKIM!B:J,9,0),DropDowns!G:I,3,0),\"\")","v":""},{"$f":"IFERROR(VLOOKUP(B133,OUKIM!B:E,4,0),\"\")","v":""},{"$f":"IFERROR(VLOOKUP(B133,OUKIM!B:G,6,0),\"\")","v":""},null,"",null,""]
[null,{"$f":"IFERROR(INDEX(OUKIM!$B$1:$B$396, SMALL(INDEX((OUKIM!$I$1:$I$396=\"Yes\")*(MATCH(ROW(OUKIM!$I$1:$I$396), ROW(OUKIM!$I$1:$I$396)))+(OUKIM!$I$1:$I$396<>\"Yes\")*1048577, 0, 0), ROW(A130))),\"\")","v":""},{"$f":"IFERROR(VLOOKUP(B134,OUKIM!B:C,2,0),\"\")","v":""},{"$f":"IFERROR(VLOOKUP(VLOOKUP(B134,OUKIM!B:J,9,0),DropDowns!G:I,3,0),\"\")","v":""},{"$f":"IFERROR(VLOOKUP(B134,OUKIM!B:E,4,0),\"\")","v":""},{"$f":"IFERROR(VLOOKUP(B134,OUKIM!B:G,6,0),\"\")","v":""},null,{"$f":"IF(B134<>\"\",\"Ya ndani:\",\"\")","v":""},null,{"$f":"IF(B134<>\"\",\"Ya nje:\",\"\")","v":""}]
[null,{"$f":"IFERROR(INDEX(OUKIM!$B$1:$B$396, SMALL(INDEX((OUKIM!$I$1:$I$396=\"Yes\")*(MATCH(ROW(OUKIM!$I$1:$I$396), ROW(OUKIM!$I$1:$I$396)))+(OUKIM!$I$1:$I$396<>\"Yes\")*1048577, 0, 0), ROW(A131))),\"\")","v":""},{"$f":"IFERROR(VLOOKUP(B135,OUKIM!B:C,2,0),\"\")","v":""},{"$f":"IFERROR(VLOOKUP(VLOOKUP(B135,OUKIM!B:J,9,0),DropDowns!G:I,3,0),\"\")","v":""},{"$f":"IFERROR(VLOOKUP(B135,OUKIM!B:E,4,0),\"\")","v":""},{"$f":"IFERROR(VLOOKUP(B135,OUKIM!B:G,6,0),\"\")","v":""},null,"",null,""]
[null,{"$f":"IFERROR(INDEX(OUKIM!$B$1:$B$396, SMALL(INDEX((OUKIM!$I$1:$I$396=\"Yes\")*(MATCH(ROW(OUKIM!$I$1:$I$396), ROW(OUKIM!$I$1:$I$396)))+(OUKIM!$I$1:$I$396<>\"Yes\")*1048577, 0, 0), ROW(A132))),\"\")","v":""},{"$f":"IFERROR(VLOOKUP(B136,OUKIM!B:C,2,0),\"\")","v":""},{"$f":"IFERROR(VLOOKUP(VLOOKUP(B136,OUKIM!B:J,9,0),DropDowns!G:I,3,0),\"\")","v":""},{"$f":"IFERROR(VLOOKUP(B136,OUKIM!B:E,4,0),\"\")","v":""},{"$f":"IFERROR(VLOOKUP(B136,OUKIM!B:G,6,0),\"\")","v":""},null,"",null,""]
[null,{"$f":"IFERROR(INDEX(OUKIM!$B$1:$B$396, SMALL(INDEX((OUKIM!$I$1:$I$396=\"Yes\")*(MATCH(ROW(OUKIM!$I$1:$I$396), ROW(OUKIM!$I$1:$I$396)))+(OUKIM!$I$1:$I$396<>\"Yes\")*1048577, 0, 0), ROW(A133))),\"\")","v":""},{"$f":"IFERROR(VLOOKUP(B137,OUKIM!B:C,2,0),\"\")","v":""},{"$f":"IFERROR(VLOOKUP(VLOOKUP(B137,OUKIM!B:J,9,0),DropDowns!G:I,3,0),\"\")","v":""},{"$f":"IFERROR(VLOOKUP(B137,OUKIM!B:E,4,0),\"\")","v":""},{"$f":"IFERROR(VLOOKUP(B137,OUKIM!B:G,6,0),\"\")","v":""},null,"",null,""]
[null,{"$f":"IFERROR(INDEX(OUKIM!$B$1:$B$396, SMALL(INDEX((OUKIM!$I$1:$I$396=\"Yes\")*(MATCH(ROW(OUKIM!$I$1:$I$396), ROW(OUKIM!$I$1:$I$396)))+(OUKIM!$I$1:$I$396<>\"Yes\")*1048577, 0, 0), ROW(A134))),\"\")","v":""},{"$f":"IFERROR(VLOOKUP(B138,OUKIM!B:C,2,0),\"\")","v":""},{"$f":"IFERROR(VLOOKUP(VLOOKUP(B138,OUKIM!B:J,9,0),DropDowns!G:I,3,0),\"\")","v":""},{"$f":"IFERROR(VLOOKUP(B138,OUKIM!B:E,4,0),\"\")","v":""},{"$f":"IFERROR(VLOOKUP(B138,OUKIM!B:G,6,0),\"\")","v":""},null,"",null,""]
[null,{"$f":"IFERROR(INDEX(OUKIM!$B$1:$B$396, SMALL(INDEX((OUKIM!$I$1:$I$396=\"Yes\")*(MATCH(ROW(OUKIM!$I$1:$I$396), ROW(OUKIM!$I$1:$I$396)))+(OUKIM!$I$1:$I$396<>\"Yes\")*1048577, 0, 0), ROW(A135))),\"\")","v":""},{"$f":"IFERROR(VLOOKUP(B139,OUKIM!B:C,2,0),\"\")","v":""},{"$f":"IFERROR(VLOOKUP(VLOOKUP(B139,OUKIM!B:J,9,0),DropDowns!G:I,3,0),\"\")","v":""},{"$f":"IFERROR(VLOOKUP(B139,OUKIM!B:E,4,0),\"\")","v":""},{"$f":"IFERROR(VLOOKUP(B139,OUKIM!B:G,6,0),\"\")","v":""},null,"",null,""]
[null,{"$f":"IFERROR(INDEX(OUKIM!$B$1:$B$396, SMALL(INDEX((OUKIM!$I$1:$I$396=\"Yes\")*(MATCH(ROW(OUKIM!$I$1:$I$396), ROW(OUKIM!$I$1:$I$396)))+(OUKIM!$I$1:$I$396<>\"Yes\")*1048577, 0, 0), ROW(A136))),\"\")","v":""},{"$f":"IFERROR(VLOOKUP(B140,OUKIM!B:C,2,0),\"\")","v":""},{"$f":"IFERROR(VLOOKUP(VLOOKUP(B140,OUKIM!B:J,9,0),DropDowns!G:I,3,0),\"\")","v":""},{"$f":"IFERROR(VLOOKUP(B140,OUKIM!B:E,4,0),\"\")","v":""},{"$f":"IFERROR(VLOOKUP(B140,OUKIM!B:G,6,0),\"\")","v":""},null,"",null,""]
[null,{"$f":"IFERROR(INDEX(OUKIM!$B$1:$B$396, SMALL(INDEX((OUKIM!$I$1:$I$396=\"Yes\")*(MATCH(ROW(OUKIM!$I$1:$I$396), ROW(OUKIM!$I$1:$I$396)))+(OUKIM!$I$1:$I$396<>\"Yes\")*1048577, 0, 0), ROW(A137))),\"\")","v":""},{"$f":"IFERROR(VLOOKUP(B141,OUKIM!B:C,2,0),\"\")","v":""},{"$f":"IFERROR(VLOOKUP(VLOOKUP(B141,OUKIM!B:J,9,0),DropDowns!G:I,3,0),\"\")","v":""},{"$f":"IFERROR(VLOOKUP(B141,OUKIM!B:E,4,0),\"\")","v":""},{"$f":"IFERROR(VLOOKUP(B141,OUKIM!B:G,6,0),\"\")","v":""},null,"",null,""]
[null,{"$f":"IFERROR(INDEX(OUKIM!$B$1:$B$396, SMALL(INDEX((OUKIM!$I$1:$I$396=\"Yes\")*(MATCH(ROW(OUKIM!$I$1:$I$396), ROW(OUKIM!$I$1:$I$396)))+(OUKIM!$I$1:$I$396<>\"Yes\")*1048577, 0, 0), ROW(A138))),\"\")","v":""},{"$f":"IFERROR(VLOOKUP(B142,OUKIM!B:C,2,0),\"\")","v":""},{"$f":"IFERROR(VLOOKUP(VLOOKUP(B142,OUKIM!B:J,9,0),DropDowns!G:I,3,0),\"\")","v":""},{"$f":"IFERROR(VLOOKUP(B142,OUKIM!B:E,4,0),\"\")","v":""},{"$f":"IFERROR(VLOOKUP(B142,OUKIM!B:G,6,0),\"\")","v":""},null,"",null,""]
[null,{"$f":"IFERROR(INDEX(OUKIM!$B$1:$B$396, SMALL(INDEX((OUKIM!$I$1:$I$396=\"Yes\")*(MATCH(ROW(OUKIM!$I$1:$I$396), ROW(OUKIM!$I$1:$I$396)))+(OUKIM!$I$1:$I$396<>\"Yes\")*1048577, 0, 0), ROW(A139))),\"\")","v":""},{"$f":"IFERROR(VLOOKUP(B143,OUKIM!B:C,2,0),\"\")","v":""},{"$f":"IFERROR(VLOOKUP(VLOOKUP(B143,OUKIM!B:J,9,0),DropDowns!G:I,3,0),\"\")","v":""},{"$f":"IFERROR(VLOOKUP(B143,OUKIM!B:E,4,0),\"\")","v":""},{"$f":"IFERROR(VLOOKUP(B143,OUKIM!B:G,6,0),\"\")","v":""},null,"",null,""]
[null,{"$f":"IFERROR(INDEX(OUKIM!$B$1:$B$396, SMALL(INDEX((OUKIM!$I$1:$I$396=\"Yes\")*(MATCH(ROW(OUKIM!$I$1:$I$396), ROW(OUKIM!$I$1:$I$396)))+(OUKIM!$I$1:$I$396<>\"Yes\")*1048577, 0, 0), ROW(A140))),\"\")","v":""},{"$f":"IFERROR(VLOOKUP(B144,OUKIM!B:C,2,0),\"\")","v":""},{"$f":"IFERROR(VLOOKUP(VLOOKUP(B144,OUKIM!B:J,9,0),DropDowns!G:I,3,0),\"\")","v":""},{"$f":"IFERROR(VLOOKUP(B144,OUKIM!B:E,4,0),\"\")","v":""},{"$f":"IFERROR(VLOOKUP(B144,OUKIM!B:G,6,0),\"\")","v":""},null,"",null,""]
[null,{"$f":"IFERROR(INDEX(OUKIM!$B$1:$B$396, SMALL(INDEX((OUKIM!$I$1:$I$396=\"Yes\")*(MATCH(ROW(OUKIM!$I$1:$I$396), ROW(OUKIM!$I$1:$I$396)))+(OUKIM!$I$1:$I$396<>\"Yes\")*1048577, 0, 0), ROW(A141))),\"\")","v":""},{"$f":"IFERROR(VLOOKUP(B145,OUKIM!B:C,2,0),\"\")","v":""},{"$f":"IFERROR(VLOOKUP(VLOOKUP(B145,OUKIM!B:J,9,0),DropDowns!G:I,3,0),\"\")","v":""},{"$f":"IFERROR(VLOOKUP(B145,OUKIM!B:E,4,0),\"\")","v":""},{"$f":"IFERROR(VLOOKUP(B145,OUKIM!B:G,6,0),\"\")","v":""},null,"",null,""]
[null,{"$f":"IFERROR(INDEX(OUKIM!$B$1:$B$396, SMALL(INDEX((OUKIM!$I$1:$I$396=\"Yes\")*(MATCH(ROW(OUKIM!$I$1:$I$396), ROW(OUKIM!$I$1:$I$396)))+(OUKIM!$I$1:$I$396<>\"Yes\")*1048577, 0, 0), ROW(A142))),\"\")","v":""},{"$f":"IFERROR(VLOOKUP(B146,OUKIM!B:C,2,0),\"\")","v":""},{"$f":"IFERROR(VLOOKUP(VLOOKUP(B146,OUKIM!B:J,9,0),DropDowns!G:I,3,0),\"\")","v":""},{"$f":"IFERROR(VLOOKUP(B146,OUKIM!B:E,4,0),\"\")","v":""},{"$f":"IFERROR(VLOOKUP(B146,OUKIM!B:G,6,0),\"\")","v":""},null,"",null,""]
[null,{"$f":"IFERROR(INDEX(OUKIM!$B$1:$B$396, SMALL(INDEX((OUKIM!$I$1:$I$396=\"Yes\")*(MATCH(ROW(OUKIM!$I$1:$I$396), ROW(OUKIM!$I$1:$I$396)))+(OUKIM!$I$1:$I$396<>\"Yes\")*1048577, 0, 0), ROW(A143))),\"\")","v":""},{"$f":"IFERROR(VLOOKUP(B147,OUKIM!B:C,2,0),\"\")","v":""},{"$f":"IFERROR(VLOOKUP(VLOOKUP(B147,OUKIM!B:J,9,0),DropDowns!G:I,3,0),\"\")","v":""},{"$f":"IFERROR(VLOOKUP(B147,OUKIM!B:E,4,0),\"\")","v":""},{"$f":"IFERROR(VLOOKUP(B147,OUKIM!B:G,6,0),\"\")","v":""},null,"",null,""]
[null,{"$f":"IFERROR(INDEX(OUKIM!$B$1:$B$396, SMALL(INDEX((OUKIM!$I$1:$I$396=\"Yes\")*(MATCH(ROW(OUKIM!$I$1:$I$396), ROW(OUKIM!$I$1:$I$396)))+(OUKIM!$I$1:$I$396<>\"Yes\")*1048577, 0, 0), ROW(A144))),\"\")","v":""},{"$f":"IFERROR(VLOOKUP(B148,OUKIM!B:C,2,0),\"\")","v":""},{"$f":"IFERROR(VLOOKUP(VLOOKUP(B148,OUKIM!B:J,9,0),DropDowns!G:I,3,0),\"\")","v":""},{"$f":"IFERROR(VLOOKUP(B148,OUKIM!B:E,4,0),\"\")","v":""},{"$f":"IFERROR(VLOOKUP(B148,OUKIM!B:G,6,0),\"\")","v":""},null,"",null,""]
[null,{"$f":"IFERROR(INDEX(OUKIM!$B$1:$B$396, SMALL(INDEX((OUKIM!$I$1:$I$396=\"Yes\")*(MATCH(ROW(OUKIM!$I$1:$I$396), ROW(OUKIM!$I$1:$I$396)))+(OUKIM!$I$1:$I$396<>\"Yes\")*1048577, 0, 0), ROW(A145))),\"\")","v":""},{"$f":"IFERROR(VLOOKUP(B149,OUKIM!B:C,2,0),\"\")","v":""},{"$f":"IFERROR(VLOOKUP(VLOOKUP(B149,OUKIM!B:J,9,0),DropDowns!G:I,3,0),\"\")","v":""},{"$f":"IFERROR(VLOOKUP(B149,OUKIM!B:E,4,0),\"\")","v":""},{"$f":"IFERROR(VLOOKUP(B149,OUKIM!B:G,6,0),\"\")","v":""},null,"",null,""]
[null,{"$f":"IFERROR(INDEX(OUKIM!$B$1:$B$396, SMALL(INDEX((OUKIM!$I$1:$I$396=\"Yes\")*(MATCH(ROW(OUKIM!$I$1:$I$396), ROW(OUKIM!$I$1:$I$396)))+(OUKIM!$I$1:$I$396<>\"Yes\")*1048577, 0, 0), ROW(A146))),\"\")","v":""},{"$f":"IFERROR(VLOOKUP(B150,OUKIM!B:C,2,0),\"\")","v":""},{"$f":"IFERROR(VLOOKUP(VLOOKUP(B150,OUKIM!B:J,9,0),DropDowns!G:I,3,0),\"\")","v":""},{"$f":"IFERROR(VLOOKUP(B150,OUKIM!B:E,4,0),\"\")","v":""},{"$f":"IFERROR(VLOOKUP(B150,OUKIM!B:G,6,0),\"\")","v":""},null,"",null,""]
[null,{"$f":"IFERROR(INDEX(OUKIM!$B$1:$B$396, SMALL(INDEX((OUKIM!$I$1:$I$396=\"Yes\")*(MATCH(ROW(OUKIM!$I$1:$I$396), ROW(OUKIM!$I$1:$I$396)))+(OUKIM!$I$1:$I$396<>\"Yes\")*1048577, 0, 0), ROW(A147))),\"\")","v":""},{"$f":"IFERROR(VLOOKUP(B151,OUKIM!B:C,2,0),\"\")","v":""},{"$f":"IFERROR(VLOOKUP(VLOOKUP(B151,OUKIM!B:J,9,0),DropDowns!G:I,3,0),\"\")","v":""},{"$f":"IFERROR(VLOOKUP(B151,OUKIM!B:E,4,0),\"\")","v":""},{"$f":"IFERROR(VLOOKUP(B151,OUKIM!B:G,6,0),\"\")","v":""},null,"",null,""]
[null,{"$f":"IFERROR(INDEX(OUKIM!$B$1:$B$396, SMALL(INDEX((OUKIM!$I$1:$I$396=\"Yes\")*(MATCH(ROW(OUKIM!$I$1:$I$396), ROW(OUKIM!$I$1:$I$396)))+(OUKIM!$I$1:$I$396<>\"Yes\")*1048577, 0, 0), ROW(A148))),\"\")","v":""},{"$f":"IFERROR(VLOOKUP(B152,OUKIM!B:C,2,0),\"\")","v":""},{"$f":"IFERROR(VLOOKUP(VLOOKUP(B152,OUKIM!B:J,9,0),DropDowns!G:I,3,0),\"\")","v":""},{"$f":"IFERROR(VLOOKUP(B152,OUKIM!B:E,4,0),\"\")","v":""},{"$f":"IFERROR(VLOOKUP(B152,OUKIM!B:G,6,0),\"\")","v":""},null,"",null,""]
[null,{"$f":"IFERROR(INDEX(OUKIM!$B$1:$B$396, SMALL(INDEX((OUKIM!$I$1:$I$396=\"Yes\")*(MATCH(ROW(OUKIM!$I$1:$I$396), ROW(OUKIM!$I$1:$I$396)))+(OUKIM!$I$1:$I$396<>\"Yes\")*1048577, 0, 0), ROW(A149))),\"\")","v":""},{"$f":"IFERROR(VLOOKUP(B153,OUKIM!B:C,2,0),\"\")","v":""},{"$f":"IFERROR(VLOOKUP(VLOOKUP(B153,OUKIM!B:J,9,0),DropDowns!G:I,3,0),\"\")","v":""},{"$f":"IFERROR(VLOOKUP(B153,OUKIM!B:E,4,0),\"\")","v":""},{"$f":"IFERROR(VLOOKUP(B153,OUKIM!B:G,6,0),\"\")","v":""},null,"",null,""]
[null,{"$f":"IFERROR(INDEX(OUKIM!$B$1:$B$396, SMALL(INDEX((OUKIM!$I$1:$I$396=\"Yes\")*(MATCH(ROW(OUKIM!$I$1:$I$396), ROW(OUKIM!$I$1:$I$396)))+(OUKIM!$I$1:$I$396<>\"Yes\")*1048577, 0, 0), ROW(A150))),\"\")","v":""},{"$f":"IFERROR(VLOOKUP(B154,OUKIM!B:C,2,0),\"\")","v":""},{"$f":"IFERROR(VLOOKUP(VLOOKUP(B154,OUKIM!B:J,9,0),DropDowns!G:I,3,0),\"\")","v":""},{"$f":"IFERROR(VLOOKUP(B154,OUKIM!B:E,4,0),\"\")","v":""},{"$f":"IFERROR(VLOOKUP(B154,OUKIM!B:G,6,0),\"\")","v":""},null,"",null,""]
[null,{"$f":"IFERROR(INDEX(OUKIM!$B$1:$B$396, SMALL(INDEX((OUKIM!$I$1:$I$396=\"Yes\")*(MATCH(ROW(OUKIM!$I$1:$I$396), ROW(OUKIM!$I$1:$I$396)))+(OUKIM!$I$1:$I$396<>\"Yes\")*1048577, 0, 0), ROW(A151))),\"\")","v":""},{"$f":"IFERROR(VLOOKUP(B155,OUKIM!B:C,2,0),\"\")","v":""},{"$f":"IFERROR(VLOOKUP(VLOOKUP(B155,OUKIM!B:J,9,0),DropDowns!G:I,3,0),\"\")","v":""},{"$f":"IFERROR(VLOOKUP(B155,OUKIM!B:E,4,0),\"\")","v":""},{"$f":"IFERROR(VLOOKUP(B155,OUKIM!B:G,6,0),\"\")","v":""},null,"",null,""]
[null,{"$f":"IFERROR(INDEX(OUKIM!$B$1:$B$396, SMALL(INDEX((OUKIM!$I$1:$I$396=\"Yes\")*(MATCH(ROW(OUKIM!$I$1:$I$396), ROW(OUKIM!$I$1:$I$396)))+(OUKIM!$I$1:$I$396<>\"Yes\")*1048577, 0, 0), ROW(A152))),\"\")","v":""},{"$f":"IFERROR(VLOOKUP(B156,OUKIM!B:C,2,0),\"\")","v":""},{"$f":"IFERROR(VLOOKUP(VLOOKUP(B156,OUKIM!B:J,9,0),DropDowns!G:I,3,0),\"\")","v":""},{"$f":"IFERROR(VLOOKUP(B156,OUKIM!B:E,4,0),\"\")","v":""},{"$f":"IFERROR(VLOOKUP(B156,OUKIM!B:G,6,0),\"\")","v":""},null,"",null,""]
[null,{"$f":"IFERROR(INDEX(OUKIM!$B$1:$B$396, SMALL(INDEX((OUKIM!$I$1:$I$396=\"Yes\")*(MATCH(ROW(OUKIM!$I$1:$I$396), ROW(OUKIM!$I$1:$I$396)))+(OUKIM!$I$1:$I$396<>\"Yes\")*1048577, 0, 0), ROW(A153))),\"\")","v":""},{"$f":"IFERROR(VLOOKUP(B157,OUKIM!B:C,2,0),\"\")","v":""},{"$f":"IFERROR(VLOOKUP(VLOOKUP(B157,OUKIM!B:J,9,0),DropDowns!G:I,3,0),\"\")","v":""},{"$f":"IFERROR(VLOOKUP(B157,OUKIM!B:E,4,0),\"\")","v":""},{"$f":"IFERROR(VLOOKUP(B157,OUKIM!B:G,6,0),\"\")","v":""},null,"",null,""]
[null,{"$f":"IFERROR(INDEX(OUKIM!$B$1:$B$396, SMALL(INDEX((OUKIM!$I$1:$I$396=\"Yes\")*(MATCH(ROW(OUKIM!$I$1:$I$396), ROW(OUKIM!$I$1:$I$396)))+(OUKIM!$I$1:$I$396<>\"Yes\")*1048577, 0, 0), ROW(A154))),\"\")","v":""},{"$f":"IFERROR(VLOOKUP(B158,OUKIM!B:C,2,0),\"\")","v":""},{"$f":"IFERROR(VLOOKUP(VLOOKUP(B158,OUKIM!B:J,9,0),DropDowns!G:I,3,0),\"\")","v":""},{"$f":"IFERROR(VLOOKUP(B158,OUKIM!B:E,4,0),\"\")","v":""},{"$f":"IFERROR(VLOOKUP(B158,OUKIM!B:G,6,0),\"\")","v":""},null,"",null,""]
[null,{"$f":"IFERROR(INDEX(OUKIM!$B$1:$B$396, SMALL(INDEX((OUKIM!$I$1:$I$396=\"Yes\")*(MATCH(ROW(OUKIM!$I$1:$I$396), ROW(OUKIM!$I$1:$I$396)))+(OUKIM!$I$1:$I$396<>\"Yes\")*1048577, 0, 0), ROW(A155))),\"\")","v":""},{"$f":"IFERROR(VLOOKUP(B159,OUKIM!B:C,2,0),\"\")","v":""},{"$f":"IFERROR(VLOOKUP(VLOOKUP(B159,OUKIM!B:J,9,0),DropDowns!G:I,3,0),\"\")","v":""},{"$f":"IFERROR(VLOOKUP(B159,OUKIM!B:E,4,0),\"\")","v":""},{"$f":"IFERROR(VLOOKUP(B159,OUKIM!B:G,6,0),\"\")","v":""},null,"",null,""]
[null,{"$f":"IFERROR(INDEX(OUKIM!$B$1:$B$396, SMALL(INDEX((OUKIM!$I$1:$I$396=\"Yes\")*(MATCH(ROW(OUKIM!$I$1:$I$396), ROW(OUKIM!$I$1:$I$396)))+(OUKIM!$I$1:$I$396<>\"Yes\")*1048577, 0, 0), ROW(A156))),\"\")","v":""},{"$f":"IFERROR(VLOOKUP(B160,OUKIM!B:C,2,0),\"\")","v":""},{"$f":"IFERROR(VLOOKUP(VLOOKUP(B160,OUKIM!B:J,9,0),DropDowns!G:I,3,0),\"\")","v":""},{"$f":"IFERROR(VLOOKUP(B160,OUKIM!B:E,4,0),\"\")","v":""},{"$f":"IFERROR(VLOOKUP(B160,OUKIM!B:G,6,0),\"\")","v":""},null,"",null,""]
[null,{"$f":"IFERROR(INDEX(OUKIM!$B$1:$B$396, SMALL(INDEX((OUKIM!$I$1:$I$396=\"Yes\")*(MATCH(ROW(OUKIM!$I$1:$I$396), ROW(OUKIM!$I$1:$I$396)))+(OUKIM!$I$1:$I$396<>\"Yes\")*1048577, 0, 0), ROW(A157))),\"\")","v":""},{"$f":"IFERROR(VLOOKUP(B161,OUKIM!B:C,2,0),\"\")","v":""},{"$f":"IFERROR(VLOOKUP(VLOOKUP(B161,OUKIM!B:J,9,0),DropDowns!G:I,3,0),\"\")","v":""},{"$f":"IFERROR(VLOOKUP(B161,OUKIM!B:E,4,0),\"\")","v":""},{"$f":"IFERROR(VLOOKUP(B161,OUKIM!B:G,6,0),\"\")","v":""},null,"",null,""]
[null,{"$f":"IFERROR(INDEX(OUKIM!$B$1:$B$396, SMALL(INDEX((OUKIM!$I$1:$I$396=\"Yes\")*(MATCH(ROW(OUKIM!$I$1:$I$396), ROW(OUKIM!$I$1:$I$396)))+(OUKIM!$I$1:$I$396<>\"Yes\")*1048577, 0, 0), ROW(A158))),\"\")","v":""},{"$f":"IFERROR(VLOOKUP(B162,OUKIM!B:C,2,0),\"\")","v":""},{"$f":"IFERROR(VLOOKUP(VLOOKUP(B162,OUKIM!B:J,9,0),DropDowns!G:I,3,0),\"\")","v":""},{"$f":"IFERROR(VLOOKUP(B162,OUKIM!B:E,4,0),\"\")","v":""},{"$f":"IFERROR(VLOOKUP(B162,OUKIM!B:G,6,0),\"\")","v":""},null,"",null,""]
[null,{"$f":"IFERROR(INDEX(OUKIM!$B$1:$B$396, SMALL(INDEX((OUKIM!$I$1:$I$396=\"Yes\")*(MATCH(ROW(OUKIM!$I$1:$I$396), ROW(OUKIM!$I$1:$I$396)))+(OUKIM!$I$1:$I$396<>\"Yes\")*1048577, 0, 0), ROW(A159))),\"\")","v":""},{"$f":"IFERROR(VLOOKUP(B163,OUKIM!B:C,2,0),\"\")","v":""},{"$f":"IFERROR(VLOOKUP(VLOOKUP(B163,OUKIM!B:J,9,0),DropDowns!G:I,3,0),\"\")","v":""},{"$f":"IFERROR(VLOOKUP(B163,OUKIM!B:E,4,0),\"\")","v":""},{"$f":"IFERROR(VLOOKUP(B163,OUKIM!B:G,6,0),\"\")","v":""},null,"",null,""]
[null,{"$f":"IFERROR(INDEX(OUKIM!$B$1:$B$396, SMALL(INDEX((OUKIM!$I$1:$I$396=\"Yes\")*(MATCH(ROW(OUKIM!$I$1:$I$396), ROW(OUKIM!$I$1:$I$396)))+(OUKIM!$I$1:$I$396<>\"Yes\")*1048577, 0, 0), ROW(A160))),\"\")","v":""},{"$f":"IFERROR(VLOOKUP(B164,OUKIM!B:C,2,0),\"\")","v":""},{"$f":"IFERROR(VLOOKUP(VLOOKUP(B164,OUKIM!B:J,9,0),DropDowns!G:I,3,0),\"\")","v":""},{"$f":"IFERROR(VLOOKUP(B164,OUKIM!B:E,4,0),\"\")","v":""},{"$f":"IFERROR(VLOOKUP(B164,OUKIM!B:G,6,0),\"\")","v":""},null,"",null,""]
[null,{"$f":"IFERROR(INDEX(OUKIM!$B$1:$B$396, SMALL(INDEX((OUKIM!$I$1:$I$396=\"Yes\")*(MATCH(ROW(OUKIM!$I$1:$I$396), ROW(OUKIM!$I$1:$I$396)))+(OUKIM!$I$1:$I$396<>\"Yes\")*1048577, 0, 0), ROW(A161))),\"\")","v":""},{"$f":"IFERROR(VLOOKUP(B165,OUKIM!B:C,2,0),\"\")","v":""},{"$f":"IFERROR(VLOOKUP(VLOOKUP(B165,OUKIM!B:J,9,0),DropDowns!G:I,3,0),\"\")","v":""},{"$f":"IFERROR(VLOOKUP(B165,OUKIM!B:E,4,0),\"\")","v":""},{"$f":"IFERROR(VLOOKUP(B165,OUKIM!B:G,6,0),\"\")","v":""},null,"",null,""]
[null,{"$f":"IFERROR(INDEX(OUKIM!$B$1:$B$396, SMALL(INDEX((OUKIM!$I$1:$I$396=\"Yes\")*(MATCH(ROW(OUKIM!$I$1:$I$396), ROW(OUKIM!$I$1:$I$396)))+(OUKIM!$I$1:$I$396<>\"Yes\")*1048577, 0, 0), ROW(A162))),\"\")","v":""},{"$f":"IFERROR(VLOOKUP(B166,OUKIM!B:C,2,0),\"\")","v":""},{"$f":"IFERROR(VLOOKUP(VLOOKUP(B166,OUKIM!B:J,9,0),DropDowns!G:I,3,0),\"\")","v":""},{"$f":"IFERROR(VLOOKUP(B166,OUKIM!B:E,4,0),\"\")","v":""},{"$f":"IFERROR(VLOOKUP(B166,OUKIM!B:G,6,0),\"\")","v":""},null,"",null,""]
[null,{"$f":"IFERROR(INDEX(OUKIM!$B$1:$B$396, SMALL(INDEX((OUKIM!$I$1:$I$396=\"Yes\")*(MATCH(ROW(OUKIM!$I$1:$I$396), ROW(OUKIM!$I$1:$I$396)))+(OUKIM!$I$1:$I$396<>\"Yes\")*1048577, 0, 0), ROW(A163))),\"\")","v":""},{"$f":"IFERROR(VLOOKUP(B167,OUKIM!B:C,2,0),\"\")","v":""},{"$f":"IFERROR(VLOOKUP(VLOOKUP(B167,OUKIM!B:J,9,0),DropDowns!G:I,3,0),\"\")","v":""},{"$f":"IFERROR(VLOOKUP(B167,OUKIM!B:E,4,0),\"\")","v":""},{"$f":"IFERROR(VLOOKUP(B167,OUKIM!B:G,6,0),\"\")","v":""},null,"",null,""]
[null,{"$f":"IFERROR(INDEX(OUKIM!$B$1:$B$396, SMALL(INDEX((OUKIM!$I$1:$I$396=\"Yes\")*(MATCH(ROW(OUKIM!$I$1:$I$396), ROW(OUKIM!$I$1:$I$396)))+(OUKIM!$I$1:$I$396<>\"Yes\")*1048577, 0, 0), ROW(A164))),\"\")","v":""},{"$f":"IFERROR(VLOOKUP(B168,OUKIM!B:C,2,0),\"\")","v":""},{"$f":"IFERROR(VLOOKUP(VLOOKUP(B168,OUKIM!B:J,9,0),DropDowns!G:I,3,0),\"\")","v":""},{"$f":"IFERROR(VLOOKUP(B168,OUKIM!B:E,4,0),\"\")","v":""},{"$f":"IFERROR(VLOOKUP(B168,OUKIM!B:G,6,0),\"\")","v":""},null,"",null,""]
[null,{"$f":"IFERROR(INDEX(OUKIM!$B$1:$B$396, SMALL(INDEX((OUKIM!$I$1:$I$396=\"Yes\")*(MATCH(ROW(OUKIM!$I$1:$I$396), ROW(OUKIM!$I$1:$I$396)))+(OUKIM!$I$1:$I$396<>\"Yes\")*1048577, 0, 0), ROW(A165))),\"\")","v":""},{"$f":"IFERROR(VLOOKUP(B169,OUKIM!B:C,2,0),\"\")","v":""},{"$f":"IFERROR(VLOOKUP(VLOOKUP(B169,OUKIM!B:J,9,0),DropDowns!G:I,3,0),\"\")","v":""},{"$f":"IFERROR(VLOOKUP(B169,OUKIM!B:E,4,0),\"\")","v":""},{"$f":"IFERROR(VLOOKUP(B169,OUKIM!B:G,6,0),\"\")","v":""},null,"",null,""]
[null,{"$f":"IFERROR(INDEX(OUKIM!$B$1:$B$396, SMALL(INDEX((OUKIM!$I$1:$I$396=\"Yes\")*(MATCH(ROW(OUKIM!$I$1:$I$396), ROW(OUKIM!$I$1:$I$396)))+(OUKIM!$I$1:$I$396<>\"Yes\")*1048577, 0, 0), ROW(A166))),\"\")","v":""},{"$f":"IFERROR(VLOOKUP(B170,OUKIM!B:C,2,0),\"\")","v":""},{"$f":"IFERROR(VLOOKUP(VLOOKUP(B170,OUKIM!B:J,9,0),DropDowns!G:I,3,0),\"\")","v":""},{"$f":"IFERROR(VLOOKUP(B170,OUKIM!B:E,4,0),\"\")","v":""},{"$f":"IFERROR(VLOOKUP(B170,OUKIM!B:G,6,0),\"\")","v":""},null,"",null,""]
[null,{"$f":"IFERROR(INDEX(OUKIM!$B$1:$B$396, SMALL(INDEX((OUKIM!$I$1:$I$396=\"Yes\")*(MATCH(ROW(OUKIM!$I$1:$I$396), ROW(OUKIM!$I$1:$I$396)))+(OUKIM!$I$1:$I$396<>\"Yes\")*1048577, 0, 0), ROW(A167))),\"\")","v":""},{"$f":"IFERROR(VLOOKUP(B171,OUKIM!B:C,2,0),\"\")","v":""},{"$f":"IFERROR(VLOOKUP(VLOOKUP(B171,OUKIM!B:J,9,0),DropDowns!G:I,3,0),\"\")","v":""},{"$f":"IFERROR(VLOOKUP(B171,OUKIM!B:E,4,0),\"\")","v":""},{"$f":"IFERROR(VLOOKUP(B171,OUKIM!B:G,6,0),\"\")","v":""},null,"",null,""]
[null,{"$f":"IFERROR(INDEX(OUKIM!$B$1:$B$396, SMALL(INDEX((OUKIM!$I$1:$I$396=\"Yes\")*(MATCH(ROW(OUKIM!$I$1:$I$396), ROW(OUKIM!$I$1:$I$396)))+(OUKIM!$I$1:$I$396<>\"Yes\")*1048577, 0, 0), ROW(A168))),\"\")","v":""},{"$f":"IFERROR(VLOOKUP(B172,OUKIM!B:C,2,0),\"\")","v":""},{"$f":"IFERROR(VLOOKUP(VLOOKUP(B172,OUKIM!B:J,9,0),DropDowns!G:I,3,0),\"\")","v":""},{"$f":"IFERROR(VLOOKUP(B172,OUKIM!B:E,4,0),\"\")","v":""},{"$f":"IFERROR(VLOOKUP(B172,OUKIM!B:G,6,0),\"\")","v":""},null,"",null,""]
[null,{"$f":"IFERROR(INDEX(OUKIM!$B$1:$B$396, SMALL(INDEX((OUKIM!$I$1:$I$396=\"Yes\")*(MATCH(ROW(OUKIM!$I$1:$I$396), ROW(OUKIM!$I$1:$I$396)))+(OUKIM!$I$1:$I$396<>\"Yes\")*1048577, 0, 0), ROW(A169))),\"\")","v":""},{"$f":"IFERROR(VLOOKUP(B173,OUKIM!B:C,2,0),\"\")","v":""},{"$f":"IFERROR(VLOOKUP(VLOOKUP(B173,OUKIM!B:J,9,0),DropDowns!G:I,3,0),\"\")","v":""},{"$f":"IFERROR(VLOOKUP(B173,OUKIM!B:E,4,0),\"\")","v":""},{"$f":"IFERROR(VLOOKUP(B173,OUKIM!B:G,6,0),\"\")","v":""},null,"",null,""]
[null,{"$f":"IFERROR(INDEX(OUKIM!$B$1:$B$396, SMALL(INDEX((OUKIM!$I$1:$I$396=\"Yes\")*(MATCH(ROW(OUKIM!$I$1:$I$396), ROW(OUKIM!$I$1:$I$396)))+(OUKIM!$I$1:$I$396<>\"Yes\")*1048577, 0, 0), ROW(A170))),\"\")","v":""},{"$f":"IFERROR(VLOOKUP(B174,OUKIM!B:C,2,0),\"\")","v":""},{"$f":"IFERROR(VLOOKUP(VLOOKUP(B174,OUKIM!B:J,9,0),DropDowns!G:I,3,0),\"\")","v":""},{"$f":"IFERROR(VLOOKUP(B174,OUKIM!B:E,4,0),\"\")","v":""},{"$f":"IFERROR(VLOOKUP(B174,OUKIM!B:G,6,0),\"\")","v":""},null,"",null,""]
[null,{"$f":"IFERROR(INDEX(OUKIM!$B$1:$B$396, SMALL(INDEX((OUKIM!$I$1:$I$396=\"Yes\")*(MATCH(ROW(OUKIM!$I$1:$I$396), ROW(OUKIM!$I$1:$I$396)))+(OUKIM!$I$1:$I$396<>\"Yes\")*1048577, 0, 0), ROW(A171))),\"\")","v":""},{"$f":"IFERROR(VLOOKUP(B175,OUKIM!B:C,2,0),\"\")","v":""},{"$f":"IFERROR(VLOOKUP(VLOOKUP(B175,OUKIM!B:J,9,0),DropDowns!G:I,3,0),\"\")","v":""},{"$f":"IFERROR(VLOOKUP(B175,OUKIM!B:E,4,0),\"\")","v":""},{"$f":"IFERROR(VLOOKUP(B175,OUKIM!B:G,6,0),\"\")","v":""},null,"",null,""]
[null,{"$f":"IFERROR(INDEX(OUKIM!$B$1:$B$396, SMALL(INDEX((OUKIM!$I$1:$I$396=\"Yes\")*(MATCH(ROW(OUKIM!$I$1:$I$396), ROW(OUKIM!$I$1:$I$396)))+(OUKIM!$I$1:$I$396<>\"Yes\")*1048577, 0, 0), ROW(A172))),\"\")","v":""},{"$f":"IFERROR(VLOOKUP(B176,OUKIM!B:C,2,0),\"\")","v":""},{"$f":"IFERROR(VLOOKUP(VLOOKUP(B176,OUKIM!B:J,9,0),DropDowns!G:I,3,0),\"\")","v":""},{"$f":"IFERROR(VLOOKUP(B176,OUKIM!B:E,4,0),\"\")","v":""},{"$f":"IFERROR(VLOOKUP(B176,OUKIM!B:G,6,0),\"\")","v":""},null,"",null,""]
[null,{"$f":"IFERROR(INDEX(OUKIM!$B$1:$B$396, SMALL(INDEX((OUKIM!$I$1:$I$396=\"Yes\")*(MATCH(ROW(OUKIM!$I$1:$I$396), ROW(OUKIM!$I$1:$I$396)))+(OUKIM!$I$1:$I$396<>\"Yes\")*1048577, 0, 0), ROW(A173))),\"\")","v":""},{"$f":"IFERROR(VLOOKUP(B177,OUKIM!B:C,2,0),\"\")","v":""},{"$f":"IFERROR(VLOOKUP(VLOOKUP(B177,OUKIM!B:J,9,0),DropDowns!G:I,3,0),\"\")","v":""},{"$f":"IFERROR(VLOOKUP(B177,OUKIM!B:E,4,0),\"\")","v":""},{"$f":"IFERROR(VLOOKUP(B177,OUKIM!B:G,6,0),\"\")","v":""},null,"",null,""]
[null,{"$f":"IFERROR(INDEX(OUKIM!$B$1:$B$396, SMALL(INDEX((OUKIM!$I$1:$I$396=\"Yes\")*(MATCH(ROW(OUKIM!$I$1:$I$396), ROW(OUKIM!$I$1:$I$396)))+(OUKIM!$I$1:$I$396<>\"Yes\")*1048577, 0, 0), ROW(A174))),\"\")","v":""},{"$f":"IFERROR(VLOOKUP(B178,OUKIM!B:C,2,0),\"\")","v":""},{"$f":"IFERROR(VLOOKUP(VLOOKUP(B178,OUKIM!B:J,9,0),DropDowns!G:I,3,0),\"\")","v":""},{"$f":"IFERROR(VLOOKUP(B178,OUKIM!B:E,4,0),\"\")","v":""},{"$f":"IFERROR(VLOOKUP(B178,OUKIM!B:G,6,0),\"\")","v":""},null,"",null,""]
[null,{"$f":"IFERROR(INDEX(OUKIM!$B$1:$B$396, SMALL(INDEX((OUKIM!$I$1:$I$396=\"Yes\")*(MATCH(ROW(OUKIM!$I$1:$I$396), ROW(OUKIM!$I$1:$I$396)))+(OUKIM!$I$1:$I$396<>\"Yes\")*1048577, 0, 0), ROW(A175))),\"\")","v":""},{"$f":"IFERROR(VLOOKUP(B179,OUKIM!B:C,2,0),\"\")","v":""},{"$f":"IFERROR(VLOOKUP(VLOOKUP(B179,OUKIM!B:J,9,0),DropDowns!G:I,3,0),\"\")","v":""},{"$f":"IFERROR(VLOOKUP(B179,OUKIM!B:E,4,0),\"\")","v":""},{"$f":"IFERROR(VLOOKUP(B179,OUKIM!B:G,6,0),\"\")","v":""},null,"",null,""]
[null,{"$f":"IFERROR(INDEX(OUKIM!$B$1:$B$396, SMALL(INDEX((OUKIM!$I$1:$I$396=\"Yes\")*(MATCH(ROW(OUKIM!$I$1:$I$396), ROW(OUKIM!$I$1:$I$396)))+(OUKIM!$I$1:$I$396<>\"Yes\")*1048577, 0, 0), ROW(A176))),\"\")","v":""},{"$f":"IFERROR(VLOOKUP(B180,OUKIM!B:C,2,0),\"\")","v":""},{"$f":"IFERROR(VLOOKUP(VLOOKUP(B180,OUKIM!B:J,9,0),DropDowns!G:I,3,0),\"\")","v":""},{"$f":"IFERROR(VLOOKUP(B180,OUKIM!B:E,4,0),\"\")","v":""},{"$f":"IFERROR(VLOOKUP(B180,OUKIM!B:G,6,0),\"\")","v":""},null,"",null,""]
[null,{"$f":"IFERROR(INDEX(OUKIM!$B$1:$B$396, SMALL(INDEX((OUKIM!$I$1:$I$396=\"Yes\")*(MATCH(ROW(OUKIM!$I$1:$I$396), ROW(OUKIM!$I$1:$I$396)))+(OUKIM!$I$1:$I$396<>\"Yes\")*1048577, 0, 0), ROW(A177))),\"\")","v":""},{"$f":"IFERROR(VLOOKUP(B181,OUKIM!B:C,2,0),\"\")","v":""},{"$f":"IFERROR(VLOOKUP(VLOOKUP(B181,OUKIM!B:J,9,0),DropDowns!G:I,3,0),\"\")","v":""},{"$f":"IFERROR(VLOOKUP(B181,OUKIM!B:E,4,0),\"\")","v":""},{"$f":"IFERROR(VLOOKUP(B181,OUKIM!B:G,6,0),\"\")","v":""},null,"",null,""]
[null,{"$f":"IFERROR(INDEX(OUKIM!$B$1:$B$396, SMALL(INDEX((OUKIM!$I$1:$I$396=\"Yes\")*(MATCH(ROW(OUKIM!$I$1:$I$396), ROW(OUKIM!$I$1:$I$396)))+(OUKIM!$I$1:$I$396<>\"Yes\")*1048577, 0, 0), ROW(A178))),\"\")","v":""},{"$f":"IFERROR(VLOOKUP(B182,OUKIM!B:C,2,0),\"\")","v":""},{"$f":"IFERROR(VLOOKUP(VLOOKUP(B182,OUKIM!B:J,9,0),DropDowns!G:I,3,0),\"\")","v":""},{"$f":"IFERROR(VLOOKUP(B182,OUKIM!B:E,4,0),\"\")","v":""},{"$f":"IFERROR(VLOOKUP(B182,OUKIM!B:G,6,0),\"\")","v":""},null,"",null,""]
[null,{"$f":"IFERROR(INDEX(OUKIM!$B$1:$B$396, SMALL(INDEX((OUKIM!$I$1:$I$396=\"Yes\")*(MATCH(ROW(OUKIM!$I$1:$I$396), ROW(OUKIM!$I$1:$I$396)))+(OUKIM!$I$1:$I$396<>\"Yes\")*1048577, 0, 0), ROW(A179))),\"\")","v":""},{"$f":"IFERROR(VLOOKUP(B183,OUKIM!B:C,2,0),\"\")","v":""},{"$f":"IFERROR(VLOOKUP(VLOOKUP(B183,OUKIM!B:J,9,0),DropDowns!G:I,3,0),\"\")","v":""},{"$f":"IFERROR(VLOOKUP(B183,OUKIM!B:E,4,0),\"\")","v":""},{"$f":"IFERROR(VLOOKUP(B183,OUKIM!B:G,6,0),\"\")","v":""},null,"",null,""]
[null,{"$f":"IFERROR(INDEX(OUKIM!$B$1:$B$396, SMALL(INDEX((OUKIM!$I$1:$I$396=\"Yes\")*(MATCH(ROW(OUKIM!$I$1:$I$396), ROW(OUKIM!$I$1:$I$396)))+(OUKIM!$I$1:$I$396<>\"Yes\")*1048577, 0, 0), ROW(A180))),\"\")","v":""},{"$f":"IFERROR(VLOOKUP(B184,OUKIM!B:C,2,0),\"\")","v":""},{"$f":"IFERROR(VLOOKUP(VLOOKUP(B184,OUKIM!B:J,9,0),DropDowns!G:I,3,0),\"\")","v":""},{"$f":"IFERROR(VLOOKUP(B184,OUKIM!B:E,4,0),\"\")","v":""},{"$f":"IFERROR(VLOOKUP(B184,OUKIM!B:G,6,0),\"\")","v":""},null,"",null,""]
[null,{"$f":"IFERROR(INDEX(OUKIM!$B$1:$B$396, SMALL(INDEX((OUKIM!$I$1:$I$396=\"Yes\")*(MATCH(ROW(OUKIM!$I$1:$I$396), ROW(OUKIM!$I$1:$I$396)))+(OUKIM!$I$1:$I$396<>\"Yes\")*1048577, 0, 0), ROW(A181))),\"\")","v":""},{"$f":"IFERROR(VLOOKUP(B185,OUKIM!B:C,2,0),\"\")","v":""},{"$f":"IFERROR(VLOOKUP(VLOOKUP(B185,OUKIM!B:J,9,0),DropDowns!G:I,3,0),\"\")","v":""},{"$f":"IFERROR(VLOOKUP(B185,OUKIM!B:E,4,0),\"\")","v":""},{"$f":"IFERROR(VLOOKUP(B185,OUKIM!B:G,6,0),\"\")","v":""},null,"",null,""]
[null,{"$f":"IFERROR(INDEX(OUKIM!$B$1:$B$396, SMALL(INDEX((OUKIM!$I$1:$I$396=\"Yes\")*(MATCH(ROW(OUKIM!$I$1:$I$396), ROW(OUKIM!$I$1:$I$396)))+(OUKIM!$I$1:$I$396<>\"Yes\")*1048577, 0, 0), ROW(A182))),\"\")","v":""},{"$f":"IFERROR(VLOOKUP(B186,OUKIM!B:C,2,0),\"\")","v":""},{"$f":"IFERROR(VLOOKUP(VLOOKUP(B186,OUKIM!B:J,9,0),DropDowns!G:I,3,0),\"\")","v":""},{"$f":"IFERROR(VLOOKUP(B186,OUKIM!B:E,4,0),\"\")","v":""},{"$f":"IFERROR(VLOOKUP(B186,OUKIM!B:G,6,0),\"\")","v":""},null,"",null,""]
[null,{"$f":"IFERROR(INDEX(OUKIM!$B$1:$B$396, SMALL(INDEX((OUKIM!$I$1:$I$396=\"Yes\")*(MATCH(ROW(OUKIM!$I$1:$I$396), ROW(OUKIM!$I$1:$I$396)))+(OUKIM!$I$1:$I$396<>\"Yes\")*1048577, 0, 0), ROW(A183))),\"\")","v":""},{"$f":"IFERROR(VLOOKUP(B187,OUKIM!B:C,2,0),\"\")","v":""},{"$f":"IFERROR(VLOOKUP(VLOOKUP(B187,OUKIM!B:J,9,0),DropDowns!G:I,3,0),\"\")","v":""},{"$f":"IFERROR(VLOOKUP(B187,OUKIM!B:E,4,0),\"\")","v":""},{"$f":"IFERROR(VLOOKUP(B187,OUKIM!B:G,6,0),\"\")","v":""},null,"",null,""]
[null,{"$f":"IFERROR(INDEX(OUKIM!$B$1:$B$396, SMALL(INDEX((OUKIM!$I$1:$I$396=\"Yes\")*(MATCH(ROW(OUKIM!$I$1:$I$396), ROW(OUKIM!$I$1:$I$396)))+(OUKIM!$I$1:$I$396<>\"Yes\")*1048577, 0, 0), ROW(A184))),\"\")","v":""},{"$f":"IFERROR(VLOOKUP(B188,OUKIM!B:C,2,0),\"\")","v":""},{"$f":"IFERROR(VLOOKUP(VLOOKUP(B188,OUKIM!B:J,9,0),DropDowns!G:I,3,0),\"\")","v":""},{"$f":"IFERROR(VLOOKUP(B188,OUKIM!B:E,4,0),\"\")","v":""},{"$f":"IFERROR(VLOOKUP(B188,OUKIM!B:G,6,0),\"\")","v":""},null,"",null,""]
[null,{"$f":"IFERROR(INDEX(OUKIM!$B$1:$B$396, SMALL(INDEX((OUKIM!$I$1:$I$396=\"Yes\")*(MATCH(ROW(OUKIM!$I$1:$I$396), ROW(OUKIM!$I$1:$I$396)))+(OUKIM!$I$1:$I$396<>\"Yes\")*1048577, 0, 0), ROW(A185))),\"\")","v":""},{"$f":"IFERROR(VLOOKUP(B189,OUKIM!B:C,2,0),\"\")","v":""},{"$f":"IFERROR(VLOOKUP(VLOOKUP(B189,OUKIM!B:J,9,0),DropDowns!G:I,3,0),\"\")","v":""},{"$f":"IFERROR(VLOOKUP(B189,OUKIM!B:E,4,0),\"\")","v":""},{"$f":"IFERROR(VLOOKUP(B189,OUKIM!B:G,6,0),\"\")","v":""},null,"",null,""]
[null,{"$f":"IFERROR(INDEX(OUKIM!$B$1:$B$396, SMALL(INDEX((OUKIM!$I$1:$I$396=\"Yes\")*(MATCH(ROW(OUKIM!$I$1:$I$396), ROW(OUKIM!$I$1:$I$396)))+(OUKIM!$I$1:$I$396<>\"Yes\")*1048577, 0, 0), ROW(A186))),\"\")","v":""},{"$f":"IFERROR(VLOOKUP(B190,OUKIM!B:C,2,0),\"\")","v":""},{"$f":"IFERROR(VLOOKUP(VLOOKUP(B190,OUKIM!B:J,9,0),DropDowns!G:I,3,0),\"\")","v":""},{"$f":"IFERROR(VLOOKUP(B190,OUKIM!B:E,4,0),\"\")","v":""},{"$f":"IFERROR(VLOOKUP(B190,OUKIM!B:G,6,0),\"\")","v":""},null,"",null,""]
[null,{"$f":"IFERROR(INDEX(OUKIM!$B$1:$B$396, SMALL(INDEX((OUKIM!$I$1:$I$396=\"Yes\")*(MATCH(ROW(OUKIM!$I$1:$I$396), ROW(OUKIM!$I$1:$I$396)))+(OUKIM!$I$1:$I$396<>\"Yes\")*1048577, 0, 0), ROW(A187))),\"\")","v":""},{"$f":"IFERROR(VLOOKUP(B191,OUKIM!B:C,2,0),\"\")","v":""},{"$f":"IFERROR(VLOOKUP(VLOOKUP(B191,OUKIM!B:J,9,0),DropDowns!G:I,3,0),\"\")","v":""},{"$f":"IFERROR(VLOOKUP(B191,OUKIM!B:E,4,0),\"\")","v":""},{"$f":"IFERROR(VLOOKUP(B191,OUKIM!B:G,6,0),\"\")","v":""},null,"",null,""]
[null,{"$f":"IFERROR(INDEX(OUKIM!$B$1:$B$396, SMALL(INDEX((OUKIM!$I$1:$I$396=\"Yes\")*(MATCH(ROW(OUKIM!$I$1:$I$396), ROW(OUKIM!$I$1:$I$396)))+(OUKIM!$I$1:$I$396<>\"Yes\")*1048577, 0, 0), ROW(A188))),\"\")","v":""},{"$f":"IFERROR(VLOOKUP(B192,OUKIM!B:C,2,0),\"\")","v":""},{"$f":"IFERROR(VLOOKUP(VLOOKUP(B192,OUKIM!B:J,9,0),DropDowns!G:I,3,0),\"\")","v":""},{"$f":"IFERROR(VLOOKUP(B192,OUKIM!B:E,4,0),\"\")","v":""},{"$f":"IFERROR(VLOOKUP(B192,OUKIM!B:G,6,0),\"\")","v":""},null,"",null,""]
[null,{"$f":"IFERROR(INDEX(OUKIM!$B$1:$B$396, SMALL(INDEX((OUKIM!$I$1:$I$396=\"Yes\")*(MATCH(ROW(OUKIM!$I$1:$I$396), ROW(OUKIM!$I$1:$I$396)))+(OUKIM!$I$1:$I$396<>\"Yes\")*1048577, 0, 0), ROW(A189))),\"\")","v":""},{"$f":"IFERROR(VLOOKUP(B193,OUKIM!B:C,2,0),\"\")","v":""},{"$f":"IFERROR(VLOOKUP(VLOOKUP(B193,OUKIM!B:J,9,0),DropDowns!G:I,3,0),\"\")","v":""},{"$f":"IFERROR(VLOOKUP(B193,OUKIM!B:E,4,0),\"\")","v":""},{"$f":"IFERROR(VLOOKUP(B193,OUKIM!B:G,6,0),\"\")","v":""},null,"",null,""]
[null,{"$f":"IFERROR(INDEX(OUKIM!$B$1:$B$396, SMALL(INDEX((OUKIM!$I$1:$I$396=\"Yes\")*(MATCH(ROW(OUKIM!$I$1:$I$396), ROW(OUKIM!$I$1:$I$396)))+(OUKIM!$I$1:$I$396<>\"Yes\")*1048577, 0, 0), ROW(A190))),\"\")","v":""},{"$f":"IFERROR(VLOOKUP(B194,OUKIM!B:C,2,0),\"\")","v":""},{"$f":"IFERROR(VLOOKUP(VLOOKUP(B194,OUKIM!B:J,9,0),DropDowns!G:I,3,0),\"\")","v":""},{"$f":"IFERROR(VLOOKUP(B194,OUKIM!B:E,4,0),\"\")","v":""},{"$f":"IFERROR(VLOOKUP(B194,OUKIM!B:G,6,0),\"\")","v":""},null,"",null,""]
[null,{"$f":"IFERROR(INDEX(OUKIM!$B$1:$B$396, SMALL(INDEX((OUKIM!$I$1:$I$396=\"Yes\")*(MATCH(ROW(OUKIM!$I$1:$I$396), ROW(OUKIM!$I$1:$I$396)))+(OUKIM!$I$1:$I$396<>\"Yes\")*1048577, 0, 0), ROW(A191))),\"\")","v":""},{"$f":"IFERROR(VLOOKUP(B195,OUKIM!B:C,2,0),\"\")","v":""},{"$f":"IFERROR(VLOOKUP(VLOOKUP(B195,OUKIM!B:J,9,0),DropDowns!G:I,3,0),\"\")","v":""},{"$f":"IFERROR(VLOOKUP(B195,OUKIM!B:E,4,0),\"\")","v":""},{"$f":"IFERROR(VLOOKUP(B195,OUKIM!B:G,6,0),\"\")","v":""},null,"",null,""]
[null,{"$f":"IFERROR(INDEX(OUKIM!$B$1:$B$396, SMALL(INDEX((OUKIM!$I$1:$I$396=\"Yes\")*(MATCH(ROW(OUKIM!$I$1:$I$396), ROW(OUKIM!$I$1:$I$396)))+(OUKIM!$I$1:$I$396<>\"Yes\")*1048577, 0, 0), ROW(A192))),\"\")","v":""},{"$f":"IFERROR(VLOOKUP(B196,OUKIM!B:C,2,0),\"\")","v":""},{"$f":"IFERROR(VLOOKUP(VLOOKUP(B196,OUKIM!B:J,9,0),DropDowns!G:I,3,0),\"\")","v":""},{"$f":"IFERROR(VLOOKUP(B196,OUKIM!B:E,4,0),\"\")","v":""},{"$f":"IFERROR(VLOOKUP(B196,OUKIM!B:G,6,0),\"\")","v":""},null,"",null,""]
[null,{"$f":"IFERROR(INDEX(OUKIM!$B$1:$B$396, SMALL(INDEX((OUKIM!$I$1:$I$396=\"Yes\")*(MATCH(ROW(OUKIM!$I$1:$I$396), ROW(OUKIM!$I$1:$I$396)))+(OUKIM!$I$1:$I$396<>\"Yes\")*1048577, 0, 0), ROW(A193))),\"\")","v":""},{"$f":"IFERROR(VLOOKUP(B197,OUKIM!B:C,2,0),\"\")","v":""},{"$f":"IFERROR(VLOOKUP(VLOOKUP(B197,OUKIM!B:J,9,0),DropDowns!G:I,3,0),\"\")","v":""},{"$f":"IFERROR(VLOOKUP(B197,OUKIM!B:E,4,0),\"\")","v":""},{"$f":"IFERROR(VLOOKUP(B197,OUKIM!B:G,6,0),\"\")","v":""},null,"",null,""]
[null,{"$f":"IFERROR(INDEX(OUKIM!$B$1:$B$396, SMALL(INDEX((OUKIM!$I$1:$I$396=\"Yes\")*(MATCH(ROW(OUKIM!$I$1:$I$396), ROW(OUKIM!$I$1:$I$396)))+(OUKIM!$I$1:$I$396<>\"Yes\")*1048577, 0, 0), ROW(A194))),\"\")","v":""},{"$f":"IFERROR(VLOOKUP(B198,OUKIM!B:C,2,0),\"\")","v":""},{"$f":"IFERROR(VLOOKUP(VLOOKUP(B198,OUKIM!B:J,9,0),DropDowns!G:I,3,0),\"\")","v":""},{"$f":"IFERROR(VLOOKUP(B198,OUKIM!B:E,4,0),\"\")","v":""},{"$f":"IFERROR(VLOOKUP(B198,OUKIM!B:G,6,0),\"\")","v":""},null,{"$f":"IF(B198<>\"\",\"Ya ndani:\",\"\")","v":""},null,{"$f":"IF(B198<>\"\",\"Ya nje:\",\"\")","v":""}]
[null,{"$f":"IFERROR(INDEX(OUKIM!$B$1:$B$396, SMALL(INDEX((OUKIM!$I$1:$I$396=\"Yes\")*(MATCH(ROW(OUKIM!$I$1:$I$396), ROW(OUKIM!$I$1:$I$396)))+(OUKIM!$I$1:$I$396<>\"Yes\")*1048577, 0, 0), ROW(A195))),\"\")","v":""},{"$f":"IFERROR(VLOOKUP(B199,OUKIM!B:C,2,0),\"\")","v":""},{"$f":"IFERROR(VLOOKUP(VLOOKUP(B199,OUKIM!B:J,9,0),DropDowns!G:I,3,0),\"\")","v":""},{"$f":"IFERROR(VLOOKUP(B199,OUKIM!B:E,4,0),\"\")","v":""},{"$f":"IFERROR(VLOOKUP(B199,OUKIM!B:G,6,0),\"\")","v":""},null,"",null,""]
[null,{"$f":"IFERROR(INDEX(OUKIM!$B$1:$B$396, SMALL(INDEX((OUKIM!$I$1:$I$396=\"Yes\")*(MATCH(ROW(OUKIM!$I$1:$I$396), ROW(OUKIM!$I$1:$I$396)))+(OUKIM!$I$1:$I$396<>\"Yes\")*1048577, 0, 0), ROW(A196))),\"\")","v":""},{"$f":"IFERROR(VLOOKUP(B200,OUKIM!B:C,2,0),\"\")","v":""},{"$f":"IFERROR(VLOOKUP(VLOOKUP(B200,OUKIM!B:J,9,0),DropDowns!G:I,3,0),\"\")","v":""},{"$f":"IFERROR(VLOOKUP(B200,OUKIM!B:E,4,0),\"\")","v":""},{"$f":"IFERROR(VLOOKUP(B200,OUKIM!B:G,6,0),\"\")","v":""},null,"",null,""]

{"sheet":"DropDowns","index":6,"n_rows":26,"n_cols":9,"rows_kept":26,"cut":false,"hidden":true,"merged":[]}
[]
[null,"Status %","Degree",null,"Risk",null,"Group Number","Estate Group Name","Outgrower Group Name"]
[null,"(chagua uchaguzi)","(select option)",null,"(chagua kiwango)",null,1,"Sera ya Shirika na Tathmini ya Uwezo  ","Tathmini ya Sera ya Kilimo cha Mkataba na Uwezo "]
[null,"< 25%","Little",1,1,null,2,"Uhakiki wa Kisheria, kiutawala na kitaasisi ","Uhakiki wa Kisheria, Kiutawala na Kitaasisi "]
[null,"26 - 50%","Marginal",2,2,null,3,"Tathmini ya Athari","Tathmini ya Athari "]
[null,"51 - 75%","Substantial",3,3,null,4,"Mashauriano na Ushirikiano","Mashauriano na Ushirikiano "]
[null,"> 75%","Considerable",4,null,null,5,"Uingiaji Mkataba na Makubaliano","Uingiaji Mkataba na Makubaliano "]
[null,"N/A","Not Applicable",null,null,null,6,"Malalamiko & Mrejesho ","Malalamiko & Mrejesho"]
[null,null,null,null,null,null,7,"Uvamizi"]
[null,null,null,null,null,null,8,"Mabadiliko ya Matumizi ya ardhi"]
[]
[]
[]
[]
[]
[null,0]
[null,0.1,null,null,null,null,"N/A"]
[null,0.2]
[null,0.3]
[null,0.4]
[null,0.5]
[null,0.6]
[null,0.7]
[null,0.8]
[null,0.9]
[null,1]